Workbook

Sheet Chart Index (hidden)
A7: Preview | B7: Sheet (and graph link) | C7: Chart Title | D7: Chart Series
B8: طراحی همه الگوها | C8: رسم دستی چادر2 | D8: انحنا, صاف
B9: طراحی همه الگوها | C9: رسم دستی چادر 3 | D9: انحنا, صاف
B10: طراحی همه الگوها | C10: رسم دستی چادر 5 | D10: انحنا, صاف
B11: طراحی همه الگوها | C11: طراحی چادرها و رسم چادر 4 | D11: شبیه ساز دست خمیده و سر, شبیه ساز دامن, رسم یا طراحی چادر4
B12: طراحی همه الگوها | C12: چادر1 و مقنعه برای پرینت | D12: شبیه ساز دست خمیده و سر, شبیه ساز دامن, چادر 1 با نقطه گذاری
B13: طراحی همه الگوها | C13: شلوار پشت | D13: 1شبیه ساز, 2کمر شلوار, 3وسط شلوار و خط اتو, 4پهلو, 6فاق, 7لبه پایین, 9کمر جدا, اطلاعات اندام در شلوار
B14: طراحی همه الگوها | C14: طراحی پشت یقه | D14: شبیه ساز برش, شبیه ساز انحنا, طراحی یقه گرد
B15: طراحی همه الگوها | C15: طراحی جلو یقه | D15: شبیه ساز اندام, طراحی یقه شکاری
B16: طراحی همه الگوها | C16: شلوار جلو | D16: 1شبیه ساز جلو, 2کمر شلوار, 3وسط شلوار, 4پهلو, 6فاق, 7لبه پایین شلوار, 8زیپ, 9کمر جدا, 10جیب مردانه, 11جیب جین, اطلاعات اندام در شلوار
B17: طراحی همه الگوها | C17: طراحی جلو دامن ترک با کمر پهن | D17: شبیه ساز دامن تنگ, کمر پهن, خط مرکزی جلو کمر, خطوط اصلی دامن ترک, خطوط فرعی دامن ترک, خط اوزمان, پیلی
B18: طراحی همه الگوها | C18: طراحی پشت دامن ترک با کمر پهن | D18: شبیه ساز دامن تنگ, کمر یکسره, خطوط اصلی دامن ترک, خطوط فرعی دامن ترک, پیلی
B19: طراحی همه الگوها | C19: آستین | D19: شبیه ساز آستین, آستین بلند یا کوتاه, مچ آستین بلند یا کوتاه
B20: طراحی همه الگوها | C20: الگو پشت | D20: 0 اطلاعات اندام, 72شبیه ساز بالاتنه بدون ساسون, 2شبیه ساز دامن, 5حلقه آستین بدون ساسون, 6سرشانه بدون ساسون, 10پهلو صاف وپایین لباس, 17یقه گرد , 18خط پشت در پیراهن, 24بدون شیفت ساسون کمر
B21: طراحی همه الگوها | C21: یقه و کلاه | D21: شومیزیه
B22: طراحی همه الگوها | C22: الگو جلو | D22: 0اطلاعات اندام, 1شبیه ساز بالاتنه, 2شبیه ساز دامن, 6حلقه آستین بدون ساسون , 7سرشانه بدون ساسون, 11پهلو صاف , 22یقه گرد چرخیده, 23جادکمه یقه گرد در پیراهن, 29پایین پیراهن بدون ترک, 70ساسون کمر, 76جادکمه متصل به یقه

Sheet محاسبات (hidden)
A1: height_print | B1: 30.73496831
A2: width_print | B2: 30.62378054
A3: charts_resized | K3: محاسبات بافت | NU3: یقه شکاری | OF3: یقه شومیزیه نوک تیز تا خط جادکمه | OQ3: یقه شومیزیه معمولی تا خط جادکمه | PB3: یقه ب ب غیر مسطح | PM3: یقه ب ب معمولی | PX3: راهنما نقشه بافت | QI3: نقشه بافت بالاتنه | QQ3: رج دوبل | RB3: یقه انگلیسی | RU3: توری بافت
A4: print_body_chartS | AC4: متغیر محاسبه ای یقه انگلیسی | NU4: بافت انتخابی | OC4: نقشه بافت | OF4: بافت انتخابی | ON4: نقشه بافت | OQ4: بافت انتخابی | OY4: نقشه بافت | PB4: بافت انتخابی | PJ4: نقشه بافت | PM4: بافت انتخابی | PU4: نقشه بافت | PX4: متغیرهای ورودی | QF4: راهنمای نقشه بافت | QI4: متغیرهای ورودی | QN4: نقشه بافت بالاتنه یقه گرد | QQ4: متغیرهای ورودی | QY4: رسم رج دوبل | RB4: بافت انتخابی | RJ4: نقشه بافت | RN4: آستین | RQ4: جلو | RT4: پشت | RW4: کلاه | RZ4: جلو شلوار | SC4: پشت شلوار
A5: ActiveWindow.Zoom | B5: 15 | E5: متغیرهای ورودی مربوط به ضخامت میل (متناسب با ضخامت نخ) | G5: میل 2 | H5: میل 2.5 | I5: میل 3 | J5: میل 3.5 | K5: میل 4 | L5: میل 4.5 | M5: میل 5 | S5: متغیرهای ورودی یقه شومیزیه بافت انتخابی | W5: یقه ب ب تا خط مرکزی جلو | AB5: طول دور گردن در یقه انگلیسی | AC5: d'5 | AD5: =2*(SQRT(POWER((AZ148-AZ140),2)+POWER((BA148-BA140),2))+SQRT(POWER((BK138-BK132),2)+POWER((BL138-BL132),2))+SQRT(POWER((BK132-BK135),2)+POWER((BL132-BL135),2))+SQRT(POWER((BK135-BK104),2)+POWER((BL104-BL135),2))+SQRT(POWER((AC13-J233),2)+POWER((AD13-K233),2))) -> 32.35746945 | AJ5: سلول مرجع | NU5: a1 | NV5: =O33 -> 124 | OB5: =NV31 -> -35 | OC5: =NV32 -> 5 | OD5: w1 | OF5: e1 | OG5: =R34 -> 119 | OM5: =OG36 -> -35 | ON5: =OG37 -> 5 | OO5: m1 | OQ5: e1 | OR5: =U34 -> 104 | OX5: =OR36 -> -35 | OY5: =OR37 -> 5 | OZ5: m1 | PB5: c1 | PC5: =X33 -> 89 | PI5: =PB60 -> -35 | PJ5: =PC60 -> 5 | PK5: n1 | PM5: c1 | PN5: =AA33 -> 101 | PT5: =PM60 -> -35 | PU5: =PN60 -> 5 | PV5: n1 | PX5: Xt1 | PY5: ='متغیرها '!C891 -> -45 | PZ5: جابجایی افقی کل راهنما نقشه | QE5: =PX29 -> -45 | QF5: 5 | QG5: t1 | QJ5: =QJ9 -> 0 | QK5: جابجایی افقی | QM5: =QI69 -> 0 | QN5: =QJ69 -> 80.22779747 | QO5: 26' | QQ5: جابجایی افقی | QR5: ='متغیرها '!C903 -> 2 | QS5: k2 | QX5: =QQ20 -> -12.30540729 | QY5: =QR20 -> 48.28856646 | QZ5: k9 | RB5: d1 | RC5: =AD33 -> 63 | RI5: =RB60 -> -35 | RJ5: =RC60 -> 5 | RK5: p1 | RN5: a001 تعداد رج در یک سانت آستین | RO5: =I36 -> 3.373809524 | RQ5: a0 تعداد رج در یک سانت جلو | RR5: =I22 -> 3.46031746 | RT5: a01 تعداد رج در یک سانت پشت | RU5: =I29 -> 3.46031746 | RW5: a02 تعداد رج در یک سانت کلاه | RX5: =I48 -> 3.373809524 | RZ5: a03 تعداد رج در یک سانت شلوار | SA5: =L48 -> 3.373809524 | SC5: a04 تعداد رج در یک سانت پشت شلوار | SD5: =O48 -> 3.373809524
A6: per_font_size_chart | B6: =0.1*'مساله سوم مدل 13'!B472 -> 0.8 | E6: (بدون احتساب بافت انتخابی) a'0 ضریب تعداد رج | F6: =IF(F8=2,G6,IF(F8=2.5,H6,IF(F8=3,I6,IF(F8=3.5,J6,IF(F8=4,K6,IF(F8=4.5,L6,M6)))))) -> 3.27 | G6: 3.5 | H6: 3.27 | I6: 3.04 | J6: 2.8 | K6: 2.57 | L6: 2.3 | M6: 2.07 | N6: a''0 | O6: متغیرهای ورودی یقه شکاری کشباف | R6: =ROUND(S12*S9,1) -> 4.1 | S6: پهنا (cm)= | W6: متغیر محاسبه ای | AB6: دال بالا | AC6: d''3 | AD6: =H231*H124 -> 2.65 | AH6: تعداد دانه در یک سانت eb0 | AI6: ea0 تعداد رج در یک سانت | AJ6: میزان جمع شوندگی عمودی مدل | AK6: میزان جمع شوندگی افقی مدل | AL6: ارتفاع رجها به سانتیمتر | AM6: تعداد رج | AN6: پهنا به سانتیمتر | AO6: تعداد دانه | AP6: اسم مدل | AQ6: شماره مدل | NU6: a2 | NV6: 4 | OA6: باکس نوشتهa1 | OD6: =OA6 -> باکس نوشتهa1 | OF6: e2 | OG6: 9 | OL6: باکس نوشتهe1 | OO6: =OL6 -> باکس نوشتهe1 | OQ6: e2 | OR6: 9 | OW6: باکس نوشتهe1 | OZ6: =OW6 -> باکس نوشتهe1 | PB6: c2 | PC6: 2 | PH6: باکس نوشتهc1 | PK6: =PH6 -> باکس نوشتهc1 | PM6: c2 | PN6: 2 | PS6: باکس نوشتهc1 | PV6: =PS6 -> باکس نوشتهc1 | PX6: Yt1 | PY6: ='متغیرها '!C892 -> 5 | PZ6: جابجایی عمودی کل راهنما نقشه | QE6: -41.5 | QF6: 5 | QG6: t2 | QJ6: =QJ10 -> 0 | QK6: جابجایی عمودی | QM6: =QI68 -> 0 | QN6: =QJ68 -> 49.8 | QO6: 1' | QQ6: جابجایی عمودی | QR6: ='متغیرها '!C904 -> 2 | QS6: k3 | QX6: =QQ22 -> -11 | QY6: =QR22 -> 48.76369586 | QZ6: k11 | RB6: d2 | RC6: =AD34 -> 5 | RH6: باکس نوشتهd1 | RK6: =RH6 -> باکس نوشتهd1 | RN6: تعداد دانه در یک سانت آستینb001 | RO6: =I37 -> 2.335135135 | RQ6: تعداد دانه در یک سانت جلوb0 | RR6: =I23 -> 2.468571429 | RT6: تعداد دانه در یک سانت پشتb01 | RU6: =I30 -> 2.468571429 | RW6: تعداد دانه در یک سانت کلاهb02 | RX6: =I49 -> 2.335135135 | RZ6: تعداد دانه در یک سانت شلوارb03 | SA6: =L49 -> 2.335135135 | SC6: تعداد دانه در یک سانت پشت شلوارb04 | SD6: =O49 -> 2.335135135
A7: ChartFieldRange( باید خالی باشد ) | E7: (بدون احتساب بافت انتخابی) b'0 ضریب تعداد دانه | F7: =IF(F8=2,G7,IF(F8=2.5,H7,IF(F8=3,I7,IF(F8=3.5,J7,IF(F8=4,K7,IF(F8=4.5,L7,M7)))))) -> 2.4 | G7: 2.6 | H7: 2.4 | I7: 2.2 | J7: 2 | K7: 1.8 | L7: 1.6 | M7: 1.4 | N7: b''0 | O7: =ROUND(O11*(0.4*G166+0.037*H131),1) -> 5.1 | P7: پهنا (cm)= | R7: =ROUND(S13*S9,1) -> 6.1 | S7: پهنا (cm)= | W7: c'6 | X7: =DD692-DD682 -> 4.17352714 | AB7: دال پایین | AC7: d'3 | AD7: =H232*H124 -> 4.77 | AH7: =AO7/AN7 -> 30 | AI7: =AM7/AL7 -> 20 | AJ7: =(10/3)*((AM7/AL7)*(1/F6)-1) -> 17.0540265 | AK7: =(100/68)*((AO7/AN7)*(1/F7)-1) -> 16.91176471 | AL7: ='مساله سوم مدل 13'!K480 -> 1 | AM7: 20 | AN7: ='مساله سوم مدل 13'!K479 -> 1 | AO7: 30 | AP7: ='مساله سوم مدل 13'!J478 -> اول مخصوص کاربر | AQ7: 1 | NU7: a3 | NV7: 14 | NZ7: متغیرهای ورودی | OB7: =NZ13 -> -35 | OC7: =OA13 -> 5 | OD7: =NY13 -> w1 | OF7: e3 | OG7: 12 | OK7: متغیرهای ورودی | OM7: =OK13 -> -35 | ON7: =OL13 -> 5 | OO7: =OJ13 -> m1 | OQ7: e3 | OR7: 12 | OV7: متغیرهای ورودی | OX7: =OV13 -> -35 | OY7: =OW13 -> 5 | OZ7: =OU13 -> m1 | PB7: c3 | PC7: 4 | PG7: متغیرهای ورودی | PI7: =PG13 -> -35 | PJ7: =PH13 -> 5 | PK7: =PF13 -> n1 | PM7: c3 | PN7: 4 | PR7: متغیرهای ورودی | PT7: =PR13 -> -35 | PU7: =PS13 -> 5 | PV7: =PQ13 -> n1 | PX7: w11 | PY7: =4/PX18 -> 1.428571429 | PZ7: ارتفاع هر رج | QB7: نسبت سایز افقی | QC7: =PY17 -> 42 | QD7: انحنا چپگرد | QG7: =QD7 -> انحنا چپگرد | QQ7: شعاع | QR7: =0.5*'متغیرها '!C902 -> 4 | QS7: k4 | QX7: =QQ24 -> -9.535898385 | QY7: =QR24 -> 50.22779747 | QZ7: k13 | RB7: d3 | RC7: =AD35 -> 10 | RG7: متغیرهای ورودی | RI7: =RG13 -> -35 | RJ7: =RH13 -> 5 | RK7: =RF13 -> p1 | RN7: بافت انتخابی آستین | RO7: =I40 -> 11 | RQ7: بافت انتخابی جلو | RR7: =I26 -> 15 | RT7: بافت انتخابی پشت | RU7: =I33 -> 15 | RW7: بافت انتخابی کلاه | RX7: =I52 -> 11 | RZ7: بافت انتخابی شلوار | SA7: =L52 -> 11 | SC7: بافت انتخابی پشت شلوار | SD7: =O52 -> 11
A8: show_temp_print_sheet | B8: 0 | E8: انتخاب ضخامت میل بافتنی f1 | F8: ='متغیرها '!C857 -> 2.5 | O8: متغیر محاسبه ای یقه شکاری | R8: متغیر محاسبه ای شومیزیه | W8: c6 | X8: =ROUNDUP(X19*X7,0) -> 19 | AC8: d11 | AD8: =SQRT(POWER((GW680-GW686),2)+POWER((GX680-GX686),2)) -> 4.194177366 | AH8: 30 | AI8: 20 | AJ8: =(10/3)*((AM8/AL8)*(1/F6)-1) -> 17.0540265 | AK8: =(100/68)*((AO8/AN8)*(1/F7)-1) -> 16.91176471 | AL8: ='مساله سوم مدل 13'!K484 -> 1 | AM8: 20 | AN8: ='مساله سوم مدل 13'!K483 -> 1 | AO8: 30 | AP8: ='مساله سوم مدل 13'!J482 -> دوم مخصوص کاربر | AQ8: =AQ7+1 -> 2 | NU8: a4 | NV8: 28 | NY8: طول باکس نوشته | NZ8: =NV36 -> 4.5 | OA8: h3 | OB8: =NZ18 -> -21.42708333 | OC8: =OA18 -> 5 | OD8: =NY18 -> h8 | OF8: e4 | OG8: 21 | OJ8: طول باکس نوشته | OK8: =OG41 -> 4.5 | OL8: h3 | OM8: =OK18 -> -12.66493056 | ON8: =OL18 -> 5 | OO8: =OJ18 -> h8 | OQ8: e4 | OR8: 24 | OU8: طول باکس نوشته | OV8: =OR41 -> 4.5 | OW8: h3 | OX8: =OV18 -> -15.76388889 | OY8: =OW18 -> 5 | OZ8: =OU18 -> h8 | PB8: c4 | PC8: 8 | PF8: طول باکس نوشته | PG8: =PC39 -> 4.5 | PH8: h3 | PI8: =PG18 -> -18.86284722 | PJ8: =PH18 -> 5 | PK8: =PF18 -> h8 | PM8: c4 | PN8: 9 | PQ8: طول باکس نوشته | PR8: =PN39 -> 4.5 | PS8: h3 | PT8: =PR18 -> -16.38368056 | PU8: =PS18 -> 5 | PV8: =PQ18 -> h8 | PX8: g9 | PY8: 0.5 | PZ8: پهنای نیم دایره | QB8: ارتفاع نیم دایره | QC8: =PY14 -> 1.428571429 | QD8: بزرگی فلش | QE8: =QC11 -> -41.5 | QF8: =QD11 -> 5 | QG8: =QB11 -> t2 | QI8: نقاط ورودی | QM8: =QI68 -> 0 | QN8: =QJ68 -> 49.8 | QO8: 1' | QQ8: ارتفاع | QR8: =0.1*'متغیرها '!C901 -> 0.6 | QS8: k17 | QX8: =QQ16 -> -9 | QY8: =QR16 -> 52.22779747 | QZ8: k5 | RB8: d4 | RC8: =AD36 -> 1 | RF8: طول باکس نوشته | RG8: =1.3*RC41 -> 5.85 | RH8: h3 | RI8: =RG18 -> -22.6125 | RJ8: =RH18 -> 5 | RK8: =RF18 -> h8 | RN8: بافت انتخابی آستین | RO8: =I41 -> ساده | RQ8: بافت انتخابی جلو | RR8: =I27 -> سبدی (5 تایی) | RT8: بافت انتخابی پشت | RU8: =I34 -> سبدی (5 تایی) | RW8: بافت انتخابی کلاه | RX8: =I53 -> ساده | RZ8: بافت انتخابی شلوار | SA8: =L53 -> ساده | SC8: بافت انتخابی پشت شلوار | SD8: =O53 -> ساده
A9: per_line_size_chart | E9: از آستین رگلان γ9 | F9: =DE542 -> 0.6068782412 | I9: مقادیر قدیمی تا تاریخ 12 99 | O9: a7 | P9: =O16*O11*(0.4*G166+0.037*H131) -> 15.9230842 | R9: e'1 | S9: =(0.4*G166+0.037*H131) -> 2.045166778 | W9: c7 | X9: 0.15 | AC9: d'10 | AD9: =SQRT(POWER((J236-AC13),2)+POWER((K236-AD13),2))*SIN(RADIANS(H234)) -> 0.9745035221 | AH9: 30 | AI9: 20 | AJ9: =(10/3)*((AM9/AL9)*(1/F6)-1) -> 17.0540265 | AK9: =(100/68)*((AO9/AN9)*(1/F7)-1) -> 16.91176471 | AL9: ='مساله سوم مدل 13'!K488 -> 1 | AM9: 20 | AN9: ='مساله سوم مدل 13'!K487 -> 1 | AO9: 30 | AP9: ='مساله سوم مدل 13'!J486 -> سوم مخصوص کاربر | AQ9: 3 | EN9: رسم دستی چادر 4 | ET9: رسم و طراحی چادر شماره 4 | FF9: رسم چادر شماره 5 | FN9: طراحی چادر شماره 5 | FR9: طراحی چادر شماره 5 | GA9: پروسیجر یافتن راس سوم مثلث با داشتن دو راس و دو ضلع | GG9: پروسیجر چرخش یک نقطه حول نقطه دیگر | GM9: کامل شده | GP9: رسم باکس زیپ دامن- باکس دوطرفه راست و چپ | GQ9: مولفه افقی | GR9: مولفه عمودی | GU9: به دست آوردن راس سوم مثلث وقتی دو راس و دو ضلع را داریم | HA9: جلو(k''5 →k6) | HB9: =SQRT(POWER((#REF!-#REF!),2)+POWER((#REF!-#REF!),2)) ->  | HC9: ضلع راست | HO9: قرینه | HV9: قرینه نقطه نسبت به خط با داشتن دو نقطه از یک خط | NU9: a5 | NV9: 43 | NY9: پهنای باکس نوشته | NZ9: =NV37 -> 0.5 | OA9: h4 | OF9: e5 | OG9: 33 | OJ9: پهنای باکس نوشته | OK9: =OG42 -> 0.5 | OL9: h4 | OQ9: e5 | OR9: 36 | OU9: پهنای باکس نوشته | OV9: =OR42 -> 0.5 | OW9: h4 | PB9: c10 | PC9: 51 | PF9: پهنای باکس نوشته | PG9: =PC40 -> 0.5 | PH9: h4 | PM9: c10 | PN9: 51 | PQ9: پهنای باکس نوشته | PR9: =PN40 -> 0.5 | PS9: h4 | PX9: f'4 | PY9: 0.4 | PZ9: بزرگی فلش رج | QB9: پهنای نیم دایره | QC9: =PY8 -> 0.5 | QD9: =PY16 -> 0.5714285714 | QE9: =QC15 -> -41.1325 | QF9: =QD15 -> 5.2 | QG9: =QB15 -> g5 | QJ9: =C100 -> 0 | QK9: شیفت افقی جلو | QM9: =QI71 -> 8.310456 | QN9: =QJ71 -> 49.8 | QO9: 50 | QQ9: =QI69 -> 0 | QR9: =QJ69 -> 80.22779747 | QS9: 26' | QX9: =QQ26 -> -11 | QY9: =QR26 -> 55.69189909 | QZ9: k15 | RB9: d14 | RC9: =AD45 -> 1 | RF9: پهنای باکس نوشته | RG9: =RC42 -> 0.5 | RH9: h4 | RO9: =" بافت "&TEXT(0,RO8)&" با میل "&TEXT(0,RP11) -> بافت ساده با میل 2.5 | RR9: =" بافت "&TEXT(0,RR8)&" با میل "&TEXT(0,RP11) -> بافت سبدی (5 تایی) با میل 2.5 | RU9: =" بافت "&TEXT(0,RU8)&" با میل "&TEXT(0,RP11) -> بافت سبدی (5 تایی) با میل 2.5 | RX9: =" بافت "&TEXT(0,RX8)&" با میل "&TEXT(0,RP11) -> بافت ساده با میل 2.5 | SA9: =" بافت "&TEXT(0,SA8)&" با میل "&TEXT(0,RP11) -> بافت ساده با میل 2.5 | SD9: =" بافت "&TEXT(0,SD8)&" با میل "&TEXT(0,RP11) -> بافت ساده با میل 2.5
A10: Max_H_Chart | B10: 35.98 | E10: γ10 از آستین رگلان | F10: =DE543 -> 0.5929718933 | H10: میل 2 و 2.5 | I10: میل 3 و 3.5 | J10: میل 4 و 4.5 | N10: متغیرهای ورودی یقه شکاری کشباف | R10: e''1 | S10: =S13*S9 -> 6.135500333 | W10: c8 | X10: 0.25 | AC10: d9 | AD10: =ROUNDDOWN((K233-K236)*AD19/((J233-AC14)*AD20),0) -> 2 | AH10: 30 | AI10: 20 | AJ10: =(10/3)*((AM10/AL10)*(1/F6)-1) -> 17.0540265 | AK10: =(100/68)*((AO10/AN10)*(1/F7)-1) -> 16.91176471 | AL10: ='مساله سوم مدل 13'!K492 -> 1 | AM10: 20 | AN10: ='مساله سوم مدل 13'!K491 -> 1 | AO10: 30 | AP10: ='مساله سوم مدل 13'!J490 -> چهارم مخصوص کاربر | AQ10: 4 | ET10: رسم دستی چادر4 با نقطه گذاری | EY10: خطوط پرینت الگو یا طراحی چادر4 | FB10: رسم دستی چادر 5 (بر حسب سانتیمتر) | FG10: صاف | FK10: انحنا | FN10: اسم نقطه | FO10: مولفه افقی | FP10: مولفه عمودی | FR10: =FO14 -> 0 | FS10: =FP14 -> 105.126436 | FT10: s'6 | GC10: اطلاعات ورودی | GG10: رادیان | GH10: =-#REF! ->  | GI10: زاویه چرخش | GJ10: چرخش مخالف عقربه های ساعت | GO10: نقطه ورودی بالا | GP10: b5 | GQ10: 1 | GR10: 1 | GU10: درجه α1 | GV10: رادیان α1 | GW10: xdp'6 | GX10: ydp'6 | GY10: (dp4→dp'6) | GZ10: (dp4→dp6)-(dp4→dp'6) | HA10: (k6 →45)جلو | HB10: =SQRT(POWER((#REF!-#REF!),2)+POWER((#REF!-#REF!),2)) ->  | HC10: ضلع چپ | HO10: =-HK10+HP9 -> 0 | HP10: =HL10 -> 0 | HS10: مولفه افقی | HT10: مولفه عمودی | HU10: اسم نقطه ورودی | NU10: a6 | NV10: 6 | OB10: =NZ20 -> -21.42708333 | OC10: =OA20 -> 5.25 | OD10: =NY20 -> h10 | OF10: e6 | OG10: 9 | OM10: =OK20 -> -12.66493056 | ON10: =OL20 -> 5.25 | OO10: =OJ20 -> h10 | OQ10: e6 | OR10: 9 | OX10: =OV20 -> -15.76388889 | OY10: =OW20 -> 5.25 | OZ10: =OU20 -> h10 | PB10: c11 | PC10: 49 | PI10: =PG20 -> -18.86284722 | PJ10: =PH20 -> 5.25 | PK10: =PF20 -> h10 | PM10: c11 | PN10: 49 | PT10: =PR20 -> -16.38368056 | PU10: =PS20 -> 5.25 | PV10: =PQ20 -> h10 | PX10: f5 | PY10: 0.5 | PZ10: زاویه فلش رج | QB10: نقطه شروع انحنا | QC10: مولفه افقی | QD10: مولفه عمودی | QE10: =QC14 -> -40.975 | QF10: =QD14 -> 5.714285714 | QG10: =QB14 -> g4 | QJ10: 0 | QK10: شیفت عمودی جلو | QM10: =QI70 -> 16.72553266 | QN10: =QJ70 -> 50.14250015 | QO10: 7 | QQ10: f5 | QR10: 0.5 | QS10: زاویه فلش رج | QX10: =QQ18 -> -13 | QY10: =QR18 -> 56.22779747 | QZ10: k7 | RB10: d15 | RC10: =AD46 -> 1 | RI10: =RG20 -> -22.6125 | RJ10: =RH20 -> 5.25 | RK10: =RF20 -> h10 | RN10: محاسبات کلی
A11: Max_W_Chart | B11: 14.415 | E11: (نصف طول دور گردن بعلاوه جادکمه) (b'1)/2+b'2 | F11: =AZ102-BD98+SQRT(POWER((AZ102-AZ145),2)+POWER((BA145-BA102),2))+SQRT(POWER((AZ145-AZ148),2)+POWER((BA145-BA148),2))+SQRT(POWER((AZ148-AZ140),2)+POWER((BA148-BA140),2))+SQRT(POWER((BK138-BK132),2)+POWER((BL138-BL132),2))+SQRT(POWER((BK132-BK135),2)+POWER((BL132-BL135),2))+SQRT(POWER((BK135-BK104),2)+POWER((BL104-BL135),2)) -> 15.19711181 | H11: 3.5 | I11: 2.8 | J11: 2.6 | K11: a''0 | N11: ضریب پهنای یقه (1.5 الی 3) | O11: =EF682/EF679 -> 2.5 | S11: متغیرهای ورودی یقه شومیزیه بافت انتخابی | W11: c12 | X11: =2*(F11-F12) -> 30.39422362 | AC11: d10 | AD11: =ROUNDDOWN((AD19*AD43/(AD20*AD9)),0) -> 8 | AH11: 30 | AI11: 20 | AJ11: =(10/3)*((AM11/AL11)*(1/F6)-1) -> 17.0540265 | AK11: =(100/68)*((AO11/AN11)*(1/F7)-1) -> 16.91176471 | AL11: ='مساله سوم مدل 13'!K496 -> 1 | AM11: 20 | AN11: ='مساله سوم مدل 13'!K495 -> 1 | AO11: 30 | AP11: ='مساله سوم مدل 13'!J494 -> پنجم مخصوص کاربر | AQ11: 5 | DA11: رسم دستی چادر 2 (بر حسب سانتیمتر) | DD11: رسم چادر شماره 2 | DL11: نقاط ورودی | DP11: طراحی چادر شماره 2 | DX11: طراحی چادر شماره 3 | EB11: رسم دستی چادر 3 (بر حسب سانتیمتر) | EE11: رسم چادر شماره 3 | ET11: =EP29 -> 0 | EU11: =EQ30 -> -10.7 | EV11: 2 | EX11: =EP30 -> -6.3 | EY11: =EQ30 -> -10.7 | EZ11: 3 | FF11: =FF15-'طراحی همه الگوها'!U274 -> 42.3 | FG11: =FG15 -> 60.4 | FH11: خط پهلو | FJ11: =FF30 -> 62.1 | FK11: =FG30 -> 70.2 | FL11: 13 | FN11: s1 | FO11: =DB400 -> 0 | FP11: =DC400 -> 103.145 | FR11: 5.039937847 | FS11: 103.0232597 | FT11: s''7 | GA11: اسم نقطه | GB11: مولفه افقی | GC11: مولفه عمودی | GG11: مولفه افقی | GH11: مولفه عمودی | GI11: اسم نقطه | GK11: نقطه خروجی چرخیده | GO11: نقطه ورودی پایین | GP11: b6 | GQ11: 1 | GR11: 1 | GT11: 2 | GU11: -100 | GV11: =RADIANS(GU11) -> -1.745329252 | GW11: =HB13+HB10*COS(GV11) ->  | GX11: =HC13-HB10*SIN(GV11) ->  | GY11: =SQRT(POWER((HB12-GW11),2)+POWER((HC12-GX11),2)) ->  | GZ11: =ABS(HB9-GY11) ->  | HA11: اسم نقطه | HB11: مولفه افقی | HC11: مولفه عمودی | HO11: =-HK11+HP9 -> 0 | HP11: 0 | HS11: 0 | HT11: 0 | HU11: 1 | HV11: نقطه اول خط تقارن | HW11: نقاط قرینه شده نسبت به خط تقارن | NU11: a10 | NV11: 5 | OB11: =NZ21 -> -21.42708333 | OC11: =OA21 -> 4.75 | OD11: =NY21 -> h11 | OF11: e7 | OG11: 0 | OM11: =OK21 -> -12.66493056 | ON11: =OL21 -> 4.75 | OO11: =OJ21 -> h11 | OQ11: e7 | OR11: 0 | OX11: =OV21 -> -15.76388889 | OY11: =OW21 -> 4.75 | OZ11: =OU21 -> h11 | PB11: خطا | PI11: =PG21 -> -18.86284722 | PJ11: =PH21 -> 4.75 | PK11: =PF21 -> h11 | PM11: خطا | PT11: =PR21 -> -16.38368056 | PU11: =PS21 -> 4.75 | PV11: =PQ21 -> h11 | PX11: f9 | PY11: 0.5 | PZ11: بزرگی خط عمودی دانه | QB11: =PZ30 -> t2 | QC11: =PX30 -> -41.5 | QD11: =PY30 -> 5 | QE11: =QC16 -> -41.1325 | QF11: =QD16 -> 6.228571429 | QG11: =QB16 -> g6 | QJ11: 0 | QK11: شیفت افقی پشت | QQ11: f4 | QR11: =0.7*QR8 -> 0.42 | QS11: بزرگی فلش رج | QX11: =QQ27 -> -15 | QY11: =QR27 -> 55.69189909 | QZ11: k16 | RB11: d8 | RC11: =AD40 -> 14 | RI11: =RG21 -> -22.6125 | RJ11: =RH21 -> 4.75 | RK11: =RF21 -> h11 | RN11: =2/RO6 -> 0.8564814815 | RO11: c1 | RP11: =RB20 -> 2.5 | RQ11: انتخاب ضخامت میل بافتنی
A12: Min_H_Chart | B12: 20 | E12: ( از خط مرکزی جلو تا خط جادکمه = طول جادکمه) b'2 | F12: =AZ102-BD98 -> 0 | H12: 2.3 | I12: 1.8 | J12: 1.7 | K12: b''0 | N12: a15 | O12: =EE699-EE697+SQRT(POWER((EE699-EE701),2)+POWER((EF699-EF701),2))+SQRT(POWER((EE701-EE704),2)+POWER((EF701-EF704),2))+SQRT(POWER((EE704-EE705),2)+POWER((EF704-EF705),2))+SQRT(POWER((EE705-EE703),2)+POWER((EF705-EF703),2)) -> 15.12383875 | R12: ضریب پهنای پایه یقه (1 الی 2) | S12: =DH682/DH679 -> 2 | W12: c13 | X12: =2*(SQRT(POWER((DC682-DC683),2)+POWER((DD682-DD683),2))+SQRT(POWER((DC683-DC684),2)+POWER((DD683-DD684),2))+SQRT(POWER((DC684-DC685),2)+POWER((DD684-DD685),2))+SQRT(POWER((DC685-DC686),2)+POWER((DD685-DD686),2))+SQRT(POWER((DC686-DC687),2)+POWER((DD686-DD687),2))+SQRT(POWER((DC687-DC688),2)+POWER((DD687-DD688),2))+SQRT(POWER((DC688-DC689),2)+POWER((DD688-DD689),2))+SQRT(POWER((DC689-DC690),2)+POWER((DD689-DD690),2))) -> 48.27594105 | AC12: d12 | AD12: =ROUND(SQRT(POWER((J236-J250),2)+POWER((K236-K250),2))-SQRT(POWER((J250-AC13),2)+POWER((K250-AD13),2)),0) -> 6 | AH12: 30 | AI12: 20 | AJ12: =(10/3)*((AM12/AL12)*(1/F6)-1) -> 17.0540265 | AK12: =(100/68)*((AO12/AN12)*(1/F7)-1) -> 16.91176471 | AL12: ='مساله سوم مدل 13'!K500 -> 1 | AM12: 20 | AN12: ='مساله سوم مدل 13'!K499 -> 1 | AO12: 30 | AP12: ='مساله سوم مدل 13'!J498 -> ششم مخصوص کاربر | AQ12: 6 | CI12: نقاط ورودی | CM12: رسم چادر شماره 1 و مقنعه چانه دار | CQ12: نقاط ورودی | CU12: رسم مقنعه دراپه | DE12: صاف | DI12: انحنا | DL12: اسم نقطه | DM12: مولفه افقی | DN12: مولفه عمودی | DP12: =DM23 -> 0 | DQ12: 105.126436 | DR12: s6 | DT12: طراحی چادر شماره 3 | DX12: =DU14 -> 0 | DY12: 105.126436 | DZ12: s'6 | EF12: صاف | EJ12: انحنا | ET12: =EP29 -> 0 | EU12: =EQ29 -> 109.1 | EV12: 1 | EX12: =EP32 -> 4.285473068 | EY12: =EQ32 -> -11.25476114 | EZ12: 6 | FJ12: =FJ11+0.45*(FJ15-FJ11) -> 68.895 | FK12: =FK11+0.25*(FK15-FK11) -> 89.3 | FL12: 13' | FN12: s3 | FO12: =DB402 -> 4.87692 | FP12: =DC402 -> 96.45035 | FR12: 13.43983426 | FS12: 88.30102536 | FT12: s''8 | FZ12: راس پایین | GA12: منهای شیفتa50 | GB12: =ER37 -> 52.27944959 | GC12: =ES37 -> 0 | GD12: ضلع پایین | GE12: =EZ25 -> 8 | GG12: =#REF! ->  | GH12: =#REF! ->  | GI12: a40 | GJ12: نقطه مرکزی چرخش | GK12: مولفه افقی | GL12: مولفه عمودی | GM12: اسم نقطه | GO12: متغیر ورودی پهنا | GP12: a20 | GQ12: 1 | GR12: (سانتیمتر) | GU12: =GU11+GT11 -> -98 | GV12: -1.710422667 | GW12: =HB13+HB10*COS(GV12) ->  | GX12: =HC13-HB10*SIN(GV12) ->  | GY12: =SQRT(POWER((HB12-GW12),2)+POWER((HC12-GX12),2)) ->  | GZ12: =ABS(HB9-GY12) ->  | HA12: پشتk''5 | HB12: =GQ33 ->  | HC12: =GR33 ->  | HD12: راس راست | HO12: =-HK12+HP9 -> 0 | HP12: 0 | HS12: =HF29 -> 0 | HT12: =HG29 -> 0 | HU12: 2 | HV12: نقطه دوم خط تقارن | HW12: مولفه افقی | HX12: مولفه عمودی | HY12: اسم نقطه | NU12: a11 | NV12: 3 | NY12: نقطه شروع رج(چپ) | NZ12: مولفه افقی | OA12: مولفه عمودی | OF12: e8 | OG12: -4 | OJ12: نقطه شروع رج(چپ) | OK12: مولفه افقی | OL12: مولفه عمودی | OQ12: e8 | OR12: -4 | OU12: نقطه شروع رج(چپ) | OV12: مولفه افقی | OW12: مولفه عمودی | PB12: c16 | PC12: =X15 -> 77 | PD12: تعداد دانه دور یقه ب ب | PF12: نقطه شروع رج(چپ) | PG12: مولفه افقی | PH12: مولفه عمودی | PM12: c16 | PN12: =X15 -> 77 | PO12: تعداد دانه دور یقه ب ب | PQ12: نقطه شروع رج(چپ) | PR12: مولفه افقی | PS12: مولفه عمودی | PX12: f10 | PY12: 0.3 | PZ12: بزرگی فلش دانه | QB12: g11 | QC12: =QC16+0.8*(QC14-QC16) -> -41.0065 | QD12: =QD14+0.6*(QD16-QD14) -> 6.022857143 | QE12: =QC13 -> -41.5 | QF12: =QD13 -> 6.428571429 | QG12: =QB13 -> g2 | QJ12: 0 | QK12: شیفت عمودی پشت | QM12: =QI70 -> 16.72553266 | QN12: =QJ70 -> 50.14250015 | QO12: 7 | QX12: =QQ17 -> -17 | QY12: =QR17 -> 52.22779747 | QZ12: k6 | RB12: d5 | RC12: =AD37 -> 70 | RD12: تعداد دانه دور یقه انگلیسی | RF12: نقطه شروع رج(چپ) | RG12: مولفه افقی | RH12: مولفه عمودی | RN12: =2/RO5 -> 0.5928016937 | RO12: c2
A13: Min_W_Chart | B13: -30 | E13: گشادی بالای مچ آستین (cm) b'11 | F13: =ROUND(DY522-DY523,0) -> 18 | N13: a'25 | O13: =F11-O12 -> 0.07327305602 | R13: ضریب پهنای برگرد یقه (1.5 الی 3) | S13: =DH710/DH707 -> 3 | W13: c14 | X13: =0.88*X12 -> 42.48282812 | AB13: d16 | AC13: =J250+((AD36+4)/AD19)*SIN(RADIANS(H234)) -> -0.9745035221 | AD13: =K250-((AD36+4)/AD19)*COS(RADIANS(H234)) -> 80.50168411 | AH13: 30 | AI13: 20 | AJ13: =(10/3)*((AM13/AL13)*(1/F6)-1) -> 17.0540265 | AK13: =(100/68)*((AO13/AN13)*(1/F7)-1) -> 16.91176471 | AL13: ='مساله سوم مدل 13'!K504 -> 1 | AM13: 20 | AN13: ='مساله سوم مدل 13'!K503 -> 1 | AO13: 30 | AP13: ='مساله سوم مدل 13'!J502 -> هفتم مخصوص کاربر | AQ13: 7 | CI13: مولفه افقی | CJ13: مولفه عمودی | CK13: اسم نقطه | CM13: مولفه افقی | CN13: مولفه عمودی | CO13: اسم نقطه | CQ13: مولفه افقی | CR13: مولفه عمودی | CS13: اسم نقطه | CU13: مولفه افقی | CV13: مولفه عمودی | CW13: اسم نقطه | DD13: =DB37+'طراحی همه الگوها'!U190 -> 13.3 | DE13: =DE14 -> 0 | DF13: 5 | DH13: =DD17 -> 13.3 | DI13: =DE17 -> 24 | DJ13: 11 | DL13: s2 | DM13: =DB401 -> 3.413844 | DN13: =DC401 -> 101.4713375 | DP13: 3.989351994 | DQ13: 103.448162 | DR13: s7 | DT13: اسم نقطه | DU13: مولفه افقی | DV13: مولفه عمودی | DX13: 4.193170623 | DY13: 102.9560845 | DZ13: s'7 | EE13: =DB37 -> 0 | EF13: ='طراحی همه الگوها'!U210+EC35 -> 109.1 | EG13: 1 | EI13: =EE32 -> 119.8 | EJ13: =EF32 -> 109.1 | EK13: 11 | FF13: 0 | FG13: =FC42 -> 0 | FH13: 1 | FJ13: =FJ11+0.75*(FJ15-FJ11) -> 73.425 | FK13: =FK11+0.5*(FK15-FK11) -> 108.4 | FL13: 28 | FN13: s5 | FO13: =DB404 -> 0 | FP13: =DC404 -> 88.268 | FR13: 23.51970995 | FS13: 74.84069685 | FT13: s''9 | FZ13: راس بالا | GA13: منهای شیفتe18 | GB13: =FB27-EW21 -> 0 | GC13: =FC27 -> 0 | GD13: ضلع بالا | GE13: =EZ26 -> 0 | GG13: =#REF!-#REF!+#REF! ->  | GH13: =#REF! ->  | GI13: a48-b16+f22 | GJ13: نقطه قبل از چرخش | GK13: =IF(GH13>GH12,IF(GG13>GG12,GG12+SQRT(POWER(GG13-GG12,2)+POWER(GH13-GH12,2))*COS(ATAN((GH13-GH12)/(GG13-GG12+0.000123))+GH10),GG12-SQRT(POWER(GG13-GG12,2)+POWER(GH13-GH12,2))*COS(ATAN((GH13-GH12)/(GG12-GG13+0.000123))-GH10)),IF(GG13>GG12,GG12+SQRT(POWER(GG13-GG12,2)+POWER(GH13-GH12,2))*COS(ATAN((GH12-GH13)/(GG13-GG12+0.000123))-GH10),GG12-SQRT(POWER(GG13-GG12,2)+POWER(GH13-GH12,2))*COS(ATAN((GH12-GH13)/(GG12-GG13+0.000123))+GH10))) ->  | GL13: =IF(GH13>GH12,IF(GG13>GG12,GH12+SQRT(POWER(GG13-GG12,2)+POWER(GH13-GH12,2))*SIN(ATAN((GH13-GH12)/(GG13-GG12+0.000123))+GH10),GH12+SQRT(POWER(GG13-GG12,2)+POWER(GH13-GH12,2))*SIN(ATAN((GH13-GH12)/(GG12-GG13+0.000123))-GH10)),IF(GG13>GG12,GH12-SQRT(POWER(GG13-GG12,2)+POWER(GH13-GH12,2))*SIN(ATAN((GH12-GH13)/(GG13-GG12+0.000123))-GH10),GH12-SQRT(POWER(GG13-GG12,2)+POWER(GH13-GH12,2))*SIN(ATAN((GH12-GH13)/(GG12-GG13+0.000123))+GH10))) ->  | GM13: e52 | GO13: متغیر ورودی طول | GP13: a21 | GQ13: 1 | GU13: =GU12+GT11 -> -96 | GV13: -1.675516082 | GW13: =HB13+HB10*COS(GV13) ->  | GX13: =HC13-HB10*SIN(GV13) ->  | GY13: =SQRT(POWER((HB12-GW13),2)+POWER((HC12-GX13),2)) ->  | GZ13: =ABS(HB9-GY13) ->  | HA13: 42پشت | HB13: =GQ35 -> 1 | HC13: =GR35 -> 0 | HD13: راس چپ | HO13: =-HK13+HP9 -> 0 | HP13: 0 | HS13: 0 | HT13: 0 | HU13: 3 | HW13: =HS13+2*(SIN(ATAN((HS12-HS11)/(HT12-HT11)))*(HT13-HT11)+COS(ATAN((HS12-HS11)/(HT12-HT11)))*(HS11-HS13))*COS(ATAN((HS12-HS11)/(HT12-HT11))) ->  | HX13: =HT13-2*(SIN(ATAN((HS12-HS11)/(HT12-HT11)))*(HT13-HT11)+COS(ATAN((HS12-HS11)/(HT12-HT11)))*(HS11-HS13))*SIN(ATAN((HS12-HS11)/(HT12-HT11))) ->  | HY13: =HU13 -> 3 | NU13: a25 | NV13: 1 | NY13: w1 | NZ13: =NV31 -> -35 | OA13: =NV32 -> 5 | OB13: =NZ20 -> -21.42708333 | OC13: =OA20 -> 5.25 | OD13: =NY20 -> h10 | OF13: e9 | OG13: 20 | OJ13: m1 | OK13: =OG36 -> -35 | OL13: =OG37 -> 5 | OM13: =OK20 -> -12.66493056 | ON13: =OL20 -> 5.25 | OO13: =OJ20 -> h10 | OQ13: e9 | OR13: 20 | OU13: m1 | OV13: =OR36 -> -35 | OW13: =OR37 -> 5 | OX13: =OV20 -> -15.76388889 | OY13: =OW20 -> 5.25 | OZ13: =OU20 -> h10 | PB13: c17 | PC13: =X16 -> 74 | PD13: تعداد دانه دور یقه لباس | PF13: n1 | PG13: =PB60 -> -35 | PH13: =PC60 -> 5 | PI13: =PG20 -> -18.86284722 | PJ13: =PH20 -> 5.25 | PK13: =PF20 -> h10 | PM13: c17 | PN13: =X16 -> 74 | PO13: تعداد دانه دور یقه لباس | PQ13: n1 | PR13: =PM60 -> -35 | PS13: =PN60 -> 5 | PT13: =PR20 -> -16.38368056 | PU13: =PS20 -> 5.25 | PV13: =PQ20 -> h10 | PX13: f11 | PY13: 0.75 | PZ13: زاویه فلش دانه | QB13: g2 | QC13: =QC11 -> -41.5 | QD13: =QD11+QC8 -> 6.428571429 | QJ13: 0 | QK13: شیفت افقی تکه جلو | QM13: =IF(QJ65>QJ70,QI65,QI70) -> 16.72553266 | QN13: =IF(QJ65>QJ70,QJ65,QJ70) -> 50.14250015 | QO13: 9 یا 7 | QX13: =QQ25 -> -16.46410162 | QY13: =QR25 -> 50.22779747 | QZ13: k14 | RB13: d13 | RC13: =AD44 -> 72 | RD13: تعداد دانه دور یقه لباس | RF13: p1 | RG13: =RB60 -> -35 | RH13: =RC60 -> 5 | RI13: =RG20 -> -22.6125 | RJ13: =RH20 -> 5.25 | RK13: =RF20 -> h10 | RN13: =2/RR6 -> 0.8101851852 | RO13: c7 | RR13: محاسبات توری در صفحه چاپ
A14: print_baft_grid | E14: تعداد دانه ها در بالای مچ آستین b'12 | F14: =ROUND(I37*F13,0) -> 42 | H14: محاسبه برای بافت بالاتنه ( بافت انتخابی) | N14: یقه شکاری | R14: یقه شومیزیه تا خط جادکمه | W14: c15 | X14: =ROUND(X20*X13,0) -> 108 | AB14: d17 | AC14: =J236+2*F12 -> 0 | AD14: =K236 -> 74.975 | AH14: 30 | AI14: 20 | AJ14: =(10/3)*((AM14/AL14)*(1/F6)-1) -> 17.0540265 | AK14: =(100/68)*((AO14/AN14)*(1/F7)-1) -> 16.91176471 | AL14: ='مساله سوم مدل 13'!K508 -> 1 | AM14: 20 | AN14: ='مساله سوم مدل 13'!K507 -> 1 | AO14: 30 | AP14: ='مساله سوم مدل 13'!J506 -> هشتم مخصوص کاربر | AQ14: 8 | CI14: =DB406 -> 0 | CJ14: =DC406 -> 104.812 | CK14: شبیه ساز s15 | CM14: =CI39 -> 59.3 | CN14: =CJ39 -> 109.1 | CO14: j5 | CQ14: =DB404 -> 0 | CR14: =DC404 -> 88.268 | CS14: شبیه ساز s5 | CU14: =CQ27 -> 0 | CV14: =CR27 -> 50.0045 | CW14: d6 | DD14: =DB37 -> 0 | DE14: =CR36 -> 0 | DF14: 2 | DH14: ='طراحی همه الگوها'!U190+'طراحی همه الگوها'!U199 -> 25.8 | DI14: =DE14+'طراحی همه الگوها'!U201 -> 25.8 | DJ14: 17 | DL14: s3 | DM14: =DB402 -> 4.87692 | DN14: =DC402 -> 96.45035 | DP14: 13.29783998 | DQ14: 91.14081912 | DR14: s8 | DT14: s'6 | DU14: =DM16 -> 0 | DV14: =1.003*DN16 -> 105.126436 | DX14: 13.97723541 | DY14: 87.76362421 | DZ14: s'8 | EE14: =DB37 -> 0 | EF14: =EF13-'طراحی همه الگوها'!U212 -> 57 | EG14: 4 | EI14: =EI15+0.7*(EI13-EI15) -> 119.5 | EJ14: =EJ15+0.4*(EJ13-EJ15) -> 109.4 | EK14: 13' | ET14: =EP31 -> 5.7 | EU14: =EQ31 -> 0 | EV14: 5 | EX14: =EP32 -> 4.285473068 | EY14: =EQ32 -> -11.25476114 | EZ14: 6 | FF14: =FF13+'طراحی همه الگوها'!U249 -> 55.8 | FG14: =FG13 -> 0 | FH14: 2 | FJ14: =FJ11+0.95*(FJ15-FJ11) -> 76.445 | FK14: =FK11+0.8*(FK15-FK11) -> 131.32 | FL14: 13''' | FN14: s'6 | FO14: =DU14 -> 0 | FP14: =DV14 -> 105.126436 | FR14: 33.59958564 | FS14: 63.06290941 | FT14: s''10 | FZ14: c19 | GA14: =ATAN((GB13-GB12)/(GC13-GC12)) ->  | GC14: محاسبات | GQ14: ماکزیمم متغیر ورودی ضریب طول | GR14: 20 | GU14: =GU13+GT11 -> -94 | GV14: -1.640609497 | GW14: =HB13+HB10*COS(GV14) ->  | GX14: =HC13-HB10*SIN(GV14) ->  | GY14: =SQRT(POWER((HB12-GW14),2)+POWER((HC12-GX14),2)) ->  | GZ14: =ABS(HB9-GY14) ->  | HA14: k6 | HB14: =HB13+HB10*COS(RADIANS(GT24)) ->  | HC14: =HC13-HB10*SIN(RADIANS(GT24)) ->  | HD14: راس سوم | HO14: =-HK14+HP9 -> 0 | HP14: 0 | HS14: 0 | HT14: 0 | HU14: 4 | HW14: =HS14+2*(SIN(ATAN((HS12-HS11)/(HT12-HT11)))*(HT14-HT11)+COS(ATAN((HS12-HS11)/(HT12-HT11)))*(HS11-HS14))*COS(ATAN((HS12-HS11)/(HT12-HT11))) ->  | HX14: =HT14-2*(SIN(ATAN((HS12-HS11)/(HT12-HT11)))*(HT14-HT11)+COS(ATAN((HS12-HS11)/(HT12-HT11)))*(HS11-HS14))*SIN(ATAN((HS12-HS11)/(HT12-HT11))) ->  | HY14: 4 | NU14: خطا | NY14: نقطه پایان رج(راست) | NZ14: مولفه افقی | OA14: مولفه عمودی | OB14: =NZ23 -> -16.92708333 | OC14: =OA23 -> 5.25 | OD14: =NY23 -> h13 | OF14: e10 | OG14: 48 | OJ14: نقطه پایان رج(راست) | OK14: مولفه افقی | OL14: مولفه عمودی | OM14: =OK23 -> -8.164930556 | ON14: =OL23 -> 5.25 | OO14: =OJ23 -> h13 | OQ14: e10 | OR14: 48 | OU14: نقطه پایان رج(راست) | OV14: مولفه افقی | OW14: مولفه عمودی | OX14: =OV23 -> -11.26388889 | OY14: =OW23 -> 5.25 | OZ14: =OU23 -> h13 | PB14: b''1 | PC14: =G46 -> 74 | PF14: نقطه پایان رج(راست) | PG14: مولفه افقی | PH14: مولفه عمودی | PI14: =PG23 -> -14.36284722 | PJ14: =PH23 -> 5.25 | PK14: =PF23 -> h13 | PM14: b''1 | PN14: =G46 -> 74 | PQ14: نقطه پایان رج(راست) | PR14: مولفه افقی | PS14: مولفه عمودی | PT14: =PR23 -> -11.88368056 | PU14: =PS23 -> 5.25 | PV14: =PQ23 -> h13 | PX14: g3 | PY14: =PY7 -> 1.428571429 | PZ14: ارتفاع نیم دایره | QB14: g4 | QC14: =QC11+QC9*QC7/40 -> -40.975 | QD14: =QD11+0.5*QC8 -> 5.714285714 | QE14: =QC18 -> -41.25662296 | QF14: =QD18 -> 5.710705726 | QG14: =QB18 -> g8 | QJ14: 0 | QK14: شیفت افقی تکه پشت | QM14: =QI66 -> 15.7765 | QN14: =QJ66 -> 70.06516501 | QO14: 12 | QR14: نقاط خروجی | QX14: =QQ23 -> -15 | QY14: =QR23 -> 48.76369586 | QZ14: k12 | RB14: d9 | RC14: =AD41 -> 2 | RF14: نقطه پایان رج(راست) | RG14: مولفه افقی | RH14: مولفه عمودی | RI14: =RG23 -> -16.7625 | RJ14: =RH23 -> 5.25 | RK14: =RF23 -> h13 | RN14: =2/RR5 -> 0.5779816514 | RO14: c8 | RQ14: Max_H_Chart | RR14: =B10 -> 35.98
E15: تعداد دانه های اضافه شده زیر بغل b8 | F15: =ROUNDUP(I23*(AX119+AX114+BI116),0) -> 9 | H15: تعداد رج در یک سانت جادکمه | I15: =F6+0.3*I17*F6 -> 3.114285714 | N15: بافت انتخابی یقه شکاری | R15: جمع شوندگی عمودی e9 | S15: =OFFSET(AJ6,S20,0) -> 1.164021164 | W15: c16 | X15: =ROUND(X20*X11,0) -> 77 | AC15: d5-2*d8 | AD15: =AD37-2*AD40 -> 42 | AH15: 30 | AI15: 20 | AJ15: =(10/3)*((AM15/AL15)*(1/F6)-1) -> 17.0540265 | AK15: =(100/68)*((AO15/AN15)*(1/F7)-1) -> 16.91176471 | AL15: ='مساله سوم مدل 13'!K512 -> 1 | AM15: 20 | AN15: ='مساله سوم مدل 13'!K511 -> 1 | AO15: 30 | AP15: ='مساله سوم مدل 13'!J510 -> نهم مخصوص کاربر | AQ15: 9 | CJ15: ='متغیرها '!C52 -> 0 | CK15: شیفت عمودی | CM15: =CI36 -> 0 | CN15: =CJ36 -> 109.1 | CO15: j1 | CQ15: =CI37 -> 0 | CR15: =CJ37 -> 60.5 | CS15: j2 | CU15: =CQ25 -> 0 | CV15: =CR25 -> 118.5095 | CW15: d3 | DD15: =DB37 -> 0 | DE15: ='طراحی همه الگوها'!U188+CR36 -> 116.2 | DF15: 1 | DH15: =DD21 -> 38.2 | DI15: =DE21 -> 29.2 | DJ15: 10 | DL15: خط سینه | DM15: =DT400 -> 0 | DN15: =DU400 -> 71.8 | DP15: 23.27121996 | DQ15: 82.749449 | DR15: s9 | DT15: s'7 | DU15: =DU14+0.12*(DU18-DU14) -> 4.193170623 | DV15: =DV18+0.95*(DV14-DV18) -> 102.9560845 | DX15: 24.46016197 | DY15: 74.74151537 | DZ15: s'9 | EE15: =DB37 -> 0 | EF15: =EC35 -> 0 | EG15: 2 | EI15: =EE31-'طراحی همه الگوها'!U220 -> 118.8 | EJ15: =EF31 -> 109.6 | EK15: 13 | ET15: =EP29 -> 0 | EU15: =EQ31 -> 0 | EV15: 4 | EX15: =EX14+0.3*(EX17-EX14) -> 16.98232515 | EY15: =EY14+0.05*(EY17-EY14) -> -10.43438712 | EZ15: 6'' | FF15: =FF13+'طراحی همه الگوها'!U249 -> 55.8 | FG15: =FG13+'طراحی همه الگوها'!U251 -> 60.4 | FH15: 4 | FJ15: =FF34 -> 77.2 | FK15: =FG34 -> 146.6 | FL15: 15 | FN15: s''7 | FO15: =FO14+0.15*(FO18-FO14) -> 5.039937847 | FP15: =FP18+0.95*(FP14-FP18) -> 103.0232597 | FR15: 38.97359718 | FS15: 57.68889787 | FT15: k4 شبیه ساز | GA15: درجه α | GB15: x | GC15: y | GD15: c21 | GE15: c'17 | GG15: پروسیجر چرخش چند نقطه حول نقطه دیگر | GM15: کامل شده | GO15: m1 | GP15: =ATAN(IF(GQ11>GQ10,1,-1)*(GQ11-GQ10)/(GR10-GR11)) ->  | GQ15: m2 | GR15: =SQRT(POWER(GQ10-GQ11,2)+POWER(GR10-GR11,2)) -> 0 | GU15: =GU14+GT11 -> -92 | GV15: -1.605702912 | GW15: =HB13+HB10*COS(GV15) ->  | GX15: =HC13-HB10*SIN(GV15) ->  | GY15: =SQRT(POWER((HB12-GW15),2)+POWER((HC12-GX15),2)) ->  | GZ15: =ABS(HB9-GY15) ->  | HA15: رسم مثلث | HO15: =-HK15+HP9 -> 0 | HP15: 0 | HS15: =HF30 -> 0 | HT15: =HG30 -> 0 | HU15: 5 | HW15: =HS15+2*(SIN(ATAN((HS12-HS11)/(HT12-HT11)))*(HT15-HT11)+COS(ATAN((HS12-HS11)/(HT12-HT11)))*(HS11-HS15))*COS(ATAN((HS12-HS11)/(HT12-HT11))) ->  | HX15: =HT15-2*(SIN(ATAN((HS12-HS11)/(HT12-HT11)))*(HT15-HT11)+COS(ATAN((HS12-HS11)/(HT12-HT11)))*(HS11-HS15))*SIN(ATAN((HS12-HS11)/(HT12-HT11))) ->  | HY15: 5 | NU15: b''1-2*a25 | NV15: =NV17-2*NV13 -> 72 | NY15: w2 | NZ15: =NU51 -> -3.354166667 | OA15: =NV51 -> 5 | OF15: e11 | OG15: 46 | OJ15: m2 | OK15: =OF61 -> 14.17013889 | OL15: =OG61 -> 5 | OQ15: e11 | OR15: 46 | OU15: m2 | OV15: =OQ61 -> 7.972222222 | OW15: =OR61 -> 5 | PB15: b2 | PC15: =ROUND(F12*I16,0) -> 0 | PD15: دانه ها جادکمه | PF15: n2 | PG15: =PB61 -> 1.774305556 | PH15: =PC61 -> 5 | PM15: b2 | PN15: =ROUND(F12*I16,0) -> 0 | PO15: دانه ها جادکمه | PQ15: n2 | PR15: =PM61 -> 6.732638889 | PS15: =PN61 -> 5 | PX15: n0 | PY15: =PX19*40/PY17 -> 1.904761905 | PZ15: ضریب کاهش تعداد دانه ها | QB15: g5 | QC15: =QC11+0.7*(QC14-QC11) -> -41.1325 | QD15: =QD11+0.28*(QD14-QD11) -> 5.2 | QE15: =QC12 -> -41.0065 | QF15: =QD12 -> 6.022857143 | QG15: =QB12 -> g11 | QJ15: 0 | QK15: شیفت عمودی تکه پشت | QQ15: =QQ9+QR5-15 -> -13 | QR15: =QR9+QR6-30 -> 52.22779747 | QS15: k1 | QX15: =QQ29 -> -15.3 | QY15: =QR29 -> 48.24408062 | QZ15: k19 | RB15: d10 | RC15: =AD42 -> 8 | RF15: p2 | RG15: =RB61 -> -4.375 | RH15: =RC61 -> 5 | RN15: =2/RU6 -> 0.8101851852 | RO15: c9 | RQ15: Max_W_Chart | RR15: =B11 -> 14.415
E16: تعداد دانه های سرتاسر آستین در قسمت زیر بغل b20 | F16: =ROUNDUP(F15+I22*F29*COS(0.4*(F9+F10))+G44+0.5*F27,0) -> 73 | H16: تعداد دانه در یک سانت جادکمه | I16: =F7+0.68*I18*F7 -> 2.16 | N16: aa0 تعداد رج در یک سانت | O16: =F6+0.3*O19*F6 -> 3.114285714 | R16: جمع شوندگی افقی e8 | S16: =OFFSET(AJ6,S20,1) -> 0.08650519031 | W16: c17 | X16: =G46-G42 -> 74 | AC16: d13-2*d8 | AD16: =AD44-2*AD40 -> 44 | AH16: 30 | AI16: 20 | AJ16: =(10/3)*((AM16/AL16)*(1/F6)-1) -> 17.0540265 | AK16: =(100/68)*((AO16/AN16)*(1/F7)-1) -> 16.91176471 | AL16: ='مساله سوم مدل 13'!K516 -> 1 | AM16: 20 | AN16: ='مساله سوم مدل 13'!K515 -> 1 | AO16: 30 | AP16: ='مساله سوم مدل 13'!J514 -> دهم مخصوص کاربر | AQ16: 10 | AS16: اسم نمونه بافت | AT16: میزان جمع شوندگی افقی کاربر | AU16: میزان جمع شوندگی عمودی کاربر | CI16: دور سر | CJ16: ='متغیرها '!U85 -> 51 | CK16: w12 | CR16: =CJ22 -> 104 | CS16: تمام قد | DD16: =DB37+'طراحی همه الگوها'!U190 -> 13.3 | DE16: =DE15 -> 116.2 | DF16: 4 | DH16: ='طراحی همه الگوها'!U190+'طراحی همه الگوها'!U192+'طراحی همه الگوها'!U202 -> 45.3 | DI16: =DE14+'طراحی همه الگوها'!U204 -> 28.2 | DJ16: 20 | DL16: s15 | DM16: =DB406 -> 0 | DN16: =DC406 -> 104.812 | DP16: 33.24459995 | DQ16: 77.15520225 | DR16: s10 | DT16: s'8 | DU16: =DU14+0.4*(DU18-DU14) -> 13.97723541 | DV16: =DV18+0.6*(DV14-DV18) -> 87.76362421 | DX16: 34.94308853 | DY16: 61.71940652 | DZ16: s'10 | EE16: =DB37+'طراحی همه الگوها'!U216 -> 110 | EF16: =EF15 -> 0 | EG16: 8 | ET16: =EP29 -> 0 | EU16: =EQ30 -> -10.7 | EV16: 2 | EX16: =EX14+0.7*(EX17-EX14) -> 33.91146126 | EY16: =EY14+0.4*(EY17-EY14) -> -4.691769034 | EZ16: 6''' | FF16: =FF13+'طراحی همه الگوها'!U249-'طراحی همه الگوها'!U255 -> 50.4 | FG16: =FG15 -> 60.4 | FH16: 8 | FN16: s''8 | FO16: =FO14+0.4*(FO18-FO14) -> 13.43983426 | FP16: =FP18+0.6*(FP14-FP18) -> 88.30102536 | GA16: 2 | GB16: =GB12+GE12*SIN(RADIANS(GA16)+GA14) ->  | GC16: =GC12+GE12*COS(RADIANS(GA16)+GA14) ->  | GD16: =IF(GB13>GB16,ATAN((GC13-GC16)/(GB13-GB16)),ATAN((GC13-GC16)/(GB16-GB13))) ->  | GE16: =IF(GB13>GB16,(GB13-GB16)/COS(GD16),(GB16-GB13)/COS(GD16)) ->  | GG16: رادیان | GH16: 1 | GI16: زاویه چرخش | GJ16: چرخش مخالف عقربه های ساعت | GO16: نقطه خروجی بالا | GP16: b28 | GQ16: =GQ10+IF(GQ11>GQ10,1,-1)*GQ12*COS(GP15) ->  | GR16: =GR10+GQ12*SIN(GP15) ->  | GU16: =GU15+GT11 -> -90 | GV16: -1.570796327 | GW16: =HB13+HB10*COS(GV16) ->  | GX16: =HC13-HB10*SIN(GV16) ->  | GY16: =SQRT(POWER((HB12-GW16),2)+POWER((HC12-GX16),2)) ->  | GZ16: =ABS(HB9-GY16) ->  | HA16: =HA12 -> پشتk''5 | HO16: =-HK16+HP9 -> 0 | HP16: 0 | HS16: 0 | HT16: 0 | HU16: 6 | HW16: =HS16+2*(SIN(ATAN((HS12-HS11)/(HT12-HT11)))*(HT16-HT11)+COS(ATAN((HS12-HS11)/(HT12-HT11)))*(HS11-HS16))*COS(ATAN((HS12-HS11)/(HT12-HT11))) ->  | HX16: =HT16-2*(SIN(ATAN((HS12-HS11)/(HT12-HT11)))*(HT16-HT11)+COS(ATAN((HS12-HS11)/(HT12-HT11)))*(HS11-HS16))*SIN(ATAN((HS12-HS11)/(HT12-HT11))) ->  | HY16: 6 | NU16: b2 | NV16: =F25 -> 0 | NY16: نقاط خروجی | NZ16: مولفه افقی | OA16: مولفه عمودی | OB16: =NZ21 -> -21.42708333 | OC16: =OA21 -> 4.75 | OD16: =NY21 -> h11 | OF16: خطا | OJ16: نقاط خروجی | OK16: مولفه افقی | OL16: مولفه عمودی | OM16: =OK21 -> -12.66493056 | ON16: =OL21 -> 4.75 | OO16: =OJ21 -> h11 | OQ16: خطا | OU16: نقاط خروجی | OV16: مولفه افقی | OW16: مولفه عمودی | OX16: =OV21 -> -15.76388889 | OY16: =OW21 -> 4.75 | OZ16: =OU21 -> h11 | PB16: =X19 -> 4.411904762 | PC16: ca0 تعداد رج در یک سانت | PF16: نقاط خروجی | PG16: مولفه افقی | PH16: مولفه عمودی | PI16: =PG21 -> -18.86284722 | PJ16: =PH21 -> 4.75 | PK16: =PF21 -> h11 | PM16: =X19 -> 4.411904762 | PN16: ca0 تعداد رج در یک سانت | PQ16: نقاط خروجی | PR16: مولفه افقی | PS16: مولفه عمودی | PT16: =PR21 -> -16.38368056 | PU16: =PS21 -> 4.75 | PV16: =PQ21 -> h11 | PX16: f4 | PY16: =PY9*PY7 -> 0.5714285714 | PZ16: بزرگی فلش رج | QB16: g6 | QC16: =QC15 -> -41.1325 | QD16: =QD13-QD15+QD11 -> 6.228571429 | QJ16: جلو | QM16: =QI66 -> 15.7765 | QN16: =QJ66 -> 70.06516501 | QO16: 12 | QQ16: =QQ15+QR7 -> -9 | QR16: =QR15 -> 52.22779747 | QS16: k5 | QX16: =QQ31 -> -16.98371686 | QY16: =QR31 -> 49.92779747 | QZ16: k21 | RB16: d12 | RC16: =AD43 -> 6 | RF16: نقاط خروجی | RG16: مولفه افقی | RH16: مولفه عمودی | RI16: =RG21 -> -22.6125 | RJ16: =RH21 -> 4.75 | RK16: =RF21 -> h11 | RN16: =2/RU5 -> 0.5779816514 | RO16: c10 | RQ16: Min_H_Chart | RR16: =B12 -> 20
E17: تعداد دانه های اضافه شده در کنار آستین در هر طرف b21 | F17: =0.5*(F16-F14) -> 15.5 | H17: جمع شوندگی عمودی بافت جادکمه | I17: =OFFSET(AJ6,I19,0) -> -0.1587301587 | N17: تعداد دانه در یک سانت ab0 | O17: =F7+0.68*O20*F7 -> 4.114285714 | R17: ea0 تعداد رج در یک سانت | S17: =F6+0.3*S15*F6 -> 4.411904762 | W17: جمع شوندگی عمودی e9 | X17: =OFFSET(AJ6,X21,0) -> 1.164021164 | AC17: جمع شوندگی عمودی | AD17: =OFFSET(AJ6,AD21,0) -> -0.1587301587 | AH17: =AO17/AN17 -> 1.945945946 | AI17: =AM17/AL17 -> 2.888888889 | AJ17: =(10/3)*((AM17/AL17)*(1/J6)-1) -> 0.1058201058 | AK17: =(100/68)*((AO17/AN17)*(1/J7)-1) -> -0.03974562798 | AL17: 13.5 | AM17: 39 | AN17: 18.5 | AO17: 36 | AP17: ساده | AQ17: 11 | AS17: =IF(AM17=0," ",AP17) -> ساده | AT17: =IF(AN17=0," ",ROUND(AK17*100+20,0)) -> 16 | AU17: =IF(AM17=0," ",ROUND(AJ17*50+30,0)) -> 35 | CJ17: ='متغیرها '!U76 -> 54 | CK17: t3 | CM17: =CI36 -> 0 | CN17: =CJ36 -> 109.1 | CO17: j1 | CR17: ='متغیرها '!C52 -> 0 | CS17: شیفت عمودی | CU17: =CQ25 -> 0 | CV17: =CR25 -> 118.5095 | CW17: d3 | DD17: =DB37+'طراحی همه الگوها'!U190 -> 13.3 | DE17: =DE14+'طراحی همه الگوها'!U195 -> 24 | DF17: 11 | DH17: =DD25 -> 52.3 | DI17: =DE25 -> 23.994 | DJ17: 7 | DL17: زاویه متوسط سرشانه | DM17: ='متغیرها '!B245 -> 0.3368594679 | DN17: α2 | DT17: s'9 | DU17: =DU14+0.7*(DU18-DU14) -> 24.46016197 | DV17: =DV18+0.3*(DV14-DV18) -> 74.74151537 | EE17: =EE16 -> 110 | EF17: =EF16+'طراحی همه الگوها'!U221 -> 1 | EG17: 14 | EI17: =EE15 -> 0 | EJ17: =EF15 -> 0 | EK17: 2 | ET17: =EP30 -> -6.3 | EU17: =EQ30 -> -10.7 | EV17: 3 | EX17: =EP34 -> 46.60831334 | EY17: =EQ34 -> 5.15271912 | EZ17: 8 | FF17: =FF13 -> 0 | FG17: =FG15 -> 60.4 | FH17: 3 | FJ17: =FF32 -> 0 | FK17: =FG32 -> 78.7 | FL17: 18 | FN17: s''9 | FO17: =FO14+0.7*(FO18-FO14) -> 23.51970995 | FP17: =FP18+0.28*(FP14-FP18) -> 74.84069685 | FR17: =FO19 -> 38.97359718 | FS17: 57.68889787 | FT17: k4 شبیه ساز | GA17: 4 | GB17: =GB12+GE12*SIN(RADIANS(GA17)+GA14) ->  | GC17: =GC12+GE12*COS(RADIANS(GA17)+GA14) ->  | GD17: =IF(GB13>GB17,ATAN((GC13-GC17)/(GB13-GB17)),ATAN((GC13-GC17)/(GB17-GB13))) ->  | GE17: =IF(GB13>GB17,(GB13-GB17)/COS(GD17),(GB17-GB13)/COS(GD17)) ->  | GG17: مولفه افقی | GH17: مولفه عمودی | GI17: اسم نقطه | GK17: نقطه خروجی چرخیده | GO17: نقطه خروجی پایین | GP17: b27 | GQ17: =GQ18+IF(GQ11>GQ10,1,-1)*GQ12*COS(GP15) ->  | GR17: =GR18+GQ12*SIN(GP15) ->  | GU17: =GU16+GT11 -> -88 | GV17: -1.535889742 | GW17: =HB13+HB10*COS(GV17) ->  | GX17: =HC13-HB10*SIN(GV17) ->  | GY17: =SQRT(POWER((HB12-GW17),2)+POWER((HC12-GX17),2)) ->  | GZ17: =ABS(HB9-GY17) ->  | HA17: 42پشت | HB17: 1 | HC17: 0 | HO17: =-HK17+HP9 -> 0 | HP17: 0 | HS17: 0 | HT17: 0 | HU17: 7 | HW17: =HS17+2*(SIN(ATAN((HS12-HS11)/(HT12-HT11)))*(HT17-HT11)+COS(ATAN((HS12-HS11)/(HT12-HT11)))*(HS11-HS17))*COS(ATAN((HS12-HS11)/(HT12-HT11))) ->  | HX17: =HT17-2*(SIN(ATAN((HS12-HS11)/(HT12-HT11)))*(HT17-HT11)+COS(ATAN((HS12-HS11)/(HT12-HT11)))*(HS11-HS17))*SIN(ATAN((HS12-HS11)/(HT12-HT11))) ->  | HY17: 7 | NU17: b''1 | NV17: =G46 -> 74 | NY17: h5 | NZ17: =NZ13+0.5*(NZ15-NZ13) -> -19.17708333 | OA17: =OA13 -> 5 | OB17: =NZ22 -> -16.92708333 | OC17: =OA22 -> 4.75 | OD17: =NY22 -> h12 | OF17: e12-4*eb0*b'2 | OG17: =ROUND(S19-4*S18*F12,0) -> 77 | OJ17: h5 | OK17: =OK13+0.5*(OK15-OK13) -> -10.41493056 | OL17: =OL13 -> 5 | OM17: =OK22 -> -8.164930556 | ON17: =OL22 -> 4.75 | OO17: =OJ22 -> h12 | OQ17: e12-4*eb0*b'2 | OR17: =OG17 -> 77 | OU17: h5 | OV17: =OV13+0.5*(OV15-OV13) -> -13.51388889 | OW17: =OW13 -> 5 | OX17: =OV22 -> -11.26388889 | OY17: =OW22 -> 4.75 | OZ17: =OU22 -> h12 | PB17: =X20 -> 2.541176471 | PC17: تعداد دانه در یک سانت cb0 | PF17: h5 | PG17: =PG13+0.5*(PG15-PG13) -> -16.61284722 | PH17: =PH13 -> 5 | PI17: =PG22 -> -14.36284722 | PJ17: =PH22 -> 4.75 | PK17: =PF22 -> h12 | PM17: =X20 -> 2.541176471 | PN17: تعداد دانه در یک سانت cb0 | PQ17: h5 | PR17: =PR13+0.5*(PR15-PR13) -> -14.13368056 | PS17: =PS13 -> 5 | PT17: =PR22 -> -11.88368056 | PU17: =PS22 -> 4.75 | PV17: =PQ22 -> h12 | PX17: w'12 | PY17: 42 | PZ17: نسبت نقشه بافت به سایز واقعی | QB17: g7 | QC17: =QC12+0.7*QD9*SIN(RADIANS(30)+2*ATAN((QC12-QC15)/(QD12-QD15+0.0001))) -> -40.71201625 | QD17: =QD12-0.7*QD9*COS(RADIANS(30)+2*ATAN((QC12-QC15)/(QD12-QD15+0.0001))) -> 5.752155604 | QE17: =QC12 -> -41.0065 | QF17: =QD12 -> 6.022857143 | QG17: =QB12 -> g11 | QK17: یقه گرد جلو | QM17: =QI75 -> 38.36859847 | QN17: =QJ75 -> 53.42427893 | QO17: k''5 | QQ17: =QQ15-QR7 -> -17 | QR17: =QR15 -> 52.22779747 | QS17: k6 | QX17: =QQ33 -> -17.6 | QY17: =QR33 -> 52.22779747 | QZ17: k23 | RB17: خطا | RC17: =AD47 ->  | RF17: h5 | RG17: =RG13+0.5*(RG15-RG13) -> -19.6875 | RH17: =RH13 -> 5 | RI17: =RG22 -> -16.7625 | RJ17: =RH22 -> 4.75 | RK17: =RF22 -> h12 | RN17: =2/RX6 -> 0.8564814815 | RO17: c11 | RQ17: Min_W_Chart | RR17: =B13 -> -30
E18: طول اضافه شده در کنار آستین در هر طرف b'21 | F18: =F17/I23 -> 6.278935185 | H18: جمع شوندگی افقی بافت جادکمه | I18: =OFFSET(AJ6,I19,1) -> -0.1470588235 | N18: متغیر ورودی بافت یقه شکاری | R18: تعداد دانه در یک سانت eb0 | S18: =F7+0.68*S16*F7 -> 2.541176471 | W18: جمع شوندگی افقی e8 | X18: =OFFSET(AJ6,X21,1) -> 0.08650519031 | AC18: جمع شوندگی افقی | AD18: =OFFSET(AJ6,AD21,1) -> -0.1470588235 | AH18: 2.117647059 | AI18: 3.777777778 | AJ18: =(10/3)*((AM18/AL18)*(1/J6)-1) -> 1.164021164 | AK18: =(100/68)*((AO18/AN18)*(1/J7)-1) -> 0.08650519031 | AL18: 13.5 | AM18: 51 | AN18: 17 | AO18: 36 | AP18: همه از زیر | AQ18: 12 | AS18: همه از زیر | AT18: 29 | AU18: 88 | CJ18: ='متغیرها '!U56 -> 60.4 | CK18: e | CM18: =CI37 -> 0 | CN18: =CJ37 -> 60.5 | CO18: j2 | CQ18: محاسبات | CU18: =CQ26 -> 57.575 | CV18: =CR26 -> 60.9345 | CW18: d4 | DD18: =DB37+'طراحی همه الگوها'!U190 -> 13.3 | DE18: =DE14 -> 0 | DF18: 5 | DL18: دست صاف شبیه ساز k4 | DM18: =F406 -> 47.96783847 | DN18: =J406 -> 71.99901691 | DP18: =DM28 -> 28.84862142 | DQ18: =DN28 -> 64.60269761 | DR18: s12 | DT18: s'10 | DU18: =EC41-('متغیرها '!C19*'متغیرها '!U83)*COS(DM17+RADIANS(EC40)) -> 34.94308853 | DV18: =ED41+('متغیرها '!C19*'متغیرها '!U83)*SIN(DM17+RADIANS(EC40)) -> 61.71940652 | DX18: =DU20 -> 27.589178 | DY18: 54.365496 | DZ18: s'12 | EE18: =DB37+'طراحی همه الگوها'!U216 -> 110 | EF18: =EF15+'طراحی همه الگوها'!U217 -> 9.8 | EG18: 9 | EI18: =EI17+0.3*(EI20-EI17) -> 13.14 | EJ18: =EJ17+0.15*(EJ20-EJ17) -> 1.98 | EK18: 16' | FF18: =FF13 -> 0 | FG18: =FG17-'طراحی همه الگوها'!U252 -> 51.9 | FH18: 5 | FJ18: =FJ17+'طراحی همه الگوها'!U268 -> 15 | FK18: =FG31+'طراحی همه الگوها'!U269 -> 79.3 | FL18: 24 | FN18: s''10 | FO18: =EC41-0.2*'متغیرها '!U83*COS(DM17+RADIANS(EC40)) -> 33.59958564 | FP18: =ED41+0.2*'متغیرها '!U83*SIN(DM17+RADIANS(EC40)) -> 63.06290941 | FR18: 31.88446904 | FS18: 45.03277783 | FT18: s''11 | GA18: 6 | GB18: =GB12+GE12*SIN(RADIANS(GA18)+GA14) ->  | GC18: =GC12+GE12*COS(RADIANS(GA18)+GA14) ->  | GD18: =IF(GB13>GB18,ATAN((GC13-GC18)/(GB13-GB18)),ATAN((GC13-GC18)/(GB18-GB13))) ->  | GE18: =IF(GB13>GB18,(GB13-GB18)/COS(GD18),(GB18-GB13)/COS(GD18)) ->  | GG18: 2 | GH18: 1 | GI18: a40 | GJ18: نقطه مرکزی چرخش | GK18: مولفه افقی | GL18: مولفه عمودی | GM18: اسم نقطه | GO18: نقطه خروجی میانه | GP18: b26 | GQ18: =GQ10+IF(GQ11>GQ10,1,-1)*GQ13*GR15*SIN(GP15)/GR14 ->  | GR18: =GR10-GQ13*GR15*COS(GP15)/GR14 ->  | GU18: =GU17+GT11 -> -86 | GV18: -1.500983157 | GW18: =HB13+HB10*COS(GV18) ->  | GX18: =HC13-HB10*SIN(GV18) ->  | GY18: =SQRT(POWER((HB12-GW18),2)+POWER((HC12-GX18),2)) ->  | GZ18: =ABS(HB9-GY18) ->  | HO18: =-HK18+HP9 -> 0 | HP18: 0 | HS18: =HF30 -> 0 | HT18: =HG30 -> 0 | HU18: 8 | HW18: =HS18+2*(SIN(ATAN((HS12-HS11)/(HT12-HT11)))*(HT18-HT11)+COS(ATAN((HS12-HS11)/(HT12-HT11)))*(HS11-HS18))*COS(ATAN((HS12-HS11)/(HT12-HT11))) ->  | HX18: =HT18-2*(SIN(ATAN((HS12-HS11)/(HT12-HT11)))*(HT18-HT11)+COS(ATAN((HS12-HS11)/(HT12-HT11)))*(HS11-HS18))*SIN(ATAN((HS12-HS11)/(HT12-HT11))) ->  | HY18: 8 | NU18: نوشته ها یقه شکاری | NY18: h8 | NZ18: =NZ17-0.5*NZ8 -> -21.42708333 | OA18: =OA13 -> 5 | OF18: e12 | OG18: =ROUND(S19,0) -> 77 | OJ18: h8 | OK18: =OK17-0.5*OK8 -> -12.66493056 | OL18: =OL13 -> 5 | OQ18: e12 | OR18: =ROUND(S19,0) -> 77 | OU18: h8 | OV18: =OV17-0.5*OV8 -> -15.76388889 | OW18: =OW13 -> 5 | PB18: =I16 -> 2.16 | PC18: تعداد دانه در یک سانت جادکمه | PF18: h8 | PG18: =PG17-0.5*PG8 -> -18.86284722 | PH18: =PH13 -> 5 | PM18: =I16 -> 2.16 | PN18: تعداد دانه در یک سانت جادکمه | PQ18: h8 | PR18: =PR17-0.5*PR8 -> -16.38368056 | PS18: =PS13 -> 5 | PX18: 2.8 | PY18: تعداد رج در یک سانت | QB18: g8 | QC18: =QC12-0.7*QD9*SIN(RADIANS(30)+ATAN((QC12-QC15)/(QD12-QD15+0.0001))) -> -41.25662296 | QD18: =QD12-0.7*QD9*COS(RADIANS(30)+ATAN((QC12-QC15)/(QD12-QD15+0.0001))) -> 5.710705726 | QE18: =QC17 -> -40.71201625 | QF18: =QD17 -> 5.752155604 | QG18: =QB17 -> g7 | QI18: =FF150 -> 5.4188 | QJ18: 86.9 | QK18: 25 | QQ18: =QQ15 -> -13 | QR18: =QR15+QR7 -> 56.22779747 | QS18: k7 | QX18: =QQ35 -> -15.3 | QY18: =QR35 -> 56.21151433 | QZ18: k25 | RB18: =AD19 -> 3.114285714 | RC18: da0 تعداد رج در یک سانت | RF18: h8 | RG18: =RG17-0.5*RG8 -> -22.6125 | RH18: =RH13 -> 5 | RN18: =2/RX5 -> 0.5928016937 | RO18: c12 | RQ18: print_baft_grid | RR18: =B14 -> 0
E19: هر b11 رج در بافت آستین یکدانه از ابتدا و یکدانه از انتها کم شود | F19: =IF(OR(ROUND(F21/F17,0)>50,ROUND(F21/F17,0)<-50),0,ROUND(F21/F17,0)) -> 6 | H19: بافت انتخابی جادکمه | I19: ='متغیرها '!C858 -> 13 | N19: جمع شوندگی عمودی a9 | O19: =OFFSET(AJ6,O21,0) -> -0.1587301587 | R19: e12 | S19: =S18*2*F11 -> 77.23708589 | W19: ca0 تعداد رج در یک سانت | X19: =F6+0.3*X17*F6 -> 4.411904762 | AC19: da0 تعداد رج در یک سانت | AD19: =F6+0.3*AD17*F6 -> 3.114285714 | AH19: 1.8 | AI19: 2.666666667 | AJ19: =(10/3)*((AM19/AL19)*(1/J6)-1) -> -0.1587301587 | AK19: =(100/68)*((AO19/AN19)*(1/J7)-1) -> -0.1470588235 | AL19: 13.5 | AM19: 36 | AN19: 20 | AO19: 36 | AP19: جودانه | AQ19: 13 | AS19: جودانه | AT19: 5 | AU19: 22 | CJ19: ='متغیرها '!U58 -> 60.6 | CK19: g | CQ19: (d1 → d2) | CR19: =0.45*'متغیرها '!U85 -> 22.95 | DD19: =DD18+'طراحی همه الگوها'!U192 -> 38.2 | DE19: =DE14 -> 0 | DF19: 8 | DH19: =DD18 -> 13.3 | DI19: =DE18 -> 0 | DJ19: 5 | DL19: شبیه ساز 26 | DM19: =DX388 -> 0 | DN19: =DY388 -> 80.22779747 | DP19: =DP18+0.25*(DP21-DP18) -> 33.04896607 | DQ19: =DQ21+0.5*(DQ18-DQ21) -> 32.3013488 | DR19: s12' | DT19: s'11 | DU19: =DU29-'طراحی همه الگوها'!U226*SIN(DM17+RADIANS(EC40)) -> 32.25608276 | DV19: =DV29-'طراحی همه الگوها'!U226*COS(DM17+RADIANS(EC40)) -> 50.97138345 | DX19: 35.7374246 | DY19: 27.182748 | DZ19: s''13 | EE19: =EE26 -> 43.9 | EF19: =EF14+'طراحی همه الگوها'!U215 -> 59.7 | EG19: 7 | EI19: =DB37+'طراحی همه الگوها'!U227 -> 26.28 | EJ19: =EJ17+'طراحی همه الگوها'!U228 -> 5.9 | EK19: 22 | ET19: =EP29 -> 0 | EU19: =EQ35 -> 64.98731424 | EV19: 13 | EX19: =EP31 -> 5.7 | EY19: =EQ31 -> 0 | EZ19: 5 | FF19: =FF13 -> 0 | FG19: =FG13 -> 0 | FH19: 1 | FJ19: =FJ17+'طراحی همه الگوها'!U270 -> 29.9 | FK19: =FG31+'طراحی همه الگوها'!U271 -> 81.8 | FL19: 26 | FN19: k4 شبیه ساز | FO19: =K384 -> 38.97359718 | FP19: =L384 -> 57.68889787 | FR19: 17.70621277 | FS19: 34.90788179 | FT19: s'11 | GA19: 8 | GB19: =GB12+GE12*SIN(RADIANS(GA19)+GA14) ->  | GC19: =GC12+GE12*COS(RADIANS(GA19)+GA14) ->  | GD19: =IF(GB13>GB19,ATAN((GC13-GC19)/(GB13-GB19)),ATAN((GC13-GC19)/(GB19-GB13))) ->  | GE19: =IF(GB13>GB19,(GB13-GB19)/COS(GD19),(GB19-GB13)/COS(GD19)) ->  | GG19: 1 | GH19: 2 | GI19: نقطه 1 | GJ19: نقطه قبل از چرخش | GK19: =IF(GH19>GH18,IF(GG19>GG18,GG18+SQRT(POWER(GG19-GG18,2)+POWER(GH19-GH18,2))*COS(ATAN((GH19-GH18)/(GG19-GG18+0.000123))+GH16),GG18-SQRT(POWER(GG19-GG18,2)+POWER(GH19-GH18,2))*COS(ATAN((GH19-GH18)/(GG18-GG19+0.000123))-GH16)),IF(GG19>GG18,GG18+SQRT(POWER(GG19-GG18,2)+POWER(GH19-GH18,2))*COS(ATAN((GH18-GH19)/(GG19-GG18+0.000123))-GH16),GG18-SQRT(POWER(GG19-GG18,2)+POWER(GH19-GH18,2))*COS(ATAN((GH18-GH19)/(GG18-GG19+0.000123))+GH16))) -> 0.6182452327 | GL19: =IF(GH19>GH18,IF(GG19>GG18,GH18+SQRT(POWER(GG19-GG18,2)+POWER(GH19-GH18,2))*SIN(ATAN((GH19-GH18)/(GG19-GG18+0.000123))+GH16),GH18+SQRT(POWER(GG19-GG18,2)+POWER(GH19-GH18,2))*SIN(ATAN((GH19-GH18)/(GG18-GG19+0.000123))-GH16)),IF(GG19>GG18,GH18-SQRT(POWER(GG19-GG18,2)+POWER(GH19-GH18,2))*SIN(ATAN((GH18-GH19)/(GG19-GG18+0.000123))-GH16),GH18-SQRT(POWER(GG19-GG18,2)+POWER(GH19-GH18,2))*SIN(ATAN((GH18-GH19)/(GG18-GG19+0.000123))+GH16))) -> 0.6987463478 | GM19: نقطه چرخیده | GU19: =GU18+GT11 -> -84 | GV19: -1.466076572 | GW19: =HB13+HB10*COS(GV19) ->  | GX19: =HC13-HB10*SIN(GV19) ->  | GY19: =SQRT(POWER((HB12-GW19),2)+POWER((HC12-GX19),2)) ->  | GZ19: =ABS(HB9-GY19) ->  | HA19: =HA13 -> 42پشت | HB19: =HB13 -> 1 | HC19: =HC13 -> 0 | HO19: =-HK19+HP9 -> 0 | HP19: 0 | HS19: 0 | HT19: 0 | HU19: 9 | HW19: =HS19+2*(SIN(ATAN((HS12-HS11)/(HT12-HT11)))*(HT19-HT11)+COS(ATAN((HS12-HS11)/(HT12-HT11)))*(HS11-HS19))*COS(ATAN((HS12-HS11)/(HT12-HT11))) ->  | HX19: =HT19-2*(SIN(ATAN((HS12-HS11)/(HT12-HT11)))*(HT19-HT11)+COS(ATAN((HS12-HS11)/(HT12-HT11)))*(HS11-HS19))*SIN(ATAN((HS12-HS11)/(HT12-HT11))) ->  | HY19: =HU19 -> 9 | NU19: a1 | NV19: =TEXT(0,NV5)&" دانه سر می اندازیم" -> 124 دانه سر می اندازیم | NY19: h9 | NZ19: =NZ17+0.5*NZ8 -> -16.92708333 | OA19: =OA13 -> 5 | OB19: =NZ22 -> -16.92708333 | OC19: =OA22 -> 4.75 | OD19: =NY22 -> h12 | OF19: b''1 | OG19: =G46 -> 74 | OJ19: h9 | OK19: =OK17+0.5*OK8 -> -8.164930556 | OL19: =OL13 -> 5 | OM19: =OK22 -> -8.164930556 | ON19: =OL22 -> 4.75 | OO19: =OJ22 -> h12 | OQ19: b''1 | OR19: =OG19 -> 74 | OU19: h9 | OV19: =OV17+0.5*OV8 -> -11.26388889 | OW19: =OW13 -> 5 | OX19: =OV22 -> -11.26388889 | OY19: =OW22 -> 4.75 | OZ19: =OU22 -> h12 | PB19: =IF(PB20<11," مخصوص ",F8) -> 2.5 | PC19: انتخاب ضخامت میل بافتنی f1 | PF19: h9 | PG19: =PG17+0.5*PG8 -> -14.36284722 | PH19: =PH13 -> 5 | PI19: =PG22 -> -14.36284722 | PJ19: =PH22 -> 4.75 | PK19: =PF22 -> h12 | PM19: =IF(PM20<11," مخصوص ",F8) -> 2.5 | PN19: انتخاب ضخامت میل بافتنی f1 | PQ19: h9 | PR19: =PR17+0.5*PR8 -> -11.88368056 | PS19: =PS13 -> 5 | PT19: =PR22 -> -11.88368056 | PU19: =PS22 -> 4.75 | PV19: =PQ22 -> h12 | PX19: 2 | PY19: تعداد دانه در یک سانت | QI19: 4.33504 | QJ19: 83.56389874 | QK19: 30 | QM19: =QI75 -> 38.36859847 | QN19: =QJ75 -> 53.42427893 | QO19: k''5 | QQ19: =QQ15 -> -13 | QR19: =QR15-QR7 -> 48.22779747 | QS19: k8 | QX19: =QQ36 -> -13 | QY19: =QR36 -> 56.82779747 | QZ19: k26 | RB19: =AD20 -> 2.16 | RC19: تعداد دانه در یک سانت db0 | RF19: h9 | RG19: =RG17+0.5*RG8 -> -16.7625 | RH19: =RH13 -> 5 | RI19: =RG22 -> -16.7625 | RJ19: =RH22 -> 4.75 | RK19: =RF22 -> h12 | RN19: =2/SA6 -> 0.8564814815 | RO19: c13 | RQ19: پهنا افقی | RR19: =RR15-RR17 -> 44.415
E20: b22 | F20: =SQRT(POWER(F33,2)-POWER(F18,2)) -> 29.33555817 | H20: بافت انتخابی جادکمه | I20: =OFFSET(AJ6,I19,6) -> جودانه | N20: جمع شوندگی افقی a8 | O20: =OFFSET(AJ6,O21,1) -> 1.050420168 | R20: بافت انتخابی یقه شومیزیه | S20: ='متغیرها '!C873 -> 12 | W20: تعداد دانه در یک سانت cb0 | X20: =F7+0.68*X18*F7 -> 2.541176471 | AC20: تعداد دانه در یک سانت db0 | AD20: =F7+0.68*AD18*F7 -> 2.16 | AH20: 3.428571429 | AI20: 2.666666667 | AJ20: =(10/3)*((AM20/AL20)*(1/J6)-1) -> -0.1587301587 | AK20: =(100/68)*((AO20/AN20)*(1/J7)-1) -> 1.050420168 | AL20: 13.5 | AM20: 36 | AN20: 10.5 | AO20: 36 | AP20: کشباف (دوتایی) | AQ20: 14 | AS20: کشباف (دوتایی) | AT20: 125 | AU20: 22 | CI20: محاسبات | CM20: =CI37 -> 0 | CN20: =CJ37 -> 60.5 | CO20: j2 | CQ20: (d1 →d4) | CR20: ='طراحی همه الگوها'!U178+'طراحی همه الگوها'!U177 -> 59.3 | CU20: =CQ31 -> 0 | CV20: =CR31 -> 58.609435 | CW20: j'2 | DD20: =DD18+'طراحی همه الگوها'!U192 -> 38.2 | DE20: =DE14+'طراحی همه الگوها'!U193 -> 12 | DF20: 9 | DH20: ='طراحی همه الگوها'!U190+'طراحی همه الگوها'!U199 -> 25.8 | DI20: =DE14+'طراحی همه الگوها'!U200 -> 4.2 | DJ20: 16 | DP20: =DP18+0.6*(DP21-DP18) -> 38.92944857 | DQ20: =DQ21+0.2*(DQ18-DQ21) -> 12.92053952 | DR20: s12'' | DT20: s'12 | DU20: =DU18-'طراحی همه الگوها'!U225*SIN(DM17+RADIANS(EC40)) -> 27.589178 | DV20: =DV18-'طراحی همه الگوها'!U225*COS(DM17+RADIANS(EC40)) -> 54.365496 | DX20: 42.5276301 | DY20: 13.591374 | DZ20: s'''13 | EE20: =DB37+'طراحی همه الگوها'!U216 -> 110 | EF20: =EF18+'طراحی همه الگوها'!U218 -> 109.6 | EG20: 10 | EI20: =DB37+'طراحی همه الگوها'!U222 -> 43.8 | EJ20: =EF15+'طراحی همه الگوها'!U223 -> 13.2 | EK20: 16 | ET20: =EP35 -> 24.83030173 | EU20: =EQ35 -> 64.98731424 | EV20: 9 | EX20: =EP33 -> 13.88876218 | EY20: =EQ33 -> 0.4291548412 | EZ20: 7 | FJ20: =FF37 -> 37.4 | FK20: =FG37 -> 84.3 | FL20: 17 | FN20: s''11 | FO20: =FO22+0.8*(FO19-FO22) -> 31.88446904 | FP20: =FP22+0.5*(FP19-FP22) -> 45.03277783 | FR20: 3.527956493 | FS20: 32.37665778 | FT20: s11 | GA20: 10 | GB20: =GB12+GE12*SIN(RADIANS(GA20)+GA14) ->  | GC20: =GC12+GE12*COS(RADIANS(GA20)+GA14) ->  | GD20: =IF(GB13>GB20,ATAN((GC13-GC20)/(GB13-GB20)),ATAN((GC13-GC20)/(GB20-GB13))) ->  | GE20: =IF(GB13>GB20,(GB13-GB20)/COS(GD20),(GB20-GB13)/COS(GD20)) ->  | GG20: 1 | GH20: 2 | GI20: نقطه2 | GJ20: نقطه قبل از چرخش | GK20: =IF(GH20>GH18,IF(GG20>GG18,GG18+SQRT(POWER(GG20-GG18,2)+POWER(GH20-GH18,2))*COS(ATAN((GH20-GH18)/(GG20-GG18+0.000123))+GH16),GG18-SQRT(POWER(GG20-GG18,2)+POWER(GH20-GH18,2))*COS(ATAN((GH20-GH18)/(GG18-GG20+0.000123))-GH16)),IF(GG20>GG18,GG18+SQRT(POWER(GG20-GG18,2)+POWER(GH20-GH18,2))*COS(ATAN((GH18-GH20)/(GG20-GG18+0.000123))-GH16),GG18-SQRT(POWER(GG20-GG18,2)+POWER(GH20-GH18,2))*COS(ATAN((GH18-GH20)/(GG18-GG20+0.000123))+GH16))) -> 0.6182452327 | GL20: =IF(GH20>GH18,IF(GG20>GG18,GH18+SQRT(POWER(GG20-GG18,2)+POWER(GH20-GH18,2))*SIN(ATAN((GH20-GH18)/(GG20-GG18+0.000123))+GH16),GH18+SQRT(POWER(GG20-GG18,2)+POWER(GH20-GH18,2))*SIN(ATAN((GH20-GH18)/(GG18-GG20+0.000123))-GH16)),IF(GG20>GG18,GH18-SQRT(POWER(GG20-GG18,2)+POWER(GH20-GH18,2))*SIN(ATAN((GH18-GH20)/(GG20-GG18+0.000123))-GH16),GH18-SQRT(POWER(GG20-GG18,2)+POWER(GH20-GH18,2))*SIN(ATAN((GH18-GH20)/(GG18-GG20+0.000123))+GH16))) -> 0.6987463478 | GM20: نقطه چرخیده | GP20: رسم باکس زیپ دامن- باکس راست | GQ20: مولفه افقی | GR20: مولفه عمودی | GU20: =GU19+GT11 -> -82 | GV20: -1.431169987 | GW20: =HB13+HB10*COS(GV20) ->  | GX20: =HC13-HB10*SIN(GV20) ->  | GY20: =SQRT(POWER((HB12-GW20),2)+POWER((HC12-GX20),2)) ->  | GZ20: =ABS(HB9-GY20) ->  | HA20: =HA14 -> k6 | HB20: =#REF! ->  | HC20: =#REF! ->  | HO20: =-HK20+HP9 -> 0 | HP20: 0 | HS20: 0 | HT20: 0 | HU20: 10 | HW20: =HS20+2*(SIN(ATAN((HS12-HS11)/(HT12-HT11)))*(HT20-HT11)+COS(ATAN((HS12-HS11)/(HT12-HT11)))*(HS11-HS20))*COS(ATAN((HS12-HS11)/(HT12-HT11))) ->  | HX20: =HT20-2*(SIN(ATAN((HS12-HS11)/(HT12-HT11)))*(HT20-HT11)+COS(ATAN((HS12-HS11)/(HT12-HT11)))*(HS11-HS20))*SIN(ATAN((HS12-HS11)/(HT12-HT11))) ->  | HY20: 10 | NU20: a2 | NV20: =TEXT(0,NV6)&" رج بافت انتخابی یقه میبافیم" -> 4 رج بافت انتخابی یقه میبافیم | NY20: h10 | NZ20: =NZ18 -> -21.42708333 | OA20: =OA18+0.5*NZ9 -> 5.25 | OB20: =NZ23 -> -16.92708333 | OC20: =OA23 -> 5.25 | OD20: =NY23 -> h13 | OF20: خطا | OG20: =R46 -> خطا : قد پایه یقه شومیزیه زیاد شود یا پهنای جادکمه جلو زیاد شود | OJ20: h10 | OK20: =OK18 -> -12.66493056 | OL20: =OL18+0.5*OK9 -> 5.25 | OM20: =OK23 -> -8.164930556 | ON20: =OL23 -> 5.25 | OO20: =OJ23 -> h13 | OQ20: خطا | OR20: =U46 -> خطا : قد پایه یقه شومیزیه زیاد شود یا پهنای جادکمه جلو زیاد شود | OU20: h10 | OV20: =OV18 -> -15.76388889 | OW20: =OW18+0.5*OV9 -> 5.25 | OX20: =OV23 -> -11.26388889 | OY20: =OW23 -> 5.25 | OZ20: =OU23 -> h13 | PB20: =X21 -> 12 | PC20: بافت انتخابی یقه ب ب | PF20: h10 | PG20: =PG18 -> -18.86284722 | PH20: =PH18+0.5*PG9 -> 5.25 | PI20: =PG23 -> -14.36284722 | PJ20: =PH23 -> 5.25 | PK20: =PF23 -> h13 | PM20: =X21 -> 12 | PN20: بافت انتخابی یقه ب ب | PQ20: h10 | PR20: =PR18 -> -16.38368056 | PS20: =PS18+0.5*PR9 -> 5.25 | PT20: =PR23 -> -11.88368056 | PU20: =PS23 -> 5.25 | PV20: =PQ23 -> h13 | QE20: =PX31 -> -41.5 | QF20: =PY31 -> 6.428571429 | QG20: =PZ31 -> t3 | QI20: =FF153 -> 2.16752 | QJ20: =FG153 -> 80.89501773 | QK20: 28 | QM20: =QI74 -> 43.5465562 | QN20: =QJ74 -> 59.75036609 | QO20: k''4 | QQ20: =QQ15+QR7*SIN(RADIANS(10)) -> -12.30540729 | QR20: =QR15-QR7*COS(RADIANS(10)) -> 48.28856646 | QS20: k9 | QX20: =QQ34 -> -10.7 | QY20: =QR34 -> 56.21151433 | QZ20: k24 | RB20: =IF(PB20<11," مخصوص ",F8) -> 2.5 | RC20: انتخاب ضخامت میل بافتنی f1 | RF20: h10 | RG20: =RG18 -> -22.6125 | RH20: =RH18+0.5*RG9 -> 5.25 | RI20: =RG23 -> -16.7625 | RJ20: =RH23 -> 5.25 | RK20: =RF23 -> h13 | RN20: =2/SA5 -> 0.5928016937 | RO20: c14 | RQ20: پهنا عمودی | RR20: =RR14-RR16 -> 15.98
E21: b'22 | F21: =F20*I36 -> 98.97258553 | N21: بافت انتخابی یقه شکاری | O21: ='متغیرها '!C870 -> 14 | R21: بافت انتخابی یقه شومیزیه | S21: =OFFSET(AJ6,S20,6) -> همه از زیر | W21: بافت انتخابی یقه ب ب | X21: ='متغیرها '!C876 -> 12 | AC21: بافت انتخابی یقه انگلیسی | AD21: ='متغیرها '!C867 -> 13 | AH21: 2.057142857 | AI21: 2.962962963 | AJ21: =(10/3)*((AM21/AL21)*(1/J6)-1) -> 0.1940035273 | AK21: =(100/68)*((AO21/AN21)*(1/J7)-1) -> 0.04201680672 | AL21: 13.5 | AM21: 40 | AN21: 17.5 | AO21: 36 | AP21: سبدی (5 تایی) | AQ21: 15 | AS21: سبدی (5 تایی) | AT21: 24 | AU21: 40 | CI21: قد سرشانه تا زمین | CJ21: =0.5*(CJ17+CJ18+CJ19) -> 87.5 | CM21: =CI47 -> 10.7 | CN21: =CJ47 -> 60.5 | CO21: j13 | CQ21: (d5 →d6) | CR21: =5+0.1*CR20 -> 10.93 | DD21: =DD18+'طراحی همه الگوها'!U192 -> 38.2 | DE21: =DE14+'طراحی همه الگوها'!U194 -> 29.2 | DF21: 10 | DH21: =DD20 -> 38.2 | DI21: =DE20 -> 12 | DJ21: 9 | DL21: طراحی چادر شماره 2 | DP21: =DM30 -> 45.65 | DQ21: =DN30 -> 0 | DR21: s13 | DT21: s''13 | DU21: =DU20+0.3*(DU23-DU20) -> 35.7374246 | DV21: =DV23+0.5*(DV20-DV23) -> 27.182748 | DX21: 54.75 | DY21: 0 | DZ21: s'13 | EE21: =DB37+'طراحی همه الگوها'!U216 -> 110 | EF21: =EF18 -> 9.8 | EG21: 9 | EI21: =EI20+0.5*(EI22-EI20) -> 76.9 | EJ21: =EJ22+0.8*(EJ20-EJ22) -> 10.76 | EK21: 14' | FF21: =FF13+'طراحی همه الگوها'!U249-'طراحی همه الگوها'!U253 -> 37.4 | FG21: =FG15 -> 60.4 | FH21: 6 | FN21: s'11 | FO21: =FO22+0.4*(FO19-FO22) -> 17.70621277 | FP21: =FP22+0.1*(FP19-FP22) -> 34.90788179 | GA21: 12 | GB21: =GB12+GE12*SIN(RADIANS(GA21)+GA14) ->  | GC21: =GC12+GE12*COS(RADIANS(GA21)+GA14) ->  | GD21: =IF(GB13>GB21,ATAN((GC13-GC21)/(GB13-GB21)),ATAN((GC13-GC21)/(GB21-GB13))) ->  | GE21: =IF(GB13>GB21,(GB13-GB21)/COS(GD21),(GB21-GB13)/COS(GD21)) ->  | GG21: 1 | GH21: 2 | GI21: نقطه 3 | GJ21: نقطه قبل از چرخش | GK21: =IF(GH21>GH18,IF(GG21>GG18,GG18+SQRT(POWER(GG21-GG18,2)+POWER(GH21-GH18,2))*COS(ATAN((GH21-GH18)/(GG21-GG18+0.000123))+GH16),GG18-SQRT(POWER(GG21-GG18,2)+POWER(GH21-GH18,2))*COS(ATAN((GH21-GH18)/(GG18-GG21+0.000123))-GH16)),IF(GG21>GG18,GG18+SQRT(POWER(GG21-GG18,2)+POWER(GH21-GH18,2))*COS(ATAN((GH18-GH21)/(GG21-GG18+0.000123))-GH16),GG18-SQRT(POWER(GG21-GG18,2)+POWER(GH21-GH18,2))*COS(ATAN((GH18-GH21)/(GG18-GG21+0.000123))+GH16))) -> 0.6182452327 | GL21: =IF(GH21>GH18,IF(GG21>GG18,GH18+SQRT(POWER(GG21-GG18,2)+POWER(GH21-GH18,2))*SIN(ATAN((GH21-GH18)/(GG21-GG18+0.000123))+GH16),GH18+SQRT(POWER(GG21-GG18,2)+POWER(GH21-GH18,2))*SIN(ATAN((GH21-GH18)/(GG18-GG21+0.000123))-GH16)),IF(GG21>GG18,GH18-SQRT(POWER(GG21-GG18,2)+POWER(GH21-GH18,2))*SIN(ATAN((GH18-GH21)/(GG21-GG18+0.000123))-GH16),GH18-SQRT(POWER(GG21-GG18,2)+POWER(GH21-GH18,2))*SIN(ATAN((GH18-GH21)/(GG18-GG21+0.000123))+GH16))) -> 0.6987463478 | GM21: نقطه چرخیده | GO21: نقطه ورودی بالا | GP21: su3 | GQ21: =#REF! ->  | GR21: =#REF! ->  | GU21: =GU20+GT11 -> -80 | GV21: -1.396263402 | GW21: =HB13+HB10*COS(GV21) ->  | GX21: =HC13-HB10*SIN(GV21) ->  | GY21: =SQRT(POWER((HB12-GW21),2)+POWER((HC12-GX21),2)) ->  | GZ21: =ABS(HB9-GY21) ->  | HO21: =-HK21+HP9 -> 0 | HP21: 0 | HS21: =HF30 -> 0 | HT21: =HG30 -> 0 | HU21: 11 | HW21: =HS21+2*(SIN(ATAN((HS12-HS11)/(HT12-HT11)))*(HT21-HT11)+COS(ATAN((HS12-HS11)/(HT12-HT11)))*(HS11-HS21))*COS(ATAN((HS12-HS11)/(HT12-HT11))) ->  | HX21: =HT21-2*(SIN(ATAN((HS12-HS11)/(HT12-HT11)))*(HT21-HT11)+COS(ATAN((HS12-HS11)/(HT12-HT11)))*(HS11-HS21))*SIN(ATAN((HS12-HS11)/(HT12-HT11))) ->  | HY21: 11 | NU21: a3 | NV21: =TEXT(0,NV7)&" دانه" -> 14 دانه | NY21: h11 | NZ21: =NZ18 -> -21.42708333 | OA21: =OA18-0.5*NZ9 -> 4.75 | OF21: خطا | OG21: =R47 ->  | OJ21: h11 | OK21: =OK18 -> -12.66493056 | OL21: =OL18-0.5*OK9 -> 4.75 | OQ21: خطا | OR21: =U47 ->  | OU21: h11 | OV21: =OV18 -> -15.76388889 | OW21: =OW18-0.5*OV9 -> 4.75 | PB21: =X22 -> همه از زیر | PC21: بافت انتخابی یقه ب ب | PF21: h11 | PG21: =PG18 -> -18.86284722 | PH21: =PH18-0.5*PG9 -> 4.75 | PM21: =X22 -> همه از زیر | PN21: بافت انتخابی یقه ب ب | PQ21: h11 | PR21: =PR18 -> -16.38368056 | PS21: =PS18-0.5*PR9 -> 4.75 | PY21: بعد از دانه اول یکدانه اضافه میکنیم | PZ21: علامت اول | QE21: =PX34 -> -48.5 | QF21: =PY34 -> 6.428571429 | QG21: =PZ34 -> t6 | QI21: =FF163 -> 0 | QJ21: =FG163 -> 80.22779747 | QK21: 26 | QQ21: =2*QQ15-QQ20 -> -13.69459271 | QR21: =QR20 -> 48.28856646 | QS21: k10 | QX21: =QQ32 -> -8.4 | QY21: =QR32 -> 52.22779747 | QZ21: k22 | RB21: =AD21 -> 13 | RC21: =AC21 -> بافت انتخابی یقه انگلیسی | RF21: h11 | RG21: =RG18 -> -22.6125 | RH21: =RH18-0.5*RG9 -> 4.75 | RN21: =2/SD6 -> 0.8564814815 | RO21: c15
E22: b12 | F22: =IF(F37=F13,0,ROUND(F14/((F13-F37)*I37),0)) -> 4 | H22: a0 تعداد رج در یک سانت جلو | I22: =F6+0.3*I24*F6 -> 3.46031746 | N22: بافت انتخابی یقه شکاری | O22: =OFFSET(AJ6,O21,6) -> کشباف (دوتایی) | R22: =ROUND(OF144-OF143-2/OG50,0) -> 31 | S22: =(S18*40*(G46-2*F42)/I23/OG38)/OG50 -> 29.97685185 | W22: بافت انتخابی یقه ب ب | X22: =OFFSET(AJ6,X21,6) -> همه از زیر | AC22: بافت انتخابی یقه انگلیسی | AD22: =OFFSET(AJ6,AD21,6) -> جودانه | AH22: 2.571428571 | AI22: 2.814814815 | AJ22: =(10/3)*((AM22/AL22)*(1/J6)-1) -> 0.0176366843 | AK22: =(100/68)*((AO22/AN22)*(1/J7)-1) -> 0.4201680672 | AL22: 13.5 | AM22: 38 | AN22: 14 | AO22: 36 | AP22: تمشکی | AQ22: 16 | AS22: تمشکی | AT22: 62 | AU22: 31 | CI22: تمام قد | CJ22: =ROUND(CJ21+IF(CJ16>51.5,0.35,IF(CJ16>50.5,0.33,0.31))*CJ16,0) -> 104 | CQ22: نقاط خروجی در مقنعه دراپه | CU22: =CQ24 -> 0 | CV22: =CR24 -> 86.15 | CW22: d2 | DH22: ='طراحی همه الگوها'!U190+'طراحی همه الگوها'!U192+'طراحی همه الگوها'!U202 -> 45.3 | DI22: =DE14+'طراحی همه الگوها'!U203 -> 17.4 | DJ22: 19 | DL22: اسم نقطه | DM22: مولفه افقی | DN22: مولفه عمودی | DT22: s'''13 | DU22: =DU20+0.55*(DU23-DU20) -> 42.5276301 | DV22: =DV23+0.25*(DV20-DV23) -> 13.591374 | EI22: =EE16 -> 110 | EJ22: =EF16+'طراحی همه الگوها'!U221 -> 1 | EK22: 14 | ET22: =EP29 -> 0 | EU22: =EQ37 -> 53.59211768 | EV22: 12 | EX22: =EP33 -> 13.88876218 | EY22: =EQ33 -> 0.4291548412 | EZ22: 7 | FF22: =FF13+'طراحی همه الگوها'!U249-'طراحی همه الگوها'!U253 -> 37.4 | FG22: =FG15-'طراحی همه الگوها'!U254 -> 46.3 | FH22: 7 | FJ22: =FF18 -> 0 | FK22: =FG18 -> 51.9 | FL22: 5 | FN22: s11 | FO22: =0.7*FO15 -> 3.527956493 | FP22: =FP15-'طراحی همه الگوها'!U263+1.2*SQRT(POWER(FO15-FO14,2)+POWER(FP15-FP14,2)) -> 32.37665778 | FR22: =FO28 -> 0 | FS22: =FP28 -> 103.045 | FT22: s''17 | GA22: 14 | GB22: =GB12+GE12*SIN(RADIANS(GA22)+GA14) ->  | GC22: =GC12+GE12*COS(RADIANS(GA22)+GA14) ->  | GD22: =IF(GB13>GB22,ATAN((GC13-GC22)/(GB13-GB22)),ATAN((GC13-GC22)/(GB22-GB13))) ->  | GE22: =IF(GB13>GB22,(GB13-GB22)/COS(GD22),(GB22-GB13)/COS(GD22)) ->  | GG22: 1 | GH22: 2 | GI22: نقطه 4 | GJ22: نقطه قبل از چرخش | GK22: =IF(GH22>GH18,IF(GG22>GG18,GG18+SQRT(POWER(GG22-GG18,2)+POWER(GH22-GH18,2))*COS(ATAN((GH22-GH18)/(GG22-GG18+0.000123))+GH16),GG18-SQRT(POWER(GG22-GG18,2)+POWER(GH22-GH18,2))*COS(ATAN((GH22-GH18)/(GG18-GG22+0.000123))-GH16)),IF(GG22>GG18,GG18+SQRT(POWER(GG22-GG18,2)+POWER(GH22-GH18,2))*COS(ATAN((GH18-GH22)/(GG22-GG18+0.000123))-GH16),GG18-SQRT(POWER(GG22-GG18,2)+POWER(GH22-GH18,2))*COS(ATAN((GH18-GH22)/(GG18-GG22+0.000123))+GH16))) -> 0.6182452327 | GL22: =IF(GH22>GH18,IF(GG22>GG18,GH18+SQRT(POWER(GG22-GG18,2)+POWER(GH22-GH18,2))*SIN(ATAN((GH22-GH18)/(GG22-GG18+0.000123))+GH16),GH18+SQRT(POWER(GG22-GG18,2)+POWER(GH22-GH18,2))*SIN(ATAN((GH22-GH18)/(GG18-GG22+0.000123))-GH16)),IF(GG22>GG18,GH18-SQRT(POWER(GG22-GG18,2)+POWER(GH22-GH18,2))*SIN(ATAN((GH18-GH22)/(GG22-GG18+0.000123))-GH16),GH18-SQRT(POWER(GG22-GG18,2)+POWER(GH22-GH18,2))*SIN(ATAN((GH18-GH22)/(GG18-GG22+0.000123))+GH16))) -> 0.6987463478 | GM22: نقطه چرخیده | GO22: نقطه ورودی پایین | GP22: sd3 | GQ22: =#REF! ->  | GR22: =#REF! ->  | GT22: به روش تخمین | GU22: =GU21+GT11 -> -78 | GV22: -1.361356817 | GW22: =HB13+HB10*COS(GV22) ->  | GX22: =HC13-HB10*SIN(GV22) ->  | GY22: =SQRT(POWER((HB12-GW22),2)+POWER((HC12-GX22),2)) ->  | GZ22: =ABS(HB9-GY22) ->  | HA22: =HA14 -> k6 | HB22: =#REF! ->  | HC22: =#REF! ->  | HO22: =-HK22+HP9 -> 0 | HP22: 0 | HS22: 0 | HT22: 0 | HU22: 12 | HW22: =HS22+2*(SIN(ATAN((HS12-HS11)/(HT12-HT11)))*(HT22-HT11)+COS(ATAN((HS12-HS11)/(HT12-HT11)))*(HS11-HS22))*COS(ATAN((HS12-HS11)/(HT12-HT11))) ->  | HX22: =HT22-2*(SIN(ATAN((HS12-HS11)/(HT12-HT11)))*(HT22-HT11)+COS(ATAN((HS12-HS11)/(HT12-HT11)))*(HS11-HS22))*SIN(ATAN((HS12-HS11)/(HT12-HT11))) ->  | HY22: 12 | NU22: a4 | NV22: =TEXT(0,NV8)&" دانه" -> 28 دانه | NY22: h12 | NZ22: =NZ19 -> -16.92708333 | OA22: =OA21 -> 4.75 | OB22: =NZ19 -> -16.92708333 | OC22: =OA19 -> 5 | OD22: =NY19 -> h9 | OF22: نوشته ها یقه شومیزیه نوک تیز | OJ22: h12 | OK22: =OK19 -> -8.164930556 | OL22: =OL21 -> 4.75 | OM22: =OK19 -> -8.164930556 | ON22: =OL19 -> 5 | OO22: =OJ19 -> h9 | OQ22: نوشته ها یقه شومیزیه | OU22: h12 | OV22: =OV19 -> -11.26388889 | OW22: =OW21 -> 4.75 | OX22: =OV19 -> -11.26388889 | OY22: =OW19 -> 5 | OZ22: =OU19 -> h9 | PB22: =I20 -> جودانه | PC22: بافت انتخابی جادکمه | PF22: h12 | PG22: =PG19 -> -14.36284722 | PH22: =PH21 -> 4.75 | PI22: =PG19 -> -14.36284722 | PJ22: =PH19 -> 5 | PK22: =PF19 -> h9 | PM22: =I20 -> جودانه | PN22: بافت انتخابی جادکمه | PQ22: h12 | PR22: =PR19 -> -11.88368056 | PS22: =PS21 -> 4.75 | PT22: =PR19 -> -11.88368056 | PU22: =PS19 -> 5 | PV22: =PQ19 -> h9 | PY22: قبل از دانه آخر یکدانه اضافه میکنیم | PZ22: علامت دوم | QB22: زاویه فلش | QC22: =PY10 -> 0.5 | QD22: f5 | QG22: فلش به سمت چپ | QK22: پهلو صاف | QM22: =QI74 -> 43.5465562 | QN22: =QJ74 -> 59.75036609 | QO22: k''4 | QQ22: =QQ15+QR7*SIN(RADIANS(30)) -> -11 | QR22: =QR15-QR7*COS(RADIANS(30)) -> 48.76369586 | QS22: k11 | QX22: =QQ30 -> -9.016283143 | QY22: =QR30 -> 49.92779747 | QZ22: k20 | RB22: =AD22 -> جودانه | RC22: =AC22 -> بافت انتخابی یقه انگلیسی | RF22: h12 | RG22: =RG19 -> -16.7625 | RH22: =RH21 -> 4.75 | RI22: =RG19 -> -16.7625 | RJ22: =RH19 -> 5 | RK22: =RF19 -> h9 | RN22: =2/SD5 -> 0.5928016937 | RO22: c16
E23: محاسبات در بافت بالاتنه و آستین (بافت انتخابی) | H23: تعداد دانه در یک سانت جلوb0 | I23: =F7+0.68*I25*F7 -> 2.468571429 | L23: محاسبات یقه شکاری | R23: پهنای یقه منهای جادکمه روی نقشه بافت | S23: پهنای یقه منهای جادکمه روی بافت | W23: محاسبات یقه ب ب | AC23: یقه انگلیسی | AH23: 2.571428571 | AI23: 2.814814815 | AJ23: =(10/3)*((AM23/AL23)*(1/J6)-1) -> 0.0176366843 | AK23: =(100/68)*((AO23/AN23)*(1/J7)-1) -> 0.4201680672 | AL23: 13.5 | AM23: 38 | AN23: 14 | AO23: 36 | AP23: کج راه | AQ23: 17 | AS23: کج راه | AT23: 62 | AU23: 31 | CI23: j4 | CJ23: =IF('متغیرها '!C5<1,'متغیرها '!C5*'متغیرها '!U59,IF('متغیرها '!C5<2,'متغیرها '!U59+('متغیرها '!C5-1)*('متغیرها '!U60-'متغیرها '!U59),IF('متغیرها '!C5<3,'متغیرها '!U60+('متغیرها '!C5-2)*(I105-'متغیرها '!U60),I105+('متغیرها '!C5-3)*(H127-H126)))) -> 60.5 | CM23: =CI46 -> 10.7 | CN23: =CJ46 -> 101.4 | CO23: j12 | CQ23: مولفه افقی | CR23: مولفه عمودی | CS23: اسم نقطه | DD23: =DD18+'طراحی همه الگوها'!U192 -> 38.2 | DE23: =DE14 -> 0 | DF23: 8 | DH23: =DD25 -> 52.3 | DI23: =DE25 -> 23.994 | DJ23: 7 | DL23: s6 | DM23: =DM16 -> 0 | DN23: =1.003*DN16 -> 105.126436 | DP23: =DM34 -> 0 | DQ23: =DN34 -> 103.045 | DR23: s17 | DT23: s'13 | DU23: =DM19+0.5*('طراحی همه الگوها'!U216+'طراحی همه الگوها'!U210-'طراحی همه الگوها'!U217-'طراحی همه الگوها'!U218) -> 54.75 | DV23: =EC35+DM44 -> 0 | DX23: =DU27 -> 0 | DY23: =DV27 -> 103.045 | DZ23: s'17 | EE23: =DB37 -> 0 | EF23: =EF14 -> 57 | EG23: 4 | ET23: =EP37 -> 40.51721856 | EU23: =EQ37 -> 53.59211768 | EV23: 11 | EX23: =EX22+0.3*(EX25-EX22) -> 23.70462753 | EY23: =MIN(EY22,EY25)+IF(EY25>EY22,0.15,0.9)*ABS(EY25-EY22) -> 1.137689483 | EZ23: 7'' | FJ23: =FJ22+'طراحی همه الگوها'!U264 -> 15 | FK23: =FG17-'طراحی همه الگوها'!U265 -> 51.3 | FL23: 20 | FN23: s12 | FO23: =FO24 -> 14.115 | FP23: =FP24+'طراحی همه الگوها'!U257 -> 63.64250015 | FR23: =FO29 -> 2.43846 | FS23: =FP29 -> 101.066605 | FT23: s''18 | GA23: 16 | GB23: =GB12+GE12*SIN(RADIANS(GA23)+GA14) ->  | GC23: =GC12+GE12*COS(RADIANS(GA23)+GA14) ->  | GD23: =IF(GB13>GB23,ATAN((GC13-GC23)/(GB13-GB23)),ATAN((GC13-GC23)/(GB23-GB13))) ->  | GE23: =IF(GB13>GB23,(GB13-GB23)/COS(GD23),(GB23-GB13)/COS(GD23)) ->  | GG23: 1 | GH23: 2 | GI23: نقطه 5 | GJ23: نقطه قبل از چرخش | GK23: =IF(GH23>GH18,IF(GG23>GG18,GG18+SQRT(POWER(GG23-GG18,2)+POWER(GH23-GH18,2))*COS(ATAN((GH23-GH18)/(GG23-GG18+0.000123))+GH16),GG18-SQRT(POWER(GG23-GG18,2)+POWER(GH23-GH18,2))*COS(ATAN((GH23-GH18)/(GG18-GG23+0.000123))-GH16)),IF(GG23>GG18,GG18+SQRT(POWER(GG23-GG18,2)+POWER(GH23-GH18,2))*COS(ATAN((GH18-GH23)/(GG23-GG18+0.000123))-GH16),GG18-SQRT(POWER(GG23-GG18,2)+POWER(GH23-GH18,2))*COS(ATAN((GH18-GH23)/(GG18-GG23+0.000123))+GH16))) -> 0.6182452327 | GL23: =IF(GH23>GH18,IF(GG23>GG18,GH18+SQRT(POWER(GG23-GG18,2)+POWER(GH23-GH18,2))*SIN(ATAN((GH23-GH18)/(GG23-GG18+0.000123))+GH16),GH18+SQRT(POWER(GG23-GG18,2)+POWER(GH23-GH18,2))*SIN(ATAN((GH23-GH18)/(GG18-GG23+0.000123))-GH16)),IF(GG23>GG18,GH18-SQRT(POWER(GG23-GG18,2)+POWER(GH23-GH18,2))*SIN(ATAN((GH18-GH23)/(GG23-GG18+0.000123))-GH16),GH18-SQRT(POWER(GG23-GG18,2)+POWER(GH23-GH18,2))*SIN(ATAN((GH18-GH23)/(GG18-GG23+0.000123))+GH16))) -> 0.6987463478 | GM23: نقطه چرخیده | GO23: متغیر ورودی پهنا | GP23: a20 | GQ23: =#REF! ->  | GR23: (سانتیمتر) | GT23: بهینه α1 | GU23: =GU22+GT11 -> -76 | GV23: -1.326450232 | GW23: =HB13+HB10*COS(GV23) ->  | GX23: =HC13-HB10*SIN(GV23) ->  | GY23: =SQRT(POWER((HB12-GW23),2)+POWER((HC12-GX23),2)) ->  | GZ23: =ABS(HB9-GY23) ->  | HA23: =HA12 -> پشتk''5 | HB23: =HB12 ->  | HC23: =HC12 ->  | HO23: =-HK23+HP9 -> 0 | HP23: 0 | HS23: 0 | HT23: 0 | HU23: 13 | HW23: =HS23+2*(SIN(ATAN((HS12-HS11)/(HT12-HT11)))*(HT23-HT11)+COS(ATAN((HS12-HS11)/(HT12-HT11)))*(HS11-HS23))*COS(ATAN((HS12-HS11)/(HT12-HT11))) ->  | HX23: =HT23-2*(SIN(ATAN((HS12-HS11)/(HT12-HT11)))*(HT23-HT11)+COS(ATAN((HS12-HS11)/(HT12-HT11)))*(HS11-HS23))*SIN(ATAN((HS12-HS11)/(HT12-HT11))) ->  | HY23: 13 | NU23: a5 | NV23: =TEXT(0,NV9)&" دانه" -> 43 دانه | NY23: h13 | NZ23: =NZ19 -> -16.92708333 | OA23: =OA20 -> 5.25 | OB23: =NZ15 -> -3.354166667 | OC23: =OA15 -> 5 | OD23: =NY15 -> w2 | OF23: =OF5 -> e1 | OG23: =TEXT(0,OG5)&" دانه سر می اندازیم" -> 119 دانه سر می اندازیم | OJ23: h13 | OK23: =OK19 -> -8.164930556 | OL23: =OL20 -> 5.25 | OM23: =OK15 -> 14.17013889 | ON23: =OL15 -> 5 | OO23: =OJ15 -> m2 | OQ23: =OQ5 -> e1 | OR23: =TEXT(0,OR5)&" دانه سر می اندازیم" -> 104 دانه سر می اندازیم | OU23: h13 | OV23: =OV19 -> -11.26388889 | OW23: =OW20 -> 5.25 | OX23: =OV15 -> 7.972222222 | OY23: =OW15 -> 5 | OZ23: =OU15 -> m2 | PB23: نوشته ها یقه ب ب | PF23: h13 | PG23: =PG19 -> -14.36284722 | PH23: =PH20 -> 5.25 | PI23: =PG15 -> 1.774305556 | PJ23: =PH15 -> 5 | PK23: =PF15 -> n2 | PM23: نوشته ها یقه ب ب | PQ23: h13 | PR23: =PR19 -> -11.88368056 | PS23: =PS20 -> 5.25 | PT23: =PR15 -> 6.732638889 | PU23: =PS15 -> 5 | PV23: =PQ15 -> n2 | PY23: یک رج درمیان یکدانه کم میکنیم | PZ23: علامت سوم | QB23: بزرگی فلش | QC23: =PY16 -> 0.5714285714 | QD23: f4 | QE23: =QC25 -> -45 | QF23: =QD25 -> 6.428571429 | QG23: =QB25 -> t5 | QI23: =FN173 -> 16.72553266 | QJ23: =FO173 -> 50.14250015 | QK23: شیفت9 | QM23: =QI73 -> 14.08454728 | QN23: =QJ73 -> 83.86527835 | QO23: 22f | QQ23: =2*QQ15-QQ22 -> -15 | QR23: =QR22 -> 48.76369586 | QS23: k12 | QX23: =QQ28 -> -10.7 | QY23: =QR28 -> 48.24408062 | QZ23: k18 | RB23: نوشته ها یقه انگلیسی | RF23: h13 | RG23: =RG19 -> -16.7625 | RH23: =RH20 -> 5.25 | RI23: =RG15 -> -4.375 | RJ23: =RH15 -> 5 | RK23: =RF15 -> p2 | RM23: متغیرهای ورودی | RX23: توری بافت آستین | SG23: متغیرهای ورودی | SR23: توری بافت یقه و کلاه | TA23: متغیرهای ورودی | TL23: توری بافت جلو پیراهن | TU23: متغیرهای ورودی | UF23: توری بافت پشت پیراهن | UO23: متغیرهای ورودی | UZ23: توری بافت جلو شلوار | VI23: متغیرهای ورودی | VT23: توری بافت پشت شلوار
E24: تعداد دانه ها دور گردن + دو تا نیمه جادکمه که از خط مرکزی اضافه شده | F24: =F26+2*F25 -> 72 | H24: جمع شوندگی عمودی بافت جلو f2 | I24: =OFFSET(AJ6,I26,0) -> 0.1940035273 | L24: a10 | M24: a11 | N24: a22 | O24: a22 | Q24: محاسبات یقه شومیزیه تا خط جادکمه | W24: c10 | X24: c11 | Y24: c22 | Z24: c22 | AC24: d14 | AD24: d15 | AE24: d22 | AF24: d22 | AH24: 2.88 | AI24: 3.111111111 | AJ24: =(10/3)*((AM24/AL24)*(1/J6)-1) -> 0.3703703704 | AK24: =(100/68)*((AO24/AN24)*(1/J7)-1) -> 0.6470588235 | AL24: 13.5 | AM24: 42 | AN24: 12.5 | AO24: 36 | AP24: تیغ ماهی | AQ24: 18 | AS24: تیغ ماهی | AT24: 85 | AU24: 49 | CI24: رسم دستی چادر 1 یا مقنعه چانه دار(بر حسب سانتیمتر) | CM24: =CI38 -> 10.7 | CN24: =CJ38 -> 109.1 | CO24: j3 | CQ24: =CQ14 -> 0 | CR24: =CR16+0.1*'متغیرها '!U85-CR19+CR17 -> 86.15 | CS24: d2 | CW24: انحنا | DD24: =DB37+'طراحی همه الگوها'!U189 -> 52.3 | DE24: =DE14 -> 0 | DF24: 6 | DL24: s7 | DM24: =DM23+0.12*(DM27-DM23) -> 3.989351994 | DN24: =DN27+0.94*(DN23-DN27) -> 103.448162 | DP24: =DM35 -> 2.43846 | DQ24: =DN35 -> 101.066605 | DR24: s18 | DT24: s'14 | DU24: =DM13+DM42*COS(DM40) -> 4.87692 | DV24: =DN13-DM42*SIN(DM40) -> 96.45035 | DX24: =DU28 -> 2.926152 | DY24: =DV28 -> 101.066605 | DZ24: s'18 | EE24: =DB37+'طراحی همه الگوها'!U213 -> 33.9 | EF24: =EF14 -> 57 | EG24: 5 | EI24: =EI20 -> 43.8 | EJ24: =EJ20 -> 13.2 | EK24: 16 | EX24: =EX22+0.7*(EX25-EX22) -> 36.79244799 | EY24: =MIN(EY22,EY25)+0.5*ABS(EY25-EY22) -> 2.790936981 | EZ24: 7''' | FF24: =FF15 -> 55.8 | FG24: =FG15 -> 60.4 | FH24: 4 | FJ24: =FJ22+'طراحی همه الگوها'!U266 -> 29.9 | FK24: =FG17-'طراحی همه الگوها'!U267 -> 48.8 | FL24: 22 | FN24: 41 شبیه ساز | FO24: =DT395 -> 14.115 | FP24: =DU395 -> 60.84250015 | FR24: =FO12 -> 4.87692 | FS24: =FP12 -> 96.45035 | FT24: s3 | GA24: 18 | GB24: =GB12+GE12*SIN(RADIANS(GA24)+GA14) ->  | GC24: =GC12+GE12*COS(RADIANS(GA24)+GA14) ->  | GD24: =IF(GB13>GB24,ATAN((GC13-GC24)/(GB13-GB24)),ATAN((GC13-GC24)/(GB24-GB13))) ->  | GE24: =IF(GB13>GB24,(GB13-GB24)/COS(GD24),(GB24-GB13)/COS(GD24)) ->  | GG24: 1 | GH24: 2 | GI24: نقطه 6 | GJ24: نقطه قبل از چرخش | GK24: =IF(GH24>GH18,IF(GG24>GG18,GG18+SQRT(POWER(GG24-GG18,2)+POWER(GH24-GH18,2))*COS(ATAN((GH24-GH18)/(GG24-GG18+0.000123))+GH16),GG18-SQRT(POWER(GG24-GG18,2)+POWER(GH24-GH18,2))*COS(ATAN((GH24-GH18)/(GG18-GG24+0.000123))-GH16)),IF(GG24>GG18,GG18+SQRT(POWER(GG24-GG18,2)+POWER(GH24-GH18,2))*COS(ATAN((GH18-GH24)/(GG24-GG18+0.000123))-GH16),GG18-SQRT(POWER(GG24-GG18,2)+POWER(GH24-GH18,2))*COS(ATAN((GH18-GH24)/(GG18-GG24+0.000123))+GH16))) -> 0.6182452327 | GL24: =IF(GH24>GH18,IF(GG24>GG18,GH18+SQRT(POWER(GG24-GG18,2)+POWER(GH24-GH18,2))*SIN(ATAN((GH24-GH18)/(GG24-GG18+0.000123))+GH16),GH18+SQRT(POWER(GG24-GG18,2)+POWER(GH24-GH18,2))*SIN(ATAN((GH24-GH18)/(GG18-GG24+0.000123))-GH16)),IF(GG24>GG18,GH18-SQRT(POWER(GG24-GG18,2)+POWER(GH24-GH18,2))*SIN(ATAN((GH18-GH24)/(GG24-GG18+0.000123))-GH16),GH18-SQRT(POWER(GG24-GG18,2)+POWER(GH24-GH18,2))*SIN(ATAN((GH18-GH24)/(GG18-GG24+0.000123))+GH16))) -> 0.6987463478 | GM24: نقطه چرخیده | GO24: متغیر ورودی طول | GP24: a21 | GQ24: 1 | GT24: =IF(GZ12>GZ11,GU11,IF(GZ13>GZ12,GU12,IF(GZ14>GZ13,GU13,IF(GZ15>GZ14,GU14,IF(GZ16>GZ15,GU15,IF(GZ17>GZ16,GU16,IF(GZ18>GZ17,GU17,IF(GZ19>GZ18,GU18,IF(GZ20>GZ19,GU19,IF(GZ21>GZ20,GU20,IF(GZ22>GZ21,GU21,IF(GZ23>GZ22,GU22,IF(GZ24>GZ23,GU23,IF(GZ25>GZ24,GU24,IF(GZ26>GZ25,GU25,IF(GZ27>GZ26,GU26,IF(GZ28>GZ27,GU27,IF(GZ29>GZ28,GU28,IF(GZ30>GZ29,GU29,IF(GZ31>GZ30,GU30,IF(GZ32>GZ31,GU31,IF(GZ33>GZ32,GU32,IF(GZ34>GZ33,GU33,IF(GZ35>GZ34,GU34,IF(GZ36>GZ35,GU35,IF(GZ37>GZ36,GU36,IF(GZ38>GZ37,GU37,IF(GZ39>GZ38,GU38,IF(GZ40>GZ39,GU39,IF(GZ41>GZ40,GU40,IF(GZ42>GZ41,GU41,IF(GZ43>GZ42,GU42,IF(GZ44>GZ43,GU43,IF(GZ45>GZ44,GU44,IF(GZ46>GZ45,GU45,IF(GZ47>GZ46,GU46,IF(GZ48>GZ47,GU47,IF(GZ49>GZ48,GU48,IF(GZ50>GZ49,GU49,IF(GZ51>GZ50,GU50,IF(GZ52>GZ51,GU51,GU52))))))))))))))))))))))))))))))))))))))))) ->  | GU24: =GU23+GT11 -> -74 | GV24: -1.291543646 | GW24: =HB13+HB10*COS(GV24) ->  | GX24: =HC13-HB10*SIN(GV24) ->  | GY24: =SQRT(POWER((HB12-GW24),2)+POWER((HC12-GX24),2)) ->  | GZ24: =ABS(HB9-GY24) ->  | HO24: =-HK24+HP9 -> 0 | HP24: 0 | HS24: =HF30 -> 0 | HT24: =HG30 -> 0 | HU24: 14 | HW24: =HS24+2*(SIN(ATAN((HS12-HS11)/(HT12-HT11)))*(HT24-HT11)+COS(ATAN((HS12-HS11)/(HT12-HT11)))*(HS11-HS24))*COS(ATAN((HS12-HS11)/(HT12-HT11))) ->  | HX24: =HT24-2*(SIN(ATAN((HS12-HS11)/(HT12-HT11)))*(HT24-HT11)+COS(ATAN((HS12-HS11)/(HT12-HT11)))*(HS11-HS24))*SIN(ATAN((HS12-HS11)/(HT12-HT11))) ->  | HY24: 14 | NU24: a6 | NV24: =TEXT(0,NV10)&" رج مثل رج قبل میبافیم" -> 6 رج مثل رج قبل میبافیم | OF24: e2 | OG24: =TEXT(0,OG6)&" رج مثل رج قبل میبافیم" -> 9 رج مثل رج قبل میبافیم | OQ24: e2 | OR24: =TEXT(0,OR6)&" رج مثل رج قبل میبافیم" -> 9 رج مثل رج قبل میبافیم | PB24: =PB5 -> c1 | PC24: =TEXT(0,PC5)&" دانه سر می اندازیم" -> 89 دانه سر می اندازیم | PM24: =PM5 -> c1 | PN24: =TEXT(0,PN5)&" دانه سر می اندازیم" -> 101 دانه سر می اندازیم | PY24: بکدانه کم میکنیم | PZ24: علامت چهارم | QB24: نقطه ورودی سر فلش | QC24: مولفه افقی | QD24: مولفه عمودی | QE24: =QC27 -> -44.42857143 | QF24: =QD27 -> 6.714285714 | QG24: =QB27 -> f3 | QI24: =AZ113 -> 15.7765 | QJ24: =BA113 -> 70.06516501 | QK24: 12 | QM24: =QI61 -> 5.4188 | QN24: =QJ61 -> 86.9 | QO24: 25 | QQ24: =QQ15+QR7*SIN(RADIANS(60)) -> -9.535898385 | QR24: =QR15-QR7*COS(RADIANS(60)) -> 50.22779747 | QS24: k13 | QX24: =QQ37 -> -10.4 | QY24: =QR37 -> 47.72446537 | QZ24: k27 | RB24: =RB5 -> d1 | RC24: =TEXT(0,RC5)&" دانه سر می اندازیم" -> 63 دانه سر می اندازیم | RM24: c3 | RN24: =IF(RR18=1,RR17,'متغیرها '!C909) -> 0 | RO24: جابجایی افقی | RR24: رسم توری اصلی عمودی بافت | RV24: محاسبات رسم افقی | RZ24: رسم توری اصلی افقی بافت | SD24: رسم توری فرعی افقی بافت | SG24: c3 | SH24: =IF(RR18=1,RR17,'متغیرها '!C915) -> 0 | SI24: جابجایی افقی | SL24: رسم توری اصلی عمودی بافت | SP24: محاسبات رسم افقی | ST24: رسم توری اصلی افقی بافت | SX24: رسم توری فرعی افقی بافت | TA24: c3 | TB24: =IF(RR18=1,RR17,'متغیرها '!C921) -> 0 | TC24: جابجایی افقی | TF24: رسم توری اصلی عمودی بافت | TJ24: محاسبات رسم افقی | TN24: رسم توری اصلی افقی بافت | TR24: رسم توری فرعی افقی بافت | TU24: c3 | TV24: =IF(RR18=1,RR17,'متغیرها '!C927) -> 0 | TW24: جابجایی افقی | TZ24: رسم توری اصلی عمودی بافت | UD24: محاسبات رسم افقی | UH24: رسم توری اصلی افقی بافت | UL24: رسم توری فرعی افقی بافت | UO24: c3 | UP24: =IF(RR18=1,RR17,'متغیرها '!C933) -> 0 | UQ24: جابجایی افقی | UT24: رسم توری اصلی عمودی بافت | UX24: محاسبات رسم افقی | VB24: رسم توری اصلی افقی بافت | VF24: رسم توری فرعی افقی بافت | VI24: c3 | VJ24: =IF(RR18=1,RR17,'متغیرها '!C939) -> 0 | VK24: جابجایی افقی | VN24: رسم توری اصلی عمودی بافت | VR24: محاسبات رسم افقی | VV24: رسم توری اصلی افقی بافت | VZ24: رسم توری فرعی افقی بافت
E25: b2 (بدون اعمال بافت اننتخابی) تعداد دانه های اضافه شده از خط مرکزی تا خط جادکمه = نیمه جادکمه | F25: =ROUNDUP(F7*(-AX147),0) -> 0 | H25: جمع شوندگی افقی بافت جلو f3 | I25: =OFFSET(AJ6,I26,1) -> 0.04201680672 | L25: =IF(((O33-(G46-2*O41))/(O33+(G46-2*O41)))<1,1,ABS(ROUND(O33/(O33-(G46-2*O41+0.001)),0))) -> 1 | M25: =IF(((O33-(G46-2*O41))/(O33+(G46-2*O41)))<1,1,ABS(ROUND(O33/(O33-(G46-2*O41)+0.0001),0)-1)) -> 1 | N25: =O33-(O33/L25)*(L25-M25)-(G46-2*O41) -> 52 | O25: =ROUNDDOWN(ABS(N25),0) -> 52 | Q25: e10 | R25: e11 | S25: e22 | T25: e22 | W25: =IF(((X15-X16)/(X15+X16))<1,1,ABS(ROUND(X15/(X15-(X16+0.0001)),0))) -> 1 | X25: =IF(((X15-X16)/(X15+X16))<1,1,ABS(ROUND(X15/(X15-X16+0.0001),0)-1)) -> 1 | Y25: =X15-(X15/W25)*(W25-X25)-X16 -> 3 | Z25: =ROUNDDOWN(ABS(Y25),0) -> 3 | AC25: =IF(((AD15-AD16)/(AD15+AD16))<1,1,ABS(ROUND(AD15/(AD15-(AD16+0.0001)),0))) -> 1 | AD25: =IF(((AD15-AD16)/(AD15+AD16))<1,1,ABS(ROUND(AD15/(AD15-AD16+0.0001),0)-1)) -> 1 | AE25: =AD15-(AD15/AC25)*(AC25-AD25)-AD16 -> -2 | AF25: =ROUNDDOWN(ABS(AE25),0) -> 2 | AH25: 3.428571429 | AI25: 2.666666667 | AJ25: =(10/3)*((AM25/AL25)*(1/J6)-1) -> -0.1587301587 | AK25: =(100/68)*((AO25/AN25)*(1/J7)-1) -> 1.050420168 | AL25: 13.5 | AM25: 36 | AN25: 10.5 | AO25: 36 | AP25: اسموکینگ | AQ25: 19 | AS25: اسموکینگ | AT25: 125 | AU25: 22 | CQ25: =CQ24 -> 0 | CR25: =CR24+1.41*CR19 -> 118.5095 | CS25: d3 | CU25: =CQ27 -> 0 | CV25: =CR27 -> 50.0045 | CW25: d6 | DD25: =DB37+'طراحی همه الگوها'!U189 -> 52.3 | DE25: =DE14+'طراحی همه الگوها'!U191 -> 23.994 | DF25: 7 | DH25: =DD15 -> 0 | DI25: =DE15 -> 116.2 | DJ25: 1 | DL25: s8 | DM25: =DM23+0.4*(DM27-DM23) -> 13.29783998 | DN25: =DN27+0.5*(DN23-DN27) -> 91.14081912 | DP25: =DM31 -> 4.87692 | DQ25: =DN31 -> 96.45035 | DR25: s14 | DT25: s'16 | DU25: =DM15 -> 0 | DV25: =DN15 -> 71.8 | DX25: =DU24 -> 4.87692 | DY25: =DV24 -> 96.45035 | DZ25: s'14 | EE25: =DB37+'طراحی همه الگوها'!U213+'طراحی همه الگوها'!U214 -> 43.9 | EF25: =EF14 -> 57 | EG25: 6 | EI25: =EI20 -> 43.8 | EJ25: =EF15 -> 0 | EK25: 15 | EN25: (3 →6) | EO25: =ROUND(0.2*(EP34-EP30),1) -> 10.6 | ET25: =EP29 -> 0 | EU25: =EQ34 -> 5.15271912 | EV25: 14 | EX25: =EP34 -> 46.60831334 | EY25: =EQ34 -> 5.15271912 | EZ25: 8 | FF25: =FF15 -> 55.8 | FG25: =FG15+'طراحی همه الگوها'!U257 -> 63.2 | FH25: 9 | FJ25: =FF22 -> 37.4 | FK25: =FG22 -> 46.3 | FL25: 7 | FN25: 41' | FO25: =FO24+0.5*(FO27-FO24) -> 21.0075 | FP25: =FP27+0.7*(FP24-FP27) -> 42.58975011 | GA25: 20 | GB25: =GB12+GE12*SIN(RADIANS(GA25)+GA14) ->  | GC25: =GC12+GE12*COS(RADIANS(GA25)+GA14) ->  | GD25: =IF(GB13>GB25,ATAN((GC13-GC25)/(GB13-GB25)),ATAN((GC13-GC25)/(GB25-GB13))) ->  | GE25: =IF(GB13>GB25,(GB13-GB25)/COS(GD25),(GB25-GB13)/COS(GD25)) ->  | GG25: 1 | GH25: 2 | GI25: نقطه 7 | GJ25: نقطه قبل از چرخش | GK25: =IF(GH25>GH18,IF(GG25>GG18,GG18+SQRT(POWER(GG25-GG18,2)+POWER(GH25-GH18,2))*COS(ATAN((GH25-GH18)/(GG25-GG18+0.000123))+GH16),GG18-SQRT(POWER(GG25-GG18,2)+POWER(GH25-GH18,2))*COS(ATAN((GH25-GH18)/(GG18-GG25+0.000123))-GH16)),IF(GG25>GG18,GG18+SQRT(POWER(GG25-GG18,2)+POWER(GH25-GH18,2))*COS(ATAN((GH18-GH25)/(GG25-GG18+0.000123))-GH16),GG18-SQRT(POWER(GG25-GG18,2)+POWER(GH25-GH18,2))*COS(ATAN((GH18-GH25)/(GG18-GG25+0.000123))+GH16))) -> 0.6182452327 | GL25: =IF(GH25>GH18,IF(GG25>GG18,GH18+SQRT(POWER(GG25-GG18,2)+POWER(GH25-GH18,2))*SIN(ATAN((GH25-GH18)/(GG25-GG18+0.000123))+GH16),GH18+SQRT(POWER(GG25-GG18,2)+POWER(GH25-GH18,2))*SIN(ATAN((GH25-GH18)/(GG18-GG25+0.000123))-GH16)),IF(GG25>GG18,GH18-SQRT(POWER(GG25-GG18,2)+POWER(GH25-GH18,2))*SIN(ATAN((GH18-GH25)/(GG25-GG18+0.000123))-GH16),GH18-SQRT(POWER(GG25-GG18,2)+POWER(GH25-GH18,2))*SIN(ATAN((GH18-GH25)/(GG18-GG25+0.000123))+GH16))) -> 0.6987463478 | GM25: نقطه چرخیده | GQ25: ماکزیمم متغیر ورودی ضریب طول | GR25: 1 | GU25: =GU24+GT11 -> -72 | GV25: -1.256637061 | GW25: =HB13+HB10*COS(GV25) ->  | GX25: =HC13-HB10*SIN(GV25) ->  | GY25: =SQRT(POWER((HB12-GW25),2)+POWER((HC12-GX25),2)) ->  | GZ25: =ABS(HB9-GY25) ->  | HO25: =-HK25+HP9 -> 0 | HP25: 0 | HS25: 0 | HT25: 0 | HU25: 15 | HW25: =HS25+2*(SIN(ATAN((HS12-HS11)/(HT12-HT11)))*(HT25-HT11)+COS(ATAN((HS12-HS11)/(HT12-HT11)))*(HS11-HS25))*COS(ATAN((HS12-HS11)/(HT12-HT11))) ->  | HX25: =HT25-2*(SIN(ATAN((HS12-HS11)/(HT12-HT11)))*(HT25-HT11)+COS(ATAN((HS12-HS11)/(HT12-HT11)))*(HS11-HS25))*SIN(ATAN((HS12-HS11)/(HT12-HT11))) ->  | HY25: 15 | NU25: a10,a11,b1 | NV25: ="تعداد دانه ها"&TEXT(0,NV5)&"میباشد. هر"&TEXT(0,NV11)&" دانه را تبدیل به "&TEXT(0,NV12)&" دانه میکنیم تا تعداد دانه ها "&TEXT(0,NV15)&" شود" -> تعداد دانه ها124میباشد. هر5 دانه را تبدیل به 3 دانه میکنیم تا تعداد دانه ها 72 شود | OA25: نقطه وسط باکس جایی برای لیبل نوشته | OB25: =NZ17 -> -19.17708333 | OC25: =OA17 -> 5 | OD25: =NY17 -> h5 | OF25: e3 | OG25: =TEXT(0,OG7)&" دانه" -> 12 دانه | OL25: نقطه وسط باکس جایی برای لیبل نوشته | OM25: =OK17 -> -10.41493056 | ON25: =OL17 -> 5 | OO25: =OJ17 -> h5 | OQ25: e3 | OR25: =TEXT(0,OR7)&" دانه" -> 12 دانه | OW25: نقطه وسط باکس جایی برای لیبل نوشته | OX25: =OV17 -> -13.51388889 | OY25: =OW17 -> 5 | OZ25: =OU17 -> h5 | PB25: =PB6 -> c2 | PC25: =TEXT(0,PC6)&" رج مثل رج قبل میبافیم" -> 2 رج مثل رج قبل میبافیم | PH25: نقطه وسط باکس جایی برای لیبل نوشته | PI25: =PG17 -> -16.61284722 | PJ25: =PH17 -> 5 | PK25: =PF17 -> h5 | PM25: =PM6 -> c2 | PN25: =TEXT(0,PN6)&" رج مثل رج قبل میبافیم" -> 2 رج مثل رج قبل میبافیم | PS25: نقطه وسط باکس جایی برای لیبل نوشته | PT25: =PR17 -> -14.13368056 | PU25: =PS17 -> 5 | PV25: =PQ17 -> h5 | PY25: یکدانه اضافه میکنیم | PZ25: علامت پنجم | QB25: =PZ33 -> t5 | QC25: =PX33 -> -45 | QD25: =PY33 -> 6.428571429 | QK25: جادکمه | QQ25: =2*QQ15-QQ24 -> -16.46410162 | QR25: =QR24 -> 50.22779747 | QS25: k14 | QX25: =QQ38 -> -8.4966679 | QY25: =QR38 -> 49.62779747 | QZ25: k28 | RB25: =RB6 -> d2 | RC25: =TEXT(0,RC6)&" رج مثل رج قبل میبافیم" -> 5 رج مثل رج قبل میبافیم | RH25: نقطه وسط باکس جایی برای لیبل نوشته | RI25: =RG17 -> -19.6875 | RJ25: =RH17 -> 5 | RK25: =RF17 -> h5 | RM25: c4 | RN25: =IF(RR18=1,RR14,'متغیرها '!C910+80) -> -20 | RO25: جابجایی عمودی | RQ25: مولفه افقی | RR25: مولفه عمودی | RS25: اسم نقطه | RU25: c3 | RV25: =RN25-RN27 -> -40 | RW25: جابجایی عمودی | RY25: مولفه عمودی | RZ25: مولفه افقی | SA25: اسم نقطه | SC25: مولفه عمودی | SD25: مولفه افقی | SE25: اسم نقطه | SG25: c4 | SH25: =IF(RR18=1,RR14,'متغیرها '!C916+80) -> -20 | SI25: جابجایی عمودی | SK25: مولفه افقی | SL25: مولفه عمودی | SM25: اسم نقطه | SO25: c3 | SP25: =SH25-SH27 -> -40 | SQ25: جابجایی عمودی | SS25: مولفه عمودی | ST25: مولفه افقی | SU25: اسم نقطه | SW25: مولفه عمودی | SX25: مولفه افقی | SY25: اسم نقطه | TA25: c4 | TB25: =IF(RR18=1,RR14,'متغیرها '!C922+80) -> -20 | TC25: جابجایی عمودی | TE25: مولفه افقی | TF25: مولفه عمودی | TG25: اسم نقطه | TI25: c3 | TJ25: =TB25-TB27 -> -40 | TK25: جابجایی عمودی | TM25: مولفه عمودی | TN25: مولفه افقی | TO25: اسم نقطه | TQ25: مولفه عمودی | TR25: مولفه افقی | TS25: اسم نقطه | TU25: c4 | TV25: =IF(RR18=1,RR14,'متغیرها '!C928+80) -> -20 | TW25: جابجایی عمودی | TY25: مولفه افقی | TZ25: مولفه عمودی | UA25: اسم نقطه | UC25: c3 | UD25: =TV25-TV27 -> -40 | UE25: جابجایی عمودی | UG25: مولفه عمودی | UH25: مولفه افقی | UI25: اسم نقطه | UK25: مولفه عمودی | UL25: مولفه افقی | UM25: اسم نقطه | UO25: c4 | UP25: =IF(RR18=1,RR14,'متغیرها '!C934+80) -> -20 | UQ25: جابجایی عمودی | US25: مولفه افقی | UT25: مولفه عمودی | UU25: اسم نقطه | UW25: c3 | UX25: =UP25-UP27 -> -40 | UY25: جابجایی عمودی | VA25: مولفه عمودی | VB25: مولفه افقی | VC25: اسم نقطه | VE25: مولفه عمودی | VF25: مولفه افقی | VG25: اسم نقطه | VI25: c4 | VJ25: =IF(RR18=1,RR14,'متغیرها '!C940+80) -> -20 | VK25: جابجایی عمودی | VM25: مولفه افقی | VN25: مولفه عمودی | VO25: اسم نقطه | VQ25: c3 | VR25: =VJ25-VJ27 -> -40 | VS25: جابجایی عمودی | VU25: مولفه عمودی | VV25: مولفه افقی | VW25: اسم نقطه | VY25: مولفه عمودی | VZ25: مولفه افقی | WA25: اسم نقطه
E26: (بدون اعمال بافت اننتخابی) b1 تعداد دانه ها دور تا دور گردن | F26: =F45+2*F44+2*F43+F42 -> 72 | H26: بافت انتخابی جلو | I26: ='متغیرها '!C859 -> 15 | L26: =ABS(ROUND(2*O33/(O33-(G46-2*O41)+0.001),0)) -> 5 | M26: =ABS(ROUND(2*(O33/(O33-(G46-2*O41)+0.001)-1),0)) -> 3 | N26: =O33-(O33/L26)*(L26-M26)-(G46-2*O41) -> 2.4 | O26: =ROUNDDOWN(ABS(N26),0) -> 2 | Q26: =IF(((S19-G46)/(S19+G46))<1,1,ABS(ROUND(S19/(S19-(G46+0.0001)),0))) -> 1 | R26: =IF(((S19-G46)/(S19+G46))<1,1,ABS(ROUND(S19/(S19-G46+0.0001),0)-1)) -> 1 | S26: =S19-(S19/Q26)*(Q26-R26)-G46 -> 3.237085894 | T26: =ROUNDDOWN(ABS(S26),0) -> 3 | W26: =ABS(ROUND(2*X15/(X15-(X16)+0.001),0)) -> 51 | X26: =ABS(ROUND(2*(X15/(X15-X16+0.0001)-1),0)) -> 49 | Y26: =X15-(X15/W26)*(W26-X26)-X16 -> -0.01960784314 | Z26: =ROUNDDOWN(ABS(Y26),0) -> 0 | AC26: =ABS(ROUND(2*AD15/(AD15-(AD16)+0.001),0)) -> 42 | AD26: =ABS(ROUND(2*(AD15/(AD15-AD16+0.0001)-1),0)) -> 44 | AE26: =AD15-(AD15/AC26)*(AC26-AD26)-AD16 -> 0 | AF26: =ROUNDDOWN(ABS(AE26),0) -> 0 | AH26: 2.769230769 | AI26: 2.814814815 | AJ26: =(10/3)*((AM26/AL26)*(1/J6)-1) -> 0.0176366843 | AK26: =(100/68)*((AO26/AN26)*(1/J7)-1) -> 0.5656108597 | AL26: 13.5 | AM26: 38 | AN26: 13 | AO26: 36 | AP26: زنبوری | AQ26: 20 | AS26: زنبوری | AT26: 77 | AU26: 31 | CM26: =CI45 -> 19.9 | CN26: =CJ45 -> 109.1 | CO26: j11 | CQ26: =0.7*(CR20+CR19)+CQ24 -> 57.575 | CR26: =CR25-0.7*(CR19+CR20) -> 60.9345 | CS26: d4 | CU26: =CQ28 -> 11.515 | CV26: =CR28 -> 50.0045 | CW26: d7 | DD26: =DB37+'طراحی همه الگوها'!U189 -> 52.3 | DE26: =DE15-'طراحی همه الگوها'!U198 -> 102.9 | DF26: 14 | DL26: s9 | DM26: =DM23+0.7*(DM27-DM23) -> 23.27121996 | DN26: =DN27+0.2*(DN23-DN27) -> 82.749449 | DT26: s'15 | DU26: =DU25+0.7*(DU24-DU25) -> 3.413844 | DV26: =DV25+0.5*(DV24-DV25) -> 84.125175 | DX26: =DU26 -> 3.413844 | DY26: =DV26 -> 84.125175 | DZ26: s'15 | EE26: =EE25 -> 43.9 | EF26: =EF19 -> 59.7 | EG26: 7 | EN26: (5 →7) | EO26: =ROUND(0.2*(EP34-EP31),1) -> 8.2 | ET26: =EP34 -> 46.60831334 | EU26: =EQ34 -> 5.15271912 | EV26: 8 | FF26: =FF13+'طراحی همه الگوها'!U249-'طراحی همه الگوها'!U256 -> -23.4 | FG26: =FG25 -> 63.2 | FH26: 10 | FN26: 41'' | FO26: =FO24+0.88*(FO27-FO24) -> 26.2458 | FP26: =FP27+0.3*(FP24-FP27) -> 18.25275005 | FR26: =FO12 -> 4.87692 | FS26: =FP12 -> 96.45035 | FT26: s3 | GA26: 22 | GB26: =GB12+GE12*SIN(RADIANS(GA26)+GA14) ->  | GC26: =GC12+GE12*COS(RADIANS(GA26)+GA14) ->  | GD26: =IF(GB13>GB26,ATAN((GC13-GC26)/(GB13-GB26)),ATAN((GC13-GC26)/(GB26-GB13))) ->  | GE26: =IF(GB13>GB26,(GB13-GB26)/COS(GD26),(GB26-GB13)/COS(GD26)) ->  | GG26: 1 | GH26: 2 | GI26: نقطه 8 | GJ26: نقطه قبل از چرخش | GK26: =IF(GH26>GH18,IF(GG26>GG18,GG18+SQRT(POWER(GG26-GG18,2)+POWER(GH26-GH18,2))*COS(ATAN((GH26-GH18)/(GG26-GG18+0.000123))+GH16),GG18-SQRT(POWER(GG26-GG18,2)+POWER(GH26-GH18,2))*COS(ATAN((GH26-GH18)/(GG18-GG26+0.000123))-GH16)),IF(GG26>GG18,GG18+SQRT(POWER(GG26-GG18,2)+POWER(GH26-GH18,2))*COS(ATAN((GH18-GH26)/(GG26-GG18+0.000123))-GH16),GG18-SQRT(POWER(GG26-GG18,2)+POWER(GH26-GH18,2))*COS(ATAN((GH18-GH26)/(GG18-GG26+0.000123))+GH16))) -> 0.6182452327 | GL26: =IF(GH26>GH18,IF(GG26>GG18,GH18+SQRT(POWER(GG26-GG18,2)+POWER(GH26-GH18,2))*SIN(ATAN((GH26-GH18)/(GG26-GG18+0.000123))+GH16),GH18+SQRT(POWER(GG26-GG18,2)+POWER(GH26-GH18,2))*SIN(ATAN((GH26-GH18)/(GG18-GG26+0.000123))-GH16)),IF(GG26>GG18,GH18-SQRT(POWER(GG26-GG18,2)+POWER(GH26-GH18,2))*SIN(ATAN((GH18-GH26)/(GG26-GG18+0.000123))-GH16),GH18-SQRT(POWER(GG26-GG18,2)+POWER(GH26-GH18,2))*SIN(ATAN((GH18-GH26)/(GG18-GG26+0.000123))+GH16))) -> 0.6987463478 | GM26: نقطه چرخیده | GO26: m1 | GP26: =IF(GR21>GR22,ATAN((GQ22-GQ21)/(GR21-GR22)),2*RADIANS(90)-ATAN((GQ22-GQ21)/(GR22-GR21))) ->  | GQ26: m2 | GR26: =SQRT(POWER(GQ21-GQ22,2)+POWER(GR21-GR22,2)) ->  | GU26: =GU25+GT11 -> -70 | GV26: -1.221730476 | GW26: =HB13+HB10*COS(GV26) ->  | GX26: =HC13-HB10*SIN(GV26) ->  | GY26: =SQRT(POWER((HB12-GW26),2)+POWER((HC12-GX26),2)) ->  | GZ26: =ABS(HB9-GY26) ->  | HO26: =-HK26+HP9 -> 0 | HP26: 0 | HS26: 0 | HT26: 0 | HU26: 16 | HW26: =HS26+2*(SIN(ATAN((HS12-HS11)/(HT12-HT11)))*(HT26-HT11)+COS(ATAN((HS12-HS11)/(HT12-HT11)))*(HS11-HS26))*COS(ATAN((HS12-HS11)/(HT12-HT11))) ->  | HX26: =HT26-2*(SIN(ATAN((HS12-HS11)/(HT12-HT11)))*(HT26-HT11)+COS(ATAN((HS12-HS11)/(HT12-HT11)))*(HS11-HS26))*SIN(ATAN((HS12-HS11)/(HT12-HT11))) ->  | HY26: 16 | NU26: a25 | NV26: =TEXT(0,NV13)&"دانه" -> 1دانه | OF26: e4 | OG26: =TEXT(0,OG8)&" دانه" -> 21 دانه | OQ26: e4 | OR26: =TEXT(0,OR8)&" دانه" -> 24 دانه | PB26: =PB7 -> c3 | PC26: =TEXT(0,PC7)&" رج مثل رج قبل میبافیم" -> 4 رج مثل رج قبل میبافیم | PM26: =PM7 -> c3 | PN26: =TEXT(0,PN7)&" رج مثل رج قبل میبافیم" -> 4 رج مثل رج قبل میبافیم | PY26: راهنمای نقشه بافت | PZ26: عنوان | QB26: f2 | QC26: =QC25+1*QC23 -> -44.42857143 | QD26: =QD25-QC22*QC23 -> 6.142857143 | QE26: =QC25 -> -45 | QF26: =QD25 -> 6.428571429 | QG26: =QB25 -> t5 | QI26: =FJ146 -> 0 | QJ26: =FK146 -> 49.8 | QK26: 1 | QM26: =QI61 -> 5.4188 | QN26: =QJ61 -> 86.9 | QO26: 25 | QQ26: =QQ15+QR7*SIN(RADIANS(30)) -> -11 | QR26: =QR15+QR7*COS(RADIANS(30)) -> 55.69189909 | QS26: k15 | QX26: =QQ40 -> -7.8 | QY26: =QR40 -> 52.22779747 | QZ26: k30 | RB26: =RB7 -> d3 | RC26: =TEXT(0,RC7)&" دانه" -> 10 دانه | RM26: c5 | RN26: =IF(RR18=1,RR19,'متغیرها '!C907) -> 10 | RO26: پهنا افقی | RQ26: =RM40 -> 0 | RR26: =RN40 -> -20 | RS26: =RO40 -> 0 | RU26: c4 | RV26: =RN24 -> 0 | RW26: جابجایی افقی | RY26: =RU40 -> -40 | RZ26: =RV40 -> 0 | SA26: =RW40 -> 0 | SC26: =RU65 -> -39.40719831 | SD26: =RV65 -> 0 | SE26: 1 | SG26: c5 | SH26: =IF(RR18=1,RR19,'متغیرها '!C913) -> 10 | SI26: پهنا افقی | SK26: =SG40 -> 0 | SL26: =SH40 -> -20 | SM26: =SI40 -> 0 | SO26: c4 | SP26: =SH24 -> 0 | SQ26: جابجایی افقی | SS26: =SO40 -> -40 | ST26: =SP40 -> 0 | SU26: =SQ40 -> 0 | SW26: =SO65 -> -39.40719831 | SX26: =SP65 -> 0 | SY26: 1 | TA26: c5 | TB26: =IF(RR18=1,RR19,'متغیرها '!C919) -> 10 | TC26: پهنا افقی | TE26: =TA40 -> 0 | TF26: =TB40 -> -20 | TG26: =TC40 -> 0 | TI26: c4 | TJ26: =TB24 -> 0 | TK26: جابجایی افقی | TM26: =TI40 -> -40 | TN26: =TJ40 -> 0 | TO26: =TK40 -> 0 | TQ26: =TI65 -> -39.42201835 | TR26: =TJ65 -> 0 | TS26: 1 | TU26: c5 | TV26: =IF(RR18=1,RR19,'متغیرها '!C925) -> 10 | TW26: پهنا افقی | TY26: =TU40 -> 0 | TZ26: =TV40 -> -20 | UA26: =TW40 -> 0 | UC26: c4 | UD26: =TV24 -> 0 | UE26: جابجایی افقی | UG26: =UC40 -> -40 | UH26: =UD40 -> 0 | UI26: =UE40 -> 0 | UK26: =UC65 -> -39.42201835 | UL26: =UD65 -> 0 | UM26: 1 | UO26: c5 | UP26: =IF(RR18=1,RR19,'متغیرها '!C931) -> 10 | UQ26: پهنا افقی | US26: =UO40 -> 0 | UT26: =UP40 -> -20 | UU26: =UQ40 -> 0 | UW26: c4 | UX26: =UP24 -> 0 | UY26: جابجایی افقی | VA26: =UW40 -> -40 | VB26: =UX40 -> 0 | VC26: =UY40 -> 0 | VE26: =UW65 -> -39.40719831 | VF26: =UX65 -> 0 | VG26: 1 | VI26: c5 | VJ26: =IF(RR18=1,RR19,'متغیرها '!C937) -> 10 | VK26: پهنا افقی | VM26: =VI40 -> 0 | VN26: =VJ40 -> -20 | VO26: =VK40 -> 0 | VQ26: c4 | VR26: =VJ24 -> 0 | VS26: جابجایی افقی | VU26: =VQ40 -> -40 | VV26: =VR40 -> 0 | VW26: =VS40 -> 0 | VY26: =VQ65 -> -39.40719831 | VZ26: =VR65 -> 0 | WA26: 1
E27: تعداد رج دوبل برای ایجاد گودی گردن جلو b13 | F27: =ROUNDDOWN(0.25*I22*((AX129-BI128)),0) -> 4 | H27: بافت انتخابی جلو | I27: =OFFSET(AJ6,I26,6) -> سبدی (5 تایی) | L27: =ABS(ROUND(3*O33/(O33-(G46-2*O41)+0.001),0)) -> 7 | M27: =ABS(ROUND(3*(O33/(O33-(G46-2*O41)+0.001)-1),0)) -> 4 | N27: =O33-(O33/L27)*(L27-M27)-(G46-2*O41) -> -1.142857143 | O27: =ROUNDDOWN(ABS(N27),0) -> 1 | Q27: =ABS(ROUND(2*S19/(S19-(G46)+0.001),0)) -> 48 | R27: =ABS(ROUND(2*(S19/(S19-G46+0.0001)-1),0)) -> 46 | S27: =S19-(S19/Q27)*(Q27-R27)-G46 -> 0.01887398164 | T27: =ROUNDDOWN(ABS(S27),0) -> 0 | W27: =ABS(ROUND(3*X15/(X15-X16+0.001),0)) -> 77 | X27: =ABS(ROUND(3*(X15/(X15-X16+0.0001)-1),0)) -> 74 | Y27: =X15-(X15/W27)*(W27-X27)-X16 -> 0 | Z27: =ROUNDDOWN(ABS(Y27),0) -> 0 | AC27: =ABS(ROUND(3*AD15/(AD15-AD16+0.001),0)) -> 63 | AD27: =ABS(ROUND(3*(AD15/(AD15-AD16+0.0001)-1),0)) -> 66 | AE27: =AD15-(AD15/AC27)*(AC27-AD27)-AD16 -> 0 | AF27: =ROUNDDOWN(ABS(AE27),0) -> 0 | AH27: 3.142857143 | AI27: 3.111111111 | AJ27: =(10/3)*((AM27/AL27)*(1/J6)-1) -> 0.3703703704 | AK27: =(100/68)*((AO27/AN27)*(1/J7)-1) -> 0.8403361345 | AL27: 13.5 | AM27: 42 | AN27: 7 | AO27: 22 | AP27: پیچ گیسباف | AQ27: 21 | AS27: پیچ گیسباف | AT27: 104 | AU27: 49 | CM27: =CI46 -> 10.7 | CN27: =CJ46 -> 101.4 | CO27: j12 | CQ27: =CQ24 -> 0 | CR27: =CR26-CR21+'متغیرها '!C6*0.1*'متغیرها '!U85*0.7 -> 50.0045 | CS27: d6 | CU27: =CQ30 -> 40.3025 | CV27: =CR30 -> 51.0975 | CW27: d9 | DD27: =DD29+'طراحی همه الگوها'!U196 -> 67.9 | DE27: =DE15-'طراحی همه الگوها'!U197 -> 105.4 | DF27: 13 | DI27: صاف | DL27: s10 | DM27: =DM18-('طراحی همه الگوها'!U196-'متغیرها '!C13*'متغیرها '!U83)*COS(DM17) -> 33.24459995 | DN27: =DN18+('طراحی همه الگوها'!U196-'متغیرها '!C13*'متغیرها '!U83)*SIN(DM17) -> 77.15520225 | DP27: =DM31 -> 4.87692 | DQ27: =DN31 -> 96.45035 | DR27: s14 | DT27: s'17 | DU27: =DB400 -> 0 | DV27: =IF('متغیرها '!C22=-1,DQ12,IF('متغیرها '!C22=0,DC400-0.1,DC400-0.25*(DC400-DC404))) -> 103.045 | DX27: =DU25 -> 0 | DY27: =DV25 -> 71.8 | DZ27: s'16 | EE27: =EE24 -> 33.9 | EF27: =EF24 -> 57 | EG27: 5 | EI27: =EI19 -> 26.28 | EJ27: =EJ17 -> 0 | EK27: 21 | EO27: نقاط در چادر شماره 4 | EX27: =EP29 -> 0 | EY27: =EQ29 -> 109.1 | EZ27: 1 | FF27: =FF26 -> -23.4 | FG27: =FG17 -> 60.4 | FH27: 11 | FJ27: =FJ23 -> 15 | FK27: =FG17 -> 60.4 | FL27: 19 | FN27: s13 | FO27: =FO30+0.5*'طراحی همه الگوها'!U249 -> 27.9 | FP27: =FP30 -> 0 | FR27: =FO33 -> 4.202438246 | FS27: =FP33 -> 70.82087311 | FT27: s'3 | GA27: 24 | GB27: =GB12+GE12*SIN(RADIANS(GA27)+GA14) ->  | GC27: =GC12+GE12*COS(RADIANS(GA27)+GA14) ->  | GD27: =IF(GB13>GB27,ATAN((GC13-GC27)/(GB13-GB27)),ATAN((GC13-GC27)/(GB27-GB13))) ->  | GE27: =IF(GB13>GB27,(GB13-GB27)/COS(GD27),(GB27-GB13)/COS(GD27)) ->  | GG27: 1 | GH27: 2 | GI27: نقطه 9 | GJ27: نقطه قبل از چرخش | GK27: =IF(GH27>GH18,IF(GG27>GG18,GG18+SQRT(POWER(GG27-GG18,2)+POWER(GH27-GH18,2))*COS(ATAN((GH27-GH18)/(GG27-GG18+0.000123))+GH16),GG18-SQRT(POWER(GG27-GG18,2)+POWER(GH27-GH18,2))*COS(ATAN((GH27-GH18)/(GG18-GG27+0.000123))-GH16)),IF(GG27>GG18,GG18+SQRT(POWER(GG27-GG18,2)+POWER(GH27-GH18,2))*COS(ATAN((GH18-GH27)/(GG27-GG18+0.000123))-GH16),GG18-SQRT(POWER(GG27-GG18,2)+POWER(GH27-GH18,2))*COS(ATAN((GH18-GH27)/(GG18-GG27+0.000123))+GH16))) -> 0.6182452327 | GL27: =IF(GH27>GH18,IF(GG27>GG18,GH18+SQRT(POWER(GG27-GG18,2)+POWER(GH27-GH18,2))*SIN(ATAN((GH27-GH18)/(GG27-GG18+0.000123))+GH16),GH18+SQRT(POWER(GG27-GG18,2)+POWER(GH27-GH18,2))*SIN(ATAN((GH27-GH18)/(GG18-GG27+0.000123))-GH16)),IF(GG27>GG18,GH18-SQRT(POWER(GG27-GG18,2)+POWER(GH27-GH18,2))*SIN(ATAN((GH18-GH27)/(GG27-GG18+0.000123))-GH16),GH18-SQRT(POWER(GG27-GG18,2)+POWER(GH27-GH18,2))*SIN(ATAN((GH18-GH27)/(GG18-GG27+0.000123))+GH16))) -> 0.6987463478 | GM27: نقطه چرخیده | GO27: نقطه خروجی بالا | GP27: su9 | GQ27: =GQ21+GQ23*COS(GP26) ->  | GR27: =GR21+GQ23*SIN(GP26) ->  | GU27: =GU26+GT11 -> -68 | GV27: -1.186823891 | GW27: =HB13+HB10*COS(GV27) ->  | GX27: =HC13-HB10*SIN(GV27) ->  | GY27: =SQRT(POWER((HB12-GW27),2)+POWER((HC12-GX27),2)) ->  | GZ27: =ABS(HB9-GY27) ->  | HC27: به دست آوردن نقطه تقاطع دو خط | HD27: مولفه افقی | HE27: مولفه عمودی | HO27: =-HK27+HP9 -> 0 | HP27: 0 | HS27: =HF30 -> 0 | HT27: =HG30 -> 0 | HU27: 17 | HW27: =HS27+2*(SIN(ATAN((HS12-HS11)/(HT12-HT11)))*(HT27-HT11)+COS(ATAN((HS12-HS11)/(HT12-HT11)))*(HS11-HS27))*COS(ATAN((HS12-HS11)/(HT12-HT11))) ->  | HX27: =HT27-2*(SIN(ATAN((HS12-HS11)/(HT12-HT11)))*(HT27-HT11)+COS(ATAN((HS12-HS11)/(HT12-HT11)))*(HS11-HS27))*SIN(ATAN((HS12-HS11)/(HT12-HT11))) ->  | HY27: 17 | NU27: b''1 | NV27: ="تعداد دانه ها "&TEXT(0,NV17)&" - تقسیم بندی بالاتنه و آستین " -> تعداد دانه ها 74 - تقسیم بندی بالاتنه و آستین | NY27: زاویه فلش | NZ27: =NV39 -> 0.5 | OA27: f5 | OD27: فلش به سمت راست | OF27: e5 | OG27: =TEXT(0,OG9)&" دانه" -> 33 دانه | OJ27: زاویه فلش | OK27: =OG44 -> 0.5 | OL27: f5 | OO27: فلش به سمت راست | OQ27: e5 | OR27: =TEXT(0,OR9)&" دانه" -> 36 دانه | OU27: زاویه فلش | OV27: =OR44 -> 0.5 | OW27: f5 | OZ27: فلش به سمت راست | PB27: =PB8 -> c4 | PC27: =TEXT(0,PC8)&" رج مثل رج قبل میبافیم" -> 8 رج مثل رج قبل میبافیم | PF27: زاویه فلش | PG27: =PC42 -> 0.5 | PH27: f5 | PK27: فلش به سمت راست | PM27: =PM8 -> c4 | PN27: =TEXT(0,PN8)&" رج مثل رج قبل میبافیم" -> 9 رج مثل رج قبل میبافیم | PQ27: زاویه فلش | PR27: =PN42 -> 0.5 | PS27: f5 | PV27: فلش به سمت راست | QB27: f3 | QC27: =QC26 -> -44.42857143 | QD27: =QD25+QC22*QC23 -> 6.714285714 | QE27: =QC26 -> -44.42857143 | QF27: =QD26 -> 6.142857143 | QG27: =QB26 -> f2 | QI27: =FJ145 -> 0 | QJ27: =FK145 -> 49.8 | QK27: 1' | QM27: =QI62 -> 4.33504 | QN27: =QJ62 -> 83.56389874 | QO27: 30 | QQ27: =2*QQ15-QQ26 -> -15 | QR27: =QR26 -> 55.69189909 | QS27: k16 | QX27: =QQ42 -> -10.4 | QY27: =QR42 -> 56.73112957 | QZ27: k32 | RB27: =RB8 -> d4 | RC27: =TEXT(0,RC8)&" رج مثل رج قبل میبافیم" -> 1 رج مثل رج قبل میبافیم | RF27: زاویه فلش | RG27: =RC44 -> 0.5 | RH27: f5 | RK27: فلش به سمت راست | RM27: c6 | RN27: =IF(RR18=1,RR20,'متغیرها '!C908) -> 20 | RO27: پهنا عمودی | RQ27: =RM38 -> 0 | RR27: =RN38 -> -40.15525759 | RU27: c5 | RV27: =RN27 -> 20 | RW27: پهنا عمودی | RY27: =RU38 -> -40 | RZ27: =RV38 -> 10.27777778 | SC27: =SC26 -> -39.40719831 | SD27: =RV38 -> 10.27777778 | SG27: c6 | SH27: =IF(RR18=1,RR20,'متغیرها '!C914) -> 20 | SI27: پهنا عمودی | SK27: =SG38 -> 0 | SL27: =SH38 -> -40.15525759 | SO27: c5 | SP27: =SH27 -> 20 | SQ27: پهنا عمودی | SS27: =SO38 -> -40 | ST27: =SP38 -> 10.27777778 | SW27: =SW26 -> -39.40719831 | SX27: =SP38 -> 10.27777778 | TA27: c6 | TB27: =IF(RR18=1,RR20,'متغیرها '!C920) -> 20 | TC27: پهنا عمودی | TE27: =TA38 -> 0 | TF27: =TB38 -> -40.2293578 | TI27: c5 | TJ27: =TB27 -> 20 | TK27: پهنا عمودی | TM27: =TI38 -> -40 | TN27: =TJ38 -> 9.722222222 | TQ27: =TQ26 -> -39.42201835 | TR27: =TJ38 -> 9.722222222 | TU27: c6 | TV27: =IF(RR18=1,RR20,'متغیرها '!C926) -> 20 | TW27: پهنا عمودی | TY27: =TU38 -> 0 | TZ27: =TV38 -> -40.2293578 | UC27: c5 | UD27: =TV27 -> 20 | UE27: پهنا عمودی | UG27: =UC38 -> -40 | UH27: =UD38 -> 9.722222222 | UK27: =UK26 -> -39.42201835 | UL27: =UD38 -> 9.722222222 | UO27: c6 | UP27: =IF(RR18=1,RR20,'متغیرها '!C932) -> 20 | UQ27: پهنا عمودی | US27: =UO38 -> 0 | UT27: =UP38 -> -40.15525759 | UW27: c5 | UX27: =UP27 -> 20 | UY27: پهنا عمودی | VA27: =UW38 -> -40 | VB27: =UX38 -> 10.27777778 | VE27: =VE26 -> -39.40719831 | VF27: =UX38 -> 10.27777778 | VI27: c6 | VJ27: =IF(RR18=1,RR20,'متغیرها '!C938) -> 20 | VK27: پهنا عمودی | VM27: =VI38 -> 0 | VN27: =VJ38 -> -40.15525759 | VQ27: c5 | VR27: =VJ27 -> 20 | VS27: پهنا عمودی | VU27: =VQ38 -> -40 | VV27: =VR38 -> 10.27777778 | VY27: =VY26 -> -39.40719831 | VZ27: =VR38 -> 10.27777778
E28: تعداد رج دوبل جدید برای ایجاد گودی گردن جلو b'''13 | F28: =ROUNDDOWN(0.5*(1/6)*(I22*AX129-I29*BI128),0) -> 1 | L28: =ABS(ROUND(4*O33/(O33-(G46-2*O41)+0.001),0)) -> 10 | M28: =ABS(ROUND(4*(O33/(O33-(G46-2*O41)+0.001)-1),0)) -> 6 | N28: =O33-(O33/L28)*(L28-M28)-(G46-2*O41) -> 2.4 | O28: =ROUNDDOWN(ABS(N28),0) -> 2 | Q28: =ABS(ROUND(3*S19/(S19-G46+0.001),0)) -> 72 | R28: =ABS(ROUND(3*(S19/(S19-G46+0.0001)-1),0)) -> 69 | S28: =S19-(S19/Q28)*(Q28-R28)-G46 -> 0.01887398164 | T28: =ROUNDDOWN(ABS(S28),0) -> 0 | W28: =ABS(ROUND(4*X15/(X15-X16+0.001),0)) -> 103 | X28: =ABS(ROUND(4*(X15/(X15-X16+0.0001)-1),0)) -> 99 | Y28: =X15-(X15/W28)*(W28-X28)-X16 -> 0.009708737864 | Z28: =ROUNDDOWN(ABS(Y28),0) -> 0 | AC28: =ABS(ROUND(4*AD15/(AD15-AD16+0.001),0)) -> 84 | AD28: =ABS(ROUND(4*(AD15/(AD15-AD16+0.0001)-1),0)) -> 88 | AE28: =AD15-(AD15/AC28)*(AC28-AD28)-AD16 -> 0 | AF28: =ROUNDDOWN(ABS(AE28),0) -> 0 | AH28: 3.272727273 | AI28: 2.962962963 | AJ28: =(10/3)*((AM28/AL28)*(1/J6)-1) -> 0.1940035273 | AK28: =(100/68)*((AO28/AN28)*(1/J7)-1) -> 0.935828877 | AL28: 13.5 | AM28: 40 | AN28: 11 | AO28: 36 | AP28: پیچ چپ و راستی | AQ28: =AQ27+1 -> 22 | AS28: پیچ چپ و راستی | AT28: 114 | AU28: 40 | CQ28: =0.2*(CQ26-CQ24)+CQ24 -> 11.515 | CR28: =CR27 -> 50.0045 | CS28: d7 | CU28: =CQ29 -> 51.8175 | CV28: =CR29 -> 55.4695 | CW28: d8 | DD28: =DD29+'طراحی همه الگوها'!U196 -> 67.9 | DE28: =DE15 -> 116.2 | DF28: 12 | DH28: =DH20 -> 25.8 | DI28: =DE14 -> 0 | DJ28: 15 | DL28: s12 | DM28: =DM27-'طراحی همه الگوها'!U198*SIN(DM17) -> 28.84862142 | DN28: =DN27-'طراحی همه الگوها'!U198*COS(DM17) -> 64.60269761 | DP28: =DM33 -> 3.413844 | DQ28: =DN33 -> 84.125175 | DR28: s15 | DT28: s'18 | DU28: =DU27+0.6*(DU24-DU27) -> 2.926152 | DV28: =DV27-0.3*(DV27-DV24) -> 101.066605 | EI28: =EI19 -> 26.28 | EJ28: =EJ19 -> 5.9 | EK28: 22 | EN28: افقی شبیه ساز | EO28: اسم نقطه | EP28: مولفه افقی | EQ28: مولفه عمودی | ER28: عمودی شبیه ساز | ET28: =ER43 -> 29 | EU28: =ER44 -> 41.6 | EV28: 15 | EX28: =EP36 -> 48.01255044 | EY28: =EQ36 -> 61.08744956 | EZ28: 10 | FF28: =FF16 -> 50.4 | FG28: =FG16 -> 60.4 | FH28: 8 | FJ28: =FJ23 -> 15 | FK28: =FK23 -> 51.3 | FL28: 20 | FN28: s''17 | FO28: =FO11 -> 0 | FP28: =IF('متغیرها '!C40=-1,FP14,IF('متغیرها '!C40=0,FP11-0.1,FP11-0.25*(FP11-FP13))) -> 103.045 | FR28: =FO22 -> 3.527956493 | FS28: =FP22 -> 32.37665778 | FT28: s11 | GA28: 26 | GB28: =GB12+GE12*SIN(RADIANS(GA28)+GA14) ->  | GC28: =GC12+GE12*COS(RADIANS(GA28)+GA14) ->  | GD28: =IF(GB13>GB28,ATAN((GC13-GC28)/(GB13-GB28)),ATAN((GC13-GC28)/(GB28-GB13))) ->  | GE28: =IF(GB13>GB28,(GB13-GB28)/COS(GD28),(GB28-GB13)/COS(GD28)) ->  | GG28: 1 | GH28: 2 | GI28: نقطه 10 | GJ28: نقطه قبل از چرخش | GK28: =IF(GH28>GH18,IF(GG28>GG18,GG18+SQRT(POWER(GG28-GG18,2)+POWER(GH28-GH18,2))*COS(ATAN((GH28-GH18)/(GG28-GG18+0.000123))+GH16),GG18-SQRT(POWER(GG28-GG18,2)+POWER(GH28-GH18,2))*COS(ATAN((GH28-GH18)/(GG18-GG28+0.000123))-GH16)),IF(GG28>GG18,GG18+SQRT(POWER(GG28-GG18,2)+POWER(GH28-GH18,2))*COS(ATAN((GH18-GH28)/(GG28-GG18+0.000123))-GH16),GG18-SQRT(POWER(GG28-GG18,2)+POWER(GH28-GH18,2))*COS(ATAN((GH18-GH28)/(GG18-GG28+0.000123))+GH16))) -> 0.6182452327 | GL28: =IF(GH28>GH18,IF(GG28>GG18,GH18+SQRT(POWER(GG28-GG18,2)+POWER(GH28-GH18,2))*SIN(ATAN((GH28-GH18)/(GG28-GG18+0.000123))+GH16),GH18+SQRT(POWER(GG28-GG18,2)+POWER(GH28-GH18,2))*SIN(ATAN((GH28-GH18)/(GG18-GG28+0.000123))-GH16)),IF(GG28>GG18,GH18-SQRT(POWER(GG28-GG18,2)+POWER(GH28-GH18,2))*SIN(ATAN((GH18-GH28)/(GG28-GG18+0.000123))-GH16),GH18-SQRT(POWER(GG28-GG18,2)+POWER(GH28-GH18,2))*SIN(ATAN((GH18-GH28)/(GG18-GG28+0.000123))+GH16))) -> 0.6987463478 | GM28: نقطه چرخیده | GO28: نقطه خروجی پایین | GP28: sd8 | GQ28: =GQ29+GQ23*COS(GP26) ->  | GR28: =GR29+GQ23*SIN(GP26) ->  | GU28: =GU27+GT11 -> -66 | GV28: -1.151917306 | GW28: =HB13+HB10*COS(GV28) ->  | GX28: =HC13-HB10*SIN(GV28) ->  | GY28: =SQRT(POWER((HB12-GW28),2)+POWER((HC12-GX28),2)) ->  | GZ28: =ABS(HB9-GY28) ->  | HB28: نقطه اول از خط اول | HC28: f5 | HD28: =#REF! ->  | HE28: =#REF! ->  | HO28: =-HK28+HP9 -> 0 | HP28: 0 | HS28: 0 | HT28: 0 | HU28: 18 | HW28: =HS28+2*(SIN(ATAN((HS12-HS11)/(HT12-HT11)))*(HT28-HT11)+COS(ATAN((HS12-HS11)/(HT12-HT11)))*(HS11-HS28))*COS(ATAN((HS12-HS11)/(HT12-HT11))) ->  | HX28: =HT28-2*(SIN(ATAN((HS12-HS11)/(HT12-HT11)))*(HT28-HT11)+COS(ATAN((HS12-HS11)/(HT12-HT11)))*(HS11-HS28))*SIN(ATAN((HS12-HS11)/(HT12-HT11))) ->  | HY28: 18 | NV28: ="نقشه بافت یقه شکاری با میل "&TEXT(0,NV43)&" بافت "&TEXT(0,NU44) -> نقشه بافت یقه شکاری با میل 2.5 بافت کشباف (دوتایی) | NY28: بزرگی فلش | NZ28: =NV49 -> 0.4816513761 | OA28: f4 | OB28: =NZ30 -> -31.83541667 | OC28: =OA30 -> 5 | OD28: =NY30 -> w6 | OF28: e6 | OG28: =TEXT(0,OG10)&" رج مثل رج قبل میبافیم" -> 9 رج مثل رج قبل میبافیم | OJ28: بزرگی فلش | OK28: =OG51 -> 0.3399892067 | OL28: f4 | OM28: =OK30 -> -30.08298611 | ON28: =OL30 -> 5 | OO28: =OJ30 -> m3 | OQ28: e6 | OR28: =TEXT(0,OR10)&" رج مثل رج قبل میبافیم" -> 9 رج مثل رج قبل میبافیم | OU28: بزرگی فلش | OV28: =OR51 -> 0.3399892067 | OW28: f4 | OX28: =OV30 -> -30.70277778 | OY28: =OW30 -> 5 | OZ28: =OU30 -> m3 | PC28: ="در اینجا تعداد دانه ها "&TEXT(0,PC12)&" میباشد " -> در اینجا تعداد دانه ها 77 میباشد | PF28: بزرگی فلش | PG28: =PC49 -> 0.3399892067 | PH28: f4 | PI28: =PG30 -> -31.32256944 | PJ28: =PH30 -> 5 | PK28: =PF30 -> n3 | PN28: ="در اینجا تعداد دانه ها "&TEXT(0,PN12)&" میباشد " -> در اینجا تعداد دانه ها 77 میباشد | PQ28: بزرگی فلش | PR28: =PN49 -> 0.3399892067 | PS28: f4 | PT28: =PR30 -> -30.82673611 | PU28: =PS30 -> 5 | PV28: =PQ30 -> n3 | PY28: نقاط خروجی | QI28: =BD98 -> 0 | QJ28: =BE98 -> 80.22779747 | QK28: 26' | QM28: =QI78 -> 0 | QN28: =QJ78 -> 80.22779747 | QO28: 26'' | QQ28: =QQ15+(QR7+QR8)*SIN(RADIANS(30)) -> -10.7 | QR28: =QR15-(QR7+QR8)*COS(RADIANS(30)) -> 48.24408062 | QS28: k18 | QX28: =QQ44 -> -13 | QY28: =QR44 -> 57.42779747 | QZ28: k34 | RB28: a10,a11,b1 | RC28: ="تعداد دانه ها "&TEXT(0,RC12)&"میباشد. در قسمت پشت و آستین هر"&TEXT(0,RC9)&" دانه را تبدیل به "&TEXT(0,RC10)&" دانه میکنیم " -> تعداد دانه ها 70میباشد. در قسمت پشت و آستین هر1 دانه را تبدیل به 1 دانه میکنیم | RF28: بزرگی فلش | RG28: =RC51 -> 0.3399892067 | RH28: f4 | RI28: =RG30 -> -31.9375 | RJ28: =RH30 -> 5 | RK28: =RF30 -> p3 | RN28: =RN11 -> 0.8564814815 | RO28: c1 | RU28: c6 | RV28: =RN26 -> 10 | RW28: پهنا افقی | SH28: =RN17 -> 0.8564814815 | SI28: c1 | SO28: c6 | SP28: =SH26 -> 10 | SQ28: پهنا افقی | TB28: =RN13 -> 0.8101851852 | TC28: c1 | TI28: c6 | TJ28: =TB26 -> 10 | TK28: پهنا افقی | TV28: =RN15 -> 0.8101851852 | TW28: c1 | UC28: c6 | UD28: =TV26 -> 10 | UE28: پهنا افقی | UP28: =RN19 -> 0.8564814815 | UQ28: c1 | UW28: c6 | UX28: =UP26 -> 10 | UY28: پهنا افقی | VJ28: =RN21 -> 0.8564814815 | VK28: c1 | VQ28: c6 | VR28: =VJ26 -> 10 | VS28: پهنا افقی
E29: فاصله گردن تا محل جدا شدن آستین در قسمت جلو (cm) b7 | F29: =ROUNDUP(SQRT(POWER(CI103-CI121,2)+POWER(CJ103-CJ121,2)),0) -> 16 | H29: a01 تعداد رج در یک سانت پشت | I29: =F6+0.3*I31*F6 -> 3.46031746 | L29: =ABS(ROUND(5*O33/(O33-(G46-2*O41)+0.001),0)) -> 12 | M29: =ABS(ROUND(5*(O33/(O33-(G46-F412*O41)+0.001)-1),0)) -> 4 | N29: =O33-(O33/L29)*(L29-M29)-(G46-2*O41) -> -30.66666667 | O29: =ROUNDDOWN(ABS(N29),0) -> 30 | Q29: =ABS(ROUND(4*S19/(S19-G46+0.001),0)) -> 95 | R29: =ABS(ROUND(4*(S19/(S19-G46+0.0001)-1),0)) -> 91 | S29: =S19-(S19/Q29)*(Q29-R29)-G46 -> -0.01500193323 | T29: =ROUNDDOWN(ABS(S29),0) -> 0 | W29: =ABS(ROUND(5*X15/(X15-X16+0.001),0)) -> 128 | X29: =ABS(ROUND(5*(X15/(X15-X16+0.0001)-1),0)) -> 123 | Y29: =X15-(X15/W29)*(W29-X29)-X16 -> -0.0078125 | Z29: =ROUNDDOWN(ABS(Y29),0) -> 0 | AC29: =ABS(ROUND(5*AD15/(AD15-AD16+0.001),0)) -> 105 | AD29: =ABS(ROUND(5*(AD15/(AD15-AD16+0.0001)-1),0)) -> 110 | AE29: =AD15-(AD15/AC29)*(AC29-AD29)-AD16 -> 0 | AF29: =ROUNDDOWN(ABS(AE29),0) -> 0 | AH29: 2.571428571 | AI29: 2.444444444 | AJ29: =(10/3)*((AM29/AL29)*(1/J6)-1) -> -0.4232804233 | AK29: =(100/68)*((AO29/AN29)*(1/J7)-1) -> 0.4201680672 | AL29: 13.5 | AM29: 33 | AN29: 14 | AO29: 36 | AP29: کشباف (یکی) | AQ29: 23 | AS29: کشباف (یکی) | AT29: 62 | AU29: 9 | CM29: =CI40 -> 5.1 | CN29: =CJ40 -> 109.1 | CO29: j6 | CQ29: =0.9*(CQ26-CQ24)+CQ24 -> 51.8175 | CR29: =CR27+0.5*(CR26-CR27) -> 55.4695 | CS29: d8 | CU29: =CQ26 -> 57.575 | CV29: =CR26 -> 60.9345 | CW29: d4 | DD29: =DB37+'طراحی همه الگوها'!U189 -> 52.3 | DE29: =DE15 -> 116.2 | DF29: 3 | DH29: =DH20 -> 25.8 | DI29: =DI20 -> 4.2 | DJ29: 16 | DL29: s11 | DM29: =DM36-'طراحی همه الگوها'!U197*SIN(DM17) -> 44.3981717 | DN29: =DN36-'طراحی همه الگوها'!U197*COS(DM17) -> 61.80600562 | DP29: =DM32 -> 0 | DQ29: =DN32 -> 71.8 | DR29: s16 | DT29: s'19 | DU29: =EC41+('متغیرها '!C20*'متغیرها '!U83)*COS(DM17+RADIANS(EC40)) -> 38.97359718 | DV29: =ED41-('متغیرها '!C20*'متغیرها '!U83)*SIN(DM17+RADIANS(EC40)) -> 57.68889787 | DX29: =DU18 -> 34.94308853 | DY29: =DV18 -> 61.71940652 | DZ29: s'10 | EE29: =DB37+'طراحی همه الگوها'!U216 -> 110 | EF29: =EF20 -> 109.6 | EG29: 10 | EO29: 1 | EP29: =DM19 -> 0 | EQ29: ='طراحی همه الگوها'!U233+ER39+DM44 -> 109.1 | ET29: =ET28+'طراحی همه الگوها'!U242 -> 33.1 | EU29: =EU28 -> 41.6 | EV29: 16 | FN29: s''18 | FO29: =FO28+0.5*(FO12-FO28) -> 2.43846 | FP29: =FP28-0.3*(FP28-FP12) -> 101.066605 | GA29: 28 | GB29: =GB12+GE12*SIN(RADIANS(GA29)+GA14) ->  | GC29: =GC12+GE12*COS(RADIANS(GA29)+GA14) ->  | GD29: =IF(GB13>GB29,ATAN((GC13-GC29)/(GB13-GB29)),ATAN((GC13-GC29)/(GB29-GB13))) ->  | GE29: =IF(GB13>GB29,(GB13-GB29)/COS(GD29),(GB29-GB13)/COS(GD29)) ->  | GG29: 1 | GH29: 2 | GI29: نقطه 11 | GJ29: نقطه قبل از چرخش | GK29: =IF(GH29>GH18,IF(GG29>GG18,GG18+SQRT(POWER(GG29-GG18,2)+POWER(GH29-GH18,2))*COS(ATAN((GH29-GH18)/(GG29-GG18+0.000123))+GH16),GG18-SQRT(POWER(GG29-GG18,2)+POWER(GH29-GH18,2))*COS(ATAN((GH29-GH18)/(GG18-GG29+0.000123))-GH16)),IF(GG29>GG18,GG18+SQRT(POWER(GG29-GG18,2)+POWER(GH29-GH18,2))*COS(ATAN((GH18-GH29)/(GG29-GG18+0.000123))-GH16),GG18-SQRT(POWER(GG29-GG18,2)+POWER(GH29-GH18,2))*COS(ATAN((GH18-GH29)/(GG18-GG29+0.000123))+GH16))) -> 0.6182452327 | GL29: =IF(GH29>GH18,IF(GG29>GG18,GH18+SQRT(POWER(GG29-GG18,2)+POWER(GH29-GH18,2))*SIN(ATAN((GH29-GH18)/(GG29-GG18+0.000123))+GH16),GH18+SQRT(POWER(GG29-GG18,2)+POWER(GH29-GH18,2))*SIN(ATAN((GH29-GH18)/(GG18-GG29+0.000123))-GH16)),IF(GG29>GG18,GH18-SQRT(POWER(GG29-GG18,2)+POWER(GH29-GH18,2))*SIN(ATAN((GH18-GH29)/(GG29-GG18+0.000123))-GH16),GH18-SQRT(POWER(GG29-GG18,2)+POWER(GH29-GH18,2))*SIN(ATAN((GH18-GH29)/(GG18-GG29+0.000123))+GH16))) -> 0.6987463478 | GM29: نقطه چرخیده | GO29: نقطه خروجی میانه | GQ29: =GQ21+GQ24*GR26*SIN(GP26)/GR25 ->  | GR29: =GR21-GQ24*GR26*COS(GP26)/GR25 ->  | GU29: =GU28+GT11 -> -64 | GV29: -1.117010721 | GW29: =HB13+HB10*COS(GV29) ->  | GX29: =HC13-HB10*SIN(GV29) ->  | GY29: =SQRT(POWER((HB12-GW29),2)+POWER((HC12-GX29),2)) ->  | GZ29: =ABS(HB9-GY29) ->  | HB29: نقطه دوم از خط اول | HC29: f6 | HD29: =#REF! ->  | HE29: =#REF! ->  | HO29: =-HK29+HP9 -> 0 | HP29: 0 | HS29: 0 | HT29: 0 | HU29: 19 | HW29: =HS29+2*(SIN(ATAN((HS12-HS11)/(HT12-HT11)))*(HT29-HT11)+COS(ATAN((HS12-HS11)/(HT12-HT11)))*(HS11-HS29))*COS(ATAN((HS12-HS11)/(HT12-HT11))) ->  | HX29: =HT29-2*(SIN(ATAN((HS12-HS11)/(HT12-HT11)))*(HT29-HT11)+COS(ATAN((HS12-HS11)/(HT12-HT11)))*(HS11-HS29))*SIN(ATAN((HS12-HS11)/(HT12-HT11))) ->  | HY29: 19 | NV29: ="بافت جادکمه: "&TEXT(0,NU45)&"- "&TEXT(0,'مساله سوم مدل 13'!A478) -> بافت جادکمه: جودانه- بچگانه 4 ساله | NY29: نقطه ورودی سر فلش | NZ29: مولفه افقی | OA29: مولفه عمودی | OB29: =NZ32 -> -32.31706804 | OC29: =OA32 -> 5.240825688 | OD29: =NY32 -> f3 | OG29: ="در اینجا تعداد دانه ها "&TEXT(0,OG17)&" میباشد " -> در اینجا تعداد دانه ها 77 میباشد | OJ29: نقطه ورودی سر فلش | OK29: مولفه افقی | OL29: مولفه عمودی | OM29: =OK32 -> -30.42297532 | ON29: =OL32 -> 5.169994603 | OO29: =OJ32 -> f3 | OR29: ="در اینجا تعداد دانه ها "&TEXT(0,OR17)&" میباشد " -> در اینجا تعداد دانه ها 77 میباشد | OU29: نقطه ورودی سر فلش | OV29: مولفه افقی | OW29: مولفه عمودی | OX29: =OV32 -> -31.04276698 | OY29: =OW32 -> 5.169994603 | OZ29: =OU32 -> f3 | PB29: a10,a11,b1 | PC29: ="تعداد دانه"&TEXT(0,PC12)&"میباشد. هر"&TEXT(0,PC9)&" دانه را تبدیل به "&TEXT(0,PC10)&" دانه میکنیم تا تعداد دانه ها "&TEXT(0,PC13)&" شود" -> تعداد دانه77میباشد. هر51 دانه را تبدیل به 49 دانه میکنیم تا تعداد دانه ها 74 شود | PF29: نقطه ورودی سر فلش | PG29: مولفه افقی | PH29: مولفه عمودی | PI29: =PG32 -> -31.66255865 | PJ29: =PH32 -> 5.169994603 | PK29: =PF32 -> f3 | PM29: a10,a11,b1 | PN29: ="تعداد دانه"&TEXT(0,PN12)&"میباشد. هر"&TEXT(0,PN9)&" دانه را تبدیل به "&TEXT(0,PN10)&" دانه میکنیم تا تعداد دانه ها "&TEXT(0,PN13)&" شود" -> تعداد دانه77میباشد. هر51 دانه را تبدیل به 49 دانه میکنیم تا تعداد دانه ها 74 شود | PQ29: نقطه ورودی سر فلش | PR29: مولفه افقی | PS29: مولفه عمودی | PT29: =PR32 -> -31.16672532 | PU29: =PS32 -> 5.169994603 | PV29: =PQ32 -> f3 | PX29: =PY5 -> -45 | PY29: =PY6 -> 5 | PZ29: t1 | QB29: بزرگی خط عمودی دانه | QC29: =PY11 -> 0.5 | QD29: f9 | QG29: فلش به سمت بالا | QK29: پایین پیراهن | QM29: =QI78 -> 0 | QN29: =QJ78 -> 80.22779747 | QO29: 26'' | QQ29: =2*QQ15-QQ28 -> -15.3 | QR29: =QR28 -> 48.24408062 | QS29: k19 | QX29: =QQ43 -> -15.6 | QY29: =QR43 -> 56.73112957 | QZ29: k33 | RB29: a10,a11,b1 | RC29: =" تا تعداد دانه ها "&TEXT(0,RC13)&" شود" -> تا تعداد دانه ها 72 شود | RF29: نقطه ورودی سر فلش | RG29: مولفه افقی | RH29: مولفه عمودی | RI29: =RG32 -> -32.27748921 | RJ29: =RH32 -> 5.169994603 | RK29: =RF32 -> f3 | RN29: =RN12 -> 0.5928016937 | RO29: c2 | RQ29: =RM41 -> 4.282407407 | RR29: =RN41 -> -20 | RS29: =RO41 -> 5 | RY29: =RU41 -> -37.03599153 | RZ29: =RV41 -> 0 | SA29: =RW41 -> 5 | SC29: =RU66 -> -38.81439661 | SD29: =RV66 -> 0 | SE29: =RW66 -> 2 | SH29: =RN18 -> 0.5928016937 | SI29: c2 | SK29: =SG41 -> 4.282407407 | SL29: =SH41 -> -20 | SM29: =SI41 -> 5 | SS29: =SO41 -> -37.03599153 | ST29: =SP41 -> 0 | SU29: =SQ41 -> 5 | SW29: =SO66 -> -38.81439661 | SX29: =SP66 -> 0 | SY29: =SQ66 -> 2 | TB29: =RN14 -> 0.5779816514 | TC29: c2 | TE29: =TA41 -> 4.050925926 | TF29: =TB41 -> -20 | TG29: =TC41 -> 5 | TM29: =TI41 -> -37.11009174 | TN29: =TJ41 -> 0 | TO29: =TK41 -> 5 | TQ29: =TI66 -> -38.8440367 | TR29: =TJ66 -> 0 | TS29: =TK66 -> 2 | TV29: =RN16 -> 0.5779816514 | TW29: c2 | TY29: =TU41 -> 4.050925926 | TZ29: =TV41 -> -20 | UA29: =TW41 -> 5 | UG29: =UC41 -> -37.11009174 | UH29: =UD41 -> 0 | UI29: =UE41 -> 5 | UK29: =UC66 -> -38.8440367 | UL29: =UD66 -> 0 | UM29: =UE66 -> 2 | UP29: =RN20 -> 0.5928016937 | UQ29: c2 | US29: =UO41 -> 4.282407407 | UT29: =UP41 -> -20 | UU29: =UQ41 -> 5 | VA29: =UW41 -> -37.03599153 | VB29: =UX41 -> 0 | VC29: =UY41 -> 5 | VE29: =UW66 -> -38.81439661 | VF29: =UX66 -> 0 | VG29: =UY66 -> 2 | VJ29: =RN22 -> 0.5928016937 | VK29: c2 | VM29: =VI41 -> 4.282407407 | VN29: =VJ41 -> -20 | VO29: =VK41 -> 5 | VU29: =VQ41 -> -37.03599153 | VV29: =VR41 -> 0 | VW29: =VS41 -> 5 | VY29: =VQ66 -> -38.81439661 | VZ29: =VR66 -> 0 | WA29: =VS66 -> 2
E30: تعداد دانه های اضافه شده زیر بغل b8 | F30: =F15 -> 9 | H30: تعداد دانه در یک سانت پشتb01 | I30: =F7+0.68*I32*F7 -> 2.468571429 | L30: =IF(O33+2*O41-G46=0,1,IF(O25<=2,L25,IF(O26<=2,L26,IF(O27<=2,L27,IF(O28<=2,L28,L29))))) -> 5 | M30: =IF(O33+2*O41-G46=0,1,IF(O25<=2,M25,IF(O26<=2,M26,IF(O27<=2,M27,IF(O28<=2,M28,M29))))) -> 3 | Q30: =ABS(ROUND(5*S19/(S19-G46+0.001),0)) -> 119 | R30: =ABS(ROUND(5*(S19/(S19-G46+0.0001)-1),0)) -> 114 | S30: =S19-(S19/Q30)*(Q30-R30)-G46 -> -0.008169815943 | T30: =ROUNDDOWN(ABS(S30),0) -> 0 | W30: =IF(X33+2*F25-G46=0,1,IF(Z25<=2,W25,IF(Z26<=2,W26,IF(Z27<=2,W27,IF(Z28<=2,W28,W29))))) -> 51 | X30: =IF(X33+2*F25-G46=0,1,IF(Z25<=2,X25,IF(Z26<=2,X26,IF(Z27<=2,X27,IF(Z28<=2,X28,X29))))) -> 49 | AC30: =IF(AD33+2*L25-M46=0,1,IF(AF25<=2,AC25,IF(AF26<=2,AC26,IF(AF27<=2,AC27,IF(AF28<=2,AC28,AC29))))) -> 1 | AD30: =IF(AD33+2*L25-M46=0,1,IF(AF25<=2,AD25,IF(AF26<=2,AD26,IF(AF27<=2,AD27,IF(AF28<=2,AD28,AD29))))) -> 1 | AH30: 2.571428571 | AI30: 2.888888889 | AJ30: =(10/3)*((AM30/AL30)*(1/J6)-1) -> 0.1058201058 | AK30: =(100/68)*((AO30/AN30)*(1/J7)-1) -> 0.4201680672 | AL30: 13.5 | AM30: 39 | AN30: 14 | AO30: 36 | AP30: پیچ با فاصله | AQ30: 24 | AS30: پیچ با فاصله | AT30: 62 | AU30: 35 | CM30: =CI42 -> 2 | CN30: =CJ42 -> 94.8 | CO30: j8 | CQ30: =0.7*(CQ26-CQ24)+CQ24 -> 40.3025 | CR30: =CR27+0.1*(CR26-CR27) -> 51.0975 | CS30: d9 | DD30: =DB37+'طراحی همه الگوها'!U189 -> 52.3 | DE30: =DE15-'طراحی همه الگوها'!U198 -> 102.9 | DF30: 14 | DH30: =DH14 -> 25.8 | DI30: =DI14 -> 25.8 | DJ30: 17 | DL30: s13 | DM30: =DM19+'طراحی همه الگوها'!U189-0.5*'طراحی همه الگوها'!U190 -> 45.65 | DN30: =DM45+DM44 -> 0 | DT30: 2' | DU30: =DM19 -> 0 | DV30: =EC35+DM44 -> 0 | DX30: =DU29 -> 38.97359718 | DY30: =DV29 -> 57.68889787 | DZ30: s'19 | EE30: =EI15 -> 118.8 | EF30: =EJ15 -> 109.6 | EG30: 13 | EI30: =DB37 -> 0 | EJ30: =EF13 -> 109.1 | EK30: 1 | EO30: 3 | EP30: =EP29-'طراحی همه الگوها'!U234 -> -6.3 | EQ30: =EQ29-'طراحی همه الگوها'!U232 -> -10.7 | ET30: =ET28+'طراحی همه الگوها'!U242 -> 33.1 | EU30: =EU28-'طراحی همه الگوها'!U245 -> 29.1 | EV30: 19 | EX30: =EP36 -> 48.01255044 | EY30: =EQ36 -> 61.08744956 | EZ30: 10 | FF30: =FF13+'طراحی همه الگوها'!U260+'طراحی همه الگوها'!U262 -> 62.1 | FG30: =FG25+FC44 -> 70.2 | FH30: 13 | FJ30: =FJ24 -> 29.9 | FK30: =FG17 -> 60.4 | FL30: 21 | FN30: 2 | FO30: =FO14 -> 0 | FP30: =FC42+DM44 -> 0 | FR30: =FO24 -> 14.115 | FS30: 60.84250015 | FT30: 41شبیه ساز | GA30: 30 | GB30: =GB12+GE12*SIN(RADIANS(GA30)+GA14) ->  | GC30: =GC12+GE12*COS(RADIANS(GA30)+GA14) ->  | GD30: =IF(GB13>GB30,ATAN((GC13-GC30)/(GB13-GB30)),ATAN((GC13-GC30)/(GB30-GB13))) ->  | GE30: =IF(GB13>GB30,(GB13-GB30)/COS(GD30),(GB30-GB13)/COS(GD30)) ->  | GG30: 1 | GH30: 2 | GI30: نقطه 12 | GJ30: نقطه قبل از چرخش | GK30: =IF(GH30>GH18,IF(GG30>GG18,GG18+SQRT(POWER(GG30-GG18,2)+POWER(GH30-GH18,2))*COS(ATAN((GH30-GH18)/(GG30-GG18+0.000123))+GH16),GG18-SQRT(POWER(GG30-GG18,2)+POWER(GH30-GH18,2))*COS(ATAN((GH30-GH18)/(GG18-GG30+0.000123))-GH16)),IF(GG30>GG18,GG18+SQRT(POWER(GG30-GG18,2)+POWER(GH30-GH18,2))*COS(ATAN((GH18-GH30)/(GG30-GG18+0.000123))-GH16),GG18-SQRT(POWER(GG30-GG18,2)+POWER(GH30-GH18,2))*COS(ATAN((GH18-GH30)/(GG18-GG30+0.000123))+GH16))) -> 0.6182452327 | GL30: =IF(GH30>GH18,IF(GG30>GG18,GH18+SQRT(POWER(GG30-GG18,2)+POWER(GH30-GH18,2))*SIN(ATAN((GH30-GH18)/(GG30-GG18+0.000123))+GH16),GH18+SQRT(POWER(GG30-GG18,2)+POWER(GH30-GH18,2))*SIN(ATAN((GH30-GH18)/(GG18-GG30+0.000123))-GH16)),IF(GG30>GG18,GH18-SQRT(POWER(GG30-GG18,2)+POWER(GH30-GH18,2))*SIN(ATAN((GH18-GH30)/(GG30-GG18+0.000123))-GH16),GH18-SQRT(POWER(GG30-GG18,2)+POWER(GH30-GH18,2))*SIN(ATAN((GH18-GH30)/(GG18-GG30+0.000123))+GH16))) -> 0.6987463478 | GM30: نقطه چرخیده | GU30: =GU29+GT11 -> -62 | GV30: -1.082104136 | GW30: =HB13+HB10*COS(GV30) ->  | GX30: =HC13-HB10*SIN(GV30) ->  | GY30: =SQRT(POWER((HB12-GW30),2)+POWER((HC12-GX30),2)) ->  | GZ30: =ABS(HB9-GY30) ->  | HB30: نقطه اول از خط دوم | HC30: f7 | HD30: =#REF! ->  | HE30: =#REF! ->  | HO30: =-HK30+HP9 -> 0 | HP30: 0 | HS30: =HF30 -> 0 | HT30: =HG30 -> 0 | HU30: 20 | HW30: =HS30+2*(SIN(ATAN((HS12-HS11)/(HT12-HT11)))*(HT30-HT11)+COS(ATAN((HS12-HS11)/(HT12-HT11)))*(HS11-HS30))*COS(ATAN((HS12-HS11)/(HT12-HT11))) ->  | HX30: =HT30-2*(SIN(ATAN((HS12-HS11)/(HT12-HT11)))*(HT30-HT11)+COS(ATAN((HS12-HS11)/(HT12-HT11)))*(HS11-HS30))*SIN(ATAN((HS12-HS11)/(HT12-HT11))) ->  | HY30: 20 | NU30: متغیرهای ورودی | NY30: w6 | NZ30: =NU55 -> -31.83541667 | OA30: =NV55 -> 5 | OF30: =OF11 -> e7 | OG30: =TEXT(0,OG11)&" رج مثل رج قبل میبافیم" -> 0 رج مثل رج قبل میبافیم | OJ30: m3 | OK30: =OF62 -> -30.08298611 | OL30: =OG62 -> 5 | OQ30: =OQ11 -> e7 | OR30: =TEXT(0,OR11)&" رج مثل رج قبل میبافیم" -> 0 رج مثل رج قبل میبافیم | OU30: m3 | OV30: =OQ62 -> -30.70277778 | OW30: =OR62 -> 5 | PC30: ="نقشه بافت یقه ب ب غیر مسطح تا خط مرکزی جلو با میل "&TEXT(0,PB19)&" بافت "&TEXT(0,PB21) -> نقشه بافت یقه ب ب غیر مسطح تا خط مرکزی جلو با میل 2.5 بافت همه از زیر | PF30: n3 | PG30: =PB62 -> -31.32256944 | PH30: =PC62 -> 5 | PN30: ="نقشه بافت یقه ب ب معمولی تا خط مرکزی جلو بافت "&TEXT(0,PM21)&" با میل "&TEXT(0,PM19) -> نقشه بافت یقه ب ب معمولی تا خط مرکزی جلو بافت همه از زیر با میل 2.5 | PQ30: n3 | PR30: =PM62 -> -30.82673611 | PS30: =PN62 -> 5 | PX30: =PX29+3.5 -> -41.5 | PY30: =PY29 -> 5 | PZ30: t2 | QB30: بزرگی فلش دانه | QC30: =PY12 -> 0.3 | QD30: f10 | QE30: =QC37 -> -42.55 | QF30: =QD37 -> 7.428571429 | QG30: =QB37 -> f8 | QI30: =FF166 -> 16.72553266 | QJ30: =FG166 -> 50.14250015 | QK30: شیفت7 | QQ30: =QQ15+(QR7+QR8)*SIN(RADIANS(60)) -> -9.016283143 | QR30: =QR15-(QR7+QR8)*COS(RADIANS(60)) -> 49.92779747 | QS30: k20 | QX30: =QQ41 -> -18.2 | QY30: =QR41 -> 52.22779747 | QZ30: k31 | RC30: ="یقه انگلیسی بافت "&TEXT(0,RB22)&" با میل "&TEXT(0,RB20) -> یقه انگلیسی بافت جودانه با میل 2.5 | RF30: p3 | RG30: =RB62 -> -31.9375 | RH30: =RC62 -> 5 | RQ30: =RQ29 -> 4.282407407 | RR30: =RN38 -> -40.15525759 | RU30: پهنا عمودی | RV30: =IF(AND(ABS(RY87-RY150)>0,(RY86-RY26)>0,(2*RV27-(RY86-RY26))>(RU66-RU65)),"پهنای عمودی توری کوچکتر از انتخاب شما است "," ") ->  | RW30: خطا : | RY30: =RY29 -> -37.03599153 | RZ30: =RV38 -> 10.27777778 | SC30: =SC29 -> -38.81439661 | SD30: =RV38 -> 10.27777778 | SK30: =SK29 -> 4.282407407 | SL30: =SH38 -> -40.15525759 | SO30: پهنا عمودی | SP30: =IF(AND(ABS(SS87-SS150)>0,(SS86-SS26)>0,(2*SP27-(SS86-SS26))>(SO66-SO65)),"پهنای عمودی توری کوچکتر از انتخاب شما است "," ") ->  | SQ30: خطا : | SS30: =SS29 -> -37.03599153 | ST30: =SP38 -> 10.27777778 | SW30: =SW29 -> -38.81439661 | SX30: =SP38 -> 10.27777778 | TE30: =TE29 -> 4.050925926 | TF30: =TB38 -> -40.2293578 | TI30: پهنا عمودی | TJ30: =IF(AND(ABS(TM87-TM150)>0,(TM86-TM26)>0,(2*TJ27-(TM86-TM26))>(TI66-TI65)),"پهنای عمودی توری کوچکتر از انتخاب شما است "," ") ->  | TK30: خطا : | TM30: =TM29 -> -37.11009174 | TN30: =TJ38 -> 9.722222222 | TQ30: =TQ29 -> -38.8440367 | TR30: =TJ38 -> 9.722222222 | TY30: =TY29 -> 4.050925926 | TZ30: =TV38 -> -40.2293578 | UC30: پهنا عمودی | UD30: =IF(AND(ABS(UG87-UG150)>0,(UG86-UG26)>0,(2*UD27-(UG86-UG26))>(UC66-UC65)),"پهنای عمودی توری کوچکتر از انتخاب شما است "," ") ->  | UE30: خطا : | UG30: =UG29 -> -37.11009174 | UH30: =UD38 -> 9.722222222 | UK30: =UK29 -> -38.8440367 | UL30: =UD38 -> 9.722222222 | US30: =US29 -> 4.282407407 | UT30: =UP38 -> -40.15525759 | UW30: پهنا عمودی | UX30: =IF(AND(ABS(VA87-VA150)>0,(VA86-VA26)>0,(2*UX27-(VA86-VA26))>(UW66-UW65)),"پهنای عمودی توری کوچکتر از انتخاب شما است "," ") ->  | UY30: خطا : | VA30: =VA29 -> -37.03599153 | VB30: =UX38 -> 10.27777778 | VE30: =VE29 -> -38.81439661 | VF30: =UX38 -> 10.27777778 | VM30: =VM29 -> 4.282407407 | VN30: =VJ38 -> -40.15525759 | VQ30: پهنا عمودی | VR30: =IF(AND(ABS(VU87-VU150)>0,(VU86-VU26)>0,(2*VR27-(VU86-VU26))>(VQ66-VQ65)),"پهنای عمودی توری کوچکتر از انتخاب شما است "," ") ->  | VS30: خطا : | VU30: =VU29 -> -37.03599153 | VV30: =VR38 -> 10.27777778 | VY30: =VY29 -> -38.81439661 | VZ30: =VR38 -> 10.27777778
E31: تعداد دانه های سرتاسر آستین در قسمت زیر بغل b20 | F31: =F16 -> 73 | H31: جمع شوندگی عمودی بافت پشت f02 | I31: =OFFSET(AJ6,I33,0) -> 0.1940035273 | N31: یقه شکاری | Q31: =IF(S19=G46,1,IF(T26<=2,Q26,IF(T27<=2,Q27,IF(T28<=2,Q28,IF(T29<=2,Q29,Q30))))) -> 48 | R31: =IF(S19=G46,1,IF(T26<=2,R26,IF(T27<=2,R27,IF(T28<=2,R28,IF(T29<=2,R29,R30))))) -> 46 | W31: یقه ب ب غیر مسطح تا خط مرکزی جلو | Z31: یقه ب ب مسطح تا خط مرکزی جلو | AC31: یقه انگلیسی | AH31: =AO31/AN31 -> 2.857142857 | AI31: =AM31/AL31 -> 2.888888889 | AJ31: =(10/3)*((AM31/AL31)*(1/J6)-1) -> 0.1058201058 | AK31: =(100/68)*((AO31/AN31)*(1/J7)-1) -> 0.6302521008 | AL31: 13.5 | AM31: 39 | AN31: 3.5 | AO31: 10 | AP31: پیچ متراکم | AQ31: 25 | AS31: پیچ متراکم | AT31: 83 | AU31: 35 | CQ31: =CQ24 -> 0 | CR31: =CR15-1-0.013*(CR25-CR27) -> 58.609435 | CS31: j'2 | DL31: s14 | DM31: =DM13+DM42*COS(DM40) -> 4.87692 | DN31: =DN13-DM42*SIN(DM40) -> 96.45035 | DP31: =DP25 -> 4.87692 | DQ31: =DQ25 -> 96.45035 | DR31: s14 | EE31: =DB37+'طراحی همه الگوها'!U211+'طراحی همه الگوها'!U219 -> 119.8 | EF31: =EF20 -> 109.6 | EG31: 12 | EI31: =DB37+'طراحی همه الگوها'!U216 -> 110 | EJ31: =EF33 -> 109.1 | EK31: 3 | EO31: 5 | EP31: =EP29+'طراحی همه الگوها'!U235 -> 5.7 | EQ31: =EQ29-'طراحی همه الگوها'!U233 -> 0 | EX31: =EP37 -> 40.51721856 | EY31: =EQ37 -> 53.59211768 | EZ31: 11 | FF31: =FF13 -> 0 | FG31: =FG30 -> 70.2 | FH31: 12 | FJ31: =FJ24 -> 29.9 | FK31: =FK24 -> 48.8 | FL31: 22 | FN31: s''12 | FO31: =FO30 -> 0 | FP31: =FP24 -> 60.84250015 | FR31: 21.0075 | FS31: 42.58975011 | FT31: 41' | GA31: 32 | GB31: =GB12+GE12*SIN(RADIANS(GA31)+GA14) ->  | GC31: =GC12+GE12*COS(RADIANS(GA31)+GA14) ->  | GD31: =IF(GB13>GB31,ATAN((GC13-GC31)/(GB13-GB31)),ATAN((GC13-GC31)/(GB31-GB13))) ->  | GE31: =IF(GB13>GB31,(GB13-GB31)/COS(GD31),(GB31-GB13)/COS(GD31)) ->  | GG31: 1 | GH31: 2 | GI31: نقطه 13 | GJ31: نقطه قبل از چرخش | GK31: =IF(GH31>GH18,IF(GG31>GG18,GG18+SQRT(POWER(GG31-GG18,2)+POWER(GH31-GH18,2))*COS(ATAN((GH31-GH18)/(GG31-GG18+0.000123))+GH16),GG18-SQRT(POWER(GG31-GG18,2)+POWER(GH31-GH18,2))*COS(ATAN((GH31-GH18)/(GG18-GG31+0.000123))-GH16)),IF(GG31>GG18,GG18+SQRT(POWER(GG31-GG18,2)+POWER(GH31-GH18,2))*COS(ATAN((GH18-GH31)/(GG31-GG18+0.000123))-GH16),GG18-SQRT(POWER(GG31-GG18,2)+POWER(GH31-GH18,2))*COS(ATAN((GH18-GH31)/(GG18-GG31+0.000123))+GH16))) -> 0.6182452327 | GL31: =IF(GH31>GH18,IF(GG31>GG18,GH18+SQRT(POWER(GG31-GG18,2)+POWER(GH31-GH18,2))*SIN(ATAN((GH31-GH18)/(GG31-GG18+0.000123))+GH16),GH18+SQRT(POWER(GG31-GG18,2)+POWER(GH31-GH18,2))*SIN(ATAN((GH31-GH18)/(GG18-GG31+0.000123))-GH16)),IF(GG31>GG18,GH18-SQRT(POWER(GG31-GG18,2)+POWER(GH31-GH18,2))*SIN(ATAN((GH18-GH31)/(GG31-GG18+0.000123))-GH16),GH18-SQRT(POWER(GG31-GG18,2)+POWER(GH31-GH18,2))*SIN(ATAN((GH18-GH31)/(GG18-GG31+0.000123))+GH16))) -> 0.6987463478 | GM31: نقطه چرخیده | GP31: رسم باکس زیپ دامن-باکس چپ | GQ31: مولفه افقی | GR31: مولفه عمودی | GU31: =GU30+GT11 -> -60 | GV31: -1.047197551 | GW31: =HB13+HB10*COS(GV31) ->  | GX31: =HC13-HB10*SIN(GV31) ->  | GY31: =SQRT(POWER((HB12-GW31),2)+POWER((HC12-GX31),2)) ->  | GZ31: =ABS(HB9-GY31) ->  | HB31: نقطه دوم از خط دوم | HC31: f8 | HD31: =#REF! ->  | HE31: =#REF! ->  | HO31: =-HK31+HP9 -> 0 | HP31: 0 | HS31: 0 | HT31: 0 | HU31: 21 | HW31: =HS31+2*(SIN(ATAN((HS12-HS11)/(HT12-HT11)))*(HT31-HT11)+COS(ATAN((HS12-HS11)/(HT12-HT11)))*(HS11-HS31))*COS(ATAN((HS12-HS11)/(HT12-HT11))) ->  | HX31: =HT31-2*(SIN(ATAN((HS12-HS11)/(HT12-HT11)))*(HT31-HT11)+COS(ATAN((HS12-HS11)/(HT12-HT11)))*(HS11-HS31))*SIN(ATAN((HS12-HS11)/(HT12-HT11))) ->  | HY31: =HU31 -> 21 | NU31: Xw1 | NV31: ='متغیرها '!C879-20 -> -35 | NW31: جابجایی افقی کل نقشه | NY31: f2 | NZ31: =NZ30-1*NZ28 -> -32.31706804 | OA31: =OA30-NZ27*NZ28 -> 4.759174312 | OB31: =NZ30 -> -31.83541667 | OC31: =OA30 -> 5 | OD31: =NY30 -> w6 | OF31: =OF12 -> e8 | OG31: =TEXT(0,OG12)&" رج مثل رج قبل میبافیم" -> -4 رج مثل رج قبل میبافیم | OJ31: f2 | OK31: =OK30-1*OK28 -> -30.42297532 | OL31: =OL30-OK27*OK28 -> 4.830005397 | OM31: =OK30 -> -30.08298611 | ON31: =OL30 -> 5 | OO31: =OJ30 -> m3 | OQ31: =OQ12 -> e8 | OR31: =TEXT(0,OR12)&" رج مثل رج قبل میبافیم" -> -4 رج مثل رج قبل میبافیم | OU31: f2 | OV31: =OV30-1*OV28 -> -31.04276698 | OW31: =OW30-OV27*OV28 -> 4.830005397 | OX31: =OV30 -> -30.70277778 | OY31: =OW30 -> 5 | OZ31: =OU30 -> m3 | PB31: b2 | PC31: =TEXT(0,PC15)&"دانه" -> 0دانه | PF31: f2 | PG31: =PG30-1*PG28 -> -31.66255865 | PH31: =PH30-PG27*PG28 -> 4.830005397 | PI31: =PG30 -> -31.32256944 | PJ31: =PH30 -> 5 | PK31: =PF30 -> n3 | PM31: b2 | PN31: =TEXT(0,PN15)&"دانه" -> 0دانه | PQ31: f2 | PR31: =PR30-1*PR28 -> -31.16672532 | PS31: =PS30-PR27*PR28 -> 4.830005397 | PT31: =PR30 -> -30.82673611 | PU31: =PS30 -> 5 | PV31: =PQ30 -> n3 | PX31: =PX30 -> -41.5 | PY31: =PY30+PY7 -> 6.428571429 | PZ31: t3 | QB31: زاویه فلش دانه | QC31: =PY13 -> 0.75 | QD31: f11 | QE31: =QC34 -> -42.55 | QF31: =QD34 -> 6.428571429 | QG31: =QB34 -> t4 | QI31: =FF169 -> 8.310456 | QJ31: =FG169 -> 49.8 | QK31: شیفت50 | QM31: =QI78 -> 0 | QN31: =QJ78 -> 80.22779747 | QO31: 26'' | QQ31: =2*QQ15-QQ30 -> -16.98371686 | QR31: =QR30 -> 49.92779747 | QS31: k21 | QX31: =QQ39 -> -17.5033321 | QY31: =QR39 -> 49.62779747 | QZ31: k29 | RB31: d8 | RC31: =TEXT(0,RC11)&" دانه جلوانگلیسی" -> 14 دانه جلوانگلیسی | RF31: f2 | RG31: =RG30-1*RG28 -> -32.27748921 | RH31: =RH30-RG27*RG28 -> 4.830005397 | RI31: =RG30 -> -31.9375 | RJ31: =RH30 -> 5 | RK31: =RF30 -> p3 | RN31: محاسبات رسم عمودی | RV31: =RN29 -> 0.5928016937 | RW31: c1 | SH31: محاسبات رسم عمودی | SP31: =SH29 -> 0.5928016937 | SQ31: c1 | TB31: محاسبات رسم عمودی | TJ31: =TB29 -> 0.5779816514 | TK31: c1 | TV31: محاسبات رسم عمودی | UD31: =TV29 -> 0.5779816514 | UE31: c1 | UP31: محاسبات رسم عمودی | UX31: =UP29 -> 0.5928016937 | UY31: c1 | VJ31: محاسبات رسم عمودی | VR31: =VJ29 -> 0.5928016937 | VS31: c1
E32: فاصله زیر بغل تا پایین لباس (cm) b9 | F32: =ROUND(AX113,0) -> 20 | H32: جمع شوندگی افقی بافت پشت f03 | I32: =OFFSET(AJ6,I33,1) -> 0.04201680672 | N32: بافت انتخابی | Q32: یقه شومیزیه نوک تیز تا خط جادکمه | T32: یقه شومیزیه معمولی تا خط جادکمه | W32: بافت انتخابی | Z32: بافت انتخابی | AC32: بافت انتخابی | AH32: 4 | AI32: 2.518518519 | AJ32: =(10/3)*((AM32/AL32)*(1/J6)-1) -> -0.3350970018 | AK32: =(100/68)*((AO32/AN32)*(1/J7)-1) -> 1.470588235 | AL32: 13.5 | AM32: 34 | AN32: 9 | AO32: 36 | AP32: کشباف سه تایی | AQ32: 26 | AS32: کشباف سه تایی | AT32: 167 | AU32: 13 | CM32: =CI42 -> 2 | CN32: =CJ42 -> 94.8 | CO32: j8 | DD32: =DD29 -> 52.3 | DE32: =DE15 -> 116.2 | DF32: 3 | DH32: =DH22 -> 45.3 | DI32: =DE14 -> 0 | DJ32: 18 | DL32: s16 | DM32: =DM15 -> 0 | DN32: =DN15 -> 71.8 | DP32: =DP31+0.32*(DP34-DP31) -> 13.62405288 | DQ32: =DQ34+0.5*(DQ31-DQ34) -> 85.32809278 | DX32: =DX30 -> 38.97359718 | DY32: =DY30 -> 57.68889787 | DZ32: s'19 | EB32: شیفت افقی مچ | EC32: =EE20+10 -> 120 | EE32: =EE31 -> 119.8 | EF32: =EF13 -> 109.1 | EG32: 11 | EO32: 6 | EP32: =EP30+EO25*COS(RADIANS('متغیرها '!C26)) -> 4.285473068 | EQ32: =EQ30-EO25*SIN(RADIANS('متغیرها '!C26)) -> -11.25476114 | ET32: =ET28+'طراحی همه الگوها'!U242 -> 33.1 | EU32: =EU28+'طراحی همه الگوها'!U244 -> 54.1 | EV32: 18 | FF32: =FF13 -> 0 | FG32: =FG31+'طراحی همه الگوها'!U258 -> 78.7 | FH32: 18 | FN32: s'12 | FO32: =FO30 -> 0 | FP32: =FP23 -> 63.64250015 | FR32: 26.2458 | FS32: 18.25275005 | FT32: 41'' | GA32: 34 | GB32: =GB12+GE12*SIN(RADIANS(GA32)+GA14) ->  | GC32: =GC12+GE12*COS(RADIANS(GA32)+GA14) ->  | GD32: =IF(GB13>GB32,ATAN((GC13-GC32)/(GB13-GB32)),ATAN((GC13-GC32)/(GB32-GB13))) ->  | GE32: =IF(GB13>GB32,(GB13-GB32)/COS(GD32),(GB32-GB13)/COS(GD32)) ->  | GG32: 1 | GH32: 2 | GI32: نقطه 14 | GJ32: نقطه قبل از چرخش | GK32: =IF(GH32>GH18,IF(GG32>GG18,GG18+SQRT(POWER(GG32-GG18,2)+POWER(GH32-GH18,2))*COS(ATAN((GH32-GH18)/(GG32-GG18+0.000123))+GH16),GG18-SQRT(POWER(GG32-GG18,2)+POWER(GH32-GH18,2))*COS(ATAN((GH32-GH18)/(GG18-GG32+0.000123))-GH16)),IF(GG32>GG18,GG18+SQRT(POWER(GG32-GG18,2)+POWER(GH32-GH18,2))*COS(ATAN((GH18-GH32)/(GG32-GG18+0.000123))-GH16),GG18-SQRT(POWER(GG32-GG18,2)+POWER(GH32-GH18,2))*COS(ATAN((GH18-GH32)/(GG18-GG32+0.000123))+GH16))) -> 0.6182452327 | GL32: =IF(GH32>GH18,IF(GG32>GG18,GH18+SQRT(POWER(GG32-GG18,2)+POWER(GH32-GH18,2))*SIN(ATAN((GH32-GH18)/(GG32-GG18+0.000123))+GH16),GH18+SQRT(POWER(GG32-GG18,2)+POWER(GH32-GH18,2))*SIN(ATAN((GH32-GH18)/(GG18-GG32+0.000123))-GH16)),IF(GG32>GG18,GH18-SQRT(POWER(GG32-GG18,2)+POWER(GH32-GH18,2))*SIN(ATAN((GH18-GH32)/(GG32-GG18+0.000123))-GH16),GH18-SQRT(POWER(GG32-GG18,2)+POWER(GH32-GH18,2))*SIN(ATAN((GH18-GH32)/(GG18-GG32+0.000123))+GH16))) -> 0.6987463478 | GM32: نقطه چرخیده | GO32: نقطه ورودی بالا | GP32: s'u3 | GQ32: =#REF! ->  | GR32: =#REF! ->  | GU32: =GU31+GT11 -> -58 | GV32: -1.012290966 | GW32: =HB13+HB10*COS(GV32) ->  | GX32: =HC13-HB10*SIN(GV32) ->  | GY32: =SQRT(POWER((HB12-GW32),2)+POWER((HC12-GX32),2)) ->  | GZ32: =ABS(HB9-GY32) ->  | HB32: نقطه تقاطع | HC32: f10 | HD32: =(HE30-HE28+HD28*((HE29-HE28)/(HD29-HD28+0.0001))-HD30*((HE31-HE30)/(HD31-HD30+0.0001)))/(((HE29-HE28)/(HD29-HD28+0.0001))-((HE31-HE30)/(HD31-HD30+0.0001))) ->  | HE32: =HE28+(HD32-HD28)*((HE29-HE28)/(HD29-HD28+0.0001)) ->  | HO32: =-HK32+HP9 -> 0 | HP32: 0 | HS32: 0 | HT32: 0 | HU32: 22 | HW32: =HS32+2*(SIN(ATAN((HS12-HS11)/(HT12-HT11)))*(HT32-HT11)+COS(ATAN((HS12-HS11)/(HT12-HT11)))*(HS11-HS32))*COS(ATAN((HS12-HS11)/(HT12-HT11))) ->  | HX32: =HT32-2*(SIN(ATAN((HS12-HS11)/(HT12-HT11)))*(HT32-HT11)+COS(ATAN((HS12-HS11)/(HT12-HT11)))*(HS11-HS32))*SIN(ATAN((HS12-HS11)/(HT12-HT11))) ->  | HY32: 22 | NU32: Yw1 | NV32: ='متغیرها '!C880+5 -> 5 | NW32: جابجایی عمودی کل نقشه | NY32: f3 | NZ32: =NZ31 -> -32.31706804 | OA32: =OA30+NZ27*NZ28 -> 5.240825688 | OB32: =NZ31 -> -32.31706804 | OC32: =OA31 -> 4.759174312 | OD32: =NY31 -> f2 | OF32: =OF13 -> e9 | OG32: =TEXT(0,OG13)&" رج مثل رج قبل میبافیم" -> 20 رج مثل رج قبل میبافیم | OJ32: f3 | OK32: =OK31 -> -30.42297532 | OL32: =OL30+OK27*OK28 -> 5.169994603 | OM32: =OK31 -> -30.42297532 | ON32: =OL31 -> 4.830005397 | OO32: =OJ31 -> f2 | OQ32: =OQ13 -> e9 | OR32: =TEXT(0,OR13)&" رج مثل رج قبل میبافیم" -> 20 رج مثل رج قبل میبافیم | OU32: f3 | OV32: =OV31 -> -31.04276698 | OW32: =OW30+OV27*OV28 -> 5.169994603 | OX32: =OV31 -> -31.04276698 | OY32: =OW31 -> 4.830005397 | OZ32: =OU31 -> f2 | PC32: ="بافت جادکمه: "&TEXT(0,PB22)&"- "&TEXT(0,'مساله سوم مدل 13'!A478) -> بافت جادکمه: جودانه- بچگانه 4 ساله | PF32: f3 | PG32: =PG31 -> -31.66255865 | PH32: =PH30+PG27*PG28 -> 5.169994603 | PI32: =PG31 -> -31.66255865 | PJ32: =PH31 -> 4.830005397 | PK32: =PF31 -> f2 | PN32: ="بافت جادکمه: "&TEXT(0,PM22)&"- "&TEXT(0,'مساله سوم مدل 13'!A478) -> بافت جادکمه: جودانه- بچگانه 4 ساله | PQ32: f3 | PR32: =PR31 -> -31.16672532 | PS32: =PS30+PR27*PR28 -> 5.169994603 | PT32: =PR31 -> -31.16672532 | PU32: =PS31 -> 4.830005397 | PV32: =PQ31 -> f2 | PX32: =PX31-2/PY15 -> -42.55 | PY32: =PY31 -> 6.428571429 | PZ32: t4 | QB32: ارتفاع هر رج | QC32: =PY7 -> 1.428571429 | QD32: w11 | QK32: رگلان | QM32: =QI69 -> 0 | QN32: =QJ69 -> 80.22779747 | QO32: 26' | QQ32: =QQ15+QR7+QR8 -> -8.4 | QR32: =QR15 -> 52.22779747 | QS32: k22 | QX32: =QQ46 -> -18.02294734 | QY32: =QR46 -> 49.32779747 | QZ32: k36 | RB32: d9 | RC32: ="هر "&TEXT(0,RC14)&" رج یکدانه از بافت یقه را به بافت جلو تبدیل میکنیم " -> هر 2 رج یکدانه از بافت یقه را به بافت جلو تبدیل میکنیم | RF32: f3 | RG32: =RG31 -> -32.27748921 | RH32: =RH30+RG27*RG28 -> 5.169994603 | RI32: =RG31 -> -32.27748921 | RJ32: =RH31 -> 4.830005397 | RK32: =RF31 -> f2 | RM32: پهنا افقی | RN32: =IF(AND((RQ86-RQ26)>0,(RN26-(RQ86-RQ26))>(RM66-RM65)),"پهنای افقی توری کوچکتر از انتخاب شما است "," ") ->  | RO32: خطا : | RQ32: =IF(RN26>(RM42-RM40),RM42,RM40) -> 8.564814815 | RR32: =IF(RN26>(RM42-RM40),RN42,RN40) -> -20 | RS32: =RO42 -> 10 | RV32: =RN28 -> 0.8564814815 | RW32: c2 | RY32: =IF(RV27>(RU42-RU40),RU42,RU40) -> -34.07198306 | RZ32: =IF(RV27>(RU42-RU40),RV42,RV40) -> 0 | SA32: =RW42 -> 10 | SC32: =RU67 -> -38.22159492 | SD32: =RV67 -> 0 | SE32: =RW67 -> 3 | SG32: پهنا افقی | SH32: =IF(AND((SK86-SK26)>0,(SH26-(SK86-SK26))>(SG66-SG65)),"پهنای افقی توری کوچکتر از انتخاب شما است "," ") ->  | SI32: خطا : | SK32: =IF(SH26>(SG42-SG40),SG42,SG40) -> 8.564814815 | SL32: =IF(SH26>(SG42-SG40),SH42,SH40) -> -20 | SM32: =SI42 -> 10 | SP32: =SH28 -> 0.8564814815 | SQ32: c2 | SS32: =IF(SP27>(SO42-SO40),SO42,SO40) -> -34.07198306 | ST32: =IF(SP27>(SO42-SO40),SP42,SP40) -> 0 | SU32: =SQ42 -> 10 | SW32: =SO67 -> -38.22159492 | SX32: =SP67 -> 0 | SY32: =SQ67 -> 3 | TA32: پهنا افقی | TB32: =IF(AND((TE86-TE26)>0,(TB26-(TE86-TE26))>(TA66-TA65)),"پهنای افقی توری کوچکتر از انتخاب شما است "," ") ->  | TC32: خطا : | TE32: =IF(TB26>(TA42-TA40),TA42,TA40) -> 8.101851852 | TF32: =IF(TB26>(TA42-TA40),TB42,TB40) -> -20 | TG32: =TC42 -> 10 | TJ32: =TB28 -> 0.8101851852 | TK32: c2 | TM32: =IF(TJ27>(TI42-TI40),TI42,TI40) -> -34.22018349 | TN32: =IF(TJ27>(TI42-TI40),TJ42,TJ40) -> 0 | TO32: =TK42 -> 10 | TQ32: =TI67 -> -38.26605505 | TR32: =TJ67 -> 0 | TS32: =TK67 -> 3 | TU32: پهنا افقی | TV32: =IF(AND((TY86-TY26)>0,(TV26-(TY86-TY26))>(TU66-TU65)),"پهنای افقی توری کوچکتر از انتخاب شما است "," ") ->  | TW32: خطا : | TY32: =IF(TV26>(TU42-TU40),TU42,TU40) -> 8.101851852 | TZ32: =IF(TV26>(TU42-TU40),TV42,TV40) -> -20 | UA32: =TW42 -> 10 | UD32: =TV28 -> 0.8101851852 | UE32: c2 | UG32: =IF(UD27>(UC42-UC40),UC42,UC40) -> -34.22018349 | UH32: =IF(UD27>(UC42-UC40),UD42,UD40) -> 0 | UI32: =UE42 -> 10 | UK32: =UC67 -> -38.26605505 | UL32: =UD67 -> 0 | UM32: =UE67 -> 3 | UO32: پهنا افقی | UP32: =IF(AND((US86-US26)>0,(UP26-(US86-US26))>(UO66-UO65)),"پهنای افقی توری کوچکتر از انتخاب شما است "," ") ->  | UQ32: خطا : | US32: =IF(UP26>(UO42-UO40),UO42,UO40) -> 8.564814815 | UT32: =IF(UP26>(UO42-UO40),UP42,UP40) -> -20 | UU32: =UQ42 -> 10 | UX32: =UP28 -> 0.8564814815 | UY32: c2 | VA32: =IF(UX27>(UW42-UW40),UW42,UW40) -> -34.07198306 | VB32: =IF(UX27>(UW42-UW40),UX42,UX40) -> 0 | VC32: =UY42 -> 10 | VE32: =UW67 -> -38.22159492 | VF32: =UX67 -> 0 | VG32: =UY67 -> 3 | VI32: پهنا افقی | VJ32: =IF(AND((VM86-VM26)>0,(VJ26-(VM86-VM26))>(VI66-VI65)),"پهنای افقی توری کوچکتر از انتخاب شما است "," ") ->  | VK32: خطا : | VM32: =IF(VJ26>(VI42-VI40),VI42,VI40) -> 8.564814815 | VN32: =IF(VJ26>(VI42-VI40),VJ42,VJ40) -> -20 | VO32: =VK42 -> 10 | VR32: =VJ28 -> 0.8564814815 | VS32: c2 | VU32: =IF(VR27>(VQ42-VQ40),VQ42,VQ40) -> -34.07198306 | VV32: =IF(VR27>(VQ42-VQ40),VR42,VR40) -> 0 | VW32: =VS42 -> 10 | VY32: =VQ67 -> -38.22159492 | VZ32: =VR67 -> 0 | WA32: =VS67 -> 3
E33: فاصله زیر بغل تا بالای مچ آستین (cm) b10 | F33: =ROUNDUP(SQRT(POWER(DY513-DY520,2)+POWER(DZ513-DZ520,2)),0) -> 30 | H33: بافت انتخابی پشت | I33: ='متغیرها '!C860 -> 15 | N33: a1 | O33: =ROUND(2*O12*O17,0) -> 124 | Q33: بافت انتخابی | T33: بافت انتخابی | W33: c1 | X33: =ROUND(X20*X11+1.5*(X36+1)+0.5*(X35+1)-0.5*(X34+1)-3,0) -> 89 | Z33: c1 | AA33: =ROUND(X20*X11+2*(X36+1)+1*(X35+1)+X34+1-2,0) -> 101 | AC33: d1 | AD33: =AD37+AD36-2*AD35+AD34+7 -> 63 | AI33: 0 | AJ33: =IF(AM33=0," ",(10/3)*((AM33/AL33)*(1/J6)-1)) ->  | AK33: =IF(AN33=0," ",(100/68)*((AO33/AN33)*(1/J7)-1)) ->  | AL33: 13.5 | AM33: 0 | AN33: 0 | AO33: 36 | AQ33: 27 | CM33: =CI41 -> 0 | CN33: =CJ41 -> 94.8 | CO33: j7 | DD33: =DD16 -> 13.3 | DE33: =DE15 -> 116.2 | DF33: 4 | DH33: =DH22 -> 45.3 | DI33: =DI22 -> 17.4 | DJ33: 19 | DL33: s15 | DM33: =DM32+0.7*(DM31-DM32) -> 3.413844 | DN33: =DN32+0.5*(DN31-DN32) -> 84.125175 | DP33: =DP31+0.67*(DP34-DP31) -> 23.19122947 | DQ33: =DQ34+0.2*(DQ31-DQ34) -> 78.65473844 | DX33: =DU19 -> 32.25608276 | DY33: =DV19 -> 50.97138345 | DZ33: s'11 | EB33: شیفت عمودی مچ | EC33: =EF20-10 -> 99.6 | EE33: =DB37+'طراحی همه الگوها'!U216 -> 110 | EF33: =EF13 -> 109.1 | EG33: 3 | EI33: =EE21 -> 110 | EJ33: =EF21 -> 9.8 | EK33: 9 | EO33: 7 | EP33: =EP31+EO26*COS(RADIANS('متغیرها '!C26)) -> 13.88876218 | EQ33: =EQ31+EO26*SIN(RADIANS('متغیرها '!C26)) -> 0.4291548412 | ET33: =ET28+'طراحی همه الگوها'!U242 -> 33.1 | EU33: =EU28 -> 41.6 | EV33: 16 | EX33: =EP37 -> 40.51721856 | EY33: =EQ37 -> 53.59211768 | EZ33: 11 | FF33: =FF13 -> 0 | FG33: =FG32+'طراحی همه الگوها'!U259 -> 146.6 | FH33: 14 | FJ33: =FJ18 -> 15 | FK33: =FG31 -> 70.2 | FL33: 23 | FN33: s'3 | FO33: =FO22+0.5*(FO12-FO22) -> 4.202438246 | FP33: =FP22+0.6*(FP12-FP22) -> 70.82087311 | FR33: 27.9 | FS33: 0 | FT33: s13 | GA33: 36 | GB33: =GB12+GE12*SIN(RADIANS(GA33)+GA14) ->  | GC33: =GC12+GE12*COS(RADIANS(GA33)+GA14) ->  | GD33: =IF(GB13>GB33,ATAN((GC13-GC33)/(GB13-GB33)),ATAN((GC13-GC33)/(GB33-GB13))) ->  | GE33: =IF(GB13>GB33,(GB13-GB33)/COS(GD33),(GB33-GB13)/COS(GD33)) ->  | GG33: 1 | GH33: 2 | GI33: نقطه 15 | GJ33: نقطه قبل از چرخش | GK33: =IF(GH33>GH18,IF(GG33>GG18,GG18+SQRT(POWER(GG33-GG18,2)+POWER(GH33-GH18,2))*COS(ATAN((GH33-GH18)/(GG33-GG18+0.000123))+GH16),GG18-SQRT(POWER(GG33-GG18,2)+POWER(GH33-GH18,2))*COS(ATAN((GH33-GH18)/(GG18-GG33+0.000123))-GH16)),IF(GG33>GG18,GG18+SQRT(POWER(GG33-GG18,2)+POWER(GH33-GH18,2))*COS(ATAN((GH18-GH33)/(GG33-GG18+0.000123))-GH16),GG18-SQRT(POWER(GG33-GG18,2)+POWER(GH33-GH18,2))*COS(ATAN((GH18-GH33)/(GG18-GG33+0.000123))+GH16))) -> 0.6182452327 | GL33: =IF(GH33>GH18,IF(GG33>GG18,GH18+SQRT(POWER(GG33-GG18,2)+POWER(GH33-GH18,2))*SIN(ATAN((GH33-GH18)/(GG33-GG18+0.000123))+GH16),GH18+SQRT(POWER(GG33-GG18,2)+POWER(GH33-GH18,2))*SIN(ATAN((GH33-GH18)/(GG18-GG33+0.000123))-GH16)),IF(GG33>GG18,GH18-SQRT(POWER(GG33-GG18,2)+POWER(GH33-GH18,2))*SIN(ATAN((GH18-GH33)/(GG33-GG18+0.000123))-GH16),GH18-SQRT(POWER(GG33-GG18,2)+POWER(GH33-GH18,2))*SIN(ATAN((GH18-GH33)/(GG18-GG33+0.000123))+GH16))) -> 0.6987463478 | GM33: نقطه چرخیده | GO33: نقطه ورودی پایین | GP33: s'd3 | GQ33: =#REF! ->  | GR33: =#REF! ->  | GU33: =GU32+GT11 -> -56 | GV33: -0.9773843811 | GW33: =HB13+HB10*COS(GV33) ->  | GX33: =HC13-HB10*SIN(GV33) ->  | GY33: =SQRT(POWER((HB12-GW33),2)+POWER((HC12-GX33),2)) ->  | GZ33: =ABS(HB9-GY33) ->  | HO33: =-HK33+HP9 -> 0 | HP33: 0 | HS33: =HF30 -> 0 | HT33: =HG30 -> 0 | HU33: 23 | HW33: =HS33+2*(SIN(ATAN((HS12-HS11)/(HT12-HT11)))*(HT33-HT11)+COS(ATAN((HS12-HS11)/(HT12-HT11)))*(HS11-HS33))*COS(ATAN((HS12-HS11)/(HT12-HT11))) ->  | HX33: =HT33-2*(SIN(ATAN((HS12-HS11)/(HT12-HT11)))*(HT33-HT11)+COS(ATAN((HS12-HS11)/(HT12-HT11)))*(HS11-HS33))*SIN(ATAN((HS12-HS11)/(HT12-HT11))) ->  | HY33: 23 | NU33: w'12 | NV33: ='متغیرها '!C881 -> 42 | NW33: نسبت نقشه بافت به سایز واقعی | OF33: a10,a11,b1 | OG33: ="تعداد دانه ها"&TEXT(0,OG18)&"میباشد. هر"&TEXT(0,OG14)&" دانه را تبدیل به "&TEXT(0,OG15)&" دانه میکنیم تا تعداد دانه ها "&TEXT(0,OG19)&" شود" -> تعداد دانه ها77میباشد. هر48 دانه را تبدیل به 46 دانه میکنیم تا تعداد دانه ها 74 شود | OQ33: a10,a11,b1 | OR33: ="تعداد دانه ها"&TEXT(0,OR18)&"میباشد. هر"&TEXT(0,OR14)&" دانه را تبدیل به "&TEXT(0,OR15)&" دانه میکنیم تا تعداد دانه ها "&TEXT(0,OR19)&" شود" -> تعداد دانه ها77میباشد. هر48 دانه را تبدیل به 46 دانه میکنیم تا تعداد دانه ها 74 شود | PB33: متغیرهای ورودی | PM33: متغیرهای ورودی | PX33: =PX29 -> -45 | PY33: =PY31 -> 6.428571429 | PZ33: t5 | QB33: نقطه ورودی سر فلش | QC33: مولفه افقی | QD33: مولفه عمودی | QE33: =QC37 -> -42.55 | QF33: =QD37 -> 7.428571429 | QG33: =QB37 -> f8 | QI33: =FB146 -> 8.394794968 | QJ33: =FC146 -> 78.36109908 | QK33: 5' | QQ33: =2*QQ15-QQ32 -> -17.6 | QR33: =QR15 -> 52.22779747 | QS33: k23 | QX33: =QQ48 -> -18.8 | QY33: =QR48 -> 52.22779747 | QZ33: k38 | RB33: d10 | RC33: ="هر "&TEXT(0,RC15)&" رج یکدانه کم میکنیم " -> هر 8 رج یکدانه کم میکنیم | RQ33: =RQ32 -> 8.564814815 | RR33: =RN38 -> -40.15525759 | RV33: =2*RV40 -> 0 | RW33: قرینه | RY33: =RY32 -> -34.07198306 | RZ33: =RV38 -> 10.27777778 | SC33: =SC32 -> -38.22159492 | SD33: =RV38 -> 10.27777778 | SK33: =SK32 -> 8.564814815 | SL33: =SH38 -> -40.15525759 | SP33: =2*SP40 -> 0 | SQ33: قرینه | SS33: =SS32 -> -34.07198306 | ST33: =SP38 -> 10.27777778 | SW33: =SW32 -> -38.22159492 | SX33: =SP38 -> 10.27777778 | TE33: =TE32 -> 8.101851852 | TF33: =TB38 -> -40.2293578 | TJ33: =2*TJ40 -> 0 | TK33: قرینه | TM33: =TM32 -> -34.22018349 | TN33: =TJ38 -> 9.722222222 | TQ33: =TQ32 -> -38.26605505 | TR33: =TJ38 -> 9.722222222 | TY33: =TY32 -> 8.101851852 | TZ33: =TV38 -> -40.2293578 | UD33: =2*UD40 -> 0 | UE33: قرینه | UG33: =UG32 -> -34.22018349 | UH33: =UD38 -> 9.722222222 | UK33: =UK32 -> -38.26605505 | UL33: =UD38 -> 9.722222222 | US33: =US32 -> 8.564814815 | UT33: =UP38 -> -40.15525759 | UX33: =2*UX40 -> 0 | UY33: قرینه | VA33: =VA32 -> -34.07198306 | VB33: =UX38 -> 10.27777778 | VE33: =VE32 -> -38.22159492 | VF33: =UX38 -> 10.27777778 | VM33: =VM32 -> 8.564814815 | VN33: =VJ38 -> -40.15525759 | VR33: =2*VR40 -> 0 | VS33: قرینه | VU33: =VU32 -> -34.07198306 | VV33: =VR38 -> 10.27777778 | VY33: =VY32 -> -38.22159492 | VZ33: =VR38 -> 10.27777778
E34: گشادی لبه پایین آستین (cm) b'11 | F34: =F13 -> 18 | H34: بافت انتخابی پشت | I34: =OFFSET(AJ6,I33,6) -> سبدی (5 تایی) | N34: a2 | O34: =IF((ROUND(0.6*P9,0)-6)<0," خطا ",(ROUND(0.6*P9,0)-6)) -> 4 | Q34: e1 | R34: =ROUND(S19-4*S18*F12+3*R35+15,0) -> 119 | T34: e1 | U34: =ROUND(S19-4*S18*F12+1.5*U35+13.5,0) -> 104 | W34: c2 | X34: =ROUND(X9*X19*X7,0)-1 -> 2 | Z34: c2 | AA34: =X34 -> 2 | AC34: d2 | AD34: =ROUND(AD19*AD6,0)-3 -> 5 | AI34: 0 | AJ34: =IF(AM34=0," ",(10/3)*((AM34/AL34)*(1/J6)-1)) ->  | AK34: =IF(AN34=0," ",(100/68)*((AO34/AN34)*(1/J7)-1)) ->  | AL34: 13.5 | AM34: 0 | AN34: 0 | AO34: 36 | AQ34: 28 | CI34: نقاط خروجی | DF34: نقاب | DH34: =DH16 -> 45.3 | DI34: =DI16 -> 28.2 | DJ34: 20 | DL34: s17 | DM34: =DB400 -> 0 | DN34: =IF('متغیرها '!C14=-1,DQ12,IF('متغیرها '!C14=0,DC400-0.1,DC400-0.25*(DC400-DC404))) -> 103.045 | DP34: =DM37 -> 32.21171026 | DQ34: =DN37 -> 74.20583556 | DR34: s20 | EB34: زاویه گشادی نسبی جلو به پشت | EC34: 33 | EE34: =DB37+'طراحی همه الگوها'!U216 -> 110 | EF34: =EF20 -> 109.6 | EG34: 10 | EI34: =EI22 -> 110 | EJ34: =EJ22 -> 1 | EK34: 14 | EO34: 8 | EP34: =EP35+ER41*SIN(RADIANS('متغیرها '!C30)) -> 46.60831334 | EQ34: =EQ35-ER41*COS(RADIANS('متغیرها '!C30)) -> 5.15271912 | ET34: =ET28+'طراحی همه الگوها'!U242+'طراحی همه الگوها'!U243 -> 37.2 | EU34: =EU28 -> 41.6 | EV34: 17 | EX34: =EP35 -> 24.83030173 | EY34: =EQ35 -> 64.98731424 | EZ34: 9 | FF34: =FF13+'طراحی همه الگوها'!U263 -> 77.2 | FG34: =FG33 -> 146.6 | FH34: 15 | FJ34: =FJ18 -> 15 | FK34: =FK18 -> 79.3 | FL34: 24 | GA34: 38 | GB34: =GB12+GE12*SIN(RADIANS(GA34)+GA14) ->  | GC34: =GC12+GE12*COS(RADIANS(GA34)+GA14) ->  | GD34: =IF(GB13>GB34,ATAN((GC13-GC34)/(GB13-GB34)),ATAN((GC13-GC34)/(GB34-GB13))) ->  | GE34: =IF(GB13>GB34,(GB13-GB34)/COS(GD34),(GB34-GB13)/COS(GD34)) ->  | GG34: 1 | GH34: 2 | GI34: نقطه 16 | GJ34: نقطه قبل از چرخش | GK34: =IF(GH34>GH18,IF(GG34>GG18,GG18+SQRT(POWER(GG34-GG18,2)+POWER(GH34-GH18,2))*COS(ATAN((GH34-GH18)/(GG34-GG18+0.000123))+GH16),GG18-SQRT(POWER(GG34-GG18,2)+POWER(GH34-GH18,2))*COS(ATAN((GH34-GH18)/(GG18-GG34+0.000123))-GH16)),IF(GG34>GG18,GG18+SQRT(POWER(GG34-GG18,2)+POWER(GH34-GH18,2))*COS(ATAN((GH18-GH34)/(GG34-GG18+0.000123))-GH16),GG18-SQRT(POWER(GG34-GG18,2)+POWER(GH34-GH18,2))*COS(ATAN((GH18-GH34)/(GG18-GG34+0.000123))+GH16))) -> 0.6182452327 | GL34: =IF(GH34>GH18,IF(GG34>GG18,GH18+SQRT(POWER(GG34-GG18,2)+POWER(GH34-GH18,2))*SIN(ATAN((GH34-GH18)/(GG34-GG18+0.000123))+GH16),GH18+SQRT(POWER(GG34-GG18,2)+POWER(GH34-GH18,2))*SIN(ATAN((GH34-GH18)/(GG18-GG34+0.000123))-GH16)),IF(GG34>GG18,GH18-SQRT(POWER(GG34-GG18,2)+POWER(GH34-GH18,2))*SIN(ATAN((GH18-GH34)/(GG34-GG18+0.000123))-GH16),GH18-SQRT(POWER(GG34-GG18,2)+POWER(GH34-GH18,2))*SIN(ATAN((GH18-GH34)/(GG18-GG34+0.000123))+GH16))) -> 0.6987463478 | GM34: نقطه چرخیده | GO34: متغیر ورودی پهنا | GP34: a20 | GQ34: =#REF! ->  | GR34: (سانتیمتر) | GU34: =GU33+GT11 -> -54 | GV34: -0.9424777961 | GW34: =HB13+HB10*COS(GV34) ->  | GX34: =HC13-HB10*SIN(GV34) ->  | GY34: =SQRT(POWER((HB12-GW34),2)+POWER((HC12-GX34),2)) ->  | GZ34: =ABS(HB9-GY34) ->  | HB34: b17 | HE34: فاصله عمود از نقطه اصلی : | HO34: =-HK34+HP9 -> 0 | HP34: 0 | HS34: 0 | HT34: 0 | HU34: 24 | HW34: =HS34+2*(SIN(ATAN((HS12-HS11)/(HT12-HT11)))*(HT34-HT11)+COS(ATAN((HS12-HS11)/(HT12-HT11)))*(HS11-HS34))*COS(ATAN((HS12-HS11)/(HT12-HT11))) ->  | HX34: =HT34-2*(SIN(ATAN((HS12-HS11)/(HT12-HT11)))*(HT34-HT11)+COS(ATAN((HS12-HS11)/(HT12-HT11)))*(HS11-HS34))*SIN(ATAN((HS12-HS11)/(HT12-HT11))) ->  | HY34: 24 | NU34: w11 | NV34: ='متغیرها '!C882/NV40 -> 0.8027522936 | NW34: ارتفاع هر رج | NY34: نسبت سایز افقی | NZ34: =NV33 -> 42 | OA34: انحنا چپگرد | OD34: =OA34 -> انحنا چپگرد | OG34: ="نقشه بافت یقه شومیزیه نوک تیز با میل "&TEXT(0,OG58)&" بافت "&TEXT(0,OF59) -> نقشه بافت یقه شومیزیه نوک تیز با میل 2.5 بافت همه از زیر | OJ34: نسبت سایز افقی | OK34: =OG38 -> 42 | OL34: انحنا چپگرد | OO34: =OL34 -> انحنا چپگرد | OR34: ="نقشه بافت یقه شومیزیه معمولی با میل "&TEXT(0,OR58)&" بافت "&TEXT(0,OQ59) -> نقشه بافت یقه شومیزیه معمولی با میل 2.5 بافت همه از زیر | OU34: نسبت سایز افقی | OV34: =OR38 -> 42 | OW34: انحنا چپگرد | OZ34: =OW34 -> انحنا چپگرد | PB34: Xw1 | PC34: =NV31 -> -35 | PD34: جابجایی افقی کل نقشه | PF34: نسبت سایز افقی | PG34: =PC36 -> 42 | PH34: انحنا چپگرد | PK34: =PH34 -> انحنا چپگرد | PM34: Xw1 | PN34: =NV31 -> -35 | PO34: جابجایی افقی کل نقشه | PQ34: نسبت سایز افقی | PR34: =PN36 -> 42 | PS34: انحنا چپگرد | PV34: =PS34 -> انحنا چپگرد | PX34: =PX29-PX30+PX29 -> -48.5 | PY34: =PY31 -> 6.428571429 | PZ34: t6 | QB34: =PZ32 -> t4 | QC34: =PX32 -> -42.55 | QD34: =PY32 -> 6.428571429 | QE34: =QC35 -> -42.87142857 | QF34: =QD35 -> 7 | QG34: =QB35 -> f6 | QI34: =CI121 -> 13.77329096 | QJ34: =CJ121 -> 70.88345911 | QK34: 18f | QM34: =QI62 -> 4.33504 | QN34: =QJ62 -> 83.56389874 | QO34: 30 | QQ34: =QQ15+(QR7+QR8)*SIN(RADIANS(30)) -> -10.7 | QR34: =QR15+(QR7+QR8)*COS(RADIANS(30)) -> 56.21151433 | QS34: k24 | QX34: =QQ50 -> -15.9 | QY34: =QR50 -> 57.25074482 | QZ34: k40 | RB34: d12 | RC34: =TEXT(0,RC16)&" سانت تا اولین جادکمه میبافیم " -> 6 سانت تا اولین جادکمه میبافیم | RF34: نسبت سایز افقی | RG34: =RC38 -> 42 | RH34: انحنا چپگرد | RK34: =RH34 -> انحنا چپگرد | RV34: نقاط خروجی افقی - اصلی | SH34: نقاط خروجی عمودی - اصلی | SP34: نقاط خروجی افقی - اصلی | TJ34: نقاط خروجی افقی - اصلی | UD34: نقاط خروجی افقی - اصلی | UX34: نقاط خروجی افقی - اصلی | VR34: نقاط خروجی افقی - اصلی
E35: تعداد دانه ها در بالای مچ آستین b'12 | F35: =F14 -> 42 | N35: a3 | O35: =ROUND(0.33*O37,0) -> 14 | Q35: e2 | R35: =ROUNDDOWN(0.5*(S17*S10-9),0) -> 9 | T35: e2 | U35: =R35 -> 9 | W35: c3 | X35: =ROUND(X10*X19*X7,0)-1 -> 4 | Z35: c3 | AA35: =X35 -> 4 | AC35: d3 | AD35: =ROUND(AD20*AD7,0) -> 10 | AI35: 0 | AJ35: =IF(AM35=0," ",(10/3)*((AM35/AL35)*(1/J6)-1)) ->  | AK35: =IF(AN35=0," ",(100/68)*((AO35/AN35)*(1/J7)-1)) ->  | AL35: 13.5 | AM35: 0 | AN35: 0 | AO35: 36 | AQ35: 29 | CI35: مولفه افقی | CJ35: مولفه عمودی | CK35: اسم نقطه | CM35: =CI42 -> 2 | CN35: =CJ42 -> 94.8 | CO35: j8 | DD35: =DD15 -> 0 | DE35: =DE15 -> 116.2 | DF35: 1 | DL35: s18 | DM35: =DM34+0.5*(DM31-DM34) -> 2.43846 | DN35: =DN34-0.3*(DN34-DN31) -> 101.066605 | DX35: =DX33 -> 32.25608276 | DY35: =DY33 -> 50.97138345 | DZ35: s'11 | EB35: j4 | EC35: =IF('متغیرها '!C17<1,'متغیرها '!C17*'متغیرها '!U59,IF('متغیرها '!C17<2,'متغیرها '!U59+('متغیرها '!C17-1)*('متغیرها '!U60-'متغیرها '!U59),IF('متغیرها '!C17<3,'متغیرها '!U60+('متغیرها '!C17-2)*(I105-'متغیرها '!U60),I105+('متغیرها '!C17-3)*(H127-H126)))) -> 0 | ED35: چادر 3 | EN35: =EN37-ER45*SIN(ER46-RADIANS(45)+ER42) -> 16.7329997 | EO35: 9 | EP35: =EP37-ER40*SIN(ER46-RADIANS(45)+ER42) -> 24.83030173 | EQ35: =EQ37+ER40*COS(ER46-RADIANS(45)+ER42) -> 64.98731424 | ER35: =ER37+ER45*COS(ER46-RADIANS(45)+ER42) -> 68.55830183 | FR35: =FO18 -> 33.59958564 | FS35: =FP18 -> 63.06290941 | FT35: s''10 | GA35: 40 | GB35: =GB12+GE12*SIN(RADIANS(GA35)+GA14) ->  | GC35: =GC12+GE12*COS(RADIANS(GA35)+GA14) ->  | GD35: =IF(GB13>GB35,ATAN((GC13-GC35)/(GB13-GB35)),ATAN((GC13-GC35)/(GB35-GB13))) ->  | GE35: =IF(GB13>GB35,(GB13-GB35)/COS(GD35),(GB35-GB13)/COS(GD35)) ->  | GG35: 1 | GH35: 2 | GI35: نقطه 17 | GJ35: نقطه قبل از چرخش | GK35: =IF(GH35>GH18,IF(GG35>GG18,GG18+SQRT(POWER(GG35-GG18,2)+POWER(GH35-GH18,2))*COS(ATAN((GH35-GH18)/(GG35-GG18+0.000123))+GH16),GG18-SQRT(POWER(GG35-GG18,2)+POWER(GH35-GH18,2))*COS(ATAN((GH35-GH18)/(GG18-GG35+0.000123))-GH16)),IF(GG35>GG18,GG18+SQRT(POWER(GG35-GG18,2)+POWER(GH35-GH18,2))*COS(ATAN((GH18-GH35)/(GG35-GG18+0.000123))-GH16),GG18-SQRT(POWER(GG35-GG18,2)+POWER(GH35-GH18,2))*COS(ATAN((GH18-GH35)/(GG18-GG35+0.000123))+GH16))) -> 0.6182452327 | GL35: =IF(GH35>GH18,IF(GG35>GG18,GH18+SQRT(POWER(GG35-GG18,2)+POWER(GH35-GH18,2))*SIN(ATAN((GH35-GH18)/(GG35-GG18+0.000123))+GH16),GH18+SQRT(POWER(GG35-GG18,2)+POWER(GH35-GH18,2))*SIN(ATAN((GH35-GH18)/(GG18-GG35+0.000123))-GH16)),IF(GG35>GG18,GH18-SQRT(POWER(GG35-GG18,2)+POWER(GH35-GH18,2))*SIN(ATAN((GH18-GH35)/(GG35-GG18+0.000123))-GH16),GH18-SQRT(POWER(GG35-GG18,2)+POWER(GH35-GH18,2))*SIN(ATAN((GH18-GH35)/(GG18-GG35+0.000123))+GH16))) -> 0.6987463478 | GM35: نقطه چرخیده | GO35: متغیر ورودی طول | GP35: a21 | GQ35: 1 | GU35: =GU34+GT11 -> -52 | GV35: -0.907571211 | GW35: =HB13+HB10*COS(GV35) ->  | GX35: =HC13-HB10*SIN(GV35) ->  | GY35: =SQRT(POWER((HB12-GW35),2)+POWER((HC12-GX35),2)) ->  | GZ35: =ABS(HB9-GY35) ->  | HC35: اسم نقطه | HD35: مولفه افقی | HE35: مولفه عمودی | HO35: =-HK35+HP9 -> 0 | HP35: 0 | HS35: 0 | HT35: 0 | HU35: 25 | HW35: =HS35+2*(SIN(ATAN((HS12-HS11)/(HT12-HT11)))*(HT35-HT11)+COS(ATAN((HS12-HS11)/(HT12-HT11)))*(HS11-HS35))*COS(ATAN((HS12-HS11)/(HT12-HT11))) ->  | HX35: =HT35-2*(SIN(ATAN((HS12-HS11)/(HT12-HT11)))*(HT35-HT11)+COS(ATAN((HS12-HS11)/(HT12-HT11)))*(HS11-HS35))*SIN(ATAN((HS12-HS11)/(HT12-HT11))) ->  | HY35: 25 | NU35: g9 | NV35: ='متغیرها '!C883 -> 0.5 | NW35: پهنای نیم دایره | NY35: ارتفاع نیم دایره | NZ35: =NV47 -> 0.8027522936 | OA35: بزرگی فلش | OB35: =NZ38 -> -3.354166667 | OC35: =OA38 -> 5 | OD35: =NY38 -> w2 | OF35: متغیرهای ورودی | OJ35: ارتفاع نیم دایره | OK35: =OG49 -> 0.5666486778 | OL35: بزرگی فلش | OM35: =OK38 -> 14.17013889 | ON35: =OL38 -> 5 | OO35: =OJ38 -> m2 | OQ35: متغیرهای ورودی | OU35: ارتفاع نیم دایره | OV35: =OR49 -> 0.5666486778 | OW35: بزرگی فلش | OX35: =OV38 -> 7.972222222 | OY35: =OW38 -> 5 | OZ35: =OU38 -> m2 | PB35: Yw1 | PC35: =NV32 -> 5 | PD35: جابجایی عمودی کل نقشه | PF35: ارتفاع نیم دایره | PG35: =PC47 -> 0.5666486778 | PH35: بزرگی فلش | PI35: =PG38 -> 1.774305556 | PJ35: =PH38 -> 5 | PK35: =PF38 -> n2 | PM35: Yw1 | PN35: =NV32 -> 5 | PO35: جابجایی عمودی کل نقشه | PQ35: ارتفاع نیم دایره | PR35: =PN47 -> 0.5666486778 | PS35: بزرگی فلش | PT35: =PR38 -> 6.732638889 | PU35: =PS38 -> 5 | PV35: =PQ38 -> n2 | PX35: =PX30+5 -> -36.5 | PY35: =PY30+0.5*PY7 -> 5.714285714 | PZ35: t7 | QB35: f6 | QC35: =QC34-QC31*QC30*QC32 -> -42.87142857 | QD35: =QD37-QC30*QC32 -> 7 | QK35: کیمونو | QM35: =QI72 -> 8.394794968 | QN35: =QJ72 -> 78.36109908 | QO35: 5' | QQ35: =2*QQ15-QQ34 -> -15.3 | QR35: =QR34 -> 56.21151433 | QS35: k25 | QX35: =QQ51 -> -13 | QY35: =QR51 -> 58.02779747 | QZ35: k41 | RB35: متغیرهای ورودی | RF35: ارتفاع نیم دایره | RG35: =RC49 -> 0.5666486778 | RH35: بزرگی فلش | RI35: =RG38 -> -4.375 | RJ35: =RH38 -> 5 | RK35: =RF38 -> p2 | RQ35: =IF(RN26>(RM43-RM40),RM43,RM40) -> 0 | RR35: =IF(RN26>(RM43-RM40),RN43,RN40) -> -20 | RS35: =RO43 -> 15 | RW35: b | RY35: =IF(RV27>(RU43-RU40),RU43,RU40) -> -31.10797459 | RZ35: =IF(RV27>(RU43-RU40),RV43,RV40) -> 0 | SA35: =RW43 -> 15 | SC35: =RU68 -> -37.62879323 | SD35: =RV68 -> 0 | SE35: =RW68 -> 4 | SI35: a | SK35: =IF(SH26>(SG43-SG40),SG43,SG40) -> 0 | SL35: =IF(SH26>(SG43-SG40),SH43,SH40) -> -20 | SM35: =SI43 -> 15 | SQ35: b | SS35: =IF(SP27>(SO43-SO40),SO43,SO40) -> -31.10797459 | ST35: =IF(SP27>(SO43-SO40),SP43,SP40) -> 0 | SU35: =SQ43 -> 15 | SW35: =SO68 -> -37.62879323 | SX35: =SP68 -> 0 | SY35: =SQ68 -> 4 | TE35: =IF(TB26>(TA43-TA40),TA43,TA40) -> 0 | TF35: =IF(TB26>(TA43-TA40),TB43,TB40) -> -20 | TG35: =TC43 -> 15 | TK35: b | TM35: =IF(TJ27>(TI43-TI40),TI43,TI40) -> -31.33027523 | TN35: =IF(TJ27>(TI43-TI40),TJ43,TJ40) -> 0 | TO35: =TK43 -> 15 | TQ35: =TI68 -> -37.68807339 | TR35: =TJ68 -> 0 | TS35: =TK68 -> 4 | TY35: =IF(TV26>(TU43-TU40),TU43,TU40) -> 0 | TZ35: =IF(TV26>(TU43-TU40),TV43,TV40) -> -20 | UA35: =TW43 -> 15 | UE35: b | UG35: =IF(UD27>(UC43-UC40),UC43,UC40) -> -31.33027523 | UH35: =IF(UD27>(UC43-UC40),UD43,UD40) -> 0 | UI35: =UE43 -> 15 | UK35: =UC68 -> -37.68807339 | UL35: =UD68 -> 0 | UM35: =UE68 -> 4 | US35: =IF(UP26>(UO43-UO40),UO43,UO40) -> 0 | UT35: =IF(UP26>(UO43-UO40),UP43,UP40) -> -20 | UU35: =UQ43 -> 15 | UY35: b | VA35: =IF(UX27>(UW43-UW40),UW43,UW40) -> -31.10797459 | VB35: =IF(UX27>(UW43-UW40),UX43,UX40) -> 0 | VC35: =UY43 -> 15 | VE35: =UW68 -> -37.62879323 | VF35: =UX68 -> 0 | VG35: =UY68 -> 4 | VM35: =IF(VJ26>(VI43-VI40),VI43,VI40) -> 0 | VN35: =IF(VJ26>(VI43-VI40),VJ43,VJ40) -> -20 | VO35: =VK43 -> 15 | VS35: b | VU35: =IF(VR27>(VQ43-VQ40),VQ43,VQ40) -> -31.10797459 | VV35: =IF(VR27>(VQ43-VQ40),VR43,VR40) -> 0 | VW35: =VS43 -> 15 | VY35: =VQ68 -> -37.62879323 | VZ35: =VR68 -> 0 | WA35: =VS68 -> 4
E36: پهنای مچ آستین (cm) b14 | F36: =ROUNDUP(CA513-CA511,0) -> 0 | H36: a001 تعداد رج در یک سانت آستین | I36: =F6+0.3*I38*F6 -> 3.373809524 | N36: a4 | O36: =ROUND(0.66*O37,0) -> 28 | Q36: e3 | R36: =ROUND(0.35*(R38),0) -> 12 | T36: e3 | U36: =ROUND(0.33*(U38),0) -> 12 | W36: c4 | X36: =X8-X34-X35-5 -> 8 | Z36: c4 | AA36: =X8-X34-X35-4 -> 9 | AC36: d4 | AD36: =ROUND(AD19*AD8,0)-AD34-7 -> 1 | AI36: 0 | AJ36: =IF(AM36=0," ",(10/3)*((AM36/AL36)*(1/J6)-1)) ->  | AK36: =IF(AN36=0," ",(100/68)*((AO36/AN36)*(1/J7)-1)) ->  | AL36: 13.5 | AM36: 0 | AN36: 0 | AO36: 36 | AQ36: 30 | CI36: =CI14 -> 0 | CJ36: =CJ23+'طراحی همه الگوها'!U177+CJ15 -> 109.1 | CK36: j1 | CM36: =CI44 -> 2 | CN36: =CJ44 -> 59.5 | CO36: j10 | DA36: محاسبات | DD36: =DD15 -> 0 | DE36: =DE15-'طراحی همه الگوها'!U205 -> 111.1 | DF36: 21 | DL36: s19 | DM36: =DM18+'متغیرها '!C13*'متغیرها '!U83*COS(DM17) -> 47.96783847 | DN36: =DN18-'متغیرها '!C13*'متغیرها '!U83*SIN(DM17) -> 71.99901691 | DP36: =DM27 -> 33.24459995 | DQ36: =DN27 -> 77.15520225 | DR36: s10 | DX36: =DU20 -> 27.589178 | DY36: =DV20 -> 54.365496 | DZ36: s'12 | EB36: (1 → 5) | EC36: =DB38-'متغیرها '!C19*'متغیرها '!U83 -> 62.15639301 | EE36: =EC32 -> 120 | EF36: =EC33 -> 99.6 | EG36: 17 | EI36: =EE20 -> 110 | EJ36: =EF20 -> 109.6 | EK36: 10 | EN36: =EP29+DB38*COS(RADIANS(45)) -> 47.98171565 | EO36: 10 | EP36: =EP29+'طراحی همه الگوها'!U236*COS(RADIANS(45)) -> 48.01255044 | EQ36: =EQ29-'طراحی همه الگوها'!U236*SIN(RADIANS(45)) -> 61.08744956 | ER36: =EQ29-DB38*SIN(RADIANS(45)) -> 61.11828435 | ET36: =EP36 -> 48.01255044 | EU36: =EQ36 -> 61.08744956 | EV36: 10 | EX36: =EP35 -> 24.83030173 | EY36: =EQ35 -> 64.98731424 | EZ36: 9 | FF36: =FF31+'طراحی همه الگوها'!U260 -> 37.4 | FG36: =FG31 -> 70.2 | FH36: 16 | FJ36: =FJ19 -> 29.9 | FK36: =FG31 -> 70.2 | FL36: 25 | FR36: =FO19 -> 38.97359718 | FS36: =FP19 -> 57.68889787 | FT36: k4 شبیه ساز | GA36: 42 | GB36: =GB12+GE12*SIN(RADIANS(GA36)+GA14) ->  | GC36: =GC12+GE12*COS(RADIANS(GA36)+GA14) ->  | GD36: =IF(GB13>GB36,ATAN((GC13-GC36)/(GB13-GB36)),ATAN((GC13-GC36)/(GB36-GB13))) ->  | GE36: =IF(GB13>GB36,(GB13-GB36)/COS(GD36),(GB36-GB13)/COS(GD36)) ->  | GG36: 1 | GH36: 2 | GI36: نقطه 18 | GJ36: نقطه قبل از چرخش | GK36: =IF(GH36>GH18,IF(GG36>GG18,GG18+SQRT(POWER(GG36-GG18,2)+POWER(GH36-GH18,2))*COS(ATAN((GH36-GH18)/(GG36-GG18+0.000123))+GH16),GG18-SQRT(POWER(GG36-GG18,2)+POWER(GH36-GH18,2))*COS(ATAN((GH36-GH18)/(GG18-GG36+0.000123))-GH16)),IF(GG36>GG18,GG18+SQRT(POWER(GG36-GG18,2)+POWER(GH36-GH18,2))*COS(ATAN((GH18-GH36)/(GG36-GG18+0.000123))-GH16),GG18-SQRT(POWER(GG36-GG18,2)+POWER(GH36-GH18,2))*COS(ATAN((GH18-GH36)/(GG18-GG36+0.000123))+GH16))) -> 0.6182452327 | GL36: =IF(GH36>GH18,IF(GG36>GG18,GH18+SQRT(POWER(GG36-GG18,2)+POWER(GH36-GH18,2))*SIN(ATAN((GH36-GH18)/(GG36-GG18+0.000123))+GH16),GH18+SQRT(POWER(GG36-GG18,2)+POWER(GH36-GH18,2))*SIN(ATAN((GH36-GH18)/(GG18-GG36+0.000123))-GH16)),IF(GG36>GG18,GH18-SQRT(POWER(GG36-GG18,2)+POWER(GH36-GH18,2))*SIN(ATAN((GH18-GH36)/(GG36-GG18+0.000123))-GH16),GH18-SQRT(POWER(GG36-GG18,2)+POWER(GH36-GH18,2))*SIN(ATAN((GH18-GH36)/(GG18-GG36+0.000123))+GH16))) -> 0.6987463478 | GM36: نقطه چرخیده | GQ36: ماکزیمم متغیر ورودی ضریب طول | GR36: 1 | GU36: =GU35+GT11 -> -50 | GV36: -0.872664626 | GW36: =HB13+HB10*COS(GV36) ->  | GX36: =HC13-HB10*SIN(GV36) ->  | GY36: =SQRT(POWER((HB12-GW36),2)+POWER((HC12-GX36),2)) ->  | GZ36: =ABS(HB9-GY36) ->  | HB36: نقطه اصلی | HC36: =HB34 -> b17 | HD36: 1 | HE36: 1 | HO36: =-HK36+HP9 -> 0 | HP36: 0 | HS36: =HF30 -> 0 | HT36: =HG30 -> 0 | HU36: 26 | HW36: =HS36+2*(SIN(ATAN((HS12-HS11)/(HT12-HT11)))*(HT36-HT11)+COS(ATAN((HS12-HS11)/(HT12-HT11)))*(HS11-HS36))*COS(ATAN((HS12-HS11)/(HT12-HT11))) ->  | HX36: =HT36-2*(SIN(ATAN((HS12-HS11)/(HT12-HT11)))*(HT36-HT11)+COS(ATAN((HS12-HS11)/(HT12-HT11)))*(HS11-HS36))*SIN(ATAN((HS12-HS11)/(HT12-HT11))) ->  | HY36: 26 | NU36: h3 | NV36: ='متغیرها '!C884 -> 4.5 | NW36: طول باکس نوشته | NY36: پهنای نیم دایره | NZ36: =NV35 -> 0.5 | OA36: =NV49 -> 0.4816513761 | OB36: =NZ42 -> -2.986666667 | OC36: =OA42 -> 5.112385321 | OD36: =NY42 -> g5 | OF36: Xm1 | OG36: =NV31 -> -35 | OH36: جابجایی افقی کل نقشه | OJ36: پهنای نیم دایره | OK36: =OG40 -> 0.5 | OL36: =OG51 -> 0.3399892067 | OM36: =OK42 -> 14.53763889 | ON36: =OL42 -> 5.079330815 | OO36: =OJ42 -> g5 | OQ36: Xm1 | OR36: =NV31 -> -35 | OS36: جابجایی افقی کل نقشه | OU36: پهنای نیم دایره | OV36: =OR40 -> 0.5 | OW36: =OR51 -> 0.3399892067 | OX36: =OV42 -> 8.339722222 | OY36: =OW42 -> 5.079330815 | OZ36: =OU42 -> g5 | PB36: w'12 | PC36: =NV33 -> 42 | PD36: نسبت نقشه بافت به سایز واقعی | PF36: پهنای نیم دایره | PG36: =PC38 -> 0.5 | PH36: =PC49 -> 0.3399892067 | PI36: =PG42 -> 2.141805556 | PJ36: =PH42 -> 5.079330815 | PK36: =PF42 -> g5 | PM36: w'12 | PN36: =NV33 -> 42 | PO36: نسبت نقشه بافت به سایز واقعی | PQ36: پهنای نیم دایره | PR36: =PN38 -> 0.5 | PS36: =PN49 -> 0.3399892067 | PT36: =PR42 -> 7.100138889 | PU36: =PS42 -> 5.079330815 | PV36: =PQ42 -> g5 | PX36: =PX29 -> -45 | PY36: =PY34+2*PY7 -> 9.285714286 | PZ36: t8 | QB36: f7 | QC36: =QC34+QC34-QC35 -> -42.22857143 | QD36: =QD35 -> 7 | QE36: =QC37 -> -42.55 | QF36: =QD37 -> 7.428571429 | QG36: =QB37 -> f8 | QI36: =AH384 -> 14.08454728 | QJ36: =AI384 -> 83.86527835 | QK36: 22f | QM36: =QI79 -> 13.77329096 | QN36: =QJ79 -> 70.06516501 | QO36: a1 | QQ36: =QQ15 -> -13 | QR36: =QR15+QR7+QR8 -> 56.82779747 | QS36: k26 | QX36: =QQ49 -> -10.1 | QY36: =QR49 -> 57.25074482 | QZ36: k39 | RB36: Xw1 | RC36: =PN34 -> -35 | RD36: جابجایی افقی کل نقشه | RF36: پهنای نیم دایره | RG36: =RC40 -> 0.5 | RH36: =RC51 -> 0.3399892067 | RI36: =RG42 -> -4.0075 | RJ36: =RH42 -> 5.079330815 | RK36: =RF42 -> g5 | RN36: نقاط خروجی عمودی - اصلی | RQ36: =RQ35 -> 0 | RR36: =RN38 -> -40.15525759 | RY36: =RY35 -> -31.10797459 | RZ36: =RV38 -> 10.27777778 | SC36: =SC35 -> -37.62879323 | SD36: =RV38 -> 10.27777778 | SK36: =SK35 -> 0 | SL36: =SH38 -> -40.15525759 | SS36: =SS35 -> -31.10797459 | ST36: =SP38 -> 10.27777778 | SW36: =SW35 -> -37.62879323 | SX36: =SP38 -> 10.27777778 | TB36: نقاط خروجی عمودی - اصلی | TE36: =TE35 -> 0 | TF36: =TB38 -> -40.2293578 | TM36: =TM35 -> -31.33027523 | TN36: =TJ38 -> 9.722222222 | TQ36: =TQ35 -> -37.68807339 | TR36: =TJ38 -> 9.722222222 | TV36: نقاط خروجی عمودی - اصلی | TY36: =TY35 -> 0 | TZ36: =TV38 -> -40.2293578 | UG36: =UG35 -> -31.33027523 | UH36: =UD38 -> 9.722222222 | UK36: =UK35 -> -37.68807339 | UL36: =UD38 -> 9.722222222 | UP36: نقاط خروجی عمودی - اصلی | US36: =US35 -> 0 | UT36: =UP38 -> -40.15525759 | VA36: =VA35 -> -31.10797459 | VB36: =UX38 -> 10.27777778 | VE36: =VE35 -> -37.62879323 | VF36: =UX38 -> 10.27777778 | VJ36: نقاط خروجی عمودی - اصلی | VM36: =VM35 -> 0 | VN36: =VJ38 -> -40.15525759 | VU36: =VU35 -> -31.10797459 | VV36: =VR38 -> 10.27777778 | VY36: =VY35 -> -37.62879323 | VZ36: =VR38 -> 10.27777778
E37: گشادی مچ جدار در پایین آستین (cm) b15 | F37: =ROUND(BZ520-BZ519,0) -> 14 | H37: تعداد دانه در یک سانت آستینb001 | I37: =F7+0.68*I39*F7 -> 2.335135135 | N37: a5 | O37: =ROUND(0.35*O33,0) -> 43 | Q37: e4 | R37: =ROUND(0.65*(R38),0) -> 21 | T37: e4 | U37: =ROUND(0.66*(U38),0) -> 24 | W37: c10 | X37: =W30 -> 51 | Z37: c10 | AA37: =X37 -> 51 | AC37: d5 | AD37: =ROUND(AD20*AD5,0) -> 70 | AI37: 0 | AJ37: =IF(AM37=0," ",(10/3)*((AM37/AL37)*(1/J6)-1)) ->  | AK37: =IF(AN37=0," ",(100/68)*((AO37/AN37)*(1/J7)-1)) ->  | AL37: 13.5 | AM37: 0 | AN37: 0 | AO37: 36 | AQ37: 31 | CI37: =CI36 -> 0 | CJ37: =CJ36-'طراحی همه الگوها'!U177 -> 60.5 | CK37: j2 | DA37: مولفه افقی نقطه 1 | DB37: =0 -> 0 | DD37: =DD16 -> 13.3 | DE37: =DE16-'طراحی همه الگوها'!U206 -> 112.6 | DF37: 22 | DL37: s20 | DM37: =DM27-0.25*'متغیرها '!U84*SIN(DM17) -> 32.21171026 | DN37: =DN27-0.25*'متغیرها '!U84*COS(DM17) -> 74.20583556 | DP37: =DM36 -> 47.96783847 | DQ37: =DN36 -> 71.99901691 | DR37: s19 | EB37: زاویه مچ | EC37: 15 | EE37: =EC32+'طراحی همه الگوها'!U224 -> 125.7 | EF37: =EC33 -> 99.6 | EG37: 18 | EI37: =EI15 -> 118.8 | EJ37: =EJ15 -> 109.6 | EK37: 13 | EN37: =EN36-'متغیرها '!U84*COS(RADIANS(45)) -> 39.14288088 | EO37: 11 | EP37: =EP36-'طراحی همه الگوها'!U237*COS(RADIANS(45)) -> 40.51721856 | EQ37: =EQ36-'طراحی همه الگوها'!U237*SIN(RADIANS(45)) -> 53.59211768 | ER37: =ER36-'متغیرها '!U84*SIN(RADIANS(45)) -> 52.27944959 | EX37: =EP34 -> 46.60831334 | EY37: =EQ34 -> 5.15271912 | EZ37: 8 | FF37: =FF36 -> 37.4 | FG37: =FG31+'طراحی همه الگوها'!U261 -> 84.3 | FH37: 17 | FJ37: =FJ19 -> 29.9 | FK37: =FK19 -> 81.8 | FL37: 26 | GA37: 44 | GB37: =GB12+GE12*SIN(RADIANS(GA37)+GA14) ->  | GC37: =GC12+GE12*COS(RADIANS(GA37)+GA14) ->  | GD37: =IF(GB13>GB37,ATAN((GC13-GC37)/(GB13-GB37)),ATAN((GC13-GC37)/(GB37-GB13))) ->  | GE37: =IF(GB13>GB37,(GB13-GB37)/COS(GD37),(GB37-GB13)/COS(GD37)) ->  | GG37: 1 | GH37: 2 | GI37: نقطه 19 | GJ37: نقطه قبل از چرخش | GK37: =IF(GH37>GH18,IF(GG37>GG18,GG18+SQRT(POWER(GG37-GG18,2)+POWER(GH37-GH18,2))*COS(ATAN((GH37-GH18)/(GG37-GG18+0.000123))+GH16),GG18-SQRT(POWER(GG37-GG18,2)+POWER(GH37-GH18,2))*COS(ATAN((GH37-GH18)/(GG18-GG37+0.000123))-GH16)),IF(GG37>GG18,GG18+SQRT(POWER(GG37-GG18,2)+POWER(GH37-GH18,2))*COS(ATAN((GH18-GH37)/(GG37-GG18+0.000123))-GH16),GG18-SQRT(POWER(GG37-GG18,2)+POWER(GH37-GH18,2))*COS(ATAN((GH18-GH37)/(GG18-GG37+0.000123))+GH16))) -> 0.6182452327 | GL37: =IF(GH37>GH18,IF(GG37>GG18,GH18+SQRT(POWER(GG37-GG18,2)+POWER(GH37-GH18,2))*SIN(ATAN((GH37-GH18)/(GG37-GG18+0.000123))+GH16),GH18+SQRT(POWER(GG37-GG18,2)+POWER(GH37-GH18,2))*SIN(ATAN((GH37-GH18)/(GG18-GG37+0.000123))-GH16)),IF(GG37>GG18,GH18-SQRT(POWER(GG37-GG18,2)+POWER(GH37-GH18,2))*SIN(ATAN((GH18-GH37)/(GG37-GG18+0.000123))-GH16),GH18-SQRT(POWER(GG37-GG18,2)+POWER(GH37-GH18,2))*SIN(ATAN((GH18-GH37)/(GG18-GG37+0.000123))+GH16))) -> 0.6987463478 | GM37: نقطه چرخیده | GO37: m1 | GP37: =ATAN((-GQ33+GQ32)/(GR32-GR33)) ->  | GQ37: m2 | GR37: =SQRT(POWER(GQ32-GQ33,2)+POWER(GR32-GR33,2)) ->  | GU37: =GU36+GT11 -> -48 | GV37: -0.837758041 | GW37: =HB13+HB10*COS(GV37) ->  | GX37: =HC13-HB10*SIN(GV37) ->  | GY37: =SQRT(POWER((HB12-GW37),2)+POWER((HC12-GX37),2)) ->  | GZ37: =ABS(HB9-GY37) ->  | HB37: نقطه سمت راست | HC37: b18 | HD37: 2 | HE37: 2 | HO37: =-HK37+HP9 -> 0 | HP37: 0 | HS37: 0 | HT37: 0 | HU37: 27 | HW37: =HS37+2*(SIN(ATAN((HS12-HS11)/(HT12-HT11)))*(HT37-HT11)+COS(ATAN((HS12-HS11)/(HT12-HT11)))*(HS11-HS37))*COS(ATAN((HS12-HS11)/(HT12-HT11))) ->  | HX37: =HT37-2*(SIN(ATAN((HS12-HS11)/(HT12-HT11)))*(HT37-HT11)+COS(ATAN((HS12-HS11)/(HT12-HT11)))*(HS11-HS37))*SIN(ATAN((HS12-HS11)/(HT12-HT11))) ->  | HY37: 27 | NU37: h4 | NV37: ='متغیرها '!C885 -> 0.5 | NW37: پهنای باکس نوشته | NY37: نقطه شروع انحنا | NZ37: مولفه افقی | OA37: مولفه عمودی | OB37: =NZ41 -> -2.829166667 | OC37: =OA41 -> 5.401376147 | OD37: =NY41 -> g4 | OF37: Ym1 | OG37: =NV32 -> 5 | OH37: جابجایی عمودی کل نقشه | OJ37: نقطه شروع انحنا | OK37: مولفه افقی | OL37: مولفه عمودی | OM37: =OK41 -> 14.69513889 | ON37: =OL41 -> 5.283324339 | OO37: =OJ41 -> g4 | OQ37: Ym1 | OR37: =NV32 -> 5 | OS37: جابجایی عمودی کل نقشه | OU37: نقطه شروع انحنا | OV37: مولفه افقی | OW37: مولفه عمودی | OX37: =OV41 -> 8.497222222 | OY37: =OW41 -> 5.283324339 | OZ37: =OU41 -> g4 | PB37: wn11 | PC37: ='متغیرها '!C882/PB16 -> 0.5666486778 | PD37: ارتفاع هر رج | PF37: نقطه شروع انحنا | PG37: مولفه افقی | PH37: مولفه عمودی | PI37: =PG41 -> 2.299305556 | PJ37: =PH41 -> 5.283324339 | PK37: =PF41 -> g4 | PM37: wn11 | PN37: ='متغیرها '!C882/PM16 -> 0.5666486778 | PO37: ارتفاع هر رج | PQ37: نقطه شروع انحنا | PR37: مولفه افقی | PS37: مولفه عمودی | PT37: =PR41 -> 7.257638889 | PU37: =PS41 -> 5.283324339 | PV37: =PQ41 -> g4 | PX37: =PX36-PX30+PX29 -> -48.5 | PY37: =PY36 -> 9.285714286 | PZ37: t9 | QB37: f8 | QC37: =QC34 -> -42.55 | QD37: =QD34+2*QC29 -> 7.428571429 | QE37: =QC36 -> -42.22857143 | QF37: =QD36 -> 7 | QG37: =QB36 -> f7 | QI37: =AH385 -> 43.5465562 | QJ37: =AI385 -> 59.75036609 | QK37: k''4 | QQ37: =QQ15+(QR7+2*QR8)*SIN(RADIANS(30)) -> -10.4 | QR37: =QR15-(QR7+2*QR8)*COS(RADIANS(30)) -> 47.72446537 | QS37: k27 | QX37: =QQ47 -> -7.2 | QY37: =QR47 -> 52.22779747 | QZ37: k37 | RB37: Yw1 | RC37: 5 | RD37: جابجایی عمودی کل نقشه | RF37: نقطه شروع انحنا | RG37: مولفه افقی | RH37: مولفه عمودی | RI37: =RG41 -> -3.85 | RJ37: =RH41 -> 5.283324339 | RK37: =RF41 -> g4 | RO37: a | TC37: a | TW37: a | UQ37: a | VK37: a
E38: در بالای مچ هر b12 دانه یکی کم شود | F38: =F22 -> 4 | H38: جمع شوندگی عمودی بافت آستین f002 | I38: =OFFSET(AJ6,I40,0) -> 0.1058201058 | N38: a6 | O38: =ROUND(0.4*P9,0) -> 6 | Q38: e5 | R38: =ROUND(0.28*(R34),0) -> 33 | T38: e5 | U38: =ROUND(0.35*(U34),0) -> 36 | W38: c11 | X38: =X30 -> 49 | Z38: c11 | AA38: =X38 -> 49 | AC38: d6 | AD38: =G45 -> 20 | AI38: 0 | AJ38: =IF(AM38=0," ",(10/3)*((AM38/AL38)*(1/J6)-1)) ->  | AK38: =IF(AN38=0," ",(100/68)*((AO38/AN38)*(1/J7)-1)) ->  | AL38: 13.5 | AM38: 0 | AN38: 0 | AO38: 36 | AQ38: 32 | CI38: =CI36+'طراحی همه الگوها'!U178 -> 10.7 | CJ38: =CJ36 -> 109.1 | CK38: j3 | CM38: =CI44 -> 2 | CN38: =CJ44 -> 59.5 | CO38: j10 | DA38: نوک سر تا مچ دست شبیه ساز a3 | DB38: =1.03*(SQRT(POWER(0.5*H168,2)+POWER((0.47*'متغیرها '!U85+H167*SIN('متغیرها '!B245)),2)))+'متغیرها '!U83 -> 67.85639301 | DX38: =DX36 -> 27.589178 | DY38: =DY36 -> 54.365496 | DZ38: s'12 | EB38: شبیه سازαk1 | EC38: =F423 -> 1.391100596 | EE38: =EC32+'طراحی همه الگوها'!U224 -> 125.7 | EF38: =EC33-'طراحی همه الگوها'!U226 -> 90.1 | EG38: 20 | FR38: =FO27 -> 27.9 | FS38: =FP27 -> 0 | FT38: s13 | GA38: 46 | GB38: =GB12+GE12*SIN(RADIANS(GA38)+GA14) ->  | GC38: =GC12+GE12*COS(RADIANS(GA38)+GA14) ->  | GD38: =IF(GB13>GB38,ATAN((GC13-GC38)/(GB13-GB38)),ATAN((GC13-GC38)/(GB38-GB13))) ->  | GE38: =IF(GB13>GB38,(GB13-GB38)/COS(GD38),(GB38-GB13)/COS(GD38)) ->  | GG38: 1 | GH38: 2 | GI38: نقطه 20 | GJ38: نقطه قبل از چرخش | GK38: =IF(GH38>GH18,IF(GG38>GG18,GG18+SQRT(POWER(GG38-GG18,2)+POWER(GH38-GH18,2))*COS(ATAN((GH38-GH18)/(GG38-GG18+0.000123))+GH16),GG18-SQRT(POWER(GG38-GG18,2)+POWER(GH38-GH18,2))*COS(ATAN((GH38-GH18)/(GG18-GG38+0.000123))-GH16)),IF(GG38>GG18,GG18+SQRT(POWER(GG38-GG18,2)+POWER(GH38-GH18,2))*COS(ATAN((GH18-GH38)/(GG38-GG18+0.000123))-GH16),GG18-SQRT(POWER(GG38-GG18,2)+POWER(GH38-GH18,2))*COS(ATAN((GH18-GH38)/(GG18-GG38+0.000123))+GH16))) -> 0.6182452327 | GL38: =IF(GH38>GH18,IF(GG38>GG18,GH18+SQRT(POWER(GG38-GG18,2)+POWER(GH38-GH18,2))*SIN(ATAN((GH38-GH18)/(GG38-GG18+0.000123))+GH16),GH18+SQRT(POWER(GG38-GG18,2)+POWER(GH38-GH18,2))*SIN(ATAN((GH38-GH18)/(GG18-GG38+0.000123))-GH16)),IF(GG38>GG18,GH18-SQRT(POWER(GG38-GG18,2)+POWER(GH38-GH18,2))*SIN(ATAN((GH18-GH38)/(GG38-GG18+0.000123))-GH16),GH18-SQRT(POWER(GG38-GG18,2)+POWER(GH38-GH18,2))*SIN(ATAN((GH18-GH38)/(GG18-GG38+0.000123))+GH16))) -> 0.6987463478 | GM38: نقطه چرخیده | GO38: نقطه خروجی بالا | GP38: s'u9 | GQ38: =GQ32-GQ34*COS(GP37) ->  | GR38: =GR32+GQ34*SIN(GP37) ->  | GU38: =GU37+GT11 -> -46 | GV38: -0.8028514559 | GW38: =HB13+HB10*COS(GV38) ->  | GX38: =HC13-HB10*SIN(GV38) ->  | GY38: =SQRT(POWER((HB12-GW38),2)+POWER((HC12-GX38),2)) ->  | GZ38: =ABS(HB9-GY38) ->  | HB38: نقطه سمت چپ | HC38: b16 | HD38: 3 | HE38: 3 | HO38: =-HK38+HP9 -> 0 | HP38: 0 | HS38: 0 | HT38: 0 | HU38: 28 | HW38: =HS38+2*(SIN(ATAN((HS12-HS11)/(HT12-HT11)))*(HT38-HT11)+COS(ATAN((HS12-HS11)/(HT12-HT11)))*(HS11-HS38))*COS(ATAN((HS12-HS11)/(HT12-HT11))) ->  | HX38: =HT38-2*(SIN(ATAN((HS12-HS11)/(HT12-HT11)))*(HT38-HT11)+COS(ATAN((HS12-HS11)/(HT12-HT11)))*(HS11-HS38))*SIN(ATAN((HS12-HS11)/(HT12-HT11))) ->  | HY38: 28 | NU38: f'4 | NV38: ='متغیرها '!C886 -> 0.6 | NW38: بزرگی فلش رج | NY38: w2 | NZ38: =NU51 -> -3.354166667 | OA38: =NV51 -> 5 | OB38: =NZ43 -> -2.986666667 | OC38: =OA43 -> 5.690366972 | OD38: =NY43 -> g6 | OF38: w'12 | OG38: =NV33 -> 42 | OH38: نسبت نقشه بافت به سایز واقعی | OJ38: m2 | OK38: =OF61 -> 14.17013889 | OL38: =OG61 -> 5 | OM38: =OK43 -> 14.53763889 | ON38: =OL43 -> 5.487317863 | OO38: =OJ43 -> g6 | OQ38: w'12 | OR38: =NV33 -> 42 | OS38: نسبت نقشه بافت به سایز واقعی | OU38: m2 | OV38: =OQ61 -> 7.972222222 | OW38: =OR61 -> 5 | OX38: =OV43 -> 8.339722222 | OY38: =OW43 -> 5.487317863 | OZ38: =OU43 -> g6 | PB38: g9 | PC38: =NV35 -> 0.5 | PD38: پهنای نیم دایره | PF38: n2 | PG38: =PB61 -> 1.774305556 | PH38: =PC61 -> 5 | PI38: =PG43 -> 2.141805556 | PJ38: =PH43 -> 5.487317863 | PK38: =PF43 -> g6 | PM38: g9 | PN38: =NV35 -> 0.5 | PO38: پهنای نیم دایره | PQ38: n2 | PR38: =PM61 -> 6.732638889 | PS38: =PN61 -> 5 | PT38: =PR43 -> 7.100138889 | PU38: =PS43 -> 5.487317863 | PV38: =PQ43 -> g6 | PX38: =PX37 -> -48.5 | PY38: =PY37+PY7 -> 10.71428571 | PZ38: t10 | QI38: =AH388 -> 38.36859847 | QJ38: =AI388 -> 53.42427893 | QK38: k''5 | QM38: =QI79 -> 13.77329096 | QN38: =QJ79 -> 70.06516501 | QO38: a1 | QQ38: =QQ15+(QR7+2*QR8)*SIN(RADIANS(60)) -> -8.4966679 | QR38: =QR15-(QR7+2*QR8)*COS(RADIANS(60)) -> 49.62779747 | QS38: k28 | QX38: =QQ45 -> -7.977052658 | QY38: =QR45 -> 49.32779747 | QZ38: k35 | RB38: w'12 | RC38: 42 | RD38: نسبت نقشه بافت به سایز واقعی | RF38: p2 | RG38: =RB61 -> -4.375 | RH38: =RC61 -> 5 | RI38: =RG43 -> -4.0075 | RJ38: =RH43 -> 5.487317863 | RK38: =RF43 -> g6 | RM38: =RM40 -> 0 | RN38: =RN40-ROUND(RN27/RN29,0)*RN29 -> -40.15525759 | RO38: 1' | RQ38: =IF(RN26>(RM44-RM40),RM44,RM40) -> 0 | RR38: =IF(RN26>(RM44-RM40),RN44,RN40) -> -20 | RS38: =RO44 -> 20 | RU38: =RU40 -> -40 | RV38: =-(RV40-ROUND(RV28/RV32,0)*RV32)+RV33 -> 10.27777778 | RW38: 1' | RY38: =IF(RV27>(RU44-RU40),RU44,RU40) -> -28.14396613 | RZ38: =IF(RV27>(RU44-RU40),RV44,RV40) -> 0 | SA38: =RW44 -> 20 | SC38: =IF(RV27>(RU69-RU40),RU69,RU40) -> -36.44318984 | SD38: =IF(RV27>(RU69-RU40),RV69,RV40) -> 0 | SE38: 6 | SG38: =SG40 -> 0 | SH38: =SH40-ROUND(SH27/SH29,0)*SH29 -> -40.15525759 | SI38: 1' | SK38: =IF(SH26>(SG44-SG40),SG44,SG40) -> 0 | SL38: =IF(SH26>(SG44-SG40),SH44,SH40) -> -20 | SM38: =SI44 -> 20 | SO38: =SO40 -> -40 | SP38: =-(SP40-ROUND(SP28/SP32,0)*SP32)+SP33 -> 10.27777778 | SQ38: 1' | SS38: =IF(SP27>(SO44-SO40),SO44,SO40) -> -28.14396613 | ST38: =IF(SP27>(SO44-SO40),SP44,SP40) -> 0 | SU38: =SQ44 -> 20 | SW38: =IF(SP27>(SO69-SO40),SO69,SO40) -> -36.44318984 | SX38: =IF(SP27>(SO69-SO40),SP69,SP40) -> 0 | SY38: 6 | TA38: =TA40 -> 0 | TB38: =TB40-ROUND(TB27/TB29,0)*TB29 -> -40.2293578 | TC38: 1' | TE38: =IF(TB26>(TA44-TA40),TA44,TA40) -> 0 | TF38: =IF(TB26>(TA44-TA40),TB44,TB40) -> -20 | TG38: =TC44 -> 20 | TI38: =TI40 -> -40 | TJ38: =-(TJ40-ROUND(TJ28/TJ32,0)*TJ32)+TJ33 -> 9.722222222 | TK38: 1' | TM38: =IF(TJ27>(TI44-TI40),TI44,TI40) -> -28.44036697 | TN38: =IF(TJ27>(TI44-TI40),TJ44,TJ40) -> 0 | TO38: =TK44 -> 20 | TQ38: =IF(TJ27>(TI69-TI40),TI69,TI40) -> -36.53211009 | TR38: =IF(TJ27>(TI69-TI40),TJ69,TJ40) -> 0 | TS38: 6 | TU38: =TU40 -> 0 | TV38: =TV40-ROUND(TV27/TV29,0)*TV29 -> -40.2293578 | TW38: 1' | TY38: =IF(TV26>(TU44-TU40),TU44,TU40) -> 0 | TZ38: =IF(TV26>(TU44-TU40),TV44,TV40) -> -20 | UA38: =TW44 -> 20 | UC38: =UC40 -> -40 | UD38: =-(UD40-ROUND(UD28/UD32,0)*UD32)+UD33 -> 9.722222222 | UE38: 1' | UG38: =IF(UD27>(UC44-UC40),UC44,UC40) -> -28.44036697 | UH38: =IF(UD27>(UC44-UC40),UD44,UD40) -> 0 | UI38: =UE44 -> 20 | UK38: =IF(UD27>(UC69-UC40),UC69,UC40) -> -36.53211009 | UL38: =IF(UD27>(UC69-UC40),UD69,UD40) -> 0 | UM38: 6 | UO38: =UO40 -> 0 | UP38: =UP40-ROUND(UP27/UP29,0)*UP29 -> -40.15525759 | UQ38: 1' | US38: =IF(UP26>(UO44-UO40),UO44,UO40) -> 0 | UT38: =IF(UP26>(UO44-UO40),UP44,UP40) -> -20 | UU38: =UQ44 -> 20 | UW38: =UW40 -> -40 | UX38: =-(UX40-ROUND(UX28/UX32,0)*UX32)+UX33 -> 10.27777778 | UY38: 1' | VA38: =IF(UX27>(UW44-UW40),UW44,UW40) -> -28.14396613 | VB38: =IF(UX27>(UW44-UW40),UX44,UX40) -> 0 | VC38: =UY44 -> 20 | VE38: =IF(UX27>(UW69-UW40),UW69,UW40) -> -36.44318984 | VF38: =IF(UX27>(UW69-UW40),UX69,UX40) -> 0 | VG38: 6 | VI38: =VI40 -> 0 | VJ38: =VJ40-ROUND(VJ27/VJ29,0)*VJ29 -> -40.15525759 | VK38: 1' | VM38: =IF(VJ26>(VI44-VI40),VI44,VI40) -> 0 | VN38: =IF(VJ26>(VI44-VI40),VJ44,VJ40) -> -20 | VO38: =VK44 -> 20 | VQ38: =VQ40 -> -40 | VR38: =-(VR40-ROUND(VR28/VR32,0)*VR32)+VR33 -> 10.27777778 | VS38: 1' | VU38: =IF(VR27>(VQ44-VQ40),VQ44,VQ40) -> -28.14396613 | VV38: =IF(VR27>(VQ44-VQ40),VR44,VR40) -> 0 | VW38: =VS44 -> 20 | VY38: =IF(VR27>(VQ69-VQ40),VQ69,VQ40) -> -36.44318984 | VZ38: =IF(VR27>(VQ69-VQ40),VR69,VR40) -> 0 | WA38: 6
E39: هر b11 رج در بافت آستین یکدانه از ابتدا و یکدانه از انتها کم شود | F39: =F19 -> 6 | H39: جمع شوندگی افقی بافت آستین f003 | I39: =OFFSET(AJ6,I40,1) -> -0.03974562798 | N39: a10 | O39: =L30 -> 5 | Q39: e6 | R39: =R35 -> 9 | T39: e6 | U39: =U35 -> 9 | W39: خطا | X39: =IF(X34>0," ","خطا : پهنای یقه ب ب زیاد شود ") ->  | Z39: خطا | AA39: =X39 ->  | AC39: d7 | AD39: =G44 -> 12 | AI39: 0 | AJ39: =IF(AM39=0," ",(10/3)*((AM39/AL39)*(1/J6)-1)) ->  | AK39: =IF(AN39=0," ",(100/68)*((AO39/AN39)*(1/J7)-1)) ->  | AL39: 13.5 | AM39: 0 | AN39: 0 | AO39: 36 | AQ39: 33 | CI39: ='طراحی همه الگوها'!U178+'طراحی همه الگوها'!U177+CI36 -> 59.3 | CJ39: =CJ36 -> 109.1 | CK39: j5 | CM39: =CI43 -> 0 | CN39: =CJ43 -> 59.5 | CO39: j9 | DL39: محاسبات طراحی چادر 2 | DP39: =DP37 -> 47.96783847 | DQ39: =DQ37 -> 71.99901691 | DR39: s19 | DX39: =DU18 -> 34.94308853 | DY39: =DV18 -> 61.71940652 | DZ39: s'10 | EB39: (k4 →k5)شبیه ساز | EC39: =F425 -> 6.359826441 | EE39: =EC32 -> 120 | EF39: =EC33-'طراحی همه الگوها'!U225 -> 89.2 | EG39: 19 | EI39: =EE37 -> 125.7 | EJ39: =EF37 -> 99.6 | EK39: 18 | EQ39: j4 | ER39: =IF('متغیرها '!C25<1,'متغیرها '!C25*'متغیرها '!U59,IF('متغیرها '!C25<2,'متغیرها '!U59+('متغیرها '!C25-1)*('متغیرها '!U60-'متغیرها '!U59),IF('متغیرها '!C25<3,'متغیرها '!U60+('متغیرها '!C25-2)*(I105-'متغیرها '!U60),I105+('متغیرها '!C25-3)*(H127-H126)))) -> 0 | EX39: =EP29 -> 0 | EY39: =EQ29 -> 109.1 | EZ39: 1 | FF39: =FF13 -> 0 | FG39: =FG33-FC43 -> 135.89 | FH39: 19' | FJ39: =FJ13 -> 73.425 | FK39: =FG33 -> 146.6 | FL39: 27 | FR39: =FO30 -> 0 | FS39: =FP30 -> 0 | FT39: 2 | GA39: 48 | GB39: =GB12+GE12*SIN(RADIANS(GA39)+GA14) ->  | GC39: =GC12+GE12*COS(RADIANS(GA39)+GA14) ->  | GD39: =IF(GB13>GB39,ATAN((GC13-GC39)/(GB13-GB39)),ATAN((GC13-GC39)/(GB39-GB13))) ->  | GE39: =IF(GB13>GB39,(GB13-GB39)/COS(GD39),(GB39-GB13)/COS(GD39)) ->  | GG39: 1 | GH39: 2 | GI39: نقطه 21 | GJ39: نقطه قبل از چرخش | GK39: =IF(GH39>GH18,IF(GG39>GG18,GG18+SQRT(POWER(GG39-GG18,2)+POWER(GH39-GH18,2))*COS(ATAN((GH39-GH18)/(GG39-GG18+0.000123))+GH16),GG18-SQRT(POWER(GG39-GG18,2)+POWER(GH39-GH18,2))*COS(ATAN((GH39-GH18)/(GG18-GG39+0.000123))-GH16)),IF(GG39>GG18,GG18+SQRT(POWER(GG39-GG18,2)+POWER(GH39-GH18,2))*COS(ATAN((GH18-GH39)/(GG39-GG18+0.000123))-GH16),GG18-SQRT(POWER(GG39-GG18,2)+POWER(GH39-GH18,2))*COS(ATAN((GH18-GH39)/(GG18-GG39+0.000123))+GH16))) -> 0.6182452327 | GL39: =IF(GH39>GH18,IF(GG39>GG18,GH18+SQRT(POWER(GG39-GG18,2)+POWER(GH39-GH18,2))*SIN(ATAN((GH39-GH18)/(GG39-GG18+0.000123))+GH16),GH18+SQRT(POWER(GG39-GG18,2)+POWER(GH39-GH18,2))*SIN(ATAN((GH39-GH18)/(GG18-GG39+0.000123))-GH16)),IF(GG39>GG18,GH18-SQRT(POWER(GG39-GG18,2)+POWER(GH39-GH18,2))*SIN(ATAN((GH18-GH39)/(GG39-GG18+0.000123))-GH16),GH18-SQRT(POWER(GG39-GG18,2)+POWER(GH39-GH18,2))*SIN(ATAN((GH18-GH39)/(GG18-GG39+0.000123))+GH16))) -> 0.6987463478 | GM39: نقطه چرخیده | GO39: نقطه خروجی پایین | GP39: s'd8 | GQ39: =GQ40-GQ34*COS(GP37) ->  | GR39: =GR40+GQ34*SIN(GP37) ->  | GU39: =GU38+GT11 -> -44 | GV39: -0.7679448709 | GW39: =HB13+HB10*COS(GV39) ->  | GX39: =HC13-HB10*SIN(GV39) ->  | GY39: =SQRT(POWER((HB12-GW39),2)+POWER((HC12-GX39),2)) ->  | GZ39: =ABS(HB9-GY39) ->  | HD39: فاصله تا نقطه اصلی | HE39: 4 | HO39: =-HK39+HP9 -> 0 | HP39: 0 | HS39: =HF30 -> 0 | HT39: =HG30 -> 0 | HU39: 29 | HW39: =HS39+2*(SIN(ATAN((HS12-HS11)/(HT12-HT11)))*(HT39-HT11)+COS(ATAN((HS12-HS11)/(HT12-HT11)))*(HS11-HS39))*COS(ATAN((HS12-HS11)/(HT12-HT11))) ->  | HX39: =HT39-2*(SIN(ATAN((HS12-HS11)/(HT12-HT11)))*(HT39-HT11)+COS(ATAN((HS12-HS11)/(HT12-HT11)))*(HS11-HS39))*SIN(ATAN((HS12-HS11)/(HT12-HT11))) ->  | HY39: 29 | NU39: f5 | NV39: ='متغیرها '!C887 -> 0.5 | NW39: زاویه فلش رج | NY39: g11 | NZ39: =NZ43+0.8*(NZ41-NZ43) -> -2.860666667 | OA39: =OA41+0.6*(OA43-OA41) -> 5.574770642 | OB39: =NZ40 -> -3.354166667 | OC39: =OA40 -> 5.802752294 | OD39: =NY40 -> g2 | OF39: w11 | OG39: ='متغیرها '!C882/OG56 -> 0.5666486778 | OH39: ارتفاع هر رج | OJ39: g11 | OK39: =OK43+0.8*(OK41-OK43) -> 14.66363889 | OL39: =OL41+0.6*(OL43-OL41) -> 5.405720453 | OM39: =OK40 -> 14.17013889 | ON39: =OL40 -> 5.566648678 | OO39: =OJ40 -> g2 | OQ39: w11 | OR39: ='متغیرها '!C882/OR56 -> 0.5666486778 | OS39: ارتفاع هر رج | OU39: g11 | OV39: =OV43+0.8*(OV41-OV43) -> 8.465722222 | OW39: =OW41+0.6*(OW43-OW41) -> 5.405720453 | OX39: =OV40 -> 7.972222222 | OY39: =OW40 -> 5.566648678 | OZ39: =OU40 -> g2 | PB39: h3 | PC39: =NV36 -> 4.5 | PD39: طول باکس نوشته | PF39: g11 | PG39: =PG43+0.8*(PG41-PG43) -> 2.267805556 | PH39: =PH41+0.6*(PH43-PH41) -> 5.405720453 | PI39: =PG40 -> 1.774305556 | PJ39: =PH40 -> 5.566648678 | PK39: =PF40 -> g2 | PM39: h3 | PN39: =NV36 -> 4.5 | PO39: طول باکس نوشته | PQ39: g11 | PR39: =PR43+0.8*(PR41-PR43) -> 7.226138889 | PS39: =PS41+0.6*(PS43-PS41) -> 5.405720453 | PT39: =PR40 -> 6.732638889 | PU39: =PS40 -> 5.566648678 | PV39: =PQ40 -> g2 | PX39: =PX38+PX31-PX34 -> -41.5 | PY39: =PY38 -> 10.71428571 | PZ39: t11 | QE39: =PX35 -> -36.5 | QF39: =PY35 -> 5.714285714 | QG39: =PZ35 -> t7 | QK39: قرینه یقه گرد جلو | QM39: =QI66 -> 15.7765 | QN39: =QJ66 -> 70.06516501 | QO39: 12 | QQ39: =2*QQ15-QQ38 -> -17.5033321 | QR39: =QR38 -> 49.62779747 | QS39: k29 | QX39: =QQ52 -> -7.457437416 | QY39: =QR52 -> 49.02779747 | QZ39: k42 | RB39: wn11 | RC39: =PN37 -> 0.5666486778 | RD39: ارتفاع هر رج | RF39: g11 | RG39: =RG43+0.8*(RG41-RG43) -> -3.8815 | RH39: =RH41+0.6*(RH43-RH41) -> 5.405720453 | RI39: =RG40 -> -4.375 | RJ39: =RH40 -> 5.566648678 | RK39: =RF40 -> g2 | RQ39: =RQ38 -> 0 | RR39: =RN38 -> -40.15525759 | RY39: =RY38 -> -28.14396613 | RZ39: =RV38 -> 10.27777778 | SC39: =SC38 -> -36.44318984 | SD39: =RV38 -> 10.27777778 | SK39: =SK38 -> 0 | SL39: =SH38 -> -40.15525759 | SS39: =SS38 -> -28.14396613 | ST39: =SP38 -> 10.27777778 | SW39: =SW38 -> -36.44318984 | SX39: =SP38 -> 10.27777778 | TE39: =TE38 -> 0 | TF39: =TB38 -> -40.2293578 | TM39: =TM38 -> -28.44036697 | TN39: =TJ38 -> 9.722222222 | TQ39: =TQ38 -> -36.53211009 | TR39: =TJ38 -> 9.722222222 | TY39: =TY38 -> 0 | TZ39: =TV38 -> -40.2293578 | UG39: =UG38 -> -28.44036697 | UH39: =UD38 -> 9.722222222 | UK39: =UK38 -> -36.53211009 | UL39: =UD38 -> 9.722222222 | US39: =US38 -> 0 | UT39: =UP38 -> -40.15525759 | VA39: =VA38 -> -28.14396613 | VB39: =UX38 -> 10.27777778 | VE39: =VE38 -> -36.44318984 | VF39: =UX38 -> 10.27777778 | VM39: =VM38 -> 0 | VN39: =VJ38 -> -40.15525759 | VU39: =VU38 -> -28.14396613 | VV39: =VR38 -> 10.27777778 | VY39: =VY38 -> -36.44318984 | VZ39: =VR38 -> 10.27777778
H40: بافت انتخابی آستین | I40: ='متغیرها '!C861 -> 11 | N40: a11 | O40: =M30 -> 3 | Q40: e7 | R40: =ROUND(S18*F12,0) -> 0 | T40: e7 | U40: =R40 -> 0 | W40: اختلاف دور یقه ب ب خیاطی با بافتنی (سانتیمتر) | X40: =ROUND((X14-X33)/X20,1) -> 7.5 | Z40: اختلاف دور یقه ب ب خیاطی با بافتنی (سانتیمتر) | AA40: =ROUND((X14-AA33)/X20,1) -> 2.8 | AC40: d8 | AD40: =ROUND(AD20*SQRT(POWER((AC13-J233),2)+POWER((AD13-K233),2)),0) -> 14 | AI40: 0 | AJ40: =IF(AM40=0," ",(10/3)*((AM40/AL40)*(1/J6)-1)) ->  | AK40: =IF(AN40=0," ",(100/68)*((AO40/AN40)*(1/J7)-1)) ->  | AL40: 13.5 | AM40: 0 | AN40: 0 | AO40: 36 | AQ40: 34 | CI40: ='طراحی همه الگوها'!U179+CI36 -> 5.1 | CJ40: =CJ36 -> 109.1 | CK40: j6 | DL40: αs2 | DM40: =ATAN((DN13-DN14)/(DM14-DM13)) -> 1.287255294 | DP40: =DM29 -> 44.3981717 | DQ40: =DN29 -> 61.80600562 | DR40: s11 | EB40: زاویه خم بودن دست | EC40: =K390 -> 25.6993742 | EE40: =EC32 -> 120 | EF40: =EC33 -> 99.6 | EG40: 17 | EQ40: (9→11) | ER40: ='متغیرها '!C29*ER45+'متغیرها '!C27*'متغیرها '!U83 -> 19.38891086 | EX40: =EP30 -> -6.3 | EY40: =EQ30 -> -10.7 | EZ40: 3 | FJ40: =FJ13 -> 73.425 | FK40: =FK13 -> 108.4 | FL40: 28 | GA40: 50 | GB40: =GB12+GE12*SIN(RADIANS(GA40)+GA14) ->  | GC40: =GC12+GE12*COS(RADIANS(GA40)+GA14) ->  | GD40: =IF(GB13>GB40,ATAN((GC13-GC40)/(GB13-GB40)),ATAN((GC13-GC40)/(GB40-GB13))) ->  | GE40: =IF(GB13>GB40,(GB13-GB40)/COS(GD40),(GB40-GB13)/COS(GD40)) ->  | GG40: 1 | GH40: 2 | GI40: نقطه 22 | GJ40: نقطه قبل از چرخش | GK40: =IF(GH40>GH18,IF(GG40>GG18,GG18+SQRT(POWER(GG40-GG18,2)+POWER(GH40-GH18,2))*COS(ATAN((GH40-GH18)/(GG40-GG18+0.000123))+GH16),GG18-SQRT(POWER(GG40-GG18,2)+POWER(GH40-GH18,2))*COS(ATAN((GH40-GH18)/(GG18-GG40+0.000123))-GH16)),IF(GG40>GG18,GG18+SQRT(POWER(GG40-GG18,2)+POWER(GH40-GH18,2))*COS(ATAN((GH18-GH40)/(GG40-GG18+0.000123))-GH16),GG18-SQRT(POWER(GG40-GG18,2)+POWER(GH40-GH18,2))*COS(ATAN((GH18-GH40)/(GG18-GG40+0.000123))+GH16))) -> 0.6182452327 | GL40: =IF(GH40>GH18,IF(GG40>GG18,GH18+SQRT(POWER(GG40-GG18,2)+POWER(GH40-GH18,2))*SIN(ATAN((GH40-GH18)/(GG40-GG18+0.000123))+GH16),GH18+SQRT(POWER(GG40-GG18,2)+POWER(GH40-GH18,2))*SIN(ATAN((GH40-GH18)/(GG18-GG40+0.000123))-GH16)),IF(GG40>GG18,GH18-SQRT(POWER(GG40-GG18,2)+POWER(GH40-GH18,2))*SIN(ATAN((GH18-GH40)/(GG40-GG18+0.000123))-GH16),GH18-SQRT(POWER(GG40-GG18,2)+POWER(GH40-GH18,2))*SIN(ATAN((GH18-GH40)/(GG18-GG40+0.000123))+GH16))) -> 0.6987463478 | GM40: نقطه چرخیده | GO40: نقطه خروجی میانه | GQ40: =GQ32-GQ35*GR37*SIN(GP37)/GR36 ->  | GR40: =GR32-GQ35*GR37*COS(GP37)/GR36 ->  | GU40: =GU39+GT11 -> -42 | GV40: -0.7330382858 | GW40: =HB13+HB10*COS(GV40) ->  | GX40: =HC13-HB10*SIN(GV40) ->  | GY40: =SQRT(POWER((HB12-GW40),2)+POWER((HC12-GX40),2)) ->  | GZ40: =ABS(HB9-GY40) ->  | HB40: نقطه خروجی | HC40: b26 | HD40: =HD36+HE39*COS(ATAN((HD37-HD38)/(HE38-HE37+0.0001))) -> 3.828568535 | HE40: =HE36+HE39*SIN(IF(HE37=HE38,RADIANS(-90),ATAN((HD37-HD38)/(HE38-HE37+0.001)))) -> -1.827013265 | HO40: =-HK40+HP9 -> 0 | HP40: 0 | HS40: 0 | HT40: 0 | HU40: 30 | HW40: =HS40+2*(SIN(ATAN((HS12-HS11)/(HT12-HT11)))*(HT40-HT11)+COS(ATAN((HS12-HS11)/(HT12-HT11)))*(HS11-HS40))*COS(ATAN((HS12-HS11)/(HT12-HT11))) ->  | HX40: =HT40-2*(SIN(ATAN((HS12-HS11)/(HT12-HT11)))*(HT40-HT11)+COS(ATAN((HS12-HS11)/(HT12-HT11)))*(HS11-HS40))*SIN(ATAN((HS12-HS11)/(HT12-HT11))) ->  | HY40: 30 | NV40: =O16 -> 3.114285714 | NW40: aa0 تعداد رج در یک سانت | NY40: g2 | NZ40: =NZ38 -> -3.354166667 | OA40: =OA38+NZ35 -> 5.802752294 | OF40: g9 | OG40: =NV35 -> 0.5 | OH40: پهنای نیم دایره | OJ40: g2 | OK40: =OK38 -> 14.17013889 | OL40: =OL38+OK35 -> 5.566648678 | OQ40: g9 | OR40: =NV35 -> 0.5 | OS40: پهنای نیم دایره | OU40: g2 | OV40: =OV38 -> 7.972222222 | OW40: =OW38+OV35 -> 5.566648678 | PB40: h4 | PC40: =NV37 -> 0.5 | PD40: پهنای باکس نوشته | PF40: g2 | PG40: =PG38 -> 1.774305556 | PH40: =PH38+PG35 -> 5.566648678 | PM40: h4 | PN40: =NV37 -> 0.5 | PO40: پهنای باکس نوشته | PQ40: g2 | PR40: =PR38 -> 6.732638889 | PS40: =PS38+PR35 -> 5.566648678 | PX40: =PX36 -> -45 | PY40: =PY38 -> 10.71428571 | PZ40: t12 | QI40: =HX179 -> -5.4188 | QJ40: 86.9 | QK40: 25 | QQ40: =QQ15+QR7+2*QR8 -> -7.8 | QR40: =QR15 -> 52.22779747 | QS40: k30 | QX40: =QQ54 -> -6.6 | QY40: =QR54 -> 52.22779747 | QZ40: k44 | RB40: g9 | RC40: 0.5 | RD40: پهنای نیم دایره | RF40: g2 | RG40: =RG38 -> -4.375 | RH40: =RH38+RG35 -> 5.566648678 | RM40: =RN24 -> 0 | RN40: =RN25 -> -20 | RO40: 0 | RU40: =RV25 -> -40 | RV40: =RV26 -> 0 | RW40: 0 | SG40: =SH24 -> 0 | SH40: =SH25 -> -20 | SI40: 0 | SO40: =SP25 -> -40 | SP40: =SP26 -> 0 | SQ40: 0 | TA40: =TB24 -> 0 | TB40: =TB25 -> -20 | TC40: 0 | TI40: =TJ25 -> -40 | TJ40: =TJ26 -> 0 | TK40: 0 | TU40: =TV24 -> 0 | TV40: =TV25 -> -20 | TW40: 0 | UC40: =UD25 -> -40 | UD40: =UD26 -> 0 | UE40: 0 | UO40: =UP24 -> 0 | UP40: =UP25 -> -20 | UQ40: 0 | UW40: =UX25 -> -40 | UX40: =UX26 -> 0 | UY40: 0 | VI40: =VJ24 -> 0 | VJ40: =VJ25 -> -20 | VK40: 0 | VQ40: =VR25 -> -40 | VR40: =VR26 -> 0 | VS40: 0
E41: تقسیم بندی بالاتنه | F41: تعداد دانه ها (بافت جودانه یا ساده) | G41: تعداد دانه ها (بافت انتخابی) | H41: بافت انتخابی آستین | I41: =OFFSET(AJ6,I40,6) -> ساده | N41: a25 | O41: =ROUNDUP(IF((O13-2*F12)<0.1,I16*(O13),I16*2*F12+I23*(O13-2*F12)),0) -> 1 | Q41: e8 | R41: =2*R40-4 -> -4 | T41: e8 | U41: -4 | AC41: d9 | AD41: =IF(OR(AD10>30,AD10<0),0,AD10) -> 2 | AI41: 0 | AJ41: =IF(AM41=0," ",(10/3)*((AM41/AL41)*(1/J6)-1)) ->  | AK41: =IF(AN41=0," ",(100/68)*((AO41/AN41)*(1/J7)-1)) ->  | AL41: 13.5 | AM41: 0 | AN41: 0 | AO41: 36 | AQ41: 35 | CI41: =CI36 -> 0 | CJ41: =CJ42 -> 94.8 | CK41: j7 | CM41: =CI43 -> 0 | CN41: =CJ43 -> 59.5 | CO41: j9 | DL41: (s2 →s3) | DM41: =SQRT(POWER((DM14-DM13),2)+POWER((DN13-DN14),2)) -> 5.229809447 | DX41: =DU23 -> 54.75 | DY41: =DV23 -> 0 | DZ41: s'13 | EB41: دست خمیده شبیه ساز k4 | EC41: =K384 -> 38.97359718 | ED41: =L384 -> 57.68889787 | EQ41: (8→9) | ER41: =ER37+'متغیرها '!C29*ER45*COS(ER46-RADIANS(45)+ER42)-EQ31 -> 63.67464615 | FR41: =FR39 -> 0 | FS41: =FS39 -> 0 | FT41: 2 | GA41: 52 | GB41: =GB12+GE12*SIN(RADIANS(GA41)+GA14) ->  | GC41: =GC12+GE12*COS(RADIANS(GA41)+GA14) ->  | GD41: =IF(GB13>GB41,ATAN((GC13-GC41)/(GB13-GB41)),ATAN((GC13-GC41)/(GB41-GB13))) ->  | GE41: =IF(GB13>GB41,(GB13-GB41)/COS(GD41),(GB41-GB13)/COS(GD41)) ->  | GG41: 1 | GH41: 2 | GI41: نقطه 23 | GJ41: نقطه قبل از چرخش | GK41: =IF(GH41>GH18,IF(GG41>GG18,GG18+SQRT(POWER(GG41-GG18,2)+POWER(GH41-GH18,2))*COS(ATAN((GH41-GH18)/(GG41-GG18+0.000123))+GH16),GG18-SQRT(POWER(GG41-GG18,2)+POWER(GH41-GH18,2))*COS(ATAN((GH41-GH18)/(GG18-GG41+0.000123))-GH16)),IF(GG41>GG18,GG18+SQRT(POWER(GG41-GG18,2)+POWER(GH41-GH18,2))*COS(ATAN((GH18-GH41)/(GG41-GG18+0.000123))-GH16),GG18-SQRT(POWER(GG41-GG18,2)+POWER(GH41-GH18,2))*COS(ATAN((GH18-GH41)/(GG18-GG41+0.000123))+GH16))) -> 0.6182452327 | GL41: =IF(GH41>GH18,IF(GG41>GG18,GH18+SQRT(POWER(GG41-GG18,2)+POWER(GH41-GH18,2))*SIN(ATAN((GH41-GH18)/(GG41-GG18+0.000123))+GH16),GH18+SQRT(POWER(GG41-GG18,2)+POWER(GH41-GH18,2))*SIN(ATAN((GH41-GH18)/(GG18-GG41+0.000123))-GH16)),IF(GG41>GG18,GH18-SQRT(POWER(GG41-GG18,2)+POWER(GH41-GH18,2))*SIN(ATAN((GH18-GH41)/(GG41-GG18+0.000123))-GH16),GH18-SQRT(POWER(GG41-GG18,2)+POWER(GH41-GH18,2))*SIN(ATAN((GH18-GH41)/(GG18-GG41+0.000123))+GH16))) -> 0.6987463478 | GM41: نقطه چرخیده | GU41: =GU40+GT11 -> -40 | GV41: -0.6981317008 | GW41: =HB13+HB10*COS(GV41) ->  | GX41: =HC13-HB10*SIN(GV41) ->  | GY41: =SQRT(POWER((HB12-GW41),2)+POWER((HC12-GX41),2)) ->  | GZ41: =ABS(HB9-GY41) ->  | HO41: =-HK41+HP9 -> 0 | HP41: 0 | HS41: 0 | HT41: 0 | HU41: 31 | HW41: =HS41+2*(SIN(ATAN((HS12-HS11)/(HT12-HT11)))*(HT41-HT11)+COS(ATAN((HS12-HS11)/(HT12-HT11)))*(HS11-HS41))*COS(ATAN((HS12-HS11)/(HT12-HT11))) ->  | HX41: =HT41-2*(SIN(ATAN((HS12-HS11)/(HT12-HT11)))*(HT41-HT11)+COS(ATAN((HS12-HS11)/(HT12-HT11)))*(HS11-HS41))*SIN(ATAN((HS12-HS11)/(HT12-HT11))) ->  | HY41: 31 | NV41: =O17 -> 4.114285714 | NW41: تعداد دانه در یک سانت ab0 | NY41: g4 | NZ41: =NZ38+NZ36*NZ34/40 -> -2.829166667 | OA41: =OA38+0.5*NZ35 -> 5.401376147 | OB41: =NZ45 -> -3.10006787 | OC41: =OA45 -> 5.337365487 | OD41: =NY45 -> g8 | OF41: h3 | OG41: =NV36 -> 4.5 | OH41: طول باکس نوشته | OJ41: g4 | OK41: =OK38+OK36*OK34/40 -> 14.69513889 | OL41: =OL38+0.5*OK35 -> 5.283324339 | OM41: =OK45 -> 14.47841567 | ON41: =OL45 -> 5.256278944 | OO41: =OJ45 -> g8 | OQ41: h3 | OR41: =NV36 -> 4.5 | OS41: طول باکس نوشته | OU41: g4 | OV41: =OV38+OV36*OV34/40 -> 8.497222222 | OW41: =OW38+0.5*OV35 -> 5.283324339 | OX41: =OV45 -> 8.280499008 | OY41: =OW45 -> 5.256278944 | OZ41: =OU45 -> g8 | PB41: f'4 | PC41: =NV38 -> 0.6 | PD41: بزرگی فلش رج | PF41: g4 | PG41: =PG38+PG36*PG34/40 -> 2.299305556 | PH41: =PH38+0.5*PG35 -> 5.283324339 | PI41: =PG45 -> 2.082582342 | PJ41: =PH45 -> 5.256278944 | PK41: =PF45 -> g8 | PM41: f'4 | PN41: =NV38 -> 0.6 | PO41: بزرگی فلش رج | PQ41: g4 | PR41: =PR38+PR36*PR34/40 -> 7.257638889 | PS41: =PS38+0.5*PR35 -> 5.283324339 | PT41: =PR45 -> 7.040915675 | PU41: =PS45 -> 5.256278944 | PV41: =PQ45 -> g8 | PX41: =PX37+2/PY15 -> -47.45 | PY41: =PY37 -> 9.285714286 | PZ41: t13 | QE41: =PX36 -> -45 | QF41: 9.285714286 | QG41: t8 | QI41: -4.33504 | QJ41: 83.56389874 | QK41: 30 | QM41: =QI78 -> 0 | QN41: =QJ78 -> 80.22779747 | QO41: 26'' | QQ41: =2*QQ15-QQ40 -> -18.2 | QR41: =QR40 -> 52.22779747 | QS41: k31 | QX41: =QQ56 -> -9.8 | QY41: =QR56 -> 57.77036006 | QZ41: k46 | RB41: h3 | RC41: 4.5 | RD41: طول باکس نوشته | RF41: g4 | RG41: =RG38+RG36*RG34/40 -> -3.85 | RH41: =RH38+0.5*RG35 -> 5.283324339 | RI41: =RG45 -> -4.066723214 | RJ41: =RH45 -> 5.256278944 | RK41: =RF45 -> g8 | RM41: =RM40+5*RN28 -> 4.282407407 | RN41: =RN40 -> -20 | RO41: 5 | RQ41: =IF(RN26>(RM45-RM40),RM45,RM40) -> 0 | RR41: =IF(RN26>(RM45-RM40),RN45,RN40) -> -20 | RS41: =RO45 -> 25 | RU41: =RU40+5*RV31 -> -37.03599153 | RV41: =RV40 -> 0 | RW41: 5 | RY41: =IF(RV27>(RU45-RU40),RU45,RU40) -> -25.17995766 | RZ41: =IF(RV27>(RU45-RU40),RV45,RV40) -> 0 | SA41: =RW45 -> 25 | SC41: =IF(RV27>(RU70-RU40),RU70,RU40) -> -35.85038814 | SD41: =IF(RV27>(RU70-RU40),RV70,RV40) -> 0 | SE41: 7 | SG41: =SG40+5*SH28 -> 4.282407407 | SH41: =SH40 -> -20 | SI41: 5 | SK41: =IF(SH26>(SG45-SG40),SG45,SG40) -> 0 | SL41: =IF(SH26>(SG45-SG40),SH45,SH40) -> -20 | SM41: =SI45 -> 25 | SO41: =SO40+5*SP31 -> -37.03599153 | SP41: =SP40 -> 0 | SQ41: 5 | SS41: =IF(SP27>(SO45-SO40),SO45,SO40) -> -25.17995766 | ST41: =IF(SP27>(SO45-SO40),SP45,SP40) -> 0 | SU41: =SQ45 -> 25 | SW41: =IF(SP27>(SO70-SO40),SO70,SO40) -> -35.85038814 | SX41: =IF(SP27>(SO70-SO40),SP70,SP40) -> 0 | SY41: 7 | TA41: =TA40+5*TB28 -> 4.050925926 | TB41: =TB40 -> -20 | TC41: 5 | TE41: =IF(TB26>(TA45-TA40),TA45,TA40) -> 0 | TF41: =IF(TB26>(TA45-TA40),TB45,TB40) -> -20 | TG41: =TC45 -> 25 | TI41: =TI40+5*TJ31 -> -37.11009174 | TJ41: =TJ40 -> 0 | TK41: 5 | TM41: =IF(TJ27>(TI45-TI40),TI45,TI40) -> -25.55045872 | TN41: =IF(TJ27>(TI45-TI40),TJ45,TJ40) -> 0 | TO41: =TK45 -> 25 | TQ41: =IF(TJ27>(TI70-TI40),TI70,TI40) -> -35.95412844 | TR41: =IF(TJ27>(TI70-TI40),TJ70,TJ40) -> 0 | TS41: 7 | TU41: =TU40+5*TV28 -> 4.050925926 | TV41: =TV40 -> -20 | TW41: 5 | TY41: =IF(TV26>(TU45-TU40),TU45,TU40) -> 0 | TZ41: =IF(TV26>(TU45-TU40),TV45,TV40) -> -20 | UA41: =TW45 -> 25 | UC41: =UC40+5*UD31 -> -37.11009174 | UD41: =UD40 -> 0 | UE41: 5 | UG41: =IF(UD27>(UC45-UC40),UC45,UC40) -> -25.55045872 | UH41: =IF(UD27>(UC45-UC40),UD45,UD40) -> 0 | UI41: =UE45 -> 25 | UK41: =IF(UD27>(UC70-UC40),UC70,UC40) -> -35.95412844 | UL41: =IF(UD27>(UC70-UC40),UD70,UD40) -> 0 | UM41: 7 | UO41: =UO40+5*UP28 -> 4.282407407 | UP41: =UP40 -> -20 | UQ41: 5 | US41: =IF(UP26>(UO45-UO40),UO45,UO40) -> 0 | UT41: =IF(UP26>(UO45-UO40),UP45,UP40) -> -20 | UU41: =UQ45 -> 25 | UW41: =UW40+5*UX31 -> -37.03599153 | UX41: =UX40 -> 0 | UY41: 5 | VA41: =IF(UX27>(UW45-UW40),UW45,UW40) -> -25.17995766 | VB41: =IF(UX27>(UW45-UW40),UX45,UX40) -> 0 | VC41: =UY45 -> 25 | VE41: =IF(UX27>(UW70-UW40),UW70,UW40) -> -35.85038814 | VF41: =IF(UX27>(UW70-UW40),UX70,UX40) -> 0 | VG41: 7 | VI41: =VI40+5*VJ28 -> 4.282407407 | VJ41: =VJ40 -> -20 | VK41: 5 | VM41: =IF(VJ26>(VI45-VI40),VI45,VI40) -> 0 | VN41: =IF(VJ26>(VI45-VI40),VJ45,VJ40) -> -20 | VO41: =VK45 -> 25 | VQ41: =VQ40+5*VR31 -> -37.03599153 | VR41: =VR40 -> 0 | VS41: 5 | VU41: =IF(VR27>(VQ45-VQ40),VQ45,VQ40) -> -25.17995766 | VV41: =IF(VR27>(VQ45-VQ40),VR45,VR40) -> 0 | VW41: =VS45 -> 25 | VY41: =IF(VR27>(VQ70-VQ40),VQ70,VQ40) -> -35.85038814 | VZ41: =IF(VR27>(VQ70-VQ40),VR70,VR40) -> 0 | WA41: 7
E42: b6 کل پهنای جادکمه | F42: =2*F25 -> 0 | G42: =ROUNDUP(I16*(2*F12),0) -> 0 | N42: خطا | O42: =IF((ROUND(0.6*P9,0)-6)<0," خطا : قد پشت یقه زیاد شود "," ") ->  | Q42: e9 | R42: =IF((ROUNDUP(S12*S17*S9,0)-R40-R41-3)>-1,ROUNDUP(S12*S17*S9,0)-R40-R41-3,"خطا") -> 20 | T42: e9 | U42: 20 | AC42: d10 | AD42: =IF(OR(AD11>30,AD11<0),0,AD11) -> 8 | AI42: 0 | AJ42: =IF(AM42=0," ",(10/3)*((AM42/AL42)*(1/J6)-1)) ->  | AK42: =IF(AN42=0," ",(100/68)*((AO42/AN42)*(1/J7)-1)) ->  | AL42: 13.5 | AM42: 0 | AN42: 0 | AO42: 36 | AQ42: 36 | CI42: ='طراحی همه الگوها'!U181+CI36 -> 2 | CJ42: =CJ36-'طراحی همه الگوها'!U180 -> 94.8 | CK42: j8 | CM42: =CI41 -> 0 | CN42: =CJ41 -> 94.8 | CO42: j7 | DL42: (s2 →s14) | DM42: =DM41*2*('متغیرها '!C10-0.5) -> 5.229809447 | DP42: =DP40 -> 44.3981717 | DQ42: =DQ40 -> 61.80600562 | DR42: s11 | DX42: =DU30 -> 0 | DY42: =DV30 -> 0 | DZ42: 2' | EQ42: α2 | ER42: ='متغیرها '!B245 -> 0.3368594679 | EX42: =ET28 -> 29 | EY42: =EU28 -> 41.6 | EZ42: 15 | FB42: j4 | FC42: =IF('متغیرها '!C37<1,'متغیرها '!C37*'متغیرها '!U59,IF('متغیرها '!C37<2,'متغیرها '!U59+('متغیرها '!C37-1)*('متغیرها '!U60-'متغیرها '!U59),IF('متغیرها '!C37<3,'متغیرها '!U60+('متغیرها '!C37-2)*(I105-'متغیرها '!U60),I105+('متغیرها '!C37-3)*(H127-H126)))) -> 0 | FR42: =FO31 -> 0 | FS42: =FP31 -> 60.84250015 | FT42: s''12 | GA42: 54 | GB42: =GB12+GE12*SIN(RADIANS(GA42)+GA14) ->  | GC42: =GC12+GE12*COS(RADIANS(GA42)+GA14) ->  | GD42: =IF(GB13>GB42,ATAN((GC13-GC42)/(GB13-GB42)),ATAN((GC13-GC42)/(GB42-GB13))) ->  | GE42: =IF(GB13>GB42,(GB13-GB42)/COS(GD42),(GB42-GB13)/COS(GD42)) ->  | GG42: 1 | GH42: 2 | GI42: نقطه 24 | GJ42: نقطه قبل از چرخش | GK42: =IF(GH42>GH18,IF(GG42>GG18,GG18+SQRT(POWER(GG42-GG18,2)+POWER(GH42-GH18,2))*COS(ATAN((GH42-GH18)/(GG42-GG18+0.000123))+GH16),GG18-SQRT(POWER(GG42-GG18,2)+POWER(GH42-GH18,2))*COS(ATAN((GH42-GH18)/(GG18-GG42+0.000123))-GH16)),IF(GG42>GG18,GG18+SQRT(POWER(GG42-GG18,2)+POWER(GH42-GH18,2))*COS(ATAN((GH18-GH42)/(GG42-GG18+0.000123))-GH16),GG18-SQRT(POWER(GG42-GG18,2)+POWER(GH42-GH18,2))*COS(ATAN((GH18-GH42)/(GG18-GG42+0.000123))+GH16))) -> 0.6182452327 | GL42: =IF(GH42>GH18,IF(GG42>GG18,GH18+SQRT(POWER(GG42-GG18,2)+POWER(GH42-GH18,2))*SIN(ATAN((GH42-GH18)/(GG42-GG18+0.000123))+GH16),GH18+SQRT(POWER(GG42-GG18,2)+POWER(GH42-GH18,2))*SIN(ATAN((GH42-GH18)/(GG18-GG42+0.000123))-GH16)),IF(GG42>GG18,GH18-SQRT(POWER(GG42-GG18,2)+POWER(GH42-GH18,2))*SIN(ATAN((GH18-GH42)/(GG42-GG18+0.000123))-GH16),GH18-SQRT(POWER(GG42-GG18,2)+POWER(GH42-GH18,2))*SIN(ATAN((GH18-GH42)/(GG18-GG42+0.000123))+GH16))) -> 0.6987463478 | GM42: نقطه چرخیده | GU42: =GU41+GT11 -> -38 | GV42: -0.6632251158 | GW42: =HB13+HB10*COS(GV42) ->  | GX42: =HC13-HB10*SIN(GV42) ->  | GY42: =SQRT(POWER((HB12-GW42),2)+POWER((HC12-GX42),2)) ->  | GZ42: =ABS(HB9-GY42) ->  | HE42: یافتن راس سوم مثلث با داشتن دو راس و یک ضلع و یک زاویه | HO42: =-HK42+HP9 -> 0 | HP42: =HL42 -> 0 | HS42: =HF30 -> 0 | HT42: =HG30 -> 0 | HU42: 32 | HW42: =HS42+2*(SIN(ATAN((HS12-HS11)/(HT12-HT11)))*(HT42-HT11)+COS(ATAN((HS12-HS11)/(HT12-HT11)))*(HS11-HS42))*COS(ATAN((HS12-HS11)/(HT12-HT11))) ->  | HX42: =HT42-2*(SIN(ATAN((HS12-HS11)/(HT12-HT11)))*(HT42-HT11)+COS(ATAN((HS12-HS11)/(HT12-HT11)))*(HS11-HS42))*SIN(ATAN((HS12-HS11)/(HT12-HT11))) ->  | HY42: 32 | NV42: =I16 -> 2.16 | NW42: تعداد دانه در یک سانت جادکمه | NY42: g5 | NZ42: =NZ38+0.7*(NZ41-NZ38) -> -2.986666667 | OA42: =OA38+0.28*(OA41-OA38) -> 5.112385321 | OB42: =NZ39 -> -2.860666667 | OC42: =OA39 -> 5.574770642 | OD42: =NY39 -> g11 | OF42: h4 | OG42: =NV37 -> 0.5 | OH42: پهنای باکس نوشته | OJ42: g5 | OK42: =OK38+0.7*(OK41-OK38) -> 14.53763889 | OL42: =OL38+0.28*(OL41-OL38) -> 5.079330815 | OM42: =OK39 -> 14.66363889 | ON42: =OL39 -> 5.405720453 | OO42: =OJ39 -> g11 | OQ42: h4 | OR42: =NV37 -> 0.5 | OS42: پهنای باکس نوشته | OU42: g5 | OV42: =OV38+0.7*(OV41-OV38) -> 8.339722222 | OW42: =OW38+0.28*(OW41-OW38) -> 5.079330815 | OX42: =OV39 -> 8.465722222 | OY42: =OW39 -> 5.405720453 | OZ42: =OU39 -> g11 | PB42: f5 | PC42: =NV39 -> 0.5 | PD42: زاویه فلش رج | PF42: g5 | PG42: =PG38+0.7*(PG41-PG38) -> 2.141805556 | PH42: =PH38+0.28*(PH41-PH38) -> 5.079330815 | PI42: =PG39 -> 2.267805556 | PJ42: =PH39 -> 5.405720453 | PK42: =PF39 -> g11 | PM42: f5 | PN42: =NV39 -> 0.5 | PO42: زاویه فلش رج | PQ42: g5 | PR42: =PR38+0.7*(PR41-PR38) -> 7.100138889 | PS42: =PS38+0.28*(PS41-PS38) -> 5.079330815 | PT42: =PR39 -> 7.226138889 | PU42: =PS39 -> 5.405720453 | PV42: =PQ39 -> g11 | PX42: =PX35 -> -36.5 | PY42: =PY36+0.5*PY7 -> 10 | PZ42: t14 | QE42: -48.5 | QF42: 9.285714286 | QG42: t9 | QI42: =HX182 -> -2.16752 | QJ42: =HY182 -> 80.89501773 | QK42: 28 | QM42: =QI77 -> 0 | QN42: =QJ77 -> 49.8 | QO42: 1'' | QQ42: =QQ15+(QR7+2*QR8)*SIN(RADIANS(30)) -> -10.4 | QR42: =QR15+(QR7+2*QR8)*COS(RADIANS(30)) -> 56.73112957 | QS42: k32 | QX42: =QQ58 -> -13 | QY42: =QR58 -> 58.62779747 | QZ42: k48 | RB42: h4 | RC42: 0.5 | RD42: پهنای باکس نوشته | RF42: g5 | RG42: =RG38+0.7*(RG41-RG38) -> -4.0075 | RH42: =RH38+0.28*(RH41-RH38) -> 5.079330815 | RI42: =RG39 -> -3.8815 | RJ42: =RH39 -> 5.405720453 | RK42: =RF39 -> g11 | RM42: =RM40+10*RN28 -> 8.564814815 | RN42: =RN40 -> -20 | RO42: 10 | RQ42: =RQ41 -> 0 | RR42: =RN38 -> -40.15525759 | RU42: =RU40+10*RV31 -> -34.07198306 | RV42: =RV40 -> 0 | RW42: 10 | RY42: =RY41 -> -25.17995766 | RZ42: =RV38 -> 10.27777778 | SC42: =SC41 -> -35.85038814 | SD42: =RV38 -> 10.27777778 | SG42: =SG40+10*SH28 -> 8.564814815 | SH42: =SH40 -> -20 | SI42: 10 | SK42: =SK41 -> 0 | SL42: =SH38 -> -40.15525759 | SO42: =SO40+10*SP31 -> -34.07198306 | SP42: =SP40 -> 0 | SQ42: 10 | SS42: =SS41 -> -25.17995766 | ST42: =SP38 -> 10.27777778 | SW42: =SW41 -> -35.85038814 | SX42: =SP38 -> 10.27777778 | TA42: =TA40+10*TB28 -> 8.101851852 | TB42: =TB40 -> -20 | TC42: 10 | TE42: =TE41 -> 0 | TF42: =TB38 -> -40.2293578 | TI42: =TI40+10*TJ31 -> -34.22018349 | TJ42: =TJ40 -> 0 | TK42: 10 | TM42: =TM41 -> -25.55045872 | TN42: =TJ38 -> 9.722222222 | TQ42: =TQ41 -> -35.95412844 | TR42: =TJ38 -> 9.722222222 | TU42: =TU40+10*TV28 -> 8.101851852 | TV42: =TV40 -> -20 | TW42: 10 | TY42: =TY41 -> 0 | TZ42: =TV38 -> -40.2293578 | UC42: =UC40+10*UD31 -> -34.22018349 | UD42: =UD40 -> 0 | UE42: 10 | UG42: =UG41 -> -25.55045872 | UH42: =UD38 -> 9.722222222 | UK42: =UK41 -> -35.95412844 | UL42: =UD38 -> 9.722222222 | UO42: =UO40+10*UP28 -> 8.564814815 | UP42: =UP40 -> -20 | UQ42: 10 | US42: =US41 -> 0 | UT42: =UP38 -> -40.15525759 | UW42: =UW40+10*UX31 -> -34.07198306 | UX42: =UX40 -> 0 | UY42: 10 | VA42: =VA41 -> -25.17995766 | VB42: =UX38 -> 10.27777778 | VE42: =VE41 -> -35.85038814 | VF42: =UX38 -> 10.27777778 | VI42: =VI40+10*VJ28 -> 8.564814815 | VJ42: =VJ40 -> -20 | VK42: 10 | VM42: =VM41 -> 0 | VN42: =VJ38 -> -40.15525759 | VQ42: =VQ40+10*VR31 -> -34.07198306 | VR42: =VR40 -> 0 | VS42: 10 | VU42: =VU41 -> -25.17995766 | VV42: =VR38 -> 10.27777778 | VY42: =VY41 -> -35.85038814 | VZ42: =VR38 -> 10.27777778
E43: b3 جلو بدون جادکمه بین خط رگلان و خط مرکزی جلو که نیمه جادکمه از آن کم شود | F43: =ROUNDUP(F7*(SQRT(POWER(AX129-AX131,2)+POWER(AX130,2))+SQRT(POWER(AX131-AX133,2)+POWER(AX132-AX130,2))),0)-F25 -> 14 | G43: =ROUNDUP(I23*((SQRT(POWER(AX129-AX131,2)+POWER(AX130,2))+SQRT(POWER(AX131-AX133,2)+POWER(AX132-AX130,2)))-F12),0) -> 15 | N43: a22 خطا | O43: =ROUNDDOWN(O33-(O33/O39)*(O39-O40)-(G46-2*O41),0) -> 2 | Q43: e10 | R43: =Q31 -> 48 | T43: e10 | U43: 48 | AC43: d12 | AD43: =AD12 -> 6 | AI43: 0 | AJ43: =IF(AM43=0," ",(10/3)*((AM43/AL43)*(1/J6)-1)) ->  | AK43: =IF(AN43=0," ",(100/68)*((AO43/AN43)*(1/J7)-1)) ->  | AL43: 13.5 | AM43: 0 | AN43: 0 | AO43: 36 | AQ43: 37 | CI43: =CI36 -> 0 | CJ43: =CJ44 -> 59.5 | CK43: j9 | CO43: انحنا | DL43: شیفت افقی کل | DM43: ='متغیرها '!C51 -> 0 | DP43: =DM28 -> 28.84862142 | DQ43: =DN28 -> 64.60269761 | DR43: s12 | EQ43: شیفت افقی مرغک | ER43: ='متغیرها '!C33*0.5*('متغیرها '!U72-'متغیرها '!U73) -> 29 | EX43: =ET32 -> 33.1 | EY43: =EU32 -> 54.1 | EZ43: 18 | FB43: (14 →19') | FC43: =DM47+0.1*'متغیرها '!C40 -> 10.71 | FF43: رسم چادر شماره 5 برای پرینت | GA43: 56 | GB43: =GB12+GE12*SIN(RADIANS(GA43)+GA14) ->  | GC43: =GC12+GE12*COS(RADIANS(GA43)+GA14) ->  | GD43: =IF(GB13>GB43,ATAN((GC13-GC43)/(GB13-GB43)),ATAN((GC13-GC43)/(GB43-GB13))) ->  | GE43: =IF(GB13>GB43,(GB13-GB43)/COS(GD43),(GB43-GB13)/COS(GD43)) ->  | GG43: 1 | GH43: 2 | GI43: نقطه 25 | GJ43: نقطه قبل از چرخش | GK43: =IF(GH43>GH18,IF(GG43>GG18,GG18+SQRT(POWER(GG43-GG18,2)+POWER(GH43-GH18,2))*COS(ATAN((GH43-GH18)/(GG43-GG18+0.000123))+GH16),GG18-SQRT(POWER(GG43-GG18,2)+POWER(GH43-GH18,2))*COS(ATAN((GH43-GH18)/(GG18-GG43+0.000123))-GH16)),IF(GG43>GG18,GG18+SQRT(POWER(GG43-GG18,2)+POWER(GH43-GH18,2))*COS(ATAN((GH18-GH43)/(GG43-GG18+0.000123))-GH16),GG18-SQRT(POWER(GG43-GG18,2)+POWER(GH43-GH18,2))*COS(ATAN((GH18-GH43)/(GG18-GG43+0.000123))+GH16))) -> 0.6182452327 | GL43: =IF(GH43>GH18,IF(GG43>GG18,GH18+SQRT(POWER(GG43-GG18,2)+POWER(GH43-GH18,2))*SIN(ATAN((GH43-GH18)/(GG43-GG18+0.000123))+GH16),GH18+SQRT(POWER(GG43-GG18,2)+POWER(GH43-GH18,2))*SIN(ATAN((GH43-GH18)/(GG18-GG43+0.000123))-GH16)),IF(GG43>GG18,GH18-SQRT(POWER(GG43-GG18,2)+POWER(GH43-GH18,2))*SIN(ATAN((GH18-GH43)/(GG43-GG18+0.000123))-GH16),GH18-SQRT(POWER(GG43-GG18,2)+POWER(GH43-GH18,2))*SIN(ATAN((GH18-GH43)/(GG18-GG43+0.000123))+GH16))) -> 0.6987463478 | GM43: نقطه چرخیده | GU43: =GU42+GT11 -> -36 | GV43: -0.6283185307 | GW43: =HB13+HB10*COS(GV43) ->  | GX43: =HC13-HB10*SIN(GV43) ->  | GY43: =SQRT(POWER((HB12-GW43),2)+POWER((HC12-GX43),2)) ->  | GZ43: =ABS(HB9-GY43) ->  | HB43: اطلاعات ورودی | HO43: =-HK43+HP9 -> 0 | HP43: 0 | HS43: 0 | HT43: 0 | HU43: 33 | HW43: =HS43+2*(SIN(ATAN((HS12-HS11)/(HT12-HT11)))*(HT43-HT11)+COS(ATAN((HS12-HS11)/(HT12-HT11)))*(HS11-HS43))*COS(ATAN((HS12-HS11)/(HT12-HT11))) ->  | HX43: =HT43-2*(SIN(ATAN((HS12-HS11)/(HT12-HT11)))*(HT43-HT11)+COS(ATAN((HS12-HS11)/(HT12-HT11)))*(HS11-HS43))*SIN(ATAN((HS12-HS11)/(HT12-HT11))) ->  | HY43: 33 | NV43: =IF(NV44<11," مخصوص ",F8) -> 2.5 | NW43: انتخاب ضخامت میل بافتنی f1 | NY43: g6 | NZ43: =NZ42 -> -2.986666667 | OA43: =OA40-OA42+OA38 -> 5.690366972 | OF43: f'4 | OG43: =NV38 -> 0.6 | OH43: بزرگی فلش رج | OJ43: g6 | OK43: =OK42 -> 14.53763889 | OL43: =OL40-OL42+OL38 -> 5.487317863 | OQ43: f'4 | OR43: =NV38 -> 0.6 | OS43: بزرگی فلش رج | OU43: g6 | OV43: =OV42 -> 8.339722222 | OW43: =OW40-OW42+OW38 -> 5.487317863 | PB43: f9 | PC43: =OG45 -> 0.3 | PD43: بزرگی خط عمودی دانه | PF43: g6 | PG43: =PG42 -> 2.141805556 | PH43: =PH40-PH42+PH38 -> 5.487317863 | PM43: f9 | PN43: =OG45 -> 0.3 | PO43: بزرگی خط عمودی دانه | PQ43: g6 | PR43: =PR42 -> 7.100138889 | PS43: =PS40-PS42+PS38 -> 5.487317863 | PX43: =PX37 -> -48.5 | PY43: =PY38+PY36-PY29 -> 15 | PZ43: t15 | QB43: نسبت سایز افقی | QC43: =PY17 -> 42 | QD43: انحنا راستگرد | QG43: =QD43 -> انحنا راستگرد | QI43: =HX183 -> 0 | QJ43: =HY183 -> 0 | QK43: 26 | QQ43: =2*QQ15-QQ42 -> -15.6 | QR43: =QR42 -> 56.73112957 | QS43: k33 | QX43: =QQ57 -> -16.2 | QY43: =QR57 -> 57.77036006 | QZ43: k47 | RB43: f'4 | RC43: 0.6 | RD43: بزرگی فلش رج | RF43: g6 | RG43: =RG42 -> -4.0075 | RH43: =RH40-RH42+RH38 -> 5.487317863 | RM43: =RM40+15*RN28 -> 12.84722222 | RN43: =RN40 -> -20 | RO43: 15 | RU43: =RU40+15*RV31 -> -31.10797459 | RV43: =RV40 -> 0 | RW43: 15 | SG43: =SG40+15*SH28 -> 12.84722222 | SH43: =SH40 -> -20 | SI43: 15 | SO43: =SO40+15*SP31 -> -31.10797459 | SP43: =SP40 -> 0 | SQ43: 15 | TA43: =TA40+15*TB28 -> 12.15277778 | TB43: =TB40 -> -20 | TC43: 15 | TI43: =TI40+15*TJ31 -> -31.33027523 | TJ43: =TJ40 -> 0 | TK43: 15 | TU43: =TU40+15*TV28 -> 12.15277778 | TV43: =TV40 -> -20 | TW43: 15 | UC43: =UC40+15*UD31 -> -31.33027523 | UD43: =UD40 -> 0 | UE43: 15 | UO43: =UO40+15*UP28 -> 12.84722222 | UP43: =UP40 -> -20 | UQ43: 15 | UW43: =UW40+15*UX31 -> -31.10797459 | UX43: =UX40 -> 0 | UY43: 15 | VI43: =VI40+15*VJ28 -> 12.84722222 | VJ43: =VJ40 -> -20 | VK43: 15 | VQ43: =VQ40+15*VR31 -> -31.10797459 | VR43: =VR40 -> 0 | VS43: 15
E44: b4 آستین | F44: =ROUNDDOWN(F7*(DE534+DE535),0) -> 12 | G44: =ROUNDDOWN(I37*(DE534+DE535),0) -> 12 | Q44: e11 | R44: =R31 -> 46 | T44: e11 | U44: 46 | AC44: d13 | AD44: =AD38+2*AD39+2*AD40 -> 72 | AI44: =AM44/AL44 -> 0 | AJ44: =IF(AM44=0," ",(10/3)*((AM44/AL44)*(1/J6)-1)) ->  | AK44: =IF(AN44=0," ",(100/68)*((AO44/AN44)*(1/J7)-1)) ->  | AL44: 13.5 | AM44: 0 | AN44: 0 | AO44: 36 | AQ44: 38 | CI44: =CI42 -> 2 | CJ44: =CJ41-'طراحی همه الگوها'!U182 -> 59.5 | CK44: j10 | CM44: =CI39 -> 59.3 | CN44: =CJ39 -> 109.1 | CO44: j5 | DL44: شیفت عمودی کل | DM44: ='متغیرها '!C52 -> 0 | DX44: =DX42 -> 0 | DY44: =DY42 -> 0 | DZ44: 2' | EQ44: شیفت عمودی مرغک | ER44: =IF('متغیرها '!C34<1,'متغیرها '!C34*'متغیرها '!U59,IF('متغیرها '!C34<2,'متغیرها '!U59+('متغیرها '!C34-1)*('متغیرها '!U60-'متغیرها '!U59),IF('متغیرها '!C34<3,'متغیرها '!U60+('متغیرها '!C34-2)*(I105-'متغیرها '!U60),I105+('متغیرها '!C34-3)*(H127-H126))))+'طراحی همه الگوها'!U245 -> 41.6 | FB44: شیفت عمودی الگو دسته | FC44: 7 | FG44: صاف | FH44: برای پرینت | FK44: انحنا | FL44: برای پرینت | FR44: =FR42 -> 0 | FS44: =FS42 -> 60.84250015 | FT44: s''12 | GA44: 58 | GB44: =GB12+GE12*SIN(RADIANS(GA44)+GA14) ->  | GC44: =GC12+GE12*COS(RADIANS(GA44)+GA14) ->  | GD44: =IF(GB13>GB44,ATAN((GC13-GC44)/(GB13-GB44)),ATAN((GC13-GC44)/(GB44-GB13))) ->  | GE44: =IF(GB13>GB44,(GB13-GB44)/COS(GD44),(GB44-GB13)/COS(GD44)) ->  | GG44: 1 | GH44: 2 | GI44: نقطه 26 | GJ44: نقطه قبل از چرخش | GK44: =IF(GH44>GH18,IF(GG44>GG18,GG18+SQRT(POWER(GG44-GG18,2)+POWER(GH44-GH18,2))*COS(ATAN((GH44-GH18)/(GG44-GG18+0.000123))+GH16),GG18-SQRT(POWER(GG44-GG18,2)+POWER(GH44-GH18,2))*COS(ATAN((GH44-GH18)/(GG18-GG44+0.000123))-GH16)),IF(GG44>GG18,GG18+SQRT(POWER(GG44-GG18,2)+POWER(GH44-GH18,2))*COS(ATAN((GH18-GH44)/(GG44-GG18+0.000123))-GH16),GG18-SQRT(POWER(GG44-GG18,2)+POWER(GH44-GH18,2))*COS(ATAN((GH18-GH44)/(GG18-GG44+0.000123))+GH16))) -> 0.6182452327 | GL44: =IF(GH44>GH18,IF(GG44>GG18,GH18+SQRT(POWER(GG44-GG18,2)+POWER(GH44-GH18,2))*SIN(ATAN((GH44-GH18)/(GG44-GG18+0.000123))+GH16),GH18+SQRT(POWER(GG44-GG18,2)+POWER(GH44-GH18,2))*SIN(ATAN((GH44-GH18)/(GG18-GG44+0.000123))-GH16)),IF(GG44>GG18,GH18-SQRT(POWER(GG44-GG18,2)+POWER(GH44-GH18,2))*SIN(ATAN((GH18-GH44)/(GG44-GG18+0.000123))-GH16),GH18-SQRT(POWER(GG44-GG18,2)+POWER(GH44-GH18,2))*SIN(ATAN((GH18-GH44)/(GG18-GG44+0.000123))+GH16))) -> 0.6987463478 | GM44: نقطه چرخیده | GU44: =GU43+GT11 -> -34 | GV44: -0.5934119457 | GW44: =HB13+HB10*COS(GV44) ->  | GX44: =HC13-HB10*SIN(GV44) ->  | GY44: =SQRT(POWER((HB12-GW44),2)+POWER((HC12-GX44),2)) ->  | GZ44: =ABS(HB9-GY44) ->  | HB44: مولفه افقی | HC44: مولفه عمودی | HD44: اسم نقطه | HF44: محاسبات | HO44: =-HK44+HP9 -> 0 | HP44: 0 | HS44: 0 | HT44: 0 | HU44: 34 | HW44: =HS44+2*(SIN(ATAN((HS12-HS11)/(HT12-HT11)))*(HT44-HT11)+COS(ATAN((HS12-HS11)/(HT12-HT11)))*(HS11-HS44))*COS(ATAN((HS12-HS11)/(HT12-HT11))) ->  | HX44: =HT44-2*(SIN(ATAN((HS12-HS11)/(HT12-HT11)))*(HT44-HT11)+COS(ATAN((HS12-HS11)/(HT12-HT11)))*(HS11-HS44))*SIN(ATAN((HS12-HS11)/(HT12-HT11))) ->  | HY44: 34 | NU44: =O22 -> کشباف (دوتایی) | NV44: =O21 -> 14 | NW44: بافت انتخابی یقه شکاری | NY44: g7 | NZ44: =NZ39+0.7*OA36*SIN(RADIANS(30)+2*ATAN((NZ39-NZ42)/(OA39-OA42+0.0001))) -> -2.567279865 | OA44: =OA39-0.7*OA36*COS(RADIANS(30)+2*ATAN((NZ39-NZ42)/(OA39-OA42+0.0001))) -> 5.408643197 | OB44: =NZ39 -> -2.860666667 | OC44: =OA39 -> 5.574770642 | OD44: =NY39 -> g11 | OF44: f5 | OG44: =NV39 -> 0.5 | OH44: زاویه فلش رج | OJ44: g7 | OK44: =OK39+0.7*OL36*SIN(RADIANS(30)+2*ATAN((OK39-OK42)/(OL39-OL42+0.0001))) -> 14.89024552 | OL44: =OL39-0.7*OL36*COS(RADIANS(30)+2*ATAN((OK39-OK42)/(OL39-OL42+0.0001))) -> 5.332989189 | OM44: =OK39 -> 14.66363889 | ON44: =OL39 -> 5.405720453 | OO44: =OJ39 -> g11 | OQ44: f5 | OR44: =NV39 -> 0.5 | OS44: زاویه فلش رج | OU44: g7 | OV44: =OV39+0.7*OW36*SIN(RADIANS(30)+2*ATAN((OV39-OV42)/(OW39-OW42+0.0001))) -> 8.692328857 | OW44: =OW39-0.7*OW36*COS(RADIANS(30)+2*ATAN((OV39-OV42)/(OW39-OW42+0.0001))) -> 5.332989189 | OX44: =OV39 -> 8.465722222 | OY44: =OW39 -> 5.405720453 | OZ44: =OU39 -> g11 | PB44: f10 | PC44: =OG46 -> 0.4 | PD44: بزرگی فلش دانه | PF44: g7 | PG44: =PG39+0.7*PH36*SIN(RADIANS(30)+2*ATAN((PG39-PG42)/(PH39-PH42+0.0001))) -> 2.49441219 | PH44: =PH39-0.7*PH36*COS(RADIANS(30)+2*ATAN((PG39-PG42)/(PH39-PH42+0.0001))) -> 5.332989189 | PI44: =PG39 -> 2.267805556 | PJ44: =PH39 -> 5.405720453 | PK44: =PF39 -> g11 | PM44: f10 | PN44: =OG46 -> 0.4 | PO44: بزرگی فلش دانه | PQ44: g7 | PR44: =PR39+0.7*PS36*SIN(RADIANS(30)+2*ATAN((PR39-PR42)/(PS39-PS42+0.0001))) -> 7.452745524 | PS44: =PS39-0.7*PS36*COS(RADIANS(30)+2*ATAN((PR39-PR42)/(PS39-PS42+0.0001))) -> 5.332989189 | PT44: =PR39 -> 7.226138889 | PU44: =PS39 -> 5.405720453 | PV44: =PQ39 -> g11 | PX44: =PX30 -> -41.5 | PY44: =PY43 -> 15 | PZ44: t16 | QB44: ارتفاع نیم دایره | QC44: =PY14 -> 1.428571429 | QD44: بزرگی فلش | QE44: =QC47 -> -48.5 | QF44: =QD47 -> 9.285714286 | QG44: =QB47 -> t9 | QJ44: پشت | QM44: =QI61 -> 5.4188 | QN44: =QJ61 -> 86.9 | QO44: 25 | QQ44: =QQ15 -> -13 | QR44: =QR15+QR7+2*QR8 -> 57.42779747 | QS44: k34 | QX44: =QQ55 -> -19.4 | QY44: =QR55 -> 52.22779747 | QZ44: k45 | RB44: f5 | RC44: 0.5 | RD44: زاویه فلش رج | RF44: g7 | RG44: =RG39+0.7*RH36*SIN(RADIANS(30)+2*ATAN((RG39-RG42)/(RH39-RH42+0.0001))) -> -3.654893365 | RH44: =RH39-0.7*RH36*COS(RADIANS(30)+2*ATAN((RG39-RG42)/(RH39-RH42+0.0001))) -> 5.332989189 | RI44: =RG39 -> -3.8815 | RJ44: =RH39 -> 5.405720453 | RK44: =RF39 -> g11 | RM44: =RM40+20*RN28 -> 17.12962963 | RN44: =RN40 -> -20 | RO44: 20 | RQ44: =IF(RN26>(RM46-RM40),RM46,RM40) -> 0 | RR44: =IF(RN26>(RM46-RM40),RN46,RN40) -> -20 | RS44: =RO46 -> 30 | RU44: =RU40+20*RV31 -> -28.14396613 | RV44: =RV40 -> 0 | RW44: 20 | RY44: =IF(RV27>(RU46-RU40),RU46,RU40) -> -22.21594919 | RZ44: =IF(RV27>(RU46-RU40),RV46,RV40) -> 0 | SA44: =RW46 -> 30 | SC44: =IF(RV27>(RU71-RU40),RU71,RU40) -> -35.25758645 | SD44: =IF(RV27>(RU71-RU40),RV71,RV40) -> 0 | SE44: 8 | SG44: =SG40+20*SH28 -> 17.12962963 | SH44: =SH40 -> -20 | SI44: 20 | SK44: =IF(SH26>(SG46-SG40),SG46,SG40) -> 0 | SL44: =IF(SH26>(SG46-SG40),SH46,SH40) -> -20 | SM44: =SI46 -> 30 | SO44: =SO40+20*SP31 -> -28.14396613 | SP44: =SP40 -> 0 | SQ44: 20 | SS44: =IF(SP27>(SO46-SO40),SO46,SO40) -> -22.21594919 | ST44: =IF(SP27>(SO46-SO40),SP46,SP40) -> 0 | SU44: =SQ46 -> 30 | SW44: =IF(SP27>(SO71-SO40),SO71,SO40) -> -35.25758645 | SX44: =IF(SP27>(SO71-SO40),SP71,SP40) -> 0 | SY44: 8 | TA44: =TA40+20*TB28 -> 16.2037037 | TB44: =TB40 -> -20 | TC44: 20 | TE44: =IF(TB26>(TA46-TA40),TA46,TA40) -> 0 | TF44: =IF(TB26>(TA46-TA40),TB46,TB40) -> -20 | TG44: =TC46 -> 30 | TI44: =TI40+20*TJ31 -> -28.44036697 | TJ44: =TJ40 -> 0 | TK44: 20 | TM44: =IF(TJ27>(TI46-TI40),TI46,TI40) -> -22.66055046 | TN44: =IF(TJ27>(TI46-TI40),TJ46,TJ40) -> 0 | TO44: =TK46 -> 30 | TQ44: =IF(TJ27>(TI71-TI40),TI71,TI40) -> -35.37614679 | TR44: =IF(TJ27>(TI71-TI40),TJ71,TJ40) -> 0 | TS44: 8 | TU44: =TU40+20*TV28 -> 16.2037037 | TV44: =TV40 -> -20 | TW44: 20 | TY44: =IF(TV26>(TU46-TU40),TU46,TU40) -> 0 | TZ44: =IF(TV26>(TU46-TU40),TV46,TV40) -> -20 | UA44: =TW46 -> 30 | UC44: =UC40+20*UD31 -> -28.44036697 | UD44: =UD40 -> 0 | UE44: 20 | UG44: =IF(UD27>(UC46-UC40),UC46,UC40) -> -22.66055046 | UH44: =IF(UD27>(UC46-UC40),UD46,UD40) -> 0 | UI44: =UE46 -> 30 | UK44: =IF(UD27>(UC71-UC40),UC71,UC40) -> -35.37614679 | UL44: =IF(UD27>(UC71-UC40),UD71,UD40) -> 0 | UM44: 8 | UO44: =UO40+20*UP28 -> 17.12962963 | UP44: =UP40 -> -20 | UQ44: 20 | US44: =IF(UP26>(UO46-UO40),UO46,UO40) -> 0 | UT44: =IF(UP26>(UO46-UO40),UP46,UP40) -> -20 | UU44: =UQ46 -> 30 | UW44: =UW40+20*UX31 -> -28.14396613 | UX44: =UX40 -> 0 | UY44: 20 | VA44: =IF(UX27>(UW46-UW40),UW46,UW40) -> -22.21594919 | VB44: =IF(UX27>(UW46-UW40),UX46,UX40) -> 0 | VC44: =UY46 -> 30 | VE44: =IF(UX27>(UW71-UW40),UW71,UW40) -> -35.25758645 | VF44: =IF(UX27>(UW71-UW40),UX71,UX40) -> 0 | VG44: 8 | VI44: =VI40+20*VJ28 -> 17.12962963 | VJ44: =VJ40 -> -20 | VK44: 20 | VM44: =IF(VJ26>(VI46-VI40),VI46,VI40) -> 0 | VN44: =IF(VJ26>(VI46-VI40),VJ46,VJ40) -> -20 | VO44: =VK46 -> 30 | VQ44: =VQ40+20*VR31 -> -28.14396613 | VR44: =VR40 -> 0 | VS44: 20 | VU44: =IF(VR27>(VQ46-VQ40),VQ46,VQ40) -> -22.21594919 | VV44: =IF(VR27>(VQ46-VQ40),VR46,VR40) -> 0 | VW44: =VS46 -> 30 | VY44: =IF(VR27>(VQ71-VQ40),VQ71,VQ40) -> -35.25758645 | VZ44: =IF(VR27>(VQ71-VQ40),VR71,VR40) -> 0 | WA44: 8
E45: b5 پشت | F45: =ROUNDDOWN(F7*2*(SQRT(POWER(BI128-BI130,2)+POWER(BI129,2))+SQRT(POWER(BI130-BI132,2)+POWER(BI131-BI129,2))),0) -> 20 | G45: =ROUNDDOWN(I30*2*(SQRT(POWER(BI128-BI130,2)+POWER(BI129,2))+SQRT(POWER(BI130-BI132,2)+POWER(BI131-BI129,2))),0) -> 20 | Q45: خطا | R45: =IF((ROUNDUP(S12*S17*S9,0)-R40-R41-3)>-1," ","خطا : قد پایه یقه شومیزیه زیاد شود یا پهنای جادکمه جلو کم شود") ->  | T45: خطا | AC45: d14 | AD45: =AC30 -> 1 | AI45: 0 | AJ45: =IF(AM45=0," ",(10/3)*((AM45/AL45)*(1/J6)-1)) ->  | AK45: =IF(AN45=0," ",(100/68)*((AO45/AN45)*(1/J7)-1)) ->  | AL45: 13.5 | AM45: 0 | AN45: 0 | AO45: 36 | AQ45: 39 | CI45: =CI38+'طراحی همه الگوها'!U183 -> 19.9 | CJ45: =CJ36 -> 109.1 | CK45: j11 | CM45: =CI48 -> 57.842 | CN45: 98.408 | CO45: j5' | DL45: j4 | DM45: =IF('متغیرها '!C9<1,'متغیرها '!C9*'متغیرها '!U59,IF('متغیرها '!C9<2,'متغیرها '!U59+('متغیرها '!C9-1)*('متغیرها '!U60-'متغیرها '!U59),IF('متغیرها '!C9<3,'متغیرها '!U60+('متغیرها '!C9-2)*(I105-'متغیرها '!U60),I105+('متغیرها '!C9-3)*(H127-H126)))) -> 0 | DN45: چادر 2 | DP45: =DP43 -> 28.84862142 | DQ45: =DQ43 -> 64.60269761 | DR45: s12 | DX45: =DM15 -> 0 | DY45: =DN15 -> 71.8 | DZ45: خط سینه | EQ45: شبیه ساز آستین(3→19) | ER45: =BL516 -> 27.69844409 | EX45: =ET34 -> 37.2 | EY45: =EU34 -> 41.6 | EZ45: 17 | FB45: شیفت عمودی الگو دسته برای پرینت | FC45: =-'متغیرها '!U56 -> -60.4 | FF45: =FF13+'طراحی همه الگوها'!U260+'طراحی همه الگوها'!U262 -> 62.1 | FG45: =FG25+FC45 -> 2.8 | FH45: 13 | FJ45: =FF45 -> 62.1 | FK45: =FG45 -> 2.8 | FL45: 13 | FR45: =FO32 -> 0 | FS45: =FP32 -> 63.64250015 | FT45: s'12 | GA45: 60 | GB45: =GB12+GE12*SIN(RADIANS(GA45)+GA14) ->  | GC45: =GC12+GE12*COS(RADIANS(GA45)+GA14) ->  | GD45: =IF(GB13>GB45,ATAN((GC13-GC45)/(GB13-GB45)),ATAN((GC13-GC45)/(GB45-GB13))) ->  | GE45: =IF(GB13>GB45,(GB13-GB45)/COS(GD45),(GB45-GB13)/COS(GD45)) ->  | GG45: 1 | GH45: 2 | GI45: نقطه 27 | GJ45: نقطه قبل از چرخش | GK45: =IF(GH45>GH18,IF(GG45>GG18,GG18+SQRT(POWER(GG45-GG18,2)+POWER(GH45-GH18,2))*COS(ATAN((GH45-GH18)/(GG45-GG18+0.000123))+GH16),GG18-SQRT(POWER(GG45-GG18,2)+POWER(GH45-GH18,2))*COS(ATAN((GH45-GH18)/(GG18-GG45+0.000123))-GH16)),IF(GG45>GG18,GG18+SQRT(POWER(GG45-GG18,2)+POWER(GH45-GH18,2))*COS(ATAN((GH18-GH45)/(GG45-GG18+0.000123))-GH16),GG18-SQRT(POWER(GG45-GG18,2)+POWER(GH45-GH18,2))*COS(ATAN((GH18-GH45)/(GG18-GG45+0.000123))+GH16))) -> 0.6182452327 | GL45: =IF(GH45>GH18,IF(GG45>GG18,GH18+SQRT(POWER(GG45-GG18,2)+POWER(GH45-GH18,2))*SIN(ATAN((GH45-GH18)/(GG45-GG18+0.000123))+GH16),GH18+SQRT(POWER(GG45-GG18,2)+POWER(GH45-GH18,2))*SIN(ATAN((GH45-GH18)/(GG18-GG45+0.000123))-GH16)),IF(GG45>GG18,GH18-SQRT(POWER(GG45-GG18,2)+POWER(GH45-GH18,2))*SIN(ATAN((GH18-GH45)/(GG45-GG18+0.000123))-GH16),GH18-SQRT(POWER(GG45-GG18,2)+POWER(GH45-GH18,2))*SIN(ATAN((GH18-GH45)/(GG18-GG45+0.000123))+GH16))) -> 0.6987463478 | GM45: نقطه چرخیده | GU45: =GU44+GT11 -> -32 | GV45: -0.5585053606 | GW45: =HB13+HB10*COS(GV45) ->  | GX45: =HC13-HB10*SIN(GV45) ->  | GY45: =SQRT(POWER((HB12-GW45),2)+POWER((HC12-GX45),2)) ->  | GZ45: =ABS(HB9-GY45) ->  | HB45: 5 | HC45: 50 | HD45: 1 | HE45: راس بالا | HF45: =SQRT(POWER(HB46-HB45,2)+POWER(HC45-HC46,2)) -> 10.19803903 | HG45: m2 | HO45: =-HK45+HP9 -> 0 | HP45: 0 | HS45: =HF30 -> 0 | HT45: =HG30 -> 0 | HU45: 35 | HW45: =HS45+2*(SIN(ATAN((HS12-HS11)/(HT12-HT11)))*(HT45-HT11)+COS(ATAN((HS12-HS11)/(HT12-HT11)))*(HS11-HS45))*COS(ATAN((HS12-HS11)/(HT12-HT11))) ->  | HX45: =HT45-2*(SIN(ATAN((HS12-HS11)/(HT12-HT11)))*(HT45-HT11)+COS(ATAN((HS12-HS11)/(HT12-HT11)))*(HS11-HS45))*SIN(ATAN((HS12-HS11)/(HT12-HT11))) ->  | HY45: 35 | NU45: =I20 -> جودانه | NV45: بافت انتخابی جادکمه | NY45: g8 | NZ45: =NZ39-0.7*OA36*SIN(RADIANS(30)+ATAN((NZ39-NZ42)/(OA39-OA42+0.0001))) -> -3.10006787 | OA45: =OA39-0.7*OA36*COS(RADIANS(30)+ATAN((NZ39-NZ42)/(OA39-OA42+0.0001))) -> 5.337365487 | OB45: =NZ44 -> -2.567279865 | OC45: =OA44 -> 5.408643197 | OD45: =NY44 -> g7 | OF45: f9 | OG45: ='متغیرها '!C888 -> 0.3 | OH45: بزرگی خط عمودی دانه | OJ45: g8 | OK45: =OK39-0.7*OL36*SIN(RADIANS(30)+ATAN((OK39-OK42)/(OL39-OL42+0.0001))) -> 14.47841567 | OL45: =OL39-0.7*OL36*COS(RADIANS(30)+ATAN((OK39-OK42)/(OL39-OL42+0.0001))) -> 5.256278944 | OM45: =OK44 -> 14.89024552 | ON45: =OL44 -> 5.332989189 | OO45: =OJ44 -> g7 | OQ45: f9 | OR45: ='متغیرها '!C888 -> 0.3 | OS45: بزرگی خط عمودی دانه | OU45: g8 | OV45: =OV39-0.7*OW36*SIN(RADIANS(30)+ATAN((OV39-OV42)/(OW39-OW42+0.0001))) -> 8.280499008 | OW45: =OW39-0.7*OW36*COS(RADIANS(30)+ATAN((OV39-OV42)/(OW39-OW42+0.0001))) -> 5.256278944 | OX45: =OV44 -> 8.692328857 | OY45: =OW44 -> 5.332989189 | OZ45: =OU44 -> g7 | PB45: f11 | PC45: =OG47 -> 0.75 | PD45: زاویه فلش دانه | PF45: g8 | PG45: =PG39-0.7*PH36*SIN(RADIANS(30)+ATAN((PG39-PG42)/(PH39-PH42+0.0001))) -> 2.082582342 | PH45: =PH39-0.7*PH36*COS(RADIANS(30)+ATAN((PG39-PG42)/(PH39-PH42+0.0001))) -> 5.256278944 | PI45: =PG44 -> 2.49441219 | PJ45: =PH44 -> 5.332989189 | PK45: =PF44 -> g7 | PM45: f11 | PN45: =OG47 -> 0.75 | PO45: زاویه فلش دانه | PQ45: g8 | PR45: =PR39-0.7*PS36*SIN(RADIANS(30)+ATAN((PR39-PR42)/(PS39-PS42+0.0001))) -> 7.040915675 | PS45: =PS39-0.7*PS36*COS(RADIANS(30)+ATAN((PR39-PR42)/(PS39-PS42+0.0001))) -> 5.256278944 | PT45: =PR44 -> 7.452745524 | PU45: =PS44 -> 5.332989189 | PV45: =PQ44 -> g7 | PX45: =PX29 -> -45 | PY45: =PY43 -> 15 | PZ45: t17 | QB45: پهنای نیم دایره | QC45: =PY8 -> 0.5 | QD45: =PY16 -> 0.5714285714 | QE45: =QC51 -> -48.8675 | QF45: =QD51 -> 9.485714286 | QG45: =QB51 -> g5 | QI45: =CY105 -> -13.64830625 | QJ45: =CZ105 -> 73.66429829 | QK45: 16fقرینه شیفت | QM45: =QI82 -> 4.0641 | QN45: 85.69083821 | QO45: 28پ | QQ45: =QQ15+(QR7+3*QR8)*SIN(RADIANS(60)) -> -7.977052658 | QR45: =QR15-(QR7+3*QR8)*COS(RADIANS(60)) -> 49.32779747 | QS45: k35 | QX45: =QQ60 -> -20 | QY45: =QR60 -> 52.22779747 | QZ45: k50 | RB45: f9 | RC45: 0.3 | RD45: بزرگی خط عمودی دانه | RF45: g8 | RG45: =RG39-0.7*RH36*SIN(RADIANS(30)+ATAN((RG39-RG42)/(RH39-RH42+0.0001))) -> -4.066723214 | RH45: =RH39-0.7*RH36*COS(RADIANS(30)+ATAN((RG39-RG42)/(RH39-RH42+0.0001))) -> 5.256278944 | RI45: =RG44 -> -3.654893365 | RJ45: =RH44 -> 5.332989189 | RK45: =RF44 -> g7 | RM45: =RM40+25*RN28 -> 21.41203704 | RN45: =RN40 -> -20 | RO45: 25 | RQ45: =RQ44 -> 0 | RR45: =RN38 -> -40.15525759 | RU45: =RU40+25*RV31 -> -25.17995766 | RV45: =RV40 -> 0 | RW45: 25 | RY45: =RY44 -> -22.21594919 | RZ45: =RV38 -> 10.27777778 | SC45: =SC44 -> -35.25758645 | SD45: =RV38 -> 10.27777778 | SG45: =SG40+25*SH28 -> 21.41203704 | SH45: =SH40 -> -20 | SI45: 25 | SK45: =SK44 -> 0 | SL45: =SH38 -> -40.15525759 | SO45: =SO40+25*SP31 -> -25.17995766 | SP45: =SP40 -> 0 | SQ45: 25 | SS45: =SS44 -> -22.21594919 | ST45: =SP38 -> 10.27777778 | SW45: =SW44 -> -35.25758645 | SX45: =SP38 -> 10.27777778 | TA45: =TA40+25*TB28 -> 20.25462963 | TB45: =TB40 -> -20 | TC45: 25 | TE45: =TE44 -> 0 | TF45: =TB38 -> -40.2293578 | TI45: =TI40+25*TJ31 -> -25.55045872 | TJ45: =TJ40 -> 0 | TK45: 25 | TM45: =TM44 -> -22.66055046 | TN45: =TJ38 -> 9.722222222 | TQ45: =TQ44 -> -35.37614679 | TR45: =TJ38 -> 9.722222222 | TU45: =TU40+25*TV28 -> 20.25462963 | TV45: =TV40 -> -20 | TW45: 25 | TY45: =TY44 -> 0 | TZ45: =TV38 -> -40.2293578 | UC45: =UC40+25*UD31 -> -25.55045872 | UD45: =UD40 -> 0 | UE45: 25 | UG45: =UG44 -> -22.66055046 | UH45: =UD38 -> 9.722222222 | UK45: =UK44 -> -35.37614679 | UL45: =UD38 -> 9.722222222 | UO45: =UO40+25*UP28 -> 21.41203704 | UP45: =UP40 -> -20 | UQ45: 25 | US45: =US44 -> 0 | UT45: =UP38 -> -40.15525759 | UW45: =UW40+25*UX31 -> -25.17995766 | UX45: =UX40 -> 0 | UY45: 25 | VA45: =VA44 -> -22.21594919 | VB45: =UX38 -> 10.27777778 | VE45: =VE44 -> -35.25758645 | VF45: =UX38 -> 10.27777778 | VI45: =VI40+25*VJ28 -> 21.41203704 | VJ45: =VJ40 -> -20 | VK45: 25 | VM45: =VM44 -> 0 | VN45: =VJ38 -> -40.15525759 | VQ45: =VQ40+25*VR31 -> -25.17995766 | VR45: =VR40 -> 0 | VS45: 25 | VU45: =VU44 -> -22.21594919 | VV45: =VR38 -> 10.27777778 | VY45: =VY44 -> -35.25758645 | VZ45: =VR38 -> 10.27777778
E46: تعداد دانه ها دور گردن + دو تا نیمه جادکمه که از خط مرکزی اضافه شده | F46: =F45+2*F44+2*F43+2*F42 -> 72 | G46: =G45+2*G44+2*G43+2*G42 -> 74 | H46: b''1 | Q46: خطا | R46: =IF(AND(R42>0,R41>0)," ","خطا : قد پایه یقه شومیزیه زیاد شود یا پهنای جادکمه جلو زیاد شود ") -> خطا : قد پایه یقه شومیزیه زیاد شود یا پهنای جادکمه جلو زیاد شود | T46: خطا | U46: خطا : قد پایه یقه شومیزیه زیاد شود یا پهنای جادکمه جلو زیاد شود | AC46: d15 | AD46: =AD30 -> 1 | AI46: 0 | AJ46: =IF(AM46=0," ",(10/3)*((AM46/AL46)*(1/J6)-1)) ->  | AK46: =IF(AN46=0," ",(100/68)*((AO46/AN46)*(1/J7)-1)) ->  | AL46: 13.5 | AM46: 0 | AN46: 0 | AO46: 36 | AQ46: 40 | CI46: =CI38 -> 10.7 | CJ46: =CJ36-'طراحی همه الگوها'!U184 -> 101.4 | CK46: j12 | CM46: 52.01 | CN46: 84.8 | CO46: j5'' | DL46: (j1 → j2) | DM46: =ROUND(CJ22+0.1*'متغیرها '!U85-DM45,1) -> 109.1 | DP46: =DM27 -> 33.24459995 | DQ46: =DN27 -> 77.15520225 | DR46: s10 | EQ46: شبیه سازαk1 | ER46: =F423 -> 1.391100596 | EX46: =ET30 -> 33.1 | EY46: =EU30 -> 29.1 | EZ46: 19 | FF46: =FF13 -> 0 | FG46: =FG45 -> 2.8 | FH46: 12 | FJ46: =FJ45+0.45*(FJ49-FJ45) -> 68.895 | FK46: =FK45+0.25*(FK49-FK45) -> 21.9 | FL46: 13' | GA46: 62 | GB46: =GB12+GE12*SIN(RADIANS(GA46)+GA14) ->  | GC46: =GC12+GE12*COS(RADIANS(GA46)+GA14) ->  | GD46: =IF(GB13>GB46,ATAN((GC13-GC46)/(GB13-GB46)),ATAN((GC13-GC46)/(GB46-GB13))) ->  | GE46: =IF(GB13>GB46,(GB13-GB46)/COS(GD46),(GB46-GB13)/COS(GD46)) ->  | GG46: 1 | GH46: 2 | GI46: نقطه 28 | GJ46: نقطه قبل از چرخش | GK46: =IF(GH46>GH18,IF(GG46>GG18,GG18+SQRT(POWER(GG46-GG18,2)+POWER(GH46-GH18,2))*COS(ATAN((GH46-GH18)/(GG46-GG18+0.000123))+GH16),GG18-SQRT(POWER(GG46-GG18,2)+POWER(GH46-GH18,2))*COS(ATAN((GH46-GH18)/(GG18-GG46+0.000123))-GH16)),IF(GG46>GG18,GG18+SQRT(POWER(GG46-GG18,2)+POWER(GH46-GH18,2))*COS(ATAN((GH18-GH46)/(GG46-GG18+0.000123))-GH16),GG18-SQRT(POWER(GG46-GG18,2)+POWER(GH46-GH18,2))*COS(ATAN((GH18-GH46)/(GG18-GG46+0.000123))+GH16))) -> 0.6182452327 | GL46: =IF(GH46>GH18,IF(GG46>GG18,GH18+SQRT(POWER(GG46-GG18,2)+POWER(GH46-GH18,2))*SIN(ATAN((GH46-GH18)/(GG46-GG18+0.000123))+GH16),GH18+SQRT(POWER(GG46-GG18,2)+POWER(GH46-GH18,2))*SIN(ATAN((GH46-GH18)/(GG18-GG46+0.000123))-GH16)),IF(GG46>GG18,GH18-SQRT(POWER(GG46-GG18,2)+POWER(GH46-GH18,2))*SIN(ATAN((GH18-GH46)/(GG46-GG18+0.000123))-GH16),GH18-SQRT(POWER(GG46-GG18,2)+POWER(GH46-GH18,2))*SIN(ATAN((GH18-GH46)/(GG18-GG46+0.000123))+GH16))) -> 0.6987463478 | GM46: نقطه چرخیده | GU46: =GU45+GT11 -> -30 | GV46: -0.5235987756 | GW46: =HB13+HB10*COS(GV46) ->  | GX46: =HC13-HB10*SIN(GV46) ->  | GY46: =SQRT(POWER((HB12-GW46),2)+POWER((HC12-GX46),2)) ->  | GZ46: =ABS(HB9-GY46) ->  | HB46: 7 | HC46: 40 | HD46: 2 | HE46: راس پایین | HF46: =ATAN((HB46-HB45)/(HC45-HC46)) -> 0.1973955598 | HG46: γ18 | HO46: =-HK46+HP9 -> 0 | HP46: 0 | HS46: 0 | HT46: 0 | HU46: 36 | HW46: =HS46+2*(SIN(ATAN((HS12-HS11)/(HT12-HT11)))*(HT46-HT11)+COS(ATAN((HS12-HS11)/(HT12-HT11)))*(HS11-HS46))*COS(ATAN((HS12-HS11)/(HT12-HT11))) ->  | HX46: =HT46-2*(SIN(ATAN((HS12-HS11)/(HT12-HT11)))*(HT46-HT11)+COS(ATAN((HS12-HS11)/(HT12-HT11)))*(HS11-HS46))*SIN(ATAN((HS12-HS11)/(HT12-HT11))) ->  | HY46: 36 | NU46: محاسبات | OF46: f10 | OG46: ='متغیرها '!C889 -> 0.4 | OH46: بزرگی فلش دانه | OQ46: f10 | OR46: ='متغیرها '!C889 -> 0.4 | OS46: بزرگی فلش دانه | PB46: محاسبات | PM46: محاسبات | PX46: =PX30+4 -> -37.5 | PY46: =PY43 -> 15 | PZ46: t18 | QB46: نقطه شروع انحنا | QC46: مولفه افقی | QD46: مولفه عمودی | QE46: =QC50 -> -49.025 | QF46: =QD50 -> 10 | QG46: =QB50 -> g4 | QK46: یقه گرد پشت | QM46: 2.16752 | QN46: 85.08625731 | QO46: 26پ | QQ46: =2*QQ15-QQ45 -> -18.02294734 | QR46: =QR45 -> 49.32779747 | QS46: k36 | QX46: =QQ62 -> -16.5 | QY46: =QR62 -> 58.2899753 | QZ46: k52 | RB46: f10 | RC46: 0.4 | RD46: بزرگی فلش دانه | RM46: =RM40+30*RN28 -> 25.69444444 | RN46: =RN40 -> -20 | RO46: 30 | RU46: =RU40+30*RV31 -> -22.21594919 | RV46: =RV40 -> 0 | RW46: 30 | SG46: =SG40+30*SH28 -> 25.69444444 | SH46: =SH40 -> -20 | SI46: 30 | SO46: =SO40+30*SP31 -> -22.21594919 | SP46: =SP40 -> 0 | SQ46: 30 | TA46: =TA40+30*TB28 -> 24.30555556 | TB46: =TB40 -> -20 | TC46: 30 | TI46: =TI40+30*TJ31 -> -22.66055046 | TJ46: =TJ40 -> 0 | TK46: 30 | TU46: =TU40+30*TV28 -> 24.30555556 | TV46: =TV40 -> -20 | TW46: 30 | UC46: =UC40+30*UD31 -> -22.66055046 | UD46: =UD40 -> 0 | UE46: 30 | UO46: =UO40+30*UP28 -> 25.69444444 | UP46: =UP40 -> -20 | UQ46: 30 | UW46: =UW40+30*UX31 -> -22.21594919 | UX46: =UX40 -> 0 | UY46: 30 | VI46: =VI40+30*VJ28 -> 25.69444444 | VJ46: =VJ40 -> -20 | VK46: 30 | VQ46: =VQ40+30*VR31 -> -22.21594919 | VR46: =VR40 -> 0 | VS46: 30
Q47: خطا | R47: =IF(R35>0," ","خطا : قد برگردان یقه شومیزیه زیاد شود ") ->  | T47: خطا | AC47: خطا | AD47: =IF(ROUND(AD19*AD6,0)>3," ","خطا : پهنای دال بالا یقه انگلیسی زیاد شود ") ->  | AI47: 0 | AJ47: =IF(AM47=0," ",(10/3)*((AM47/AL47)*(1/J6)-1)) ->  | AK47: =IF(AN47=0," ",(100/68)*((AO47/AN47)*(1/J7)-1)) ->  | AL47: 13.5 | AM47: 0 | AN47: 0 | AO47: 36 | AQ47: 41 | CI47: =CI38 -> 10.7 | CJ47: =CJ37 -> 60.5 | CK47: j13 | CM47: 39.86 | CN47: 71.678 | CO47: j5''' | DL47: (j1 → j3) | DM47: =0.21*CJ16 -> 10.71 | DN47: بدون انتخاب | FF47: =FF13 -> 0 | FG47: =FG46+'طراحی همه الگوها'!U258 -> 11.3 | FH47: 18 | FJ47: =FJ45+0.75*(FJ49-FJ45) -> 73.425 | FK47: =FK45+0.5*(FK49-FK45) -> 41 | FL47: 13'' | FR47: =FR45 -> 0 | FS47: =FS45 -> 63.64250015 | FT47: s'12 | GA47: 64 | GB47: =GB12+GE12*SIN(RADIANS(GA47)+GA14) ->  | GC47: =GC12+GE12*COS(RADIANS(GA47)+GA14) ->  | GD47: =IF(GB13>GB47,ATAN((GC13-GC47)/(GB13-GB47)),ATAN((GC13-GC47)/(GB47-GB13))) ->  | GE47: =IF(GB13>GB47,(GB13-GB47)/COS(GD47),(GB47-GB13)/COS(GD47)) ->  | GG47: 1 | GH47: 2 | GI47: نقطه 29 | GJ47: نقطه قبل از چرخش | GK47: =IF(GH47>GH18,IF(GG47>GG18,GG18+SQRT(POWER(GG47-GG18,2)+POWER(GH47-GH18,2))*COS(ATAN((GH47-GH18)/(GG47-GG18+0.000123))+GH16),GG18-SQRT(POWER(GG47-GG18,2)+POWER(GH47-GH18,2))*COS(ATAN((GH47-GH18)/(GG18-GG47+0.000123))-GH16)),IF(GG47>GG18,GG18+SQRT(POWER(GG47-GG18,2)+POWER(GH47-GH18,2))*COS(ATAN((GH18-GH47)/(GG47-GG18+0.000123))-GH16),GG18-SQRT(POWER(GG47-GG18,2)+POWER(GH47-GH18,2))*COS(ATAN((GH18-GH47)/(GG18-GG47+0.000123))+GH16))) -> 0.6182452327 | GL47: =IF(GH47>GH18,IF(GG47>GG18,GH18+SQRT(POWER(GG47-GG18,2)+POWER(GH47-GH18,2))*SIN(ATAN((GH47-GH18)/(GG47-GG18+0.000123))+GH16),GH18+SQRT(POWER(GG47-GG18,2)+POWER(GH47-GH18,2))*SIN(ATAN((GH47-GH18)/(GG18-GG47+0.000123))-GH16)),IF(GG47>GG18,GH18-SQRT(POWER(GG47-GG18,2)+POWER(GH47-GH18,2))*SIN(ATAN((GH18-GH47)/(GG47-GG18+0.000123))-GH16),GH18-SQRT(POWER(GG47-GG18,2)+POWER(GH47-GH18,2))*SIN(ATAN((GH18-GH47)/(GG18-GG47+0.000123))+GH16))) -> 0.6987463478 | GM47: نقطه چرخیده | GU47: =GU46+GT11 -> -28 | GV47: -0.4886921906 | GW47: =HB13+HB10*COS(GV47) ->  | GX47: =HC13-HB10*SIN(GV47) ->  | GY47: =SQRT(POWER((HB12-GW47),2)+POWER((HC12-GX47),2)) ->  | GZ47: =ABS(HB9-GY47) ->  | HB47: 10 | HC47: m4 | HD47: ضلع بالا | HF47: =RADIANS(90)-RADIANS(HF46)-HB48 -> 1.829150512 | HG47: m5 | HO47: =-HK47+HP9 -> 0 | HP47: 0 | HS47: 0 | HT47: 0 | HU47: 37 | HW47: =HS47+2*(SIN(ATAN((HS12-HS11)/(HT12-HT11)))*(HT47-HT11)+COS(ATAN((HS12-HS11)/(HT12-HT11)))*(HS11-HS47))*COS(ATAN((HS12-HS11)/(HT12-HT11))) ->  | HX47: =HT47-2*(SIN(ATAN((HS12-HS11)/(HT12-HT11)))*(HT47-HT11)+COS(ATAN((HS12-HS11)/(HT12-HT11)))*(HS11-HS47))*SIN(ATAN((HS12-HS11)/(HT12-HT11))) ->  | HY47: 37 | NU47: g3 | NV47: =NV34 -> 0.8027522936 | NW47: ارتفاع نیم دایره | OA47: باکس نوشته a2 | OD47: =OA47 -> باکس نوشته a2 | OF47: f11 | OG47: ='متغیرها '!C890 -> 0.75 | OH47: زاویه فلش دانه | OM47: =OF63 -> 14.17013889 | ON47: =OG63 -> 5.566648678 | OO47: m4 | OQ47: f11 | OR47: ='متغیرها '!C890 -> 0.75 | OS47: زاویه فلش دانه | OX47: =OQ63 -> 7.972222222 | OY47: =OR63 -> 5.566648678 | OZ47: m4 | PB47: g3 | PC47: =PC37 -> 0.5666486778 | PD47: ارتفاع نیم دایره | PI47: =PB63 -> 1.774305556 | PJ47: =PC63 -> 5.566648678 | PK47: n4 | PM47: g3 | PN47: =PN37 -> 0.5666486778 | PO47: ارتفاع نیم دایره | PT47: =PM63 -> 6.732638889 | PU47: =PN63 -> 5.566648678 | PV47: n4 | PX47: =PX43 -> -48.5 | PY47: =PY43+PY36-PY29 -> 19.28571429 | PZ47: t19 | QB47: =PZ37 -> t9 | QC47: =PX37 -> -48.5 | QD47: =PY37 -> 9.285714286 | QE47: =QC52 -> -48.8675 | QF47: =QD52 -> 10.51428571 | QG47: =QB52 -> g6 | QI47: =GL101 -> 5.4188 | QJ47: 88.1 | QK47: 23پ | QM47: 0 | QN47: 84.88473034 | QO47: 24پ | QQ47: =QQ15+QR7+3*QR8 -> -7.2 | QR47: =QR15 -> 52.22779747 | QS47: k37 | QX47: =QQ63 -> -13 | QY47: =QR63 -> 59.22779747 | QZ47: k53 | RB47: f11 | RC47: 0.75 | RD47: زاویه فلش دانه | RI47: =RB63 -> -4.375 | RJ47: =RC63 -> 5.566648678 | RK47: p4 | RM47: =RM40+35*RN28 -> 29.97685185 | RN47: =RN40 -> -20 | RO47: 35 | RQ47: =IF(RN26>(RM47-RM40),RM47,RM40) -> 0 | RR47: =IF(RN26>(RM47-RM40),RN47,RN40) -> -20 | RS47: 35 | RU47: =RU40+35*RV31 -> -19.25194072 | RV47: =RV40 -> 0 | RW47: 35 | RY47: =IF(RV27>(RU47-RU40),RU47,RU40) -> -40 | RZ47: =IF(RV27>(RU47-RU40),RV47,RV40) -> 0 | SA47: 35 | SC47: =IF(RV27>(RU72-RU40),RU72,RU40) -> -34.66478476 | SD47: =IF(RV27>(RU72-RU40),RV72,RV40) -> 0 | SE47: 9 | SG47: =SG40+35*SH28 -> 29.97685185 | SH47: =SH40 -> -20 | SI47: 35 | SK47: =IF(SH26>(SG47-SG40),SG47,SG40) -> 0 | SL47: =IF(SH26>(SG47-SG40),SH47,SH40) -> -20 | SM47: 35 | SO47: =SO40+35*SP31 -> -19.25194072 | SP47: =SP40 -> 0 | SQ47: 35 | SS47: =IF(SP27>(SO47-SO40),SO47,SO40) -> -40 | ST47: =IF(SP27>(SO47-SO40),SP47,SP40) -> 0 | SU47: 35 | SW47: =IF(SP27>(SO72-SO40),SO72,SO40) -> -34.66478476 | SX47: =IF(SP27>(SO72-SO40),SP72,SP40) -> 0 | SY47: 9 | TA47: =TA40+35*TB28 -> 28.35648148 | TB47: =TB40 -> -20 | TC47: 35 | TE47: =IF(TB26>(TA47-TA40),TA47,TA40) -> 0 | TF47: =IF(TB26>(TA47-TA40),TB47,TB40) -> -20 | TG47: 35 | TI47: =TI40+35*TJ31 -> -19.7706422 | TJ47: =TJ40 -> 0 | TK47: 35 | TM47: =IF(TJ27>(TI47-TI40),TI47,TI40) -> -40 | TN47: =IF(TJ27>(TI47-TI40),TJ47,TJ40) -> 0 | TO47: 35 | TQ47: =IF(TJ27>(TI72-TI40),TI72,TI40) -> -34.79816514 | TR47: =IF(TJ27>(TI72-TI40),TJ72,TJ40) -> 0 | TS47: 9 | TU47: =TU40+35*TV28 -> 28.35648148 | TV47: =TV40 -> -20 | TW47: 35 | TY47: =IF(TV26>(TU47-TU40),TU47,TU40) -> 0 | TZ47: =IF(TV26>(TU47-TU40),TV47,TV40) -> -20 | UA47: 35 | UC47: =UC40+35*UD31 -> -19.7706422 | UD47: =UD40 -> 0 | UE47: 35 | UG47: =IF(UD27>(UC47-UC40),UC47,UC40) -> -40 | UH47: =IF(UD27>(UC47-UC40),UD47,UD40) -> 0 | UI47: 35 | UK47: =IF(UD27>(UC72-UC40),UC72,UC40) -> -34.79816514 | UL47: =IF(UD27>(UC72-UC40),UD72,UD40) -> 0 | UM47: 9 | UO47: =UO40+35*UP28 -> 29.97685185 | UP47: =UP40 -> -20 | UQ47: 35 | US47: =IF(UP26>(UO47-UO40),UO47,UO40) -> 0 | UT47: =IF(UP26>(UO47-UO40),UP47,UP40) -> -20 | UU47: 35 | UW47: =UW40+35*UX31 -> -19.25194072 | UX47: =UX40 -> 0 | UY47: 35 | VA47: =IF(UX27>(UW47-UW40),UW47,UW40) -> -40 | VB47: =IF(UX27>(UW47-UW40),UX47,UX40) -> 0 | VC47: 35 | VE47: =IF(UX27>(UW72-UW40),UW72,UW40) -> -34.66478476 | VF47: =IF(UX27>(UW72-UW40),UX72,UX40) -> 0 | VG47: 9 | VI47: =VI40+35*VJ28 -> 29.97685185 | VJ47: =VJ40 -> -20 | VK47: 35 | VM47: =IF(VJ26>(VI47-VI40),VI47,VI40) -> 0 | VN47: =IF(VJ26>(VI47-VI40),VJ47,VJ40) -> -20 | VO47: 35 | VQ47: =VQ40+35*VR31 -> -19.25194072 | VR47: =VR40 -> 0 | VS47: 35 | VU47: =IF(VR27>(VQ47-VQ40),VQ47,VQ40) -> -40 | VV47: =IF(VR27>(VQ47-VQ40),VR47,VR40) -> 0 | VW47: 35 | VY47: =IF(VR27>(VQ72-VQ40),VQ72,VQ40) -> -34.66478476 | VZ47: =IF(VR27>(VQ72-VQ40),VR72,VR40) -> 0 | WA47: 9
H48: a02 تعداد رج در یک سانت کلاه | I48: =F6+0.3*I50*F6 -> 3.373809524 | K48: a03 تعداد رج در یک سانت جلو شلوار | L48: =F6+0.3*L50*F6 -> 3.373809524 | N48: a04 تعداد رج در یک سانت پشت شلوار | O48: =F6+0.3*O50*F6 -> 3.373809524 | AI48: 0 | AJ48: =IF(AM48=0," ",(10/3)*((AM48/AL48)*(1/J6)-1)) ->  | AK48: =IF(AN48=0," ",(100/68)*((AO48/AN48)*(1/J7)-1)) ->  | AL48: 13.5 | AM48: 0 | AN48: 0 | AO48: 36 | AQ48: 42 | CI48: =CI47+0.97*(CI39-CI47) -> 57.842 | CJ48: =CJ47+0.78*(CJ39-CJ47) -> 98.408 | CK48: j5' | CM48: 22.85 | CN48: 62.444 | CO48: j5'''' | DP48: =DM30 -> 45.65 | DQ48: =DN30 -> 0 | DR48: s13 | EX48: =ET28 -> 29 | EY48: =EU28 -> 41.6 | EZ48: 15 | FF48: =FF13 -> 0 | FG48: =FG47+'طراحی همه الگوها'!U259 -> 79.2 | FH48: 14 | FJ48: =FJ45+0.95*(FJ49-FJ45) -> 76.445 | FK48: =FK45+0.8*(FK49-FK45) -> 63.92 | FL48: 13''' | FR48: =FO23 -> 14.115 | FS48: =FP23 -> 63.64250015 | FT48: s12 | GA48: بهینه α | GB48: =IF(GE13<GE16,GA16,IF(GE13<GE17,GA17,IF(GE13<GE18,GA18,IF(GE13<GE19,GA19,IF(GE13<GE20,GA20,IF(GE13<GE21,GA21,IF(GE13<GE22,GA22,IF(GE13<GE23,GA23,IF(GE13<GE24,GA24,IF(GE13<GE25,GA25,IF(GE13<GE26,GA26,IF(GE13<GE27,GA27,IF(GE13<GE28,GA28,IF(GE13<GE29,GA29,IF(GE13<GE30,GA30,IF(GE13<GE31,GA31,IF(GE13<GE32,GA32,IF(GE13<GE33,GA33,IF(GE13<GE34,GA34,IF(GE13<GE35,GA35,IF(GE13<GE36,GA36,IF(GE13<GE37,GA37,IF(GE13<GE38,GA38,IF(GE13<GE39,GA39,IF(GE13<GE40,GA40,IF(GE13<GE41,GA41,IF(GE13<GE42,GA42,IF(GE13<GE43,GA43,IF(GE13<GE44,GA44,IF(GE13<GE45,GA45,IF(GE13<GE46,GA46,GA47))))))))))))))))))))))))))))))) ->  | GC48: =RADIANS(GB48) ->  | GD48: c21 | GE48: =IF(GB13>GB50,ATAN((GC13-GC50)/(GB13-GB50)),ATAN((GC13-GC50)/(GB50-GB13))) ->  | GG48: 1 | GH48: 2 | GI48: نقطه 30 | GJ48: نقطه قبل از چرخش | GK48: =IF(GH48>GH18,IF(GG48>GG18,GG18+SQRT(POWER(GG48-GG18,2)+POWER(GH48-GH18,2))*COS(ATAN((GH48-GH18)/(GG48-GG18+0.000123))+GH16),GG18-SQRT(POWER(GG48-GG18,2)+POWER(GH48-GH18,2))*COS(ATAN((GH48-GH18)/(GG18-GG48+0.000123))-GH16)),IF(GG48>GG18,GG18+SQRT(POWER(GG48-GG18,2)+POWER(GH48-GH18,2))*COS(ATAN((GH18-GH48)/(GG48-GG18+0.000123))-GH16),GG18-SQRT(POWER(GG48-GG18,2)+POWER(GH48-GH18,2))*COS(ATAN((GH18-GH48)/(GG18-GG48+0.000123))+GH16))) -> 0.6182452327 | GL48: =IF(GH48>GH18,IF(GG48>GG18,GH18+SQRT(POWER(GG48-GG18,2)+POWER(GH48-GH18,2))*SIN(ATAN((GH48-GH18)/(GG48-GG18+0.000123))+GH16),GH18+SQRT(POWER(GG48-GG18,2)+POWER(GH48-GH18,2))*SIN(ATAN((GH48-GH18)/(GG18-GG48+0.000123))-GH16)),IF(GG48>GG18,GH18-SQRT(POWER(GG48-GG18,2)+POWER(GH48-GH18,2))*SIN(ATAN((GH18-GH48)/(GG48-GG18+0.000123))-GH16),GH18-SQRT(POWER(GG48-GG18,2)+POWER(GH48-GH18,2))*SIN(ATAN((GH18-GH48)/(GG18-GG48+0.000123))+GH16))) -> 0.6987463478 | GM48: نقطه چرخیده | GU48: =GU47+GT11 -> -26 | GV48: -0.4537856055 | GW48: =HB13+HB10*COS(GV48) ->  | GX48: =HC13-HB10*SIN(GV48) ->  | GY48: =SQRT(POWER((HB12-GW48),2)+POWER((HC12-GX48),2)) ->  | GZ48: =ABS(HB9-GY48) ->  | HB48: =RADIANS(-15) -> -0.2617993878 | HC48: m1 | HD48: زاویه ضلع پایین با افق به رادیان ساعتگرزیر افق عدد مثبت | HF48: =HB47*COS(HF49)-HF45*COS(HF47) -> 4.275403846 | HG48: m7 | HO48: =-HK48+HP9 -> 0 | HP48: 0 | HS48: =HF30 -> 0 | HT48: =HG30 -> 0 | HU48: 38 | HW48: =HS48+2*(SIN(ATAN((HS12-HS11)/(HT12-HT11)))*(HT48-HT11)+COS(ATAN((HS12-HS11)/(HT12-HT11)))*(HS11-HS48))*COS(ATAN((HS12-HS11)/(HT12-HT11))) ->  | HX48: =HT48-2*(SIN(ATAN((HS12-HS11)/(HT12-HT11)))*(HT48-HT11)+COS(ATAN((HS12-HS11)/(HT12-HT11)))*(HS11-HS48))*SIN(ATAN((HS12-HS11)/(HT12-HT11))) ->  | HY48: 38 | NU48: w12 | NV48: =O17*40/NV33 -> 3.918367347 | NW48: ضریب کاهش تعداد دانه ها | NZ48: متغیرهای ورودی | OB48: =NZ54 -> -35 | OC48: =OA54 -> 5.802752294 | OD48: =NY54 -> w8 | OF48: محاسبات | OM48: =OF65 -> -35 | ON48: =OG65 -> 5.566648678 | OO48: m6 | OQ48: محاسبات | OX48: =OQ65 -> -35 | OY48: =OR65 -> 5.566648678 | OZ48: m6 | PB48: n0 | PC48: =PB17*40/PC36 -> 2.420168067 | PD48: ضریب کاهش تعداد دانه ها | PI48: =PB64 -> -35.20659722 | PJ48: =PC64 -> 5.566648678 | PK48: n5 | PM48: n0 | PN48: =PM17*40/PN36 -> 2.420168067 | PO48: ضریب کاهش تعداد دانه ها | PT48: =PM64 -> -35.41319444 | PU48: =PN64 -> 5.566648678 | PV48: n'5 | PX48: =PX44 -> -41.5 | PY48: =PY47 -> 19.28571429 | PZ48: t20 | QB48: g11 | QC48: =QC52+0.8*(QC50-QC52) -> -48.9935 | QD48: =QD50+0.6*(QD52-QD50) -> 10.30857143 | QE48: =QC49 -> -48.5 | QF48: =QD49 -> 10.71428571 | QG48: =QB49 -> g2 | QI48: 4.0641 | QJ48: 86.89083821 | QK48: 28پ | QM48: -2.16752 | QN48: 85.08625731 | QO48: 26پ ق | QQ48: =2*QQ15-QQ47 -> -18.8 | QR48: =QR47 -> 52.22779747 | QS48: k38 | QX48: =QQ61 -> -9.5 | QY48: =QR61 -> 58.2899753 | QZ48: k51 | RB48: محاسبات | RI48: =RB64 -> -35 | RJ48: =RC64 -> 5.566648678 | RK48: p5 | RM48: =RM40+40*RN28 -> 34.25925926 | RN48: =RN40 -> -20 | RO48: 40 | RQ48: =RQ47 -> 0 | RR48: =RN38 -> -40.15525759 | RU48: =RU40+40*RV31 -> -16.28793225 | RV48: =RV40 -> 0 | RW48: 40 | RY48: =RY47 -> -40 | RZ48: =RV38 -> 10.27777778 | SC48: =SC47 -> -34.66478476 | SD48: =RV38 -> 10.27777778 | SG48: =SG40+40*SH28 -> 34.25925926 | SH48: =SH40 -> -20 | SI48: 40 | SK48: =SK47 -> 0 | SL48: =SH38 -> -40.15525759 | SO48: =SO40+40*SP31 -> -16.28793225 | SP48: =SP40 -> 0 | SQ48: 40 | SS48: =SS47 -> -40 | ST48: =SP38 -> 10.27777778 | SW48: =SW47 -> -34.66478476 | SX48: =SP38 -> 10.27777778 | TA48: =TA40+40*TB28 -> 32.40740741 | TB48: =TB40 -> -20 | TC48: 40 | TE48: =TE47 -> 0 | TF48: =TB38 -> -40.2293578 | TI48: =TI40+40*TJ31 -> -16.88073394 | TJ48: =TJ40 -> 0 | TK48: 40 | TM48: =TM47 -> -40 | TN48: =TJ38 -> 9.722222222 | TQ48: =TQ47 -> -34.79816514 | TR48: =TJ38 -> 9.722222222 | TU48: =TU40+40*TV28 -> 32.40740741 | TV48: =TV40 -> -20 | TW48: 40 | TY48: =TY47 -> 0 | TZ48: =TV38 -> -40.2293578 | UC48: =UC40+40*UD31 -> -16.88073394 | UD48: =UD40 -> 0 | UE48: 40 | UG48: =UG47 -> -40 | UH48: =UD38 -> 9.722222222 | UK48: =UK47 -> -34.79816514 | UL48: =UD38 -> 9.722222222 | UO48: =UO40+40*UP28 -> 34.25925926 | UP48: =UP40 -> -20 | UQ48: 40 | US48: =US47 -> 0 | UT48: =UP38 -> -40.15525759 | UW48: =UW40+40*UX31 -> -16.28793225 | UX48: =UX40 -> 0 | UY48: 40 | VA48: =VA47 -> -40 | VB48: =UX38 -> 10.27777778 | VE48: =VE47 -> -34.66478476 | VF48: =UX38 -> 10.27777778 | VI48: =VI40+40*VJ28 -> 34.25925926 | VJ48: =VJ40 -> -20 | VK48: 40 | VM48: =VM47 -> 0 | VN48: =VJ38 -> -40.15525759 | VQ48: =VQ40+40*VR31 -> -16.28793225 | VR48: =VR40 -> 0 | VS48: 40 | VU48: =VU47 -> -40 | VV48: =VR38 -> 10.27777778 | VY48: =VY47 -> -34.66478476 | VZ48: =VR38 -> 10.27777778
H49: تعداد دانه در یک سانت کلاهb02 | I49: =F7+0.68*I51*F7 -> 2.335135135 | K49: تعداد دانه در یک سانت جلو شلوارb03 | L49: =F7+0.68*L51*F7 -> 2.335135135 | N49: تعداد دانه در یک سانت پشت شلوارb04 | O49: =F7+0.68*O51*F7 -> 2.335135135 | AH49: =AO49/AN49 ->  | AI49: =AM49/AL49 -> 0 | AJ49: =IF(AM49=0," ",(10/3)*((AM49/AL49)*(1/J6)-1)) ->  | AK49: =IF(AN49=0," ",(100/68)*((AO49/AN49)*(1/J7)-1)) ->  | AL49: 13.5 | AM49: 0 | AN49: 0 | AO49: 36 | AQ49: 43 | AS49: =IF(AM49=0," ",AP49) ->  | AT49: =IF(AN49=0," ",ROUND(AK49*100+20,0)) ->  | AU49: =IF(AM49=0," ",ROUND(AJ49*50+30,0)) ->  | CI49: =CI47+0.85*(CI39-CI47) -> 52.01 | CJ49: =CJ47+0.5*(CJ39-CJ47) -> 84.8 | CK49: j5'' | CM49: =CI47 -> 10.7 | CN49: =CJ47 -> 60.5 | CO49: j13 | DP49: =DM19 -> 0 | DQ49: =DN30 -> 0 | DR49: 2 | EX49: =ET30 -> 33.1 | EY49: =EU30 -> 29.1 | EZ49: 19 | FF49: =FF13+'طراحی همه الگوها'!U263 -> 77.2 | FG49: =FG48 -> 79.2 | FH49: 15 | FJ49: =FF49 -> 77.2 | FK49: =FG49 -> 79.2 | FL49: 15 | GB49: مولفه افقی | GC49: مولفه عمودی | GJ49: پروسیجرها | GU49: =GU48+GT11 -> -24 | GV49: -0.4188790205 | GW49: =HB13+HB10*COS(GV49) ->  | GX49: =HC13-HB10*SIN(GV49) ->  | GY49: =SQRT(POWER((HB12-GW49),2)+POWER((HC12-GX49),2)) ->  | GZ49: =ABS(HB9-GY49) ->  | HB49: راس سوم | HF49: =ASIN(HF50/HB47) -> 1.403019319 | HG49: m8 | HO49: =-HK49+HP9 -> 0 | HP49: 0 | HS49: 0 | HT49: 0 | HU49: 39 | HW49: =HS49+2*(SIN(ATAN((HS12-HS11)/(HT12-HT11)))*(HT49-HT11)+COS(ATAN((HS12-HS11)/(HT12-HT11)))*(HS11-HS49))*COS(ATAN((HS12-HS11)/(HT12-HT11))) ->  | HX49: =HT49-2*(SIN(ATAN((HS12-HS11)/(HT12-HT11)))*(HT49-HT11)+COS(ATAN((HS12-HS11)/(HT12-HT11)))*(HS11-HS49))*SIN(ATAN((HS12-HS11)/(HT12-HT11))) ->  | HY49: 39 | NU49: f4 | NV49: =NV38*NV34 -> 0.4816513761 | NW49: بزرگی فلش رج | NY49: طول باکس نوشته | NZ49: =1.1*NV36 -> 4.95 | OA49: h3 | OB49: =NZ59 -> -21.65208333 | OC49: =OA59 -> 5.802752294 | OD49: =NY59 -> h8 | OF49: g3 | OG49: =OG39 -> 0.5666486778 | OH49: ارتفاع نیم دایره | OJ49: زاویه فلش | OK49: =OG44 -> 0.5 | OL49: f5 | OO49: فلش به سمت چپ | OQ49: g3 | OR49: =OR39 -> 0.5666486778 | OS49: ارتفاع نیم دایره | OU49: زاویه فلش | OV49: =OR44 -> 0.5 | OW49: f5 | OZ49: فلش به سمت چپ | PB49: f4 | PC49: =PC41*PC37 -> 0.3399892067 | PD49: بزرگی فلش رج | PF49: زاویه فلش | PG49: =PC42 -> 0.5 | PH49: f5 | PK49: فلش به سمت چپ | PM49: f4 | PN49: =PN41*PN37 -> 0.3399892067 | PO49: بزرگی فلش رج | PQ49: زاویه فلش | PR49: =PN42 -> 0.5 | PS49: f5 | PV49: فلش به سمت چپ | PX49: =PX45 -> -45 | PY49: =PY47 -> 19.28571429 | PZ49: t21 | QB49: g2 | QC49: =QC47 -> -48.5 | QD49: =QD47+QC44 -> 10.71428571 | QI49: 2.16752 | QJ49: 86.28625731 | QK49: 26پ | QM49: -4.0641 | QN49: 85.69083821 | QO49: 28پ ق | QQ49: =QQ15+(QR7+3*QR8)*SIN(RADIANS(30)) -> -10.1 | QR49: =QR15+(QR7+3*QR8)*COS(RADIANS(30)) -> 57.25074482 | QS49: k39 | QX49: =QQ59 -> -6 | QY49: =QR59 -> 52.22779747 | QZ49: k49 | RB49: g3 | RC49: =RC39 -> 0.5666486778 | RD49: ارتفاع نیم دایره | RF49: زاویه فلش | RG49: =RC44 -> 0.5 | RH49: f5 | RK49: فلش به سمت چپ | RM49: =RM40+45*RN28 -> 38.54166667 | RN49: =RN40 -> -20 | RO49: 45 | RU49: =RU40+45*RV31 -> -13.32392378 | RV49: =RV40 -> 0 | RW49: 45 | SG49: =SG40+45*SH28 -> 38.54166667 | SH49: =SH40 -> -20 | SI49: 45 | SO49: =SO40+45*SP31 -> -13.32392378 | SP49: =SP40 -> 0 | SQ49: 45 | TA49: =TA40+45*TB28 -> 36.45833333 | TB49: =TB40 -> -20 | TC49: 45 | TI49: =TI40+45*TJ31 -> -13.99082569 | TJ49: =TJ40 -> 0 | TK49: 45 | TU49: =TU40+45*TV28 -> 36.45833333 | TV49: =TV40 -> -20 | TW49: 45 | UC49: =UC40+45*UD31 -> -13.99082569 | UD49: =UD40 -> 0 | UE49: 45 | UO49: =UO40+45*UP28 -> 38.54166667 | UP49: =UP40 -> -20 | UQ49: 45 | UW49: =UW40+45*UX31 -> -13.32392378 | UX49: =UX40 -> 0 | UY49: 45 | VI49: =VI40+45*VJ28 -> 38.54166667 | VJ49: =VJ40 -> -20 | VK49: 45 | VQ49: =VQ40+45*VR31 -> -13.32392378 | VR49: =VR40 -> 0 | VS49: 45
H50: جمع شوندگی عمودی بافت کلاه | I50: =OFFSET(AJ6,I52,0) -> 0.1058201058 | K50: جمع شوندگی عمودی بافت جلوشلوار | L50: =OFFSET(AJ6,L52,0) -> 0.1058201058 | N50: جمع شوندگی عمودی بافت پشت شلوار | O50: =OFFSET(AJ6,O52,0) -> 0.1058201058 | AI50: 0 | AJ50: =IF(AM50=0," ",(10/3)*((AM50/AL50)*(1/J6)-1)) ->  | AK50: =IF(AN50=0," ",(100/68)*((AO50/AN50)*(1/J7)-1)) ->  | AL50: 13.5 | AM50: 0 | AN50: 0 | AO50: 36 | AQ50: =AQ49+1 -> 44 | CI50: =CI47+0.6*(CI39-CI47) -> 39.86 | CJ50: =CJ47+0.23*(CJ39-CJ47) -> 71.678 | CK50: j5''' | CM50: =CI37 -> 0 | CN50: =CJ37 -> 60.5 | CO50: j2 | FR50: =FR48 -> 14.115 | FS50: =FS48 -> 63.64250015 | FT50: s12 | GA50: e23 | GB50: =GB12+GE12*SIN(GC48+GA14) ->  | GC50: =GC12+GE12*COS(GC48+GA14) ->  | GD50: راس سوم | GU50: =GU49+GT11 -> -22 | GV50: -0.3839724354 | GW50: =HB13+HB10*COS(GV50) ->  | GX50: =HC13-HB10*SIN(GV50) ->  | GY50: =SQRT(POWER((HB12-GW50),2)+POWER((HC12-GX50),2)) ->  | GZ50: =ABS(HB9-GY50) ->  | HB50: =HB46+HF48*COS(HB48) -> 11.12972299 | HC50: =HC46-HF48*SIN(HB48) -> 41.10655594 | HD50: 3 | HF50: =HF45*SIN(HF47) -> 9.859584224 | HG50: m9 | HO50: =-HK50+HP9 -> 0 | HP50: 0 | HS50: 0 | HT50: 0 | HU50: 40 | HW50: =HS50+2*(SIN(ATAN((HS12-HS11)/(HT12-HT11)))*(HT50-HT11)+COS(ATAN((HS12-HS11)/(HT12-HT11)))*(HS11-HS50))*COS(ATAN((HS12-HS11)/(HT12-HT11))) ->  | HX50: =HT50-2*(SIN(ATAN((HS12-HS11)/(HT12-HT11)))*(HT50-HT11)+COS(ATAN((HS12-HS11)/(HT12-HT11)))*(HS11-HS50))*SIN(ATAN((HS12-HS11)/(HT12-HT11))) ->  | HY50: 40 | NV50: نقاط خروجی | NY50: پهنای باکس نوشته | NZ50: =NV37 -> 0.5 | OA50: h4 | OF50: m0 | OG50: =S18*40/OG38 -> 2.420168067 | OH50: ضریب کاهش تعداد دانه ها | OJ50: بزرگی فلش | OK50: =OG51 -> 0.3399892067 | OL50: f4 | OM50: =OK52 -> -30.08298611 | ON50: =OL52 -> 5.566648678 | OO50: =OJ52 -> m5 | OQ50: m0 | OR50: =S18*40/OR38 -> 2.420168067 | OS50: ضریب کاهش تعداد دانه ها | OU50: بزرگی فلش | OV50: =OR51 -> 0.3399892067 | OW50: f4 | OX50: =OV52 -> -30.70277778 | OY50: =OW52 -> 5.566648678 | OZ50: =OU52 -> m5 | PB50: n20 | PC50: 0.15 | PD50: فاصله فلش کم کردن | PF50: بزرگی فلش | PG50: =PC49 -> 0.3399892067 | PH50: f4 | PI50: =PG52 -> -31.32256944 | PJ50: =PH52 -> 5.566648678 | PK50: =PF52 -> n6 | PM50: n20 | PN50: 0.15 | PO50: فاصله فلش کم کردن | PQ50: بزرگی فلش | PR50: =PN49 -> 0.3399892067 | PS50: f4 | PT50: =PR52 -> -30.82673611 | PU50: =PS52 -> 5.566648678 | PV50: =PQ52 -> n6 | PX50: =PX30+3 -> -38.5 | PY50: =PY47 -> 19.28571429 | PZ50: t22 | QB50: g4 | QC50: =QC47-QC45*QC43/40 -> -49.025 | QD50: =QD47+0.5*QC44 -> 10 | QE50: =QC54 -> -49.24362296 | QF50: =QD54 -> 9.996420012 | QG50: =QB54 -> g8 | QI50: 0 | QJ50: 86.08473034 | QK50: 24پ | QM50: -5.4188 | QN50: 86.9 | QO50: 23پ ق | QQ50: =2*QQ15-QQ49 -> -15.9 | QR50: =QR49 -> 57.25074482 | QS50: k40 | QX50: =QQ64 -> -5.4 | QY50: =QR64 -> 52.22779747 | QZ50: k54 | RB50: p0 | RC50: =RB19*40/RC38 -> 2.057142857 | RD50: ضریب کاهش تعداد دانه ها | RF50: بزرگی فلش | RG50: =RC51 -> 0.3399892067 | RH50: f4 | RI50: =RG52 -> -31.9375 | RJ50: =RH52 -> 5.566648678 | RK50: =RF52 -> p6 | RM50: =RM40+50*RN28 -> 42.82407407 | RN50: =RN40 -> -20 | RO50: 50 | RQ50: =IF(RN26>(RM48-RM40),RM48,RM40) -> 0 | RR50: =IF(RN26>(RM48-RM40),RN48,RN40) -> -20 | RS50: 40 | RU50: =RU40+50*RV31 -> -10.35991531 | RV50: =RV40 -> 0 | RW50: 50 | RY50: =IF(RV27>(RU48-RU40),RU48,RU40) -> -40 | RZ50: =IF(RV27>(RU48-RU40),RV48,RV40) -> 0 | SA50: 40 | SC50: =IF(RV27>(RU73-RU40),RU73,RU40) -> -33.47918137 | SD50: =IF(RV27>(RU73-RU40),RV73,RV40) -> 0 | SE50: 11 | SG50: =SG40+50*SH28 -> 42.82407407 | SH50: =SH40 -> -20 | SI50: 50 | SK50: =IF(SH26>(SG48-SG40),SG48,SG40) -> 0 | SL50: =IF(SH26>(SG48-SG40),SH48,SH40) -> -20 | SM50: 40 | SO50: =SO40+50*SP31 -> -10.35991531 | SP50: =SP40 -> 0 | SQ50: 50 | SS50: =IF(SP27>(SO48-SO40),SO48,SO40) -> -40 | ST50: =IF(SP27>(SO48-SO40),SP48,SP40) -> 0 | SU50: 40 | SW50: =IF(SP27>(SO73-SO40),SO73,SO40) -> -33.47918137 | SX50: =IF(SP27>(SO73-SO40),SP73,SP40) -> 0 | SY50: 11 | TA50: =TA40+50*TB28 -> 40.50925926 | TB50: =TB40 -> -20 | TC50: 50 | TE50: =IF(TB26>(TA48-TA40),TA48,TA40) -> 0 | TF50: =IF(TB26>(TA48-TA40),TB48,TB40) -> -20 | TG50: 40 | TI50: =TI40+50*TJ31 -> -11.10091743 | TJ50: =TJ40 -> 0 | TK50: 50 | TM50: =IF(TJ27>(TI48-TI40),TI48,TI40) -> -40 | TN50: =IF(TJ27>(TI48-TI40),TJ48,TJ40) -> 0 | TO50: 40 | TQ50: =IF(TJ27>(TI73-TI40),TI73,TI40) -> -33.64220183 | TR50: =IF(TJ27>(TI73-TI40),TJ73,TJ40) -> 0 | TS50: 11 | TU50: =TU40+50*TV28 -> 40.50925926 | TV50: =TV40 -> -20 | TW50: 50 | TY50: =IF(TV26>(TU48-TU40),TU48,TU40) -> 0 | TZ50: =IF(TV26>(TU48-TU40),TV48,TV40) -> -20 | UA50: 40 | UC50: =UC40+50*UD31 -> -11.10091743 | UD50: =UD40 -> 0 | UE50: 50 | UG50: =IF(UD27>(UC48-UC40),UC48,UC40) -> -40 | UH50: =IF(UD27>(UC48-UC40),UD48,UD40) -> 0 | UI50: 40 | UK50: =IF(UD27>(UC73-UC40),UC73,UC40) -> -33.64220183 | UL50: =IF(UD27>(UC73-UC40),UD73,UD40) -> 0 | UM50: 11 | UO50: =UO40+50*UP28 -> 42.82407407 | UP50: =UP40 -> -20 | UQ50: 50 | US50: =IF(UP26>(UO48-UO40),UO48,UO40) -> 0 | UT50: =IF(UP26>(UO48-UO40),UP48,UP40) -> -20 | UU50: 40 | UW50: =UW40+50*UX31 -> -10.35991531 | UX50: =UX40 -> 0 | UY50: 50 | VA50: =IF(UX27>(UW48-UW40),UW48,UW40) -> -40 | VB50: =IF(UX27>(UW48-UW40),UX48,UX40) -> 0 | VC50: 40 | VE50: =IF(UX27>(UW73-UW40),UW73,UW40) -> -33.47918137 | VF50: =IF(UX27>(UW73-UW40),UX73,UX40) -> 0 | VG50: 11 | VI50: =VI40+50*VJ28 -> 42.82407407 | VJ50: =VJ40 -> -20 | VK50: 50 | VM50: =IF(VJ26>(VI48-VI40),VI48,VI40) -> 0 | VN50: =IF(VJ26>(VI48-VI40),VJ48,VJ40) -> -20 | VO50: 40 | VQ50: =VQ40+50*VR31 -> -10.35991531 | VR50: =VR40 -> 0 | VS50: 50 | VU50: =IF(VR27>(VQ48-VQ40),VQ48,VQ40) -> -40 | VV50: =IF(VR27>(VQ48-VQ40),VR48,VR40) -> 0 | VW50: 40 | VY50: =IF(VR27>(VQ73-VQ40),VQ73,VQ40) -> -33.47918137 | VZ50: =IF(VR27>(VQ73-VQ40),VR73,VR40) -> 0 | WA50: 11
H51: جمع شوندگی افقی بافت کلاه | I51: =OFFSET(AJ6,I52,1) -> -0.03974562798 | K51: جمع شوندگی افقی بافت جلوشلوار | L51: =OFFSET(AJ6,L52,1) -> -0.03974562798 | N51: جمع شوندگی افقی بافت پشت شلوار | O51: =OFFSET(AJ6,O52,1) -> -0.03974562798 | AI51: 0 | AJ51: =IF(AM51=0," ",(10/3)*((AM51/AL51)*(1/J6)-1)) ->  | AK51: =IF(AN51=0," ",(100/68)*((AO51/AN51)*(1/J7)-1)) ->  | AL51: 13.5 | AM51: 0 | AN51: 0 | AO51: 36 | AQ51: 45 | CI51: =CI47+0.25*(CI39-CI47) -> 22.85 | CJ51: =CJ47+0.04*(CJ39-CJ47) -> 62.444 | CK51: j5'''' | DP51: =DP49 -> 0 | DQ51: =DQ49 -> 0 | DR51: 2 | EX51: =ET34 -> 37.2 | EY51: =EU34 -> 41.6 | EZ51: 17 | FF51: =FJ54 -> 37.4 | FG51: =FG46 -> 2.8 | FH51: 16 | FJ51: =FF47 -> 0 | FK51: =FG47 -> 11.3 | FL51: 18 | FR51: =FO24 -> 14.115 | FS51: =FP24 -> 60.84250015 | FT51: 41 شبیه ساز | GU51: =GU50+GT11 -> -20 | GV51: -0.3490658504 | GW51: =HB13+HB10*COS(GV51) ->  | GX51: =HC13-HB10*SIN(GV51) ->  | GY51: =SQRT(POWER((HB12-GW51),2)+POWER((HC12-GX51),2)) ->  | GZ51: =ABS(HB9-GY51) ->  | HO51: =-HK51+HP9 -> 0 | HP51: 0 | HS51: =HF30 -> 0 | HT51: =HG30 -> 0 | HU51: 41 | HW51: =HS51+2*(SIN(ATAN((HS12-HS11)/(HT12-HT11)))*(HT51-HT11)+COS(ATAN((HS12-HS11)/(HT12-HT11)))*(HS11-HS51))*COS(ATAN((HS12-HS11)/(HT12-HT11))) ->  | HX51: =HT51-2*(SIN(ATAN((HS12-HS11)/(HT12-HT11)))*(HT51-HT11)+COS(ATAN((HS12-HS11)/(HT12-HT11)))*(HS11-HS51))*SIN(ATAN((HS12-HS11)/(HT12-HT11))) ->  | HY51: 41 | NU51: =NV31+NV5/NV48 -> -3.354166667 | NV51: =NV32 -> 5 | NW51: w2 | OB51: =NZ61 -> -21.65208333 | OC51: =OA61 -> 6.052752294 | OD51: =NY61 -> h10 | OF51: f4 | OG51: =OG43*OG39 -> 0.3399892067 | OH51: بزرگی فلش رج | OJ51: نقطه ورودی سر فلش | OK51: مولفه افقی | OL51: مولفه عمودی | OM51: =OK54 -> -29.7429969 | ON51: =OL54 -> 5.736643281 | OO51: =OJ54 -> f3 | OQ51: f4 | OR51: =OR43*OR39 -> 0.3399892067 | OS51: بزرگی فلش رج | OU51: نقطه ورودی سر فلش | OV51: مولفه افقی | OW51: مولفه عمودی | OX51: =OV54 -> -30.36278857 | OY51: =OW54 -> 5.736643281 | OZ51: =OU54 -> f3 | PB51: n40 | PC51: 0.38 | PD51: فاصله فلش کم کردن | PF51: نقطه ورودی سر فلش | PG51: مولفه افقی | PH51: مولفه عمودی | PI51: =PG54 -> -30.98258024 | PJ51: =PH54 -> 5.736643281 | PK51: =PF54 -> f3 | PM51: n40 | PN51: 0.38 | PO51: فاصله فلش کم کردن | PQ51: نقطه ورودی سر فلش | PR51: مولفه افقی | PS51: مولفه عمودی | PT51: =PR54 -> -30.4867469 | PU51: =PS54 -> 5.736643281 | PV51: =PQ54 -> f3 | PX51: =PX47 -> -48.5 | PY51: =PY47+PY36-PY29 -> 23.57142857 | PZ51: t23 | QB51: g5 | QC51: =QC47+0.7*(QC50-QC47) -> -48.8675 | QD51: =QD47+0.28*(QD50-QD47) -> 9.485714286 | QE51: =QC48 -> -48.9935 | QF51: =QD48 -> 10.30857143 | QG51: =QB48 -> g11 | QK51: قرینه یقه گرد پشت | QQ51: =QQ15 -> -13 | QR51: =QR15+QR7+3*QR8 -> 58.02779747 | QS51: k41 | QX51: =QQ66 -> -9.2 | QY51: =QR66 -> 58.80959054 | QZ51: k56 | RB51: f4 | RC51: =RC43*RC39 -> 0.3399892067 | RD51: بزرگی فلش رج | RF51: نقطه ورودی سر فلش | RG51: مولفه افقی | RH51: مولفه عمودی | RI51: =RG54 -> -31.59751079 | RJ51: =RH54 -> 5.736643281 | RK51: =RF54 -> f3 | RM51: =RM40+55*RN28 -> 47.10648148 | RN51: =RN40 -> -20 | RO51: 55 | RQ51: =RQ50 -> 0 | RR51: =RN38 -> -40.15525759 | RU51: =RU40+55*RV31 -> -7.395906845 | RV51: =RV40 -> 0 | RW51: 55 | RY51: =RY50 -> -40 | RZ51: =RV38 -> 10.27777778 | SC51: =SC50 -> -33.47918137 | SD51: =RV38 -> 10.27777778 | SG51: =SG40+55*SH28 -> 47.10648148 | SH51: =SH40 -> -20 | SI51: 55 | SK51: =SK50 -> 0 | SL51: =SH38 -> -40.15525759 | SO51: =SO40+55*SP31 -> -7.395906845 | SP51: =SP40 -> 0 | SQ51: 55 | SS51: =SS50 -> -40 | ST51: =SP38 -> 10.27777778 | SW51: =SW50 -> -33.47918137 | SX51: =SP38 -> 10.27777778 | TA51: =TA40+55*TB28 -> 44.56018519 | TB51: =TB40 -> -20 | TC51: 55 | TE51: =TE50 -> 0 | TF51: =TB38 -> -40.2293578 | TI51: =TI40+55*TJ31 -> -8.211009174 | TJ51: =TJ40 -> 0 | TK51: 55 | TM51: =TM50 -> -40 | TN51: =TJ38 -> 9.722222222 | TQ51: =TQ50 -> -33.64220183 | TR51: =TJ38 -> 9.722222222 | TU51: =TU40+55*TV28 -> 44.56018519 | TV51: =TV40 -> -20 | TW51: 55 | TY51: =TY50 -> 0 | TZ51: =TV38 -> -40.2293578 | UC51: =UC40+55*UD31 -> -8.211009174 | UD51: =UD40 -> 0 | UE51: 55 | UG51: =UG50 -> -40 | UH51: =UD38 -> 9.722222222 | UK51: =UK50 -> -33.64220183 | UL51: =UD38 -> 9.722222222 | UO51: =UO40+55*UP28 -> 47.10648148 | UP51: =UP40 -> -20 | UQ51: 55 | US51: =US50 -> 0 | UT51: =UP38 -> -40.15525759 | UW51: =UW40+55*UX31 -> -7.395906845 | UX51: =UX40 -> 0 | UY51: 55 | VA51: =VA50 -> -40 | VB51: =UX38 -> 10.27777778 | VE51: =VE50 -> -33.47918137 | VF51: =UX38 -> 10.27777778 | VI51: =VI40+55*VJ28 -> 47.10648148 | VJ51: =VJ40 -> -20 | VK51: 55 | VM51: =VM50 -> 0 | VN51: =VJ38 -> -40.15525759 | VQ51: =VQ40+55*VR31 -> -7.395906845 | VR51: =VR40 -> 0 | VS51: 55 | VU51: =VU50 -> -40 | VV51: =VR38 -> 10.27777778 | VY51: =VY50 -> -33.47918137 | VZ51: =VR38 -> 10.27777778
H52: بافت انتخابی کلاه | I52: ='متغیرها '!C862 -> 11 | K52: بافت انتخابی جلو شلوار | L52: ='متغیرها '!C863 -> 11 | N52: بافت انتخابی پشت شلوار | O52: ='متغیرها '!C864 -> 11 | AI52: 0 | AJ52: =IF(AM52=0," ",(10/3)*((AM52/AL52)*(1/J6)-1)) ->  | AK52: =IF(AN52=0," ",(100/68)*((AO52/AN52)*(1/J7)-1)) ->  | AL52: 13.5 | AM52: 0 | AN52: 0 | AO52: 36 | AQ52: 46 | DP52: =DM15 -> 0 | DQ52: =DN15 -> 71.8 | DR52: خط سینه | EX52: =ET32 -> 33.1 | EY52: =EU32 -> 54.1 | EZ52: 18 | FJ52: =FJ18 -> 15 | FK52: =FG46+'طراحی همه الگوها'!U269 -> 11.9 | FL52: 24 | GU52: =GU51+GT11 -> -18 | GV52: -0.3141592654 | GW52: =HB13+HB10*COS(GV52) ->  | GX52: =HC13-HB10*SIN(GV52) ->  | GY52: =SQRT(POWER((HB12-GW52),2)+POWER((HC12-GX52),2)) ->  | GZ52: =ABS(HB9-GY52) ->  | HO52: =-HK52+HP9 -> 0 | HP52: 0 | HS52: 0 | HT52: 0 | HU52: 42 | HW52: =HS52+2*(SIN(ATAN((HS12-HS11)/(HT12-HT11)))*(HT52-HT11)+COS(ATAN((HS12-HS11)/(HT12-HT11)))*(HS11-HS52))*COS(ATAN((HS12-HS11)/(HT12-HT11))) ->  | HX52: =HT52-2*(SIN(ATAN((HS12-HS11)/(HT12-HT11)))*(HT52-HT11)+COS(ATAN((HS12-HS11)/(HT12-HT11)))*(HS11-HS52))*SIN(ATAN((HS12-HS11)/(HT12-HT11))) ->  | HY52: 42 | NU52: =NV31 -> -35 | NV52: =NV57+NV34*NV6 -> 9.013761468 | NW52: w3 | OB52: =NZ62 -> -21.65208333 | OC52: =OA62 -> 5.552752294 | OD52: =NY62 -> h11 | OF52: m20 | OG52: 0.2 | OH52: فاصله فلش کم کردن | OJ52: m5 | OK52: =OF64 -> -30.08298611 | OL52: =OG64 -> 5.566648678 | OQ52: m20 | OR52: =OG52 -> 0.2 | OS52: فاصله فلش کم کردن | OU52: m5 | OV52: =OQ64 -> -30.70277778 | OW52: =OR64 -> 5.566648678 | PB52: n50 | PC52: 0.05 | PD52: فاصله فلش کم کردن | PF52: n6 | PG52: =PB65 -> -31.32256944 | PH52: =PC65 -> 5.566648678 | PM52: n50 | PN52: 0.06 | PO52: فاصله فلش کم کردن | PQ52: n6 | PR52: =PM65 -> -30.82673611 | PS52: =PN65 -> 5.566648678 | PX52: =PX48 -> -41.5 | PY52: =PY51 -> 23.57142857 | PZ52: t24 | QB52: g6 | QC52: =QC51 -> -48.8675 | QD52: =QD49-QD51+QD47 -> 10.51428571 | QI52: =GP101 -> -5.4188 | QJ52: 88.1 | QK52: 23پ ق | QM52: =QI69-0.5 -> -0.5 | QN52: =QJ69-3 -> 77.22779747 | QO52: 26'* | QQ52: =QQ15+(QR7+4*QR8)*SIN(RADIANS(60)) -> -7.457437416 | QR52: =QR15-(QR7+4*QR8)*COS(RADIANS(60)) -> 49.02779747 | QS52: k42 | QX52: =QQ68 -> -13 | QY52: =QR68 -> 59.82779747 | QZ52: k58 | RB52: p50 | RC52: 0.3 | RD52: فاصله فلش کم کردن | RF52: p6 | RG52: =RB65 -> -31.9375 | RH52: =RC65 -> 5.566648678 | RM52: =RM40+60*RN28 -> 51.38888889 | RN52: =RN40 -> -20 | RO52: 60 | RU52: =RU40+60*RV31 -> -4.431898377 | RV52: =RV40 -> 0 | RW52: 60 | SG52: =SG40+60*SH28 -> 51.38888889 | SH52: =SH40 -> -20 | SI52: 60 | SO52: =SO40+60*SP31 -> -4.431898377 | SP52: =SP40 -> 0 | SQ52: 60 | TA52: =TA40+60*TB28 -> 48.61111111 | TB52: =TB40 -> -20 | TC52: 60 | TI52: =TI40+60*TJ31 -> -5.321100917 | TJ52: =TJ40 -> 0 | TK52: 60 | TU52: =TU40+60*TV28 -> 48.61111111 | TV52: =TV40 -> -20 | TW52: 60 | UC52: =UC40+60*UD31 -> -5.321100917 | UD52: =UD40 -> 0 | UE52: 60 | UO52: =UO40+60*UP28 -> 51.38888889 | UP52: =UP40 -> -20 | UQ52: 60 | UW52: =UW40+60*UX31 -> -4.431898377 | UX52: =UX40 -> 0 | UY52: 60 | VI52: =VI40+60*VJ28 -> 51.38888889 | VJ52: =VJ40 -> -20 | VK52: 60 | VQ52: =VQ40+60*VR31 -> -4.431898377 | VR52: =VR40 -> 0 | VS52: 60
H53: بافت انتخابی کلاه | I53: =OFFSET(AJ6,I52,6) -> ساده | K53: بافت انتخابی جلو شلوار | L53: =OFFSET(AJ6,L52,6) -> ساده | N53: بافت انتخابی پشت شلوار | O53: =OFFSET(AJ6,O52,6) -> ساده | AI53: 0 | AJ53: =IF(AM53=0," ",(10/3)*((AM53/AL53)*(1/J6)-1)) ->  | AK53: =IF(AN53=0," ",(100/68)*((AO53/AN53)*(1/J7)-1)) ->  | AL53: 13.5 | AM53: 0 | AN53: 0 | AO53: 36 | AQ53: 47 | FJ53: =FJ19 -> 29.9 | FK53: =FG46+'طراحی همه الگوها'!U271 -> 14.4 | FL53: 26 | FR53: =FR51 -> 14.115 | FS53: =FS51 -> 60.84250015 | FT53: 41 شبیه ساز | HO53: =-HK53+HP9 -> 0 | HP53: 0 | HS53: 0 | HT53: 0 | HU53: 43 | HW53: =HS53+2*(SIN(ATAN((HS12-HS11)/(HT12-HT11)))*(HT53-HT11)+COS(ATAN((HS12-HS11)/(HT12-HT11)))*(HS11-HS53))*COS(ATAN((HS12-HS11)/(HT12-HT11))) ->  | HX53: =HT53-2*(SIN(ATAN((HS12-HS11)/(HT12-HT11)))*(HT53-HT11)+COS(ATAN((HS12-HS11)/(HT12-HT11)))*(HS11-HS53))*SIN(ATAN((HS12-HS11)/(HT12-HT11))) ->  | HY53: 43 | NU53: =NU51 -> -3.354166667 | NV53: =NV52 -> 9.013761468 | NW53: w4 | NY53: نقطه شروع رج(چپ) | NZ53: مولفه افقی | OA53: مولفه عمودی | OF53: m30 | OG53: 0.25 | OH53: فاصله فلش کم کردن | OJ53: f2 | OK53: =OK52+1*OK50 -> -29.7429969 | OL53: =OL52-OK49*OK50 -> 5.396654074 | OM53: =OK52 -> -30.08298611 | ON53: =OL52 -> 5.566648678 | OO53: =OJ52 -> m5 | OQ53: m30 | OR53: =OG53 -> 0.25 | OS53: فاصله فلش کم کردن | OU53: f2 | OV53: =OV52+1*OV50 -> -30.36278857 | OW53: =OW52-OV49*OV50 -> 5.396654074 | OX53: =OV52 -> -30.70277778 | OY53: =OW52 -> 5.566648678 | OZ53: =OU52 -> m5 | PB53: n60 | PC53: 0.75 | PD53: فاصله فلش کم کردن | PF53: f2 | PG53: =PG52+1*PG50 -> -30.98258024 | PH53: =PH52-PG49*PG50 -> 5.396654074 | PI53: =PG52 -> -31.32256944 | PJ53: =PH52 -> 5.566648678 | PK53: =PF52 -> n6 | PM53: n60 | PN53: 0.4 | PO53: فاصله فلش کم کردن | PQ53: f2 | PR53: =PR52+1*PR50 -> -30.4867469 | PS53: =PS52-PR49*PR50 -> 5.396654074 | PT53: =PR52 -> -30.82673611 | PU53: =PS52 -> 5.566648678 | PV53: =PQ52 -> n6 | PX53: =PX49 -> -45 | PY53: =PY51 -> 23.57142857 | PZ53: t25 | QB53: g7 | QC53: =QC48+0.7*QD45*SIN(RADIANS(30)-2*ATAN((QC48-QC51)/(QD48-QD51+0.0001))) -> -48.69901625 | QD53: =QD48-0.7*QD45*COS(RADIANS(30)-2*ATAN((QC48-QC51)/(QD48-QD51+0.0001))) -> 10.03786989 | QE53: =QC48 -> -48.9935 | QF53: =QD48 -> 10.30857143 | QG53: =QB48 -> g11 | QI53: -4.0641 | QJ53: 86.89083821 | QK53: 28پ ق | QQ53: =2*QQ15-QQ52 -> -18.54256258 | QR53: =QR52 -> 49.02779747 | QS53: k43 | QX53: =QQ67 -> -16.8 | QY53: =QR67 -> 58.80959054 | QZ53: k57 | RB53: p51 | RC53: 0.7 | RD53: فاصله فلش کم کردن | RF53: f2 | RG53: =RG52+1*RG50 -> -31.59751079 | RH53: =RH52-RG49*RG50 -> 5.396654074 | RI53: =RG52 -> -31.9375 | RJ53: =RH52 -> 5.566648678 | RK53: =RF52 -> p6 | RM53: =RM40+65*RN28 -> 55.6712963 | RN53: =RN40 -> -20 | RO53: 65 | RQ53: =IF(RN26>(RM49-RM40),RM49,RM40) -> 0 | RR53: =IF(RN26>(RM49-RM40),RN49,RN40) -> -20 | RS53: 45 | RU53: =RU40+65*RV31 -> -1.467889908 | RV53: =RV40 -> 0 | RW53: 65 | RY53: =IF(RV27>(RU49-RU40),RU49,RU40) -> -40 | RZ53: =IF(RV27>(RU49-RU40),RV49,RV40) -> 0 | SA53: 45 | SC53: =IF(RV27>(RU74-RU40),RU74,RU40) -> -32.88637968 | SD53: =IF(RV27>(RU74-RU40),RV74,RV40) -> 0 | SE53: 12 | SG53: =SG40+65*SH28 -> 55.6712963 | SH53: =SH40 -> -20 | SI53: 65 | SK53: =IF(SH26>(SG49-SG40),SG49,SG40) -> 0 | SL53: =IF(SH26>(SG49-SG40),SH49,SH40) -> -20 | SM53: 45 | SO53: =SO40+65*SP31 -> -1.467889908 | SP53: =SP40 -> 0 | SQ53: 65 | SS53: =IF(SP27>(SO49-SO40),SO49,SO40) -> -40 | ST53: =IF(SP27>(SO49-SO40),SP49,SP40) -> 0 | SU53: 45 | SW53: =IF(SP27>(SO74-SO40),SO74,SO40) -> -32.88637968 | SX53: =IF(SP27>(SO74-SO40),SP74,SP40) -> 0 | SY53: 12 | TA53: =TA40+65*TB28 -> 52.66203704 | TB53: =TB40 -> -20 | TC53: 65 | TE53: =IF(TB26>(TA49-TA40),TA49,TA40) -> 0 | TF53: =IF(TB26>(TA49-TA40),TB49,TB40) -> -20 | TG53: 45 | TI53: =TI40+65*TJ31 -> -2.431192661 | TJ53: =TJ40 -> 0 | TK53: 65 | TM53: =IF(TJ27>(TI49-TI40),TI49,TI40) -> -40 | TN53: =IF(TJ27>(TI49-TI40),TJ49,TJ40) -> 0 | TO53: 45 | TQ53: =IF(TJ27>(TI74-TI40),TI74,TI40) -> -33.06422018 | TR53: =IF(TJ27>(TI74-TI40),TJ74,TJ40) -> 0 | TS53: 12 | TU53: =TU40+65*TV28 -> 52.66203704 | TV53: =TV40 -> -20 | TW53: 65 | TY53: =IF(TV26>(TU49-TU40),TU49,TU40) -> 0 | TZ53: =IF(TV26>(TU49-TU40),TV49,TV40) -> -20 | UA53: 45 | UC53: =UC40+65*UD31 -> -2.431192661 | UD53: =UD40 -> 0 | UE53: 65 | UG53: =IF(UD27>(UC49-UC40),UC49,UC40) -> -40 | UH53: =IF(UD27>(UC49-UC40),UD49,UD40) -> 0 | UI53: 45 | UK53: =IF(UD27>(UC74-UC40),UC74,UC40) -> -33.06422018 | UL53: =IF(UD27>(UC74-UC40),UD74,UD40) -> 0 | UM53: 12 | UO53: =UO40+65*UP28 -> 55.6712963 | UP53: =UP40 -> -20 | UQ53: 65 | US53: =IF(UP26>(UO49-UO40),UO49,UO40) -> 0 | UT53: =IF(UP26>(UO49-UO40),UP49,UP40) -> -20 | UU53: 45 | UW53: =UW40+65*UX31 -> -1.467889908 | UX53: =UX40 -> 0 | UY53: 65 | VA53: =IF(UX27>(UW49-UW40),UW49,UW40) -> -40 | VB53: =IF(UX27>(UW49-UW40),UX49,UX40) -> 0 | VC53: 45 | VE53: =IF(UX27>(UW74-UW40),UW74,UW40) -> -32.88637968 | VF53: =IF(UX27>(UW74-UW40),UX74,UX40) -> 0 | VG53: 12 | VI53: =VI40+65*VJ28 -> 55.6712963 | VJ53: =VJ40 -> -20 | VK53: 65 | VM53: =IF(VJ26>(VI49-VI40),VI49,VI40) -> 0 | VN53: =IF(VJ26>(VI49-VI40),VJ49,VJ40) -> -20 | VO53: 45 | VQ53: =VQ40+65*VR31 -> -1.467889908 | VR53: =VR40 -> 0 | VS53: 65 | VU53: =IF(VR27>(VQ49-VQ40),VQ49,VQ40) -> -40 | VV53: =IF(VR27>(VQ49-VQ40),VR49,VR40) -> 0 | VW53: 45 | VY53: =IF(VR27>(VQ74-VQ40),VQ74,VQ40) -> -32.88637968 | VZ53: =IF(VR27>(VQ74-VQ40),VR74,VR40) -> 0 | WA53: 12
AI54: 0 | AJ54: =IF(AM54=0," ",(10/3)*((AM54/AL54)*(1/J6)-1)) ->  | AK54: =IF(AN54=0," ",(100/68)*((AO54/AN54)*(1/J7)-1)) ->  | AL54: 13.5 | AM54: 0 | AN54: 0 | AO54: 36 | AQ54: 48 | EX54: =EP29 -> 0 | EY54: =EQ29 -> 109.1 | EZ54: 1 | FJ54: =FF46+'طراحی همه الگوها'!U260 -> 37.4 | FK54: =FG46+'طراحی همه الگوها'!U261 -> 16.9 | FL54: 17 | FR54: =FO31 -> 0 | FS54: =FP31 -> 60.84250015 | FT54: s''12 | HO54: =-HK54+HP9 -> 0 | HP54: 0 | HS54: =HF30 -> 0 | HT54: =HG30 -> 0 | HU54: 44 | HW54: =HS54+2*(SIN(ATAN((HS12-HS11)/(HT12-HT11)))*(HT54-HT11)+COS(ATAN((HS12-HS11)/(HT12-HT11)))*(HS11-HS54))*COS(ATAN((HS12-HS11)/(HT12-HT11))) ->  | HX54: =HT54-2*(SIN(ATAN((HS12-HS11)/(HT12-HT11)))*(HT54-HT11)+COS(ATAN((HS12-HS11)/(HT12-HT11)))*(HS11-HS54))*SIN(ATAN((HS12-HS11)/(HT12-HT11))) ->  | HY54: 44 | NU54: =NU51 -> -3.354166667 | NV54: =NV32+NV34 -> 5.802752294 | NW54: w5 | NY54: w8 | NZ54: =NU57 -> -35 | OA54: =NV57 -> 5.802752294 | OB54: =NZ61 -> -21.65208333 | OC54: =OA61 -> 6.052752294 | OD54: =NY61 -> h10 | OF54: m40 | OG54: 0.35 | OH54: فاصله فلش کم کردن | OJ54: f3 | OK54: =OK53 -> -29.7429969 | OL54: =OL52+OK49*OK50 -> 5.736643281 | OM54: =OK53 -> -29.7429969 | ON54: =OL53 -> 5.396654074 | OO54: =OJ53 -> f2 | OQ54: m40 | OR54: =OG54 -> 0.35 | OS54: فاصله فلش کم کردن | OU54: f3 | OV54: =OV53 -> -30.36278857 | OW54: =OW52+OV49*OV50 -> 5.736643281 | OX54: =OV53 -> -30.36278857 | OY54: =OW53 -> 5.396654074 | OZ54: =OU53 -> f2 | PB54: n61 | PC54: 0.03 | PD54: فاصله فلش کم کردن | PF54: f3 | PG54: =PG53 -> -30.98258024 | PH54: =PH52+PG49*PG50 -> 5.736643281 | PI54: =PG53 -> -30.98258024 | PJ54: =PH53 -> 5.396654074 | PK54: =PF53 -> f2 | PM54: n61 | PN54: 0.11 | PO54: فاصله فلش کم کردن | PQ54: f3 | PR54: =PR53 -> -30.4867469 | PS54: =PS52+PR49*PR50 -> 5.736643281 | PT54: =PR53 -> -30.4867469 | PU54: =PS53 -> 5.396654074 | PV54: =PQ53 -> f2 | PX54: =PX50 -> -38.5 | PY54: =PY51 -> 23.57142857 | PZ54: t26 | QB54: g8 | QC54: =QC48-0.7*QD45*SIN(RADIANS(30)-ATAN((QC48-QC51)/(QD48-QD51+0.0001))) -> -49.24362296 | QD54: =QD48-0.7*QD45*COS(RADIANS(30)-ATAN((QC48-QC51)/(QD48-QD51+0.0001))) -> 9.996420012 | QE54: =QC53 -> -48.69901625 | QF54: =QD53 -> 10.03786989 | QG54: =QB53 -> g7 | QI54: -2.16752 | QJ54: 86.28625731 | QK54: 26پ ق | QM54: =QM52 -> -0.5 | QN54: =QN52-3 -> 74.22779747 | QO54: 26'** | QQ54: =QQ15+QR7+4*QR8 -> -6.6 | QR54: =QR15 -> 52.22779747 | QS54: k44 | QX54: =QQ65 -> -20.6 | QY54: =QR65 -> 52.22779747 | QZ54: k55 | RB54: p52 | RC54: 0.5 | RD54: فاصله فلش کم کردن | RF54: f3 | RG54: =RG53 -> -31.59751079 | RH54: =RH52+RG49*RG50 -> 5.736643281 | RI54: =RG53 -> -31.59751079 | RJ54: =RH53 -> 5.396654074 | RK54: =RF53 -> f2 | RM54: =RM40+70*RN28 -> 59.9537037 | RN54: =RN40 -> -20 | RO54: 70 | RQ54: =RQ53 -> 0 | RR54: =RN38 -> -40.15525759 | RU54: =RU40+70*RV31 -> 1.49611856 | RV54: =RV40 -> 0 | RW54: 70 | RY54: =RY53 -> -40 | RZ54: =RV38 -> 10.27777778 | SC54: =SC53 -> -32.88637968 | SD54: =RV38 -> 10.27777778 | SG54: =SG40+70*SH28 -> 59.9537037 | SH54: =SH40 -> -20 | SI54: 70 | SK54: =SK53 -> 0 | SL54: =SH38 -> -40.15525759 | SO54: =SO40+70*SP31 -> 1.49611856 | SP54: =SP40 -> 0 | SQ54: 70 | SS54: =SS53 -> -40 | ST54: =SP38 -> 10.27777778 | SW54: =SW53 -> -32.88637968 | SX54: =SP38 -> 10.27777778 | TA54: =TA40+70*TB28 -> 56.71296296 | TB54: =TB40 -> -20 | TC54: 70 | TE54: =TE53 -> 0 | TF54: =TB38 -> -40.2293578 | TI54: =TI40+70*TJ31 -> 0.4587155963 | TJ54: =TJ40 -> 0 | TK54: 70 | TM54: =TM53 -> -40 | TN54: =TJ38 -> 9.722222222 | TQ54: =TQ53 -> -33.06422018 | TR54: =TJ38 -> 9.722222222 | TU54: =TU40+70*TV28 -> 56.71296296 | TV54: =TV40 -> -20 | TW54: 70 | TY54: =TY53 -> 0 | TZ54: =TV38 -> -40.2293578 | UC54: =UC40+70*UD31 -> 0.4587155963 | UD54: =UD40 -> 0 | UE54: 70 | UG54: =UG53 -> -40 | UH54: =UD38 -> 9.722222222 | UK54: =UK53 -> -33.06422018 | UL54: =UD38 -> 9.722222222 | UO54: =UO40+70*UP28 -> 59.9537037 | UP54: =UP40 -> -20 | UQ54: 70 | US54: =US53 -> 0 | UT54: =UP38 -> -40.15525759 | UW54: =UW40+70*UX31 -> 1.49611856 | UX54: =UX40 -> 0 | UY54: 70 | VA54: =VA53 -> -40 | VB54: =UX38 -> 10.27777778 | VE54: =VE53 -> -32.88637968 | VF54: =UX38 -> 10.27777778 | VI54: =VI40+70*VJ28 -> 59.9537037 | VJ54: =VJ40 -> -20 | VK54: 70 | VM54: =VM53 -> 0 | VN54: =VJ38 -> -40.15525759 | VQ54: =VQ40+70*VR31 -> 1.49611856 | VR54: =VR40 -> 0 | VS54: 70 | VU54: =VU53 -> -40 | VV54: =VR38 -> 10.27777778 | VY54: =VY53 -> -32.88637968 | VZ54: =VR38 -> 10.27777778
AI55: 0 | AJ55: =IF(AM55=0," ",(10/3)*((AM55/AL55)*(1/J6)-1)) ->  | AK55: =IF(AN55=0," ",(100/68)*((AO55/AN55)*(1/J7)-1)) ->  | AL55: 13.5 | AM55: 0 | AN55: 0 | AO55: 36 | AQ55: 49 | EX55: =EP31 -> 5.7 | EY55: =EQ31 -> 0 | EZ55: 5 | HO55: =-HK55+HP9 -> 0 | HP55: 0 | HS55: 0 | HT55: 0 | HU55: 45 | HW55: =HS55+2*(SIN(ATAN((HS12-HS11)/(HT12-HT11)))*(HT55-HT11)+COS(ATAN((HS12-HS11)/(HT12-HT11)))*(HS11-HS55))*COS(ATAN((HS12-HS11)/(HT12-HT11))) ->  | HX55: =HT55-2*(SIN(ATAN((HS12-HS11)/(HT12-HT11)))*(HT55-HT11)+COS(ATAN((HS12-HS11)/(HT12-HT11)))*(HS11-HS55))*SIN(ATAN((HS12-HS11)/(HT12-HT11))) ->  | HY55: =HU55 -> 45 | NU55: =NV31+0.1*(NU51-NV31) -> -31.83541667 | NV55: =NV32 -> 5 | NW55: w6 | NY55: نقطه پایان رج(راست) | NZ55: مولفه افقی | OA55: مولفه عمودی | OB55: =NZ64 -> -16.70208333 | OC55: =OA64 -> 6.052752294 | OD55: =NY64 -> h13 | OF55: m50 | OG55: 0.42 | OH55: فاصله فلش کم کردن | OQ55: m50 | OR55: =OG55 -> 0.42 | OS55: فاصله فلش کم کردن | PB55: n62 | PC55: 0.4 | PD55: فاصله فلش کم کردن | PM55: n62 | PN55: 0.3 | PO55: فاصله فلش کم کردن | PX55: =PX34-1 -> -49.5 | PY55: =PY51+2 -> 25.57142857 | PZ55: t27 | QI55: 0 | QJ55: 86.08473034 | QK55: 24پ ق | QQ55: =2*QQ15-QQ54 -> -19.4 | QR55: =QR54 -> 52.22779747 | QS55: k45 | QX55: =QQ53 -> -18.54256258 | QY55: =QR53 -> 49.02779747 | QZ55: k43 | RB55: p53 | RC55: 0.4 | RD55: فاصله فلش کم کردن | RM55: =RM40+75*RN28 -> 64.23611111 | RN55: =RN40 -> -20 | RO55: 75 | RU55: =RU40+75*RV31 -> 4.460127029 | RV55: =RV40 -> 0 | RW55: 75 | SG55: =SG40+75*SH28 -> 64.23611111 | SH55: =SH40 -> -20 | SI55: 75 | SO55: =SO40+75*SP31 -> 4.460127029 | SP55: =SP40 -> 0 | SQ55: 75 | TA55: =TA40+75*TB28 -> 60.76388889 | TB55: =TB40 -> -20 | TC55: 75 | TI55: =TI40+75*TJ31 -> 3.348623853 | TJ55: =TJ40 -> 0 | TK55: 75 | TU55: =TU40+75*TV28 -> 60.76388889 | TV55: =TV40 -> -20 | TW55: 75 | UC55: =UC40+75*UD31 -> 3.348623853 | UD55: =UD40 -> 0 | UE55: 75 | UO55: =UO40+75*UP28 -> 64.23611111 | UP55: =UP40 -> -20 | UQ55: 75 | UW55: =UW40+75*UX31 -> 4.460127029 | UX55: =UX40 -> 0 | UY55: 75 | VI55: =VI40+75*VJ28 -> 64.23611111 | VJ55: =VJ40 -> -20 | VK55: 75 | VQ55: =VQ40+75*VR31 -> 4.460127029 | VR55: =VR40 -> 0 | VS55: 75
AI56: 0 | AJ56: =IF(AM56=0," ",(10/3)*((AM56/AL56)*(1/J6)-1)) ->  | AK56: =IF(AN56=0," ",(100/68)*((AO56/AN56)*(1/J7)-1)) ->  | AL56: 13.5 | AM56: 0 | AN56: 0 | AO56: 36 | AQ56: 50 | HO56: =-HK56+HP9 -> 0 | HP56: 0 | HS56: 0 | HT56: 0 | HU56: 46 | HW56: =HS56+2*(SIN(ATAN((HS12-HS11)/(HT12-HT11)))*(HT56-HT11)+COS(ATAN((HS12-HS11)/(HT12-HT11)))*(HS11-HS56))*COS(ATAN((HS12-HS11)/(HT12-HT11))) ->  | HX56: =HT56-2*(SIN(ATAN((HS12-HS11)/(HT12-HT11)))*(HT56-HT11)+COS(ATAN((HS12-HS11)/(HT12-HT11)))*(HS11-HS56))*SIN(ATAN((HS12-HS11)/(HT12-HT11))) ->  | HY56: 46 | NU56: =NU57+0.1*(NU54-NU57) -> -31.83541667 | NV56: =NV54 -> 5.802752294 | NW56: w7 | NY56: w5 | NZ56: =NU54 -> -3.354166667 | OA56: =NV54 -> 5.802752294 | OG56: =S17 -> 4.411904762 | OH56: ea0 تعداد رج در یک سانت | OJ56: نسبت سایز افقی | OK56: =OG38 -> 42 | OL56: انحنا راستگرد | OO56: =OL56 -> انحنا راستگرد | OR56: =S17 -> 4.411904762 | OS56: ea0 تعداد رج در یک سانت | OU56: نسبت سایز افقی | OV56: =OR38 -> 42 | OW56: انحنا راستگرد | OZ56: =OW56 -> انحنا راستگرد | PF56: بزرگی خط عمودی دانه | PG56: =PC43 -> 0.3 | PH56: f9 | PK56: فلش به سمت بالا | PQ56: بزرگی خط عمودی دانه | PR56: =PN43 -> 0.3 | PS56: f9 | PV56: فلش به سمت بالا | PX56: =PX35+4 -> -32.5 | PY56: =PY55 -> 25.57142857 | PZ56: t28 | QE56: =PX38 -> -48.5 | QF56: 10.71428571 | QG56: t10 | QM56: =QM52 -> -0.5 | QN56: =QN54-3 -> 71.22779747 | QO56: 26'*** | QQ56: =QQ15+(QR7+4*QR8)*SIN(RADIANS(30)) -> -9.8 | QR56: =QR15+(QR7+4*QR8)*COS(RADIANS(30)) -> 57.77036006 | QS56: k46 | QX56: =QQ69 -> -15.6 | QY56: =QR69 -> 47.72446537 | QZ56: k59 | RB56: p54 | RC56: 0.6 | RD56: فاصله فلش کم کردن | RF56: نسبت سایز افقی | RG56: =RC38 -> 42 | RH56: انحنا راستگرد | RK56: =RH56 -> انحنا راستگرد | RM56: =RM40+80*RN28 -> 68.51851852 | RN56: =RN40 -> -20 | RO56: 80 | RQ56: =IF(RN26>(RM50-RM40),RM50,RM40) -> 0 | RR56: =IF(RN26>(RM50-RM40),RN50,RN40) -> -20 | RS56: 50 | RU56: =RU40+80*RV31 -> 7.424135498 | RV56: =RV40 -> 0 | RW56: 80 | RY56: =IF(RV27>(RU50-RU40),RU50,RU40) -> -40 | RZ56: =IF(RV27>(RU50-RU40),RV50,RV40) -> 0 | SA56: 50 | SC56: =IF(RV27>(RU75-RU40),RU75,RU40) -> -32.29357798 | SD56: =IF(RV27>(RU75-RU40),RV75,RV40) -> 0 | SE56: 13 | SG56: =SG40+80*SH28 -> 68.51851852 | SH56: =SH40 -> -20 | SI56: 80 | SK56: =IF(SH26>(SG50-SG40),SG50,SG40) -> 0 | SL56: =IF(SH26>(SG50-SG40),SH50,SH40) -> -20 | SM56: 50 | SO56: =SO40+80*SP31 -> 7.424135498 | SP56: =SP40 -> 0 | SQ56: 80 | SS56: =IF(SP27>(SO50-SO40),SO50,SO40) -> -40 | ST56: =IF(SP27>(SO50-SO40),SP50,SP40) -> 0 | SU56: 50 | SW56: =IF(SP27>(SO75-SO40),SO75,SO40) -> -32.29357798 | SX56: =IF(SP27>(SO75-SO40),SP75,SP40) -> 0 | SY56: 13 | TA56: =TA40+80*TB28 -> 64.81481481 | TB56: =TB40 -> -20 | TC56: 80 | TE56: =IF(TB26>(TA50-TA40),TA50,TA40) -> 0 | TF56: =IF(TB26>(TA50-TA40),TB50,TB40) -> -20 | TG56: 50 | TI56: =TI40+80*TJ31 -> 6.23853211 | TJ56: =TJ40 -> 0 | TK56: 80 | TM56: =IF(TJ27>(TI50-TI40),TI50,TI40) -> -40 | TN56: =IF(TJ27>(TI50-TI40),TJ50,TJ40) -> 0 | TO56: 50 | TQ56: =IF(TJ27>(TI75-TI40),TI75,TI40) -> -32.48623853 | TR56: =IF(TJ27>(TI75-TI40),TJ75,TJ40) -> 0 | TS56: 13 | TU56: =TU40+80*TV28 -> 64.81481481 | TV56: =TV40 -> -20 | TW56: 80 | TY56: =IF(TV26>(TU50-TU40),TU50,TU40) -> 0 | TZ56: =IF(TV26>(TU50-TU40),TV50,TV40) -> -20 | UA56: 50 | UC56: =UC40+80*UD31 -> 6.23853211 | UD56: =UD40 -> 0 | UE56: 80 | UG56: =IF(UD27>(UC50-UC40),UC50,UC40) -> -40 | UH56: =IF(UD27>(UC50-UC40),UD50,UD40) -> 0 | UI56: 50 | UK56: =IF(UD27>(UC75-UC40),UC75,UC40) -> -32.48623853 | UL56: =IF(UD27>(UC75-UC40),UD75,UD40) -> 0 | UM56: 13 | UO56: =UO40+80*UP28 -> 68.51851852 | UP56: =UP40 -> -20 | UQ56: 80 | US56: =IF(UP26>(UO50-UO40),UO50,UO40) -> 0 | UT56: =IF(UP26>(UO50-UO40),UP50,UP40) -> -20 | UU56: 50 | UW56: =UW40+80*UX31 -> 7.424135498 | UX56: =UX40 -> 0 | UY56: 80 | VA56: =IF(UX27>(UW50-UW40),UW50,UW40) -> -40 | VB56: =IF(UX27>(UW50-UW40),UX50,UX40) -> 0 | VC56: 50 | VE56: =IF(UX27>(UW75-UW40),UW75,UW40) -> -32.29357798 | VF56: =IF(UX27>(UW75-UW40),UX75,UX40) -> 0 | VG56: 13 | VI56: =VI40+80*VJ28 -> 68.51851852 | VJ56: =VJ40 -> -20 | VK56: 80 | VM56: =IF(VJ26>(VI50-VI40),VI50,VI40) -> 0 | VN56: =IF(VJ26>(VI50-VI40),VJ50,VJ40) -> -20 | VO56: 50 | VQ56: =VQ40+80*VR31 -> 7.424135498 | VR56: =VR40 -> 0 | VS56: 80 | VU56: =IF(VR27>(VQ50-VQ40),VQ50,VQ40) -> -40 | VV56: =IF(VR27>(VQ50-VQ40),VR50,VR40) -> 0 | VW56: 50 | VY56: =IF(VR27>(VQ75-VQ40),VQ75,VQ40) -> -32.29357798 | VZ56: =IF(VR27>(VQ75-VQ40),VR75,VR40) -> 0 | WA56: 13
AI57: 0 | AJ57: =IF(AM57=0," ",(10/3)*((AM57/AL57)*(1/J6)-1)) ->  | AK57: =IF(AN57=0," ",(100/68)*((AO57/AN57)*(1/J7)-1)) ->  | AL57: 13.5 | AM57: 0 | AN57: 0 | AO57: 36 | AQ57: 51 | HO57: =-HK57+HP9 -> 0 | HP57: 0 | HS57: =HF30 -> 0 | HT57: =HG30 -> 0 | HU57: 47 | HW57: =HS57+2*(SIN(ATAN((HS12-HS11)/(HT12-HT11)))*(HT57-HT11)+COS(ATAN((HS12-HS11)/(HT12-HT11)))*(HS11-HS57))*COS(ATAN((HS12-HS11)/(HT12-HT11))) ->  | HX57: =HT57-2*(SIN(ATAN((HS12-HS11)/(HT12-HT11)))*(HT57-HT11)+COS(ATAN((HS12-HS11)/(HT12-HT11)))*(HS11-HS57))*SIN(ATAN((HS12-HS11)/(HT12-HT11))) ->  | HY57: 47 | NU57: =NV31 -> -35 | NV57: =NV54 -> 5.802752294 | NW57: w8 | NY57: نقاط خروجی | NZ57: مولفه افقی | OA57: مولفه عمودی | OB57: =NZ62 -> -21.65208333 | OC57: =OA62 -> 5.552752294 | OD57: =NY62 -> h11 | OG57: =S18 -> 2.541176471 | OH57: تعداد دانه در یک سانت eb0 | OJ57: ارتفاع نیم دایره | OK57: =OG49 -> 0.5666486778 | OL57: بزرگی فلش | OM57: =OK60 -> -35 | ON57: =OL60 -> 5.566648678 | OO57: =OJ60 -> m6 | OR57: =S18 -> 2.541176471 | OS57: تعداد دانه در یک سانت eb0 | OU57: ارتفاع نیم دایره | OV57: =OR49 -> 0.5666486778 | OW57: بزرگی فلش | OX57: =OV60 -> -35 | OY57: =OW60 -> 5.566648678 | OZ57: =OU60 -> m6 | PF57: بزرگی فلش دانه | PG57: =PC44 -> 0.4 | PH57: f10 | PI57: =PG64 -> -34.79340278 | PJ57: =PH64 -> 6.166648678 | PK57: =PF64 -> f8 | PQ57: بزرگی فلش دانه | PR57: =PN44 -> 0.4 | PS57: f10 | PT57: =PR64 -> -35 | PU57: =PS64 -> 6.166648678 | PV57: =PQ64 -> f8 | PX57: =PX56 -> -32.5 | PY57: =PY56+2 -> 27.57142857 | PZ57: t29 | QE57: -41.5 | QF57: 10.71428571 | QG57: t11 | QI57: =-QJ11+QJ5+(QI61-QI81) -> 0 | QJ57: شیفت افقی | QQ57: =2*QQ15-QQ56 -> -16.2 | QR57: =QR56 -> 57.77036006 | QS57: k47 | QX57: =QQ21 -> -13.69459271 | QY57: =QR21 -> 48.28856646 | QZ57: k10 | RB57: p55 | RC57: 0.38 | RD57: فاصله فلش کم کردن | RF57: ارتفاع نیم دایره | RG57: =RC49 -> 0.5666486778 | RH57: بزرگی فلش | RI57: =RG60 -> -35 | RJ57: =RH60 -> 5.566648678 | RK57: =RF60 -> p5 | RM57: =RM40+85*RN28 -> 72.80092593 | RN57: =RN40 -> -20 | RO57: 85 | RQ57: =RQ56 -> 0 | RR57: =RN38 -> -40.15525759 | RU57: =RU40+85*RV31 -> 10.38814397 | RV57: =RV40 -> 0 | RW57: 85 | RY57: =RY56 -> -40 | RZ57: =RV38 -> 10.27777778 | SC57: =SC56 -> -32.29357798 | SD57: =RV38 -> 10.27777778 | SG57: =SG40+85*SH28 -> 72.80092593 | SH57: =SH40 -> -20 | SI57: 85 | SK57: =SK56 -> 0 | SL57: =SH38 -> -40.15525759 | SO57: =SO40+85*SP31 -> 10.38814397 | SP57: =SP40 -> 0 | SQ57: 85 | SS57: =SS56 -> -40 | ST57: =SP38 -> 10.27777778 | SW57: =SW56 -> -32.29357798 | SX57: =SP38 -> 10.27777778 | TA57: =TA40+85*TB28 -> 68.86574074 | TB57: =TB40 -> -20 | TC57: 85 | TE57: =TE56 -> 0 | TF57: =TB38 -> -40.2293578 | TI57: =TI40+85*TJ31 -> 9.128440367 | TJ57: =TJ40 -> 0 | TK57: 85 | TM57: =TM56 -> -40 | TN57: =TJ38 -> 9.722222222 | TQ57: =TQ56 -> -32.48623853 | TR57: =TJ38 -> 9.722222222 | TU57: =TU40+85*TV28 -> 68.86574074 | TV57: =TV40 -> -20 | TW57: 85 | TY57: =TY56 -> 0 | TZ57: =TV38 -> -40.2293578 | UC57: =UC40+85*UD31 -> 9.128440367 | UD57: =UD40 -> 0 | UE57: 85 | UG57: =UG56 -> -40 | UH57: =UD38 -> 9.722222222 | UK57: =UK56 -> -32.48623853 | UL57: =UD38 -> 9.722222222 | UO57: =UO40+85*UP28 -> 72.80092593 | UP57: =UP40 -> -20 | UQ57: 85 | US57: =US56 -> 0 | UT57: =UP38 -> -40.15525759 | UW57: =UW40+85*UX31 -> 10.38814397 | UX57: =UX40 -> 0 | UY57: 85 | VA57: =VA56 -> -40 | VB57: =UX38 -> 10.27777778 | VE57: =VE56 -> -32.29357798 | VF57: =UX38 -> 10.27777778 | VI57: =VI40+85*VJ28 -> 72.80092593 | VJ57: =VJ40 -> -20 | VK57: 85 | VM57: =VM56 -> 0 | VN57: =VJ38 -> -40.15525759 | VQ57: =VQ40+85*VR31 -> 10.38814397 | VR57: =VR40 -> 0 | VS57: 85 | VU57: =VU56 -> -40 | VV57: =VR38 -> 10.27777778 | VY57: =VY56 -> -32.29357798 | VZ57: =VR38 -> 10.27777778
AI58: 0 | AJ58: =IF(AM58=0," ",(10/3)*((AM58/AL58)*(1/J6)-1)) ->  | AK58: =IF(AN58=0," ",(100/68)*((AO58/AN58)*(1/J7)-1)) ->  | AL58: 13.5 | AM58: 0 | AN58: 0 | AO58: 36 | AQ58: 52 | HO58: =-HK58+HP9 -> 0 | HP58: 0 | HS58: 0 | HT58: 0 | HU58: 48 | HW58: =HS58+2*(SIN(ATAN((HS12-HS11)/(HT12-HT11)))*(HT58-HT11)+COS(ATAN((HS12-HS11)/(HT12-HT11)))*(HS11-HS58))*COS(ATAN((HS12-HS11)/(HT12-HT11))) ->  | HX58: =HT58-2*(SIN(ATAN((HS12-HS11)/(HT12-HT11)))*(HT58-HT11)+COS(ATAN((HS12-HS11)/(HT12-HT11)))*(HS11-HS58))*SIN(ATAN((HS12-HS11)/(HT12-HT11))) ->  | HY58: 48 | NU58: =NU52+0.1*(NU53-NU52) -> -31.83541667 | NV58: =NV52 -> 9.013761468 | NW58: w9 | NY58: h5 | NZ58: =NZ54+0.5*(NZ56-NZ54) -> -19.17708333 | OA58: =OA54 -> 5.802752294 | OB58: =NZ63 -> -16.70208333 | OC58: =OA63 -> 5.552752294 | OD58: =NY63 -> h12 | OG58: =IF(OG59<11," مخصوص ",F8) -> 2.5 | OH58: انتخاب ضخامت میل بافتنی f1 | OJ58: پهنای نیم دایره | OK58: =OG40 -> 0.5 | OL58: =OG51 -> 0.3399892067 | OM58: =OK64 -> -35.3675 | ON58: =OL64 -> 5.645979493 | OO58: =OJ64 -> g5 | OR58: =IF(OR59<11," مخصوص ",F8) -> 2.5 | OS58: انتخاب ضخامت میل بافتنی f1 | OU58: پهنای نیم دایره | OV58: =OR40 -> 0.5 | OW58: =OR51 -> 0.3399892067 | OX58: =OV64 -> -35.3675 | OY58: =OW64 -> 5.645979493 | OZ58: =OU64 -> g5 | PF58: زاویه فلش دانه | PG58: =PC45 -> 0.75 | PH58: f11 | PI58: =PG61 -> -34.79340278 | PJ58: =PH61 -> 5.566648678 | PK58: =PF61 -> n7 | PQ58: زاویه فلش دانه | PR58: =PN45 -> 0.75 | PS58: f11 | PT58: =PR61 -> -35 | PU58: =PS61 -> 5.566648678 | PV58: =PQ61 -> n7 | PX58: =PX55 -> -49.5 | PY58: =PY57 -> 27.57142857 | PZ58: t30 | QB58: زاویه فلش | QC58: =PY10 -> 0.5 | QD58: f5 | QG58: فلش به سمت راست | QI58: =-QJ12+QJ6+(QJ61-QJ81) -> -1.2 | QJ58: شیفت عمودی | QM58: =QM52 -> -0.5 | QN58: =QN56-3 -> 68.22779747 | QO58: 26'**** | QQ58: =QQ15 -> -13 | QR58: =QR15+QR7+4*QR8 -> 58.62779747 | QS58: k48 | RF58: پهنای نیم دایره | RG58: =RC40 -> 0.5 | RH58: =RC51 -> 0.3399892067 | RI58: =RG64 -> -35.3675 | RJ58: =RH64 -> 5.645979493 | RK58: =RF64 -> g5 | RM58: =RM40+90*RN28 -> 77.08333333 | RN58: =RN40 -> -20 | RO58: 90 | RU58: =RU40+90*RV31 -> 13.35215243 | RV58: =RV40 -> 0 | RW58: 90 | SG58: =SG40+90*SH28 -> 77.08333333 | SH58: =SH40 -> -20 | SI58: 90 | SO58: =SO40+90*SP31 -> 13.35215243 | SP58: =SP40 -> 0 | SQ58: 90 | TA58: =TA40+90*TB28 -> 72.91666667 | TB58: =TB40 -> -20 | TC58: 90 | TI58: =TI40+90*TJ31 -> 12.01834862 | TJ58: =TJ40 -> 0 | TK58: 90 | TU58: =TU40+90*TV28 -> 72.91666667 | TV58: =TV40 -> -20 | TW58: 90 | UC58: =UC40+90*UD31 -> 12.01834862 | UD58: =UD40 -> 0 | UE58: 90 | UO58: =UO40+90*UP28 -> 77.08333333 | UP58: =UP40 -> -20 | UQ58: 90 | UW58: =UW40+90*UX31 -> 13.35215243 | UX58: =UX40 -> 0 | UY58: 90 | VI58: =VI40+90*VJ28 -> 77.08333333 | VJ58: =VJ40 -> -20 | VK58: 90 | VQ58: =VQ40+90*VR31 -> 13.35215243 | VR58: =VR40 -> 0 | VS58: 90
AI59: 0 | AJ59: =IF(AM59=0," ",(10/3)*((AM59/AL59)*(1/J6)-1)) ->  | AK59: =IF(AN59=0," ",(100/68)*((AO59/AN59)*(1/J7)-1)) ->  | AL59: 13.5 | AM59: 0 | AN59: 0 | AO59: 36 | AQ59: 53 | HO59: =-HK59+HP9 -> 0 | HP59: 0 | HS59: 0 | HT59: 0 | HU59: 49 | HW59: =HS59+2*(SIN(ATAN((HS12-HS11)/(HT12-HT11)))*(HT59-HT11)+COS(ATAN((HS12-HS11)/(HT12-HT11)))*(HS11-HS59))*COS(ATAN((HS12-HS11)/(HT12-HT11))) ->  | HX59: =HT59-2*(SIN(ATAN((HS12-HS11)/(HT12-HT11)))*(HT59-HT11)+COS(ATAN((HS12-HS11)/(HT12-HT11)))*(HS11-HS59))*SIN(ATAN((HS12-HS11)/(HT12-HT11))) ->  | HY59: 49 | NU59: =NU53 -> -3.354166667 | NV59: =NV53+NV34 -> 9.816513761 | NW59: w10 | NY59: h8 | NZ59: =NZ58-0.5*NZ49 -> -21.65208333 | OA59: =OA54 -> 5.802752294 | OF59: =S21 -> همه از زیر | OG59: =S20 -> 12 | OH59: بافت انتخابی یقه شومیزیه | OJ59: نقطه شروع انحنا | OK59: مولفه افقی | OL59: مولفه عمودی | OM59: =OK63 -> -35.525 | ON59: =OL63 -> 5.849973017 | OO59: =OJ63 -> g4 | OQ59: =S21 -> همه از زیر | OR59: =S20 -> 12 | OS59: بافت انتخابی یقه شومیزیه | OU59: نقطه شروع انحنا | OV59: مولفه افقی | OW59: مولفه عمودی | OX59: =OV63 -> -35.525 | OY59: =OW63 -> 5.849973017 | OZ59: =OU63 -> g4 | PC59: نقاط خروجی | PF59: ارتفاع هر رج | PG59: =PC37 -> 0.5666486778 | PH59: w11 | PN59: نقاط خروجی | PQ59: ارتفاع هر رج | PR59: =PN37 -> 0.5666486778 | PS59: w11 | PX59: =PX55+0.5*(PX56-PX55) -> -41 | PY59: =PY56+0.5*(PY57-PY56) -> 26.57142857 | PZ59: t31 | QB59: بزرگی فلش | QC59: =PY16 -> 0.5714285714 | QD59: f4 | QE59: =QC61 -> -45 | QF59: =QD61 -> 10.71428571 | QG59: =QB61 -> t12 | QQ59: =QQ15+QR7+5*QR8 -> -6 | QR59: =QR15 -> 52.22779747 | QS59: k49 | QX59: =QQ16 -> -9 | QY59: =QR16 -> 52.22779747 | QZ59: k5 | RC59: نقاط خروجی | RF59: نقطه شروع انحنا | RG59: مولفه افقی | RH59: مولفه عمودی | RI59: =RG63 -> -35.525 | RJ59: =RH63 -> 5.849973017 | RK59: =RF63 -> g4 | RM59: =RM40+95*RN28 -> 81.36574074 | RN59: =RN40 -> -20 | RO59: 95 | RQ59: =IF(RN26>(RM51-RM40),RM51,RM40) -> 0 | RR59: =IF(RN26>(RM51-RM40),RN51,RN40) -> -20 | RS59: 55 | RU59: =RU40+95*RV31 -> 16.3161609 | RV59: =RV40 -> 0 | RW59: 95 | RY59: =IF(RV27>(RU51-RU40),RU51,RU40) -> -40 | RZ59: =IF(RV27>(RU51-RU40),RV51,RV40) -> 0 | SA59: 55 | SC59: =IF(RV27>(RU76-RU40),RU76,RU40) -> -31.70077629 | SD59: =IF(RV27>(RU76-RU40),RV76,RV40) -> 0 | SE59: 14 | SG59: =SG40+95*SH28 -> 81.36574074 | SH59: =SH40 -> -20 | SI59: 95 | SK59: =IF(SH26>(SG51-SG40),SG51,SG40) -> 0 | SL59: =IF(SH26>(SG51-SG40),SH51,SH40) -> -20 | SM59: 55 | SO59: =SO40+95*SP31 -> 16.3161609 | SP59: =SP40 -> 0 | SQ59: 95 | SS59: =IF(SP27>(SO51-SO40),SO51,SO40) -> -40 | ST59: =IF(SP27>(SO51-SO40),SP51,SP40) -> 0 | SU59: 55 | SW59: =IF(SP27>(SO76-SO40),SO76,SO40) -> -31.70077629 | SX59: =IF(SP27>(SO76-SO40),SP76,SP40) -> 0 | SY59: 14 | TA59: =TA40+95*TB28 -> 76.96759259 | TB59: =TB40 -> -20 | TC59: 95 | TE59: =IF(TB26>(TA51-TA40),TA51,TA40) -> 0 | TF59: =IF(TB26>(TA51-TA40),TB51,TB40) -> -20 | TG59: 55 | TI59: =TI40+95*TJ31 -> 14.90825688 | TJ59: =TJ40 -> 0 | TK59: 95 | TM59: =IF(TJ27>(TI51-TI40),TI51,TI40) -> -40 | TN59: =IF(TJ27>(TI51-TI40),TJ51,TJ40) -> 0 | TO59: 55 | TQ59: =IF(TJ27>(TI76-TI40),TI76,TI40) -> -31.90825688 | TR59: =IF(TJ27>(TI76-TI40),TJ76,TJ40) -> 0 | TS59: 14 | TU59: =TU40+95*TV28 -> 76.96759259 | TV59: =TV40 -> -20 | TW59: 95 | TY59: =IF(TV26>(TU51-TU40),TU51,TU40) -> 0 | TZ59: =IF(TV26>(TU51-TU40),TV51,TV40) -> -20 | UA59: 55 | UC59: =UC40+95*UD31 -> 14.90825688 | UD59: =UD40 -> 0 | UE59: 95 | UG59: =IF(UD27>(UC51-UC40),UC51,UC40) -> -40 | UH59: =IF(UD27>(UC51-UC40),UD51,UD40) -> 0 | UI59: 55 | UK59: =IF(UD27>(UC76-UC40),UC76,UC40) -> -31.90825688 | UL59: =IF(UD27>(UC76-UC40),UD76,UD40) -> 0 | UM59: 14 | UO59: =UO40+95*UP28 -> 81.36574074 | UP59: =UP40 -> -20 | UQ59: 95 | US59: =IF(UP26>(UO51-UO40),UO51,UO40) -> 0 | UT59: =IF(UP26>(UO51-UO40),UP51,UP40) -> -20 | UU59: 55 | UW59: =UW40+95*UX31 -> 16.3161609 | UX59: =UX40 -> 0 | UY59: 95 | VA59: =IF(UX27>(UW51-UW40),UW51,UW40) -> -40 | VB59: =IF(UX27>(UW51-UW40),UX51,UX40) -> 0 | VC59: 55 | VE59: =IF(UX27>(UW76-UW40),UW76,UW40) -> -31.70077629 | VF59: =IF(UX27>(UW76-UW40),UX76,UX40) -> 0 | VG59: 14 | VI59: =VI40+95*VJ28 -> 81.36574074 | VJ59: =VJ40 -> -20 | VK59: 95 | VM59: =IF(VJ26>(VI51-VI40),VI51,VI40) -> 0 | VN59: =IF(VJ26>(VI51-VI40),VJ51,VJ40) -> -20 | VO59: 55 | VQ59: =VQ40+95*VR31 -> 16.3161609 | VR59: =VR40 -> 0 | VS59: 95 | VU59: =IF(VR27>(VQ51-VQ40),VQ51,VQ40) -> -40 | VV59: =IF(VR27>(VQ51-VQ40),VR51,VR40) -> 0 | VW59: 55 | VY59: =IF(VR27>(VQ76-VQ40),VQ76,VQ40) -> -31.70077629 | VZ59: =IF(VR27>(VQ76-VQ40),VR76,VR40) -> 0 | WA59: 14
AI60: 0 | AJ60: =IF(AM60=0," ",(10/3)*((AM60/AL60)*(1/J6)-1)) ->  | AK60: =IF(AN60=0," ",(100/68)*((AO60/AN60)*(1/J7)-1)) ->  | AL60: 13.5 | AM60: 0 | AN60: 0 | AO60: 36 | AQ60: 54 | HO60: =-HK60+HP9 -> 0 | HP60: 0 | HS60: =HF30 -> 0 | HT60: =HG30 -> 0 | HU60: 50 | HW60: =HS60+2*(SIN(ATAN((HS12-HS11)/(HT12-HT11)))*(HT60-HT11)+COS(ATAN((HS12-HS11)/(HT12-HT11)))*(HS11-HS60))*COS(ATAN((HS12-HS11)/(HT12-HT11))) ->  | HX60: =HT60-2*(SIN(ATAN((HS12-HS11)/(HT12-HT11)))*(HT60-HT11)+COS(ATAN((HS12-HS11)/(HT12-HT11)))*(HS11-HS60))*SIN(ATAN((HS12-HS11)/(HT12-HT11))) ->  | HY60: 50 | NU60: =NU59-NV7/NV48 -> -6.927083333 | NV60: =NV59 -> 9.816513761 | NW60: w13 | NY60: h9 | NZ60: =NZ58+0.5*NZ49 -> -16.70208333 | OA60: =OA54 -> 5.802752294 | OB60: =NZ63 -> -16.70208333 | OC60: =OA63 -> 5.552752294 | OD60: =NY63 -> h12 | OG60: نقاط خروجی | OJ60: m6 | OK60: =OF65 -> -35 | OL60: =OG65 -> 5.566648678 | OM60: =OK65 -> -35.3675 | ON60: =OL65 -> 6.053966541 | OO60: =OJ65 -> g6 | OR60: نقاط خروجی | OU60: m6 | OV60: =OQ65 -> -35 | OW60: =OR65 -> 5.566648678 | OX60: =OV65 -> -35.3675 | OY60: =OW65 -> 6.053966541 | OZ60: =OU65 -> g6 | PB60: =PC34 -> -35 | PC60: =PC35 -> 5 | PD60: n1 | PF60: نقطه ورودی سر فلش | PG60: مولفه افقی | PH60: مولفه عمودی | PI60: =PG64 -> -34.79340278 | PJ60: =PH64 -> 6.166648678 | PK60: =PF64 -> f8 | PM60: =PN34 -> -35 | PN60: =PN35 -> 5 | PO60: n1 | PQ60: نقطه ورودی سر فلش | PR60: مولفه افقی | PS60: مولفه عمودی | PT60: =PR64 -> -35 | PU60: =PS64 -> 6.166648678 | PV60: =PQ64 -> f8 | PX60: =PX55 -> -49.5 | PY60: =PY29-1 -> 4 | PZ60: t32 | QB60: نقطه ورودی سر فلش | QC60: مولفه افقی | QD60: مولفه عمودی | QE60: =QC63 -> -45.57142857 | QF60: =QD63 -> 11 | QG60: =QB63 -> f3 | QJ60: نقاط خروجی | QM60: =QI88 -> 27.07254923 | QN60: =QJ88 -> 61.74472197 | QO60: 12' | QQ60: =2*QQ15-QQ59 -> -20 | QR60: =QR59 -> 52.22779747 | QS60: k50 | QX60: =QQ70 -> -4.2 | QY60: =QR70 -> 52.22779747 | QZ60: k60 | RB60: =RC36 -> -35 | RC60: =RC37 -> 5 | RD60: p1 | RF60: p5 | RG60: =RB64 -> -35 | RH60: =RC64 -> 5.566648678 | RI60: =RG65 -> -35.3675 | RJ60: =RH65 -> 6.053966541 | RK60: =RF65 -> g6 | RM60: =RM40+100*RN28 -> 85.64814815 | RN60: =RN40 -> -20 | RO60: 100 | RQ60: =RQ59 -> 0 | RR60: =RN38 -> -40.15525759 | RU60: =RU40+100*RV31 -> 19.28016937 | RV60: =RV40 -> 0 | RW60: 100 | RY60: =RY59 -> -40 | RZ60: =RV38 -> 10.27777778 | SC60: =SC59 -> -31.70077629 | SD60: =RV38 -> 10.27777778 | SG60: =SG40+100*SH28 -> 85.64814815 | SH60: =SH40 -> -20 | SI60: 100 | SK60: =SK59 -> 0 | SL60: =SH38 -> -40.15525759 | SO60: =SO40+100*SP31 -> 19.28016937 | SP60: =SP40 -> 0 | SQ60: 100 | SS60: =SS59 -> -40 | ST60: =SP38 -> 10.27777778 | SW60: =SW59 -> -31.70077629 | SX60: =SP38 -> 10.27777778 | TA60: =TA40+100*TB28 -> 81.01851852 | TB60: =TB40 -> -20 | TC60: 100 | TE60: =TE59 -> 0 | TF60: =TB38 -> -40.2293578 | TI60: =TI40+100*TJ31 -> 17.79816514 | TJ60: =TJ40 -> 0 | TK60: 100 | TM60: =TM59 -> -40 | TN60: =TJ38 -> 9.722222222 | TQ60: =TQ59 -> -31.90825688 | TR60: =TJ38 -> 9.722222222 | TU60: =TU40+100*TV28 -> 81.01851852 | TV60: =TV40 -> -20 | TW60: 100 | TY60: =TY59 -> 0 | TZ60: =TV38 -> -40.2293578 | UC60: =UC40+100*UD31 -> 17.79816514 | UD60: =UD40 -> 0 | UE60: 100 | UG60: =UG59 -> -40 | UH60: =UD38 -> 9.722222222 | UK60: =UK59 -> -31.90825688 | UL60: =UD38 -> 9.722222222 | UO60: =UO40+100*UP28 -> 85.64814815 | UP60: =UP40 -> -20 | UQ60: 100 | US60: =US59 -> 0 | UT60: =UP38 -> -40.15525759 | UW60: =UW40+100*UX31 -> 19.28016937 | UX60: =UX40 -> 0 | UY60: 100 | VA60: =VA59 -> -40 | VB60: =UX38 -> 10.27777778 | VE60: =VE59 -> -31.70077629 | VF60: =UX38 -> 10.27777778 | VI60: =VI40+100*VJ28 -> 85.64814815 | VJ60: =VJ40 -> -20 | VK60: 100 | VM60: =VM59 -> 0 | VN60: =VJ38 -> -40.15525759 | VQ60: =VQ40+100*VR31 -> 19.28016937 | VR60: =VR40 -> 0 | VS60: 100 | VU60: =VU59 -> -40 | VV60: =VR38 -> 10.27777778 | VY60: =VY59 -> -31.70077629 | VZ60: =VR38 -> 10.27777778
AI61: 0 | AJ61: =IF(AM61=0," ",(10/3)*((AM61/AL61)*(1/J6)-1)) ->  | AK61: =IF(AN61=0," ",(100/68)*((AO61/AN61)*(1/J7)-1)) ->  | AL61: 13.5 | AM61: 0 | AN61: 0 | AO61: 36 | AQ61: 55 | HO61: =-HK61+HP9 -> 0 | HP61: 0 | NU61: =NU60 -> -6.927083333 | NV61: =NV60+NV34 -> 10.61926606 | NW61: w14 | NY61: h10 | NZ61: =NZ59 -> -21.65208333 | OA61: =OA59+0.5*NZ50 -> 6.052752294 | OB61: =NZ64 -> -16.70208333 | OC61: =OA64 -> 6.052752294 | OD61: =NY64 -> h13 | OF61: =OG36+OG5/OG50 -> 14.17013889 | OG61: =OG37 -> 5 | OH61: m2 | OJ61: g11 | OK61: =OK65+0.8*(OK63-OK65) -> -35.4935 | OL61: =OL63+0.6*(OL65-OL63) -> 5.972369131 | OM61: =OK62 -> -35 | ON61: =OL62 -> 6.133297356 | OO61: =OJ62 -> g2 | OQ61: =OR36+OR5/OR50 -> 7.972222222 | OR61: =OR37 -> 5 | OS61: m2 | OU61: g11 | OV61: =OV65+0.8*(OV63-OV65) -> -35.4935 | OW61: =OW63+0.6*(OW65-OW63) -> 5.972369131 | OX61: =OV62 -> -35 | OY61: =OW62 -> 6.133297356 | OZ61: =OU62 -> g2 | PB61: =PB60+PC5/PC48 -> 1.774305556 | PC61: =PC60 -> 5 | PD61: n2 | PF61: n7 | PG61: =PB66 -> -34.79340278 | PH61: =PC66 -> 5.566648678 | PI61: =PG62 -> -34.96339738 | PJ61: =PH62 -> 5.939989207 | PK61: =PF62 -> f6 | PM61: =PM60+PN5/PN48 -> 6.732638889 | PN61: =PN60 -> 5 | PO61: n2 | PQ61: n7 | PR61: =PM66 -> -35 | PS61: =PN66 -> 5.566648678 | PT61: =PR62 -> -35.1699946 | PU61: =PS62 -> 5.939989207 | PV61: =PQ62 -> f6 | PX61: =PX56 -> -32.5 | PY61: =PY60 -> 4 | PZ61: t33 | QB61: =PZ40 -> t12 | QC61: =PX40 -> -45 | QD61: =PY40 -> 10.71428571 | QI61: =QI18-QJ9+QJ5 -> 5.4188 | QJ61: =QJ18-QJ10+QJ6 -> 86.9 | QK61: 25 | QQ61: =QQ15+(QR7+5*QR8)*SIN(RADIANS(30)) -> -9.5 | QR61: =QR15+(QR7+5*QR8)*COS(RADIANS(30)) -> 58.2899753 | QS61: k51 | RB61: =RB60+RC5/RC50 -> -4.375 | RC61: =RC60 -> 5 | RD61: p2 | RF61: g11 | RG61: =RG65+0.8*(RG63-RG65) -> -35.4935 | RH61: =RH63+0.6*(RH65-RH63) -> 5.972369131 | RI61: =RG62 -> -35 | RJ61: =RH62 -> 6.133297356 | RK61: =RF62 -> g2
AI62: 0 | AJ62: =IF(AM62=0," ",(10/3)*((AM62/AL62)*(1/J6)-1)) ->  | AK62: =IF(AN62=0," ",(100/68)*((AO62/AN62)*(1/J7)-1)) ->  | AL62: 13.5 | AM62: 0 | AN62: 0 | AO62: 36 | AQ62: 56 | HO62: =-HK62+HP9 -> 0 | HP62: 0 | NU62: =NU59 -> -3.354166667 | NV62: =NV61 -> 10.61926606 | NW62: w15 | NY62: h11 | NZ62: =NZ59 -> -21.65208333 | OA62: =OA59-0.5*NZ50 -> 5.552752294 | OF62: =OG36+0.1*(OF61-OG36) -> -30.08298611 | OG62: =OG37 -> 5 | OH62: m3 | OJ62: g2 | OK62: =OK60 -> -35 | OL62: =OL60+OK57 -> 6.133297356 | OQ62: =OR36+0.1*(OQ61-OR36) -> -30.70277778 | OR62: =OR37 -> 5 | OS62: m3 | OU62: g2 | OV62: =OV60 -> -35 | OW62: =OW60+OV57 -> 6.133297356 | PB62: =PB60+0.1*(PB61-PB60) -> -31.32256944 | PC62: =PC60 -> 5 | PD62: n3 | PF62: f6 | PG62: =PG61-PG58*PG57*PG59 -> -34.96339738 | PH62: =PH64-PG57*PG59 -> 5.939989207 | PM62: =PM60+0.1*(PM61-PM60) -> -30.82673611 | PN62: =PN60 -> 5 | PO62: n3 | PQ62: f6 | PR62: =PR61-PR58*PR57*PR59 -> -35.1699946 | PS62: =PS64-PR57*PR59 -> 5.939989207 | QB62: f2 | QC62: =QC61-1*QC59 -> -45.57142857 | QD62: =QD61-QC58*QC59 -> 10.42857143 | QE62: =QC61 -> -45 | QF62: =QD61 -> 10.71428571 | QG62: =QB61 -> t12 | QI62: =QI19-QJ9+QJ5 -> 4.33504 | QJ62: =QJ19-QJ10+QJ6 -> 83.56389874 | QK62: 30 | QQ62: =2*QQ15-QQ61 -> -16.5 | QR62: =QR61 -> 58.2899753 | QS62: k52 | QX62: =QQ26 -> -11 | QY62: =QR26 -> 55.69189909 | QZ62: k15 | RB62: =RB60+0.1*(RB61-RB60) -> -31.9375 | RC62: =RC60 -> 5 | RD62: p3 | RF62: g2 | RG62: =RG60 -> -35 | RH62: =RH60+RG57 -> 6.133297356 | RQ62: =IF(RN26>(RM52-RM40),RM52,RM40) -> 0 | RR62: =IF(RN26>(RM52-RM40),RN52,RN40) -> -20 | RS62: 60 | RY62: =IF(RV27>(RU52-RU40),RU52,RU40) -> -40 | RZ62: =IF(RV27>(RU52-RU40),RV52,RV40) -> 0 | SA62: 60 | SC62: =IF(RV27>(RU77-RU40),RU77,RU40) -> -30.5151729 | SD62: =IF(RV27>(RU77-RU40),RV77,RV40) -> 0 | SE62: 16 | SK62: =IF(SH26>(SG52-SG40),SG52,SG40) -> 0 | SL62: =IF(SH26>(SG52-SG40),SH52,SH40) -> -20 | SM62: 60 | SS62: =IF(SP27>(SO52-SO40),SO52,SO40) -> -40 | ST62: =IF(SP27>(SO52-SO40),SP52,SP40) -> 0 | SU62: 60 | SW62: =IF(SP27>(SO77-SO40),SO77,SO40) -> -30.5151729 | SX62: =IF(SP27>(SO77-SO40),SP77,SP40) -> 0 | SY62: 16 | TE62: =IF(TB26>(TA52-TA40),TA52,TA40) -> 0 | TF62: =IF(TB26>(TA52-TA40),TB52,TB40) -> -20 | TG62: 60 | TM62: =IF(TJ27>(TI52-TI40),TI52,TI40) -> -40 | TN62: =IF(TJ27>(TI52-TI40),TJ52,TJ40) -> 0 | TO62: 60 | TQ62: =IF(TJ27>(TI77-TI40),TI77,TI40) -> -30.75229358 | TR62: =IF(TJ27>(TI77-TI40),TJ77,TJ40) -> 0 | TS62: 16 | TY62: =IF(TV26>(TU52-TU40),TU52,TU40) -> 0 | TZ62: =IF(TV26>(TU52-TU40),TV52,TV40) -> -20 | UA62: 60 | UG62: =IF(UD27>(UC52-UC40),UC52,UC40) -> -40 | UH62: =IF(UD27>(UC52-UC40),UD52,UD40) -> 0 | UI62: 60 | UK62: =IF(UD27>(UC77-UC40),UC77,UC40) -> -30.75229358 | UL62: =IF(UD27>(UC77-UC40),UD77,UD40) -> 0 | UM62: 16 | US62: =IF(UP26>(UO52-UO40),UO52,UO40) -> 0 | UT62: =IF(UP26>(UO52-UO40),UP52,UP40) -> -20 | UU62: 60 | VA62: =IF(UX27>(UW52-UW40),UW52,UW40) -> -40 | VB62: =IF(UX27>(UW52-UW40),UX52,UX40) -> 0 | VC62: 60 | VE62: =IF(UX27>(UW77-UW40),UW77,UW40) -> -30.5151729 | VF62: =IF(UX27>(UW77-UW40),UX77,UX40) -> 0 | VG62: 16 | VM62: =IF(VJ26>(VI52-VI40),VI52,VI40) -> 0 | VN62: =IF(VJ26>(VI52-VI40),VJ52,VJ40) -> -20 | VO62: 60 | VU62: =IF(VR27>(VQ52-VQ40),VQ52,VQ40) -> -40 | VV62: =IF(VR27>(VQ52-VQ40),VR52,VR40) -> 0 | VW62: 60 | VY62: =IF(VR27>(VQ77-VQ40),VQ77,VQ40) -> -30.5151729 | VZ62: =IF(VR27>(VQ77-VQ40),VR77,VR40) -> 0 | WA62: 16
... 75 more rows

Sheet متغیرها (hidden)
U2: 0.5 | AC2: مقایسه ترتیب اندازه ها
A3: متغیرهای ورودی چادر | E3: تبدیل رنج متغیر ورودی | F3: توضیح متغیر ورودی برای صفحه نمایش | U3: 9 | V3: =U3+U2 -> 9.5 | W3: =V3+U2 -> 10 | X3: =W3+U2 -> 10.5 | Y3: =X3+U2 -> 11 | Z3: =Y3+U2 -> 11.5 | AA3: =Z3+U2 -> 12 | AB3: =AA3+U2 -> 12.5 | AC3: =AB3+U2 -> 13 | AD3: =AC3+U2 -> 13.5 | AE3: =AD3+U2 -> 14 | AF3: =AE3+U2 -> 14.5 | AG3: =AF3+U2 -> 15 | AH3: =AG3+U2 -> 15.5 | AI3: =AH3+U2 -> 16 | AJ3: =AI3+U2 -> 16.5 | AK3: =AJ3+U2 -> 17 | AL3: =AK3+U2 -> 17.5
A4: متغیر ورودی چادر شماره 1 یا مقنعه | F4: متغیر ورودی چادر شماره 1 یا مقنعه | G4: x1 | H4: y1 | I4: x2 | J4: y2(بهینه) | K4: a | L4: b | N4: کمترین | P4: بیشترین | U4: انتخاب ستون سلول مرجع برای انتخاب سایز در رسم الگو | V4: انتخاب نوع الگو | W4: انتخاب نوع اندازه گیری | X4: اندازه جدید یا اندازه موجود | Y4: انتخاب ستون سلول مرجع برای انتخاب سایز در بررسی اندازه ها
A5: ضریب فاصله لبه چادر یا مقنعه تا زمین j0 | B5: (از -0.1 الی 4.5) | C5: =K5*E5+L5 -> 3 | D5: خط زمین=0 خط زانو=1 خط باسن=2 خط کمر=3 خط سینه=4 | E5: ='طراحی همه الگوها'!Q177 -> 70 | F5: ضریب فاصله لبه چادر یا مقنعه تا زمین | G5: 10 | H5: 0 | I5: 30 | J5: 1 | K5: =(J5-H5)/(I5-G5) -> 0.05 | L5: =H5-G5*K5 -> -0.5 | M5: 2 | N5: =(M5-L5)/K5 -> 50 | O5: 4 | P5: =(O5-L5)/K5 -> 90 | Q5: 3 | R5: =(Q5-L5)/K5 -> 70 | T5: سلول مرجع | U5: =MATCH('مساله سوم مدل 13'!A475,'متغیرها '!AJ51:AJ179,0) -> 8 | V5: 1 | W5: 3 | X5: 2 | Y5: 18
